Workbook

Sheet Instructions
A30: Release Log
A32: TDSv28 | B32: 2016-08-31 | C32: Update for 2016.2.1. Added summary information. Spreadsheet now different from 2013 version due to EDR information.
A33: TDSv27 | B33: 2016-06-03 | C33: Second release of 2016 version. Updated to better handle Candidate programs that don't need to pass certain standard design runs
C34: existing+addition+alteration runs if only being certified for new construction. See inputs at top of Summary tab.
A35: TDSv25 | B35: 2015-11-11 | C35: First release of 2016 TDS based. Files were updated to use 2016 requirements. Tolerance changed to 0.04. Spreadsheet standards equals lookup revised.
C36: Some U07 files modified to look at above/below deck insulation. U12 and U13 existing attic status changed to existing.
C37: U10 files modified to match new MF central calcs.

Sheet Test Data Set Description
A29: Test # | B29: Run # | C29: Number of Runs | D29: Description | E29: Prototype
D30: Standard Design Tests
D31: Following tests all 16 climate zones
D32: Following tests standard design = proposed design
A33: U01 | B33: R01-R16 | C33: 16 | D33: Standard Design Test | E33: S2100
A34: U02 | B34: R01-R16 | C34: 16 | D34: Standard Design Test | E34: S2700
A35: U03 | B35: R01-R16 | C35: 16 | D35: Standard Design Test | E35: S6960
D37: Proposed Design Tests
D38: Following tests should have standard = standard from tests T01, T02 and T03
A39: U04 | B39: R01-R16 | C39: 16 | D39: Proposed Design Test | E39: P2100
A40: U05 | B40: R01-R16 | C40: 16 | D40: Proposed Design Test | E40: P2700
A41: U06 | B41: R01-R16 | C41: 16 | D41: Proposed Design Test | E41: P6960
A43: U07 | D43: =VLOOKUP(A43,TestArray,2) -> Common Measures
D44: Following tests for Climate Zone 12 only
D45: Following tests should have the same standard design as T01R12
A46: U07 | B46: R01 | C46: 1 | D46: =VLOOKUP(A46,TestArray,4+RIGHT(B46,2)) -> Package
A47: U07 | B47: R02 | C47: 1 | D47: Fenestration U 0.40/S 0.40 | E47: T04R12
A48: U07 | B48: R03 | C48: 1 | D48: Wall R13/Roof Deck Above R6 | E48: T04R12
A49: U07 | B49: R04 | C49: 1 | D49: Ceiling R49 /Roof Deck Below R0/Radiant Barrier | E49: T04R12
A50: U07 | B50: R05 | C50: 1 | D50: Furnace AFUE 92 | E50: T04R12
A51: U07 | B51: R06 | C51: 1 | D51: Air Conditioner SEER 16/EER 14 | E51: T04R12
A52: U07 | B52: R07 | C52: 1 | D52: No Cool Vent | E52: T04R12
A53: U07 | B53: R08 | C53: 1 | D53: Ducts 2% Leakage | E53: T04R12
A54: U07 | B54: R09 | C54: 1 | D54: Insulation Construction Quality Improved | E54: T04R12
A55: U07 | B55: R10 | C55: 1 | D55: Air Leakage ACH50 2.0 | E55: T04R12
A57: U08 | D57: =VLOOKUP(A57,TestArray,2) -> Water Heating
D58: Following tests for Climate Zone 12 only
D59: Some standard designs are different than T01R12
A60: U08 | B60: R01 | C60: 1 | D60: =VLOOKUP(A60,TestArray,4+RIGHT(B60,2)) -> Package | E60: T04R12
A61: U08 | B61: R02 | C61: 1 | D61: Parallel Piping | E61: T04R12
A62: U08 | B62: R03 | C62: 1 | D62: Small Tankless EF 0.80/Input 195000/0 gal | E62: T04R12
A63: U08 | B63: R04 | C63: 1 | D63: Large Tankless RE 0.76/Input 300000/0 gal | E63: T04R12
A64: U08 | B64: R05 | C64: 1 | D64: Large Storage RE 0.77/Input 100000/75gal/Stby 0.01 | E64: T04R12
A65: U08 | B65: R06 | C65: 1 | D65: Large Storage RE 0.77/Input 100000/75gal/Stby 0.03 | E65: T04R12
A66: U08 | B66: R07 | C66: 1 | D66: Electric Resistance EF 0.92/Input 4500 | E66: T04R12
A67: U08 | B67: R08 | C67: 1 | D67: Heat Pump EF 2.4/Input 4500 | E67: T04R12
A68: U08 | B68: R09 | C68: 1 | D68: 2 Water Heaters using Multiplier | E68: T04R12
A69: U08 | B69: R10 | C69: 1 | D69: 2 Water Heaters Using 2 entries | E69: T04R12
A71: U09 | D71: =VLOOKUP(A71,TestArray,2) -> Multiple Orientation
D72: Following tests for Climate Zone 12 only
A74: U09 | B74: R01 | C74: 1 | D74: =VLOOKUP(A74,TestArray,4+RIGHT(B74,2)) -> Single Standard Front 45 | E74: T01R12
A75: U09 | B75: R02 | C75: 1 | D75: East Standard | E75: T01R12
A76: U09 | B76: R03 | C76: 1 | D76: South Standard | E76: T01R12
A77: U09 | B77: R04 | C77: 1 | D77: West Standard | E77: T01R12
A78: U09 | B78: R05 | C78: 1 | D78: North Standard | E78: T01R12
A79: U09 | B79: R06 | C79: 1 | D79: Single Proposed front 45 | E79: T04R12
A80: U09 | B80: R07 | C80: 1 | D80: East Proposed | E80: T04R12
A81: U09 | B81: R08 | C81: 1 | D81: South Proposed | E81: T04R12
A82: U09 | B82: R09 | C82: 1 | D82: West Proposed | E82: T04R12
A83: U09 | B83: R10 | C83: 1 | D83: North Proposed | E83: T04R12
A85: U10 | D85: =VLOOKUP(A85,TestArray,2) -> Multi Family Water Heating
D86: Following tests for Climate Zone 12 only
D87: Some standard designs are different than T03R12
A88: U10 | B88: R01 | C88: 1 | D88: =VLOOKUP(A88,TestArray,4+RIGHT(B88,2)) -> 8 Storage | E88: T06R12
A89: U10 | B89: R02 | C89: 1 | D89: 8 Storage 2 Systems | E89: T06R12
A90: U10 | B90: R03 | C90: 1 | D90: 8 LgStor | E90: T06R12
A91: U10 | B91: R04 | C91: 1 | D91: 2 LgStor Central Solar | E91: T06R12
A92: U10 | B92: R05 | C92: 1 | D92: 2 LgStor Central Solar Recirc | E92: T06R12
A93: U10 | B93: R06 | C93: 1 | D93: 2 LgStor Central Recirc | E93: T06R12
A94: U10 | B94: R07 | C94: 1 | D94: 2 SmInstantant Central Solar | E94: T06R12
A95: U10 | B95: R08 | C95: 1 | D95: 2 SmInstantant Central Solar Recirc | E95: T06R12
A96: U10 | B96: R09 | C96: 1 | D96: 1 Indirect Central Solar | E96: T06R12
A97: U10 | B97: R10 | C97: 1 | D97: 1 Indirect Central Solar Recirc | E97: T06R12
A99: U11 | D99: =VLOOKUP(A99,TestArray,2) -> Source Energy
D100: Following tests for Climate Zone 12 only
D101: Some standard designs are different than T01R12
A102: U11 | B102: R01 | C102: 1 | D102: =VLOOKUP(A102,TestArray,4+RIGHT(B102,2)) -> Package | E102: T04R12
A103: U11 | B103: R02 | C103: 1 | D103: Package No Natural Gas | E103: T04R12
A104: U11 | B104: R03 | C104: 1 | D104: Electric DHW | E104: T04R12
A105: U11 | B105: R04 | C105: 1 | D105: Electric DHW no Natural Gas | E105: T04R12
A106: U11 | B106: R05 | C106: 1 | D106: Heatpump DHW | E106: T04R12
A107: U11 | B107: R06 | C107: 1 | D107: Heatpump DHW no Natural Gas | E107: T04R12
A108: U11 | B108: R07 | C108: 1 | D108: Heatpump HVAC | E108: T04R12
A109: U11 | B109: R08 | C109: 1 | D109: Heatpump HVAC no Natural Gas | E109: T04R12
A110: U11 | B110: R09 | C110: 1 | D110: Heatpump HVAC & DHW | E110: T04R12
A111: U11 | B111: R10 | C111: 1 | D111: Heatpump HVAC & DHW no Natural Gas | E111: T04R12
A113: U12 | D113: =VLOOKUP(A113,TestArray,2) -> E+A+A Base & Windows
D114: Following tests for Climate Zone 12 only
D115: Standard Design Varies with features and verification
A116: U12 | B116: R01 | C116: 1 | D116: =VLOOKUP(A116,TestArray,4+RIGHT(B116,2)) -> E 1440ft2 as New Construction | E116: P1665
A117: U12 | B117: R02 | C117: 1 | D117: E 1440ft2 as Addition/Alteration | E117: P1665
A118: U12 | B118: R03 | C118: 1 | D118: EA 1665ft2 | E118: P1665
A119: U12 | B119: R04 | C119: 1 | D119: EAA Ceiling R38 Verified | E119: P1665
A120: U12 | B120: R05 | C120: 1 | D120: EAA Ceiling R38 Verified Wind U0.41/S0.36 | E120: P1665
A121: U12 | B121: R06 | C121: 1 | D121: EAA Ceiling R38 Verified Wind U0.41/S0.36 Verified | E121: P1665
A122: U12 | B122: R07 | C122: 1 | D122: EAA Ceiling R38 Verified Wind U0.40/S0.35 | E122: P1665
A123: U12 | B123: R08 | C123: 1 | D123: EAA Ceiling R38 Verified Wind U0.40/S0.35 Verified | E123: P1665
A124: U12 | B124: R09 | C124: 1 | D124: EAA Ceiling R38 Verified Wind U0.39/S0.34 | E124: P1665
A125: U12 | B125: R10 | C125: 1 | D125: EAA Ceiling R38 Verified Wind U0.39/S0.34 Verified | E125: P1665
A127: U13 | D127: =VLOOKUP(A127,TestArray,2) -> E+A+A Walls & HVAC
D128: Following tests for Climate Zone 12 only
D129: Standard Design Varies with features and verification
A130: U13 | B130: R01 | C130: 1 | D130: =VLOOKUP(A130,TestArray,4+RIGHT(B130,2)) -> EAA Ceiling R38 Verified Wall R11 | E130: P1665
A131: U13 | B131: R02 | C131: 1 | D131: EAA Ceiling R38 Verified Wall R11 Verified | E131: P1665
A132: U13 | B132: R03 | C132: 1 | D132: EAA Ceiling R38 Verified Wall R13 | E132: P1665
A133: U13 | B133: R04 | C133: 1 | D133: EAA Ceiling R38 Verified Wall R13 Verified | E133: P1665
A134: U13 | B134: R05 | C134: 1 | D134: EAA Ceiling R38 Verified HVAC Worse | E134: P1665
A135: U13 | B135: R06 | C135: 1 | D135: EAA Ceiling R38 Verified HVAC Worse Verified | E135: P1665
A136: U13 | B136: R07 | C136: 1 | D136: EAA Ceiling R38 Verified HVAC Equal | E136: P1665
A137: U13 | B137: R08 | C137: 1 | D137: EAA Ceiling R38 Verified HVAC Equal Verified | E137: P1665
A138: U13 | B138: R09 | C138: 1 | D138: EAA Ceiling R38 Verified HVAC Better | E138: P1665
A139: U13 | B139: R10 | C139: 1 | D139: EAA Ceiling R38 Verified HVAC Better Verified | E139: P1665

Sheet Summary
A1: ="Summary of Residential ACM Tests ("&Units&")" -> Summary of Residential ACM Tests (kTDV/ft2)
B3: Comparison Date: | C3: 2016-09-01 | M3: Blue fields should be updated to match current results
B4: Comparison Author: | C4: Ken Nittler
B5: Candidate Software: | C5: CBECC-Res 2016 670 | M5: Cell C5 should be updated to the candidate software
B6: Reference Software: | C6: CBECC-Res 2016 667
B7: Type of Software: | C7: Reference | M7: Cell C7 should be changed for the type of program being approved. Candidate programs do not have to do standard design tests
B8: Type of Construction: | C8: Both | M8: Cell C8 should be changed for the type of construction being approved. New gets to skip tests T12 and T13.
B9: Units for Summary: | C9: kTDV/ft2
B10: Tolerance: | C10: =Tolerance -> 0.04
C12: Average | D12: Average
B13: Pass/ | C13: Proposed | D13: Standard
A14: Test | B14: Fail | C14: =Units -> kTDV/ft2 | D14: =Units -> kTDV/ft2 | F14: Description
A15: U01 | B15: =ResultT01 -> Pass | C15: =T01Proposed -> 41.2425 | D15: =T01Standard -> 41.2425 | F15: =VLOOKUP(A15,TestArray,2)&" in "&VLOOKUP(A15,TestArray,3)&" for Prototype "&VLOOKUP(A15,TestArray,4) -> Standard Design in All Zones for Prototype S2100ft2
A16: U02 | B16: =ResultT02 -> Pass | C16: =T02Proposed -> 39.043125 | D16: =T02Standard -> 39.043125 | F16: Standard Design in All Zones for Prototype S2700ft2
A17: U03 | B17: =ResultT03 -> Pass | C17: =T03Proposed -> 48.6725 | D17: =T03Standard -> 48.67375 | F17: Standard Design in All Zones for Prototype S6960ft2
A18: U04 | B18: =ResultT04 -> Pass | C18: =T04Proposed -> 37.8175 | D18: =T04Standard -> 41.2425 | F18: Proposed Design in All Zones for Prototype P2100ft2
A19: U05 | B19: =ResultT05 -> Pass | C19: =T05Proposed -> 35.30125 | D19: =T05Standard -> 39.043125 | F19: Proposed Design in All Zones for Prototype P2700ft2
A20: U06 | B20: =ResultT06 -> Pass | C20: =T06Proposed -> 44.80125 | D20: =T06Standard -> 48.67375 | F20: Proposed Design in All Zones for Prototype P6960ft2
A21: U07 | B21: =ResultT07 -> Pass | C21: =T07Proposed -> 37.696 | D21: =T07Standard -> 41.44 | F21: Common Measures in Zone 12 for Prototype P2100ft2
A22: U08 | B22: =ResultT08 -> Pass | C22: =T08Proposed -> 40.992 | D22: =T08Standard -> 41.44 | F22: Water Heating in Zone 12 for Prototype P2100ft2
A23: U09 | B23: =ResultT09 -> Pass | C23: =T09Proposed -> 41.351 | D23: =T09Standard -> 41.44 | F23: Multiple Orientation in Zone 12 for Prototype S2100ft2/P2100ft2
A24: U10 | B24: =ResultT10 -> Pass | C24: =T10Proposed -> 60.876 | D24: =T10Standard -> 62.347 | F24: Multi Family Water Heating in Zone 12 for Prototype P6960ft2
A25: U11 | B25: =ResultT11 -> Pass | C25: =T11Proposed -> 47.849 | D25: =T11Standard -> 50.433 | F25: Source Energy in Zone 12 for Prototype P2100ft2
A26: U12 | B26: =ResultT12 -> Pass | C26: =T12Proposed -> 177.349 | D26: =T12Standard -> 181.194 | F26: E+A+A Base & Windows in Zone 12 for Prototype P1665ft2
A27: U13 | B27: =ResultT13 -> Pass | C27: =T13Proposed -> 131.816 | D27: =T13Standard -> 165.708 | F27: E+A+A Walls & HVAC in Zone 12 for Prototype P1665ft2
A29: Page 1 of 7
A31: Note:
A32: 1. If type of software (Cell C7) is set to "Candidate", then the tests based
A33: standard design are not necessary (Tests 1-3 and part of 9)
A34: 2. If type of construction (Cell C8) is set to "New" then the tests
A35: for additions and alterations are not necessary (Tests 12 and 13)

Sheet Details
A1: ="Comparison between Reference & Candidate Software ("&Units&")" -> Comparison between Reference & Candidate Software (kTDV/ft2) | P1: =INDIRECT(P4) -> 'Reference'!$A$1:$IA$1000 | Q1: 'Reference'!$A$1:$IA$1000 | R1: 'Reference'!$A$1:$IA$1000 | S1: 'Reference'!$A$1:$IA$1000 | T1: 'Reference'!$A$1:$IA$1000 | U1: 'Reference'!$A$1:$IA$1000 | V1: 'Reference'!$A$1:$IA$1000 | W1: 'Reference'!$A$1:$IA$1000 | X1: 'Reference'!$A$1:$IA$1000 | Y1: =INDIRECT(Y4) -> 'Candidate'!$A$1:$IA$1000 | Z1: 'Candidate'!$A$1:$IA$1000 | AA1: 'Candidate'!$A$1:$IA$1000 | AB1: 'Candidate'!$A$1:$IA$1000 | AC1: 'Candidate'!$A$1:$IA$1000 | AD1: 'Candidate'!$A$1:$IA$1000 | AE1: 'Candidate'!$A$1:$IA$1000 | AF1: 'Candidate'!$A$1:$IA$1000 | AG1: =INDIRECT(AG4) -> 'Candidate'!$A$1:$IA$1000 | AH1: =INDIRECT(AH4) -> 'Reference'!$A$1:$IA$1000 | AI1: 'Reference'!$A$1:$IA$1000 | AJ1: 'Reference'!$A$1:$IA$1000 | AK1: 'Reference'!$A$1:$IA$1000 | AL1: 'Reference'!$A$1:$IA$1000 | AM1: 'Reference'!$A$1:$IA$1000 | AN1: 'Reference'!$A$1:$IA$1000 | AO1: 'Reference'!$A$1:$IA$1000 | AP1: 'Reference'!$A$1:$IA$1000 | AQ1: =INDIRECT(AQ4) -> 'Candidate'!$A$1:$IA$1000 | AR1: 'Candidate'!$A$1:$IA$1000 | AS1: 'Candidate'!$A$1:$IA$1000 | AT1: 'Candidate'!$A$1:$IA$1000 | AU1: 'Candidate'!$A$1:$IA$1000 | AV1: 'Candidate'!$A$1:$IA$1000 | AW1: 'Candidate'!$A$1:$IA$1000 | AX1: 'Candidate'!$A$1:$IA$1000 | AY1: 'Candidate'!$A$1:$IA$1000
B2: =Summary!B3 -> Comparison Date: | C2: =Comparison_Date -> 2016-09-01 | P2: =INDIRECT(P4&"FileName") -> 'ReferenceLookups'!$N$1:$N$1000 | Y2: =INDIRECT(Y4&"FileName") -> 'CandidateLookups'!$N$1:$N$1000 | AH2: =INDIRECT(AH4&"FileName") -> 'ReferenceLookups'!$N$1:$N$1000 | AQ2: =INDIRECT(AQ4&"FileName") -> 'CandidateLookups'!$N$1:$N$1000
B3: =Summary!B4 -> Comparison Author: | C3: =Comparison_Author -> Ken Nittler | Q3: =INDIRECT(Q$4&Q$5&Q$6) -> 38 | R3: 39 | S3: 40 | T3: 41 | U3: 42 | V3: 43 | W3: 49 | X3: 7 | Z3: =INDIRECT(Z$4&Z$5&Z$6) -> 38 | AA3: 39 | AB3: 40 | AC3: 41 | AD3: 42 | AE3: 43 | AF3: 49 | AG3: 7 | AI3: =INDIRECT(AI$4&AI$5&AI$6) -> 80 | AJ3: 81 | AK3: 82 | AL3: 83 | AM3: 84 | AN3: 0 | AO3: 90 | AP3: 235 | AR3: =INDIRECT(AR$4&AR$5&AR$6) -> 80 | AS3: 81 | AT3: 82 | AU3: 83 | AV3: 84 | AW3: 0 | AX3: 90 | AY3: 235
B4: =Summary!B5 -> Candidate Software: | C4: =Candidate_Software -> CBECC-Res 2016 670 | N4: Standard | P4: Reference | Q4: Reference | R4: =Q4 -> Reference | S4: Reference | T4: Reference | U4: Reference | V4: Reference | W4: Reference | X4: Reference | Y4: Candidate | Z4: =Y4 -> Candidate | AA4: Candidate | AB4: Candidate | AC4: Candidate | AD4: Candidate | AE4: Candidate | AF4: Candidate | AG4: Candidate | AH4: Reference | AI4: =AH4 -> Reference | AJ4: Reference | AK4: Reference | AL4: Reference | AM4: Reference | AN4: Reference | AO4: Reference | AP4: Reference | AQ4: Candidate | AR4: =AQ4 -> Candidate | AS4: Candidate | AT4: Candidate | AU4: Candidate | AV4: Candidate | AW4: Candidate | AX4: Candidate | AY4: Candidate | BA4: Standard
E5: Reference | F5: Candidate | G5: Percent | H5: Within | I5: Standard | J5: Reference | K5: Candidate | L5: Percent | M5: Within | N5: Equals | P5: Proposed | Q5: =P5 -> Proposed | R5: Proposed | S5: Proposed | T5: Proposed | U5: Proposed | V5: Proposed | W5: Proposed | X5: Proposed | Y5: Proposed | Z5: Proposed | AA5: Proposed | AB5: Proposed | AC5: Proposed | AD5: Proposed | AE5: Proposed | AF5: Proposed | AG5: Proposed | AH5: Standard | AI5: Standard | AJ5: Standard | AK5: Standard | AL5: Standard | AM5: Standard | AN5: Standard | AO5: Standard | AP5: Standard | AQ5: Standard | AR5: Standard | AS5: Standard | AT5: Standard | AU5: Standard | AV5: Standard | AW5: Standard | AX5: Standard | AY5: Standard | BA5: Design
A6: Test | B6: Run | C6: Description | D6: Pass/Fail | E6: Proposed | F6: Proposed | G6: Difference | H6: Tolerance | I6: Equals | J6: Standard | K6: Standard | L6: Difference | M6: Tolerance | N6: Lookup | O6: Margin | P6: Row | Q6: SpcHeat | R6: SpcCool | S6: IAQVent | T6: OtherHVAC | U6: WtrHeat | V6: Solar | W6: Total | X6: EDR | Y6: Row | Z6: =Q6 -> SpcHeat | AA6: SpcCool | AB6: IAQVent | AC6: OtherHVAC | AD6: WtrHeat | AE6: Solar | AF6: Total | AG6: EDR | AH6: Row | AI6: SpcHeat | AJ6: SpcCool | AK6: IAQVent | AL6: OtherHVAC | AM6: WtrHeat | AN6: Solar | AO6: Total | AP6: =AG6 -> EDR | AQ6: Row | AR6: =AI6 -> SpcHeat | AS6: SpcCool | AT6: IAQVent | AU6: OtherHVAC | AV6: WtrHeat | AW6: Solar | AX6: Total | AY6: EDR | AZ6: Run | BA6: Row
AO7: AO | AP7: AP
A8: U01 | B8: =VLOOKUP(A8,TestArray,2)&" in "&VLOOKUP(A8,TestArray,3)&" for Prototype "&VLOOKUP(A8,TestArray,4) -> Standard Design in All Zones for Prototype S2100ft2 | I8: =VLOOKUP(A8,TestArray,21) -> Standard = Proposed for this test
A9: =A8 -> U01 | B9: R01 | C9: =VLOOKUP(A9,TestArray,4+RIGHT(B9,2)) -> Zone 01 | D9: =IF(SoftwareType="Candidate","n/a",IF(AND(H9=Yes,M9=Yes,ABS(E9-I9)<=Tolerance/2),Pass,Fail)) -> Pass | E9: =IF(Units="EDR",X9,W9) -> 45.44 | F9: =IF(Units="EDR",AG9,AF9) -> 45.44 | G9: =IF(E9=0,0,(F9-E9)/E9) -> 0 | H9: =IF(AND((E9-Tolerance<=F9),(E9+Tolerance>=F9)),Yes,No) -> Yes | I9: =IF(Units="EDR",J9,INDIRECT(RefCol&INDEX(StandardArray,MATCH($N9,StandardList,0),2))) -> 45.44 | J9: =IF(Units="EDR",AP9,AO9) -> 45.44 | K9: =IF(Units="EDR",AY9,AX9) -> 45.44 | L9: =IF(I9=0,0,(K9-I9)/I9) -> 0 | M9: =IF(AND((I9-Tolerance<=K9),(I9+Tolerance>=K9),(J9-Tolerance<=K9),(J9+Tolerance>=K9)),Yes,No) -> Yes | N9: =A9&B9 -> U01R01 | O9: =K9-F9 -> 0 | P9: =MATCH($A9&$B9,INDIRECT(P$2),0) -> 4 | Q9: =IF(Q$3=0,"",INDEX(INDIRECT(Q$1),$P9,Q$3)) -> 34 | R9: 0 | S9: 1.17 | T9: 0 | U9: 10.27 | V9: 0 | W9: =IF(TotalSum="No",INDEX(INDIRECT(W$1),$P9,W$3),SUM(Q9:V9)) -> 45.44 | X9: 57.2557 | Y9: =MATCH($A9&$B9,INDIRECT(Y$2),0) -> 4 | Z9: =IF(Z$3=0,"",INDEX(INDIRECT(Z$1),$Y9,Z$3)) -> 34 | AA9: 0 | AB9: 1.17 | AC9: 0 | AD9: 10.27 | AE9: 0 | AF9: =IF(TotalSum="No",INDEX(INDIRECT(AF$1),$Y9,AF$3),SUM(Z9:AE9)) -> 45.44 | AG9: =IF(AG$3=0,"",INDEX(INDIRECT(AG$1),$P9,AG$3)) -> 57.2557 | AH9: =MATCH($A9&$B9,INDIRECT(AH$2),0) -> 4 | AI9: =IF(AI$3=0,"",INDEX(INDIRECT(AI$1),$AH9,AI$3)) -> 34 | AJ9: 0 | AK9: 1.17 | AL9: 0 | AM9: 10.27 | AO9: =IF(TotalSum="No",INDEX(INDIRECT(AO$1),$AH9,AO$3),SUM(AI9:AN9)) -> 45.44 | AP9: =IF(AP$3=0,"",INDEX(INDIRECT(AP$1),$P9,AP$3)) -> 57.2557 | AQ9: =MATCH($A9&$B9,INDIRECT(AQ$2),0) -> 4 | AR9: =IF(AR$3=0,"",INDEX(INDIRECT(AR$1),$AQ9,AR$3)) -> 34 | AS9: 0 | AT9: 1.17 | AU9: 0 | AV9: 10.27 | AX9: =IF(TotalSum="No",INDEX(INDIRECT(AX$1),$AQ9,AX$3),SUM(AR9:AW9)) -> 45.44 | AY9: =IF(AY$3=0,"",INDEX(INDIRECT(AY$1),$P9,AY$3)) -> 57.2557 | AZ9: =A9&B9 -> U01R01 | BA9: =ROW(AZ9) -> 9
A10: =A9 -> U01 | B10: R02 | C10: Zone 02 | D10: Pass | E10: 34.52 | F10: 34.52 | G10: =IF(E10=0,0,(F10-E10)/E10) -> 0 | H10: Yes | I10: 34.52 | J10: 34.52 | K10: 34.52 | L10: =IF(I10=0,0,(K10-I10)/I10) -> 0 | M10: Yes | N10: U01R02 | O10: =K10-F10 -> 0 | P10: 5 | Q10: 23.73 | R10: 0.36 | S10: 1.17 | T10: 0 | U10: 9.26 | V10: 0 | W10: 34.52 | X10: 50.6128 | Y10: 5 | Z10: 23.73 | AA10: 0.36 | AB10: 1.17 | AC10: 0 | AD10: 9.26 | AE10: 0 | AF10: 34.52 | AG10: 50.6128 | AH10: 5 | AI10: 23.73 | AJ10: 0.36 | AK10: 1.17 | AL10: 0 | AM10: 9.26 | AO10: 34.52 | AP10: 50.6128 | AQ10: 5 | AR10: 23.73 | AS10: 0.36 | AT10: 1.17 | AU10: 0 | AV10: 9.26 | AX10: 34.52 | AY10: 50.6128 | AZ10: U01R02 | BA10: =ROW(AZ10) -> 10
A11: U01 | B11: R03 | C11: Zone 03 | D11: Pass | E11: 25.13 | F11: 25.13 | G11: 0 | H11: Yes | I11: 25.13 | J11: 25.13 | K11: 25.13 | L11: 0 | M11: Yes | N11: U01R03 | O11: 0 | P11: 6 | Q11: 14.68 | R11: 0 | S11: 1.17 | T11: 0 | U11: 9.28 | V11: 0 | W11: 25.13 | X11: 47.8076 | Y11: 6 | Z11: 14.68 | AA11: 0 | AB11: 1.17 | AC11: 0 | AD11: 9.28 | AE11: 0 | AF11: 25.13 | AG11: 47.8076 | AH11: 6 | AI11: 14.68 | AJ11: 0 | AK11: 1.17 | AL11: 0 | AM11: 9.28 | AO11: 25.13 | AP11: 47.8076 | AQ11: 6 | AR11: 14.68 | AS11: 0 | AT11: 1.17 | AU11: 0 | AV11: 9.28 | AX11: 25.13 | AY11: 47.8076 | AZ11: U01R03 | BA11: 11
A12: U01 | B12: R04 | C12: Zone 04 | D12: Pass | E12: 28.46 | F12: 28.46 | G12: 0 | H12: Yes | I12: 28.46 | J12: 28.46 | K12: 28.46 | L12: 0 | M12: Yes | N12: U01R04 | O12: 0 | P12: 7 | Q12: 16.82 | R12: 1.6 | S12: 1.17 | T12: 0 | U12: 8.87 | V12: 0 | W12: 28.46 | X12: 48.2446 | Y12: 7 | Z12: 16.82 | AA12: 1.6 | AB12: 1.17 | AC12: 0 | AD12: 8.87 | AE12: 0 | AF12: 28.46 | AG12: 48.2446 | AH12: 7 | AI12: 16.82 | AJ12: 1.6 | AK12: 1.17 | AL12: 0 | AM12: 8.87 | AO12: 28.46 | AP12: 48.2446 | AQ12: 7 | AR12: 16.82 | AS12: 1.6 | AT12: 1.17 | AU12: 0 | AV12: 8.87 | AX12: 28.46 | AY12: 48.2446 | AZ12: U01R04 | BA12: 12
A13: U01 | B13: R05 | C13: Zone 05 | D13: Pass | E13: 22.68 | F13: 22.68 | G13: 0 | H13: Yes | I13: 22.68 | J13: 22.68 | K13: 22.68 | L13: 0 | M13: Yes | N13: U01R05 | O13: 0 | P13: 8 | Q13: 12.03 | R13: 0 | S13: 1.17 | T13: 0 | U13: 9.48 | V13: 0 | W13: 22.68 | X13: 44.6339 | Y13: 8 | Z13: 12.03 | AA13: 0 | AB13: 1.17 | AC13: 0 | AD13: 9.48 | AE13: 0 | AF13: 22.68 | AG13: 44.6339 | AH13: 8 | AI13: 12.03 | AJ13: 0 | AK13: 1.17 | AL13: 0 | AM13: 9.48 | AO13: 22.68 | AP13: 44.6339 | AQ13: 8 | AR13: 12.03 | AS13: 0 | AT13: 1.17 | AU13: 0 | AV13: 9.48 | AX13: 22.68 | AY13: 44.6339 | AZ13: U01R05 | BA13: 13
A14: U01 | B14: R06 | C14: Zone 06 | D14: Pass | E14: 19.49 | F14: 19.49 | G14: 0 | H14: Yes | I14: 19.49 | J14: 19.49 | K14: 19.49 | L14: 0 | M14: Yes | N14: U01R06 | O14: 0 | P14: 9 | Q14: 7.7 | R14: 2.16 | S14: 1.13 | T14: 0 | U14: 8.5 | V14: 0 | W14: 19.49 | X14: 51.0209 | Y14: 9 | Z14: 7.7 | AA14: 2.16 | AB14: 1.13 | AC14: 0 | AD14: 8.5 | AE14: 0 | AF14: 19.49 | AG14: 51.0209 | AH14: 9 | AI14: 7.7 | AJ14: 2.16 | AK14: 1.13 | AL14: 0 | AM14: 8.5 | AO14: 19.49 | AP14: 51.0209 | AQ14: 9 | AR14: 7.7 | AS14: 2.16 | AT14: 1.13 | AU14: 0 | AV14: 8.5 | AX14: 19.49 | AY14: 51.0209 | AZ14: U01R06 | BA14: 14
A15: U01 | B15: R07 | C15: Zone 07 | D15: Pass | E15: 12.42 | F15: 12.42 | G15: 0 | H15: Yes | I15: 12.42 | J15: 12.42 | K15: 12.42 | L15: 0 | M15: Yes | N15: U01R07 | O15: 0 | P15: 10 | Q15: 2.75 | R15: 0.3 | S15: 1.17 | T15: 0 | U15: 8.2 | V15: 0 | W15: 12.42 | X15: 49.7965 | Y15: 10 | Z15: 2.75 | AA15: 0.3 | AB15: 1.17 | AC15: 0 | AD15: 8.2 | AE15: 0 | AF15: 12.42 | AG15: 49.7965 | AH15: 10 | AI15: 2.75 | AJ15: 0.3 | AK15: 1.17 | AL15: 0 | AM15: 8.2 | AO15: 12.42 | AP15: 49.7965 | AQ15: 10 | AR15: 2.75 | AS15: 0.3 | AT15: 1.17 | AU15: 0 | AV15: 8.2 | AX15: 12.42 | AY15: 49.7965 | AZ15: U01R07 | BA15: 15
A16: U01 | B16: R08 | C16: Zone 08 | D16: Pass | E16: 19.53 | F16: 19.53 | G16: 0 | H16: Yes | I16: 19.53 | J16: 19.53 | K16: 19.53 | L16: 0 | M16: Yes | N16: U01R08 | O16: 0 | P16: 11 | Q16: 4.03 | R16: 6.22 | S16: 1.13 | T16: 0 | U16: 8.15 | V16: 0 | W16: 19.53 | X16: 46.7554 | Y16: 11 | Z16: 4.03 | AA16: 6.22 | AB16: 1.13 | AC16: 0 | AD16: 8.15 | AE16: 0 | AF16: 19.53 | AG16: 46.7554 | AH16: 11 | AI16: 4.03 | AJ16: 6.22 | AK16: 1.13 | AL16: 0 | AM16: 8.15 | AO16: 19.53 | AP16: 46.7554 | AQ16: 11 | AR16: 4.03 | AS16: 6.22 | AT16: 1.13 | AU16: 0 | AV16: 8.15 | AX16: 19.53 | AY16: 46.7554 | AZ16: U01R08 | BA16: 16
A17: U01 | B17: R09 | C17: Zone 09 | D17: Pass | E17: 32.3 | F17: 32.3 | G17: 0 | H17: Yes | I17: 32.3 | J17: 32.3 | K17: 32.3 | L17: 0 | M17: Yes | N17: U01R09 | O17: 0 | P17: 12 | Q17: 6.13 | R17: 16.9 | S17: 1.12 | T17: 0 | U17: 8.15 | V17: 0 | W17: 32.3 | X17: 47.5638 | Y17: 12 | Z17: 6.13 | AA17: 16.9 | AB17: 1.12 | AC17: 0 | AD17: 8.15 | AE17: 0 | AF17: 32.3 | AG17: 47.5638 | AH17: 12 | AI17: 6.13 | AJ17: 16.9 | AK17: 1.12 | AL17: 0 | AM17: 8.15 | AO17: 32.3 | AP17: 47.5638 | AQ17: 12 | AR17: 6.13 | AS17: 16.9 | AT17: 1.12 | AU17: 0 | AV17: 8.15 | AX17: 32.3 | AY17: 47.5638 | AZ17: U01R09 | BA17: 17
A18: U01 | B18: R10 | C18: Zone 10 | D18: Pass | E18: 32.73 | F18: 32.73 | G18: 0 | H18: Yes | I18: 32.73 | J18: 32.73 | K18: 32.73 | L18: 0 | M18: Yes | N18: U01R10 | O18: 0 | P18: 13 | Q18: 7.23 | R18: 16.27 | S18: 1.12 | T18: 0 | U18: 8.11 | V18: 0 | W18: 32.73 | X18: 45.8258 | Y18: 13 | Z18: 7.23 | AA18: 16.27 | AB18: 1.12 | AC18: 0 | AD18: 8.11 | AE18: 0 | AF18: 32.73 | AG18: 45.8258 | AH18: 13 | AI18: 7.23 | AJ18: 16.27 | AK18: 1.12 | AL18: 0 | AM18: 8.11 | AO18: 32.73 | AP18: 45.8258 | AQ18: 13 | AR18: 7.23 | AS18: 16.27 | AT18: 1.12 | AU18: 0 | AV18: 8.11 | AX18: 32.73 | AY18: 45.8258 | AZ18: U01R10 | BA18: 18
A19: U01 | B19: R11 | C19: Zone 11 | D19: Pass | E19: 64.21 | F19: 64.21 | G19: 0 | H19: Yes | I19: 64.21 | J19: 64.21 | K19: 64.21 | L19: 0 | M19: Yes | N19: U01R11 | O19: 0 | P19: 14 | Q19: =IF(Q$3=0,"",INDEX(INDIRECT(Q$1),$P19,Q$3)) -> 20.32 | R19: 34.44 | S19: 1.17 | T19: 0 | U19: 8.28 | V19: 0 | W19: 64.21 | X19: 49.293 | Y19: 14 | Z19: =IF(Z$3=0,"",INDEX(INDIRECT(Z$1),$Y19,Z$3)) -> 20.32 | AA19: 34.44 | AB19: 1.17 | AC19: 0 | AD19: 8.28 | AE19: 0 | AF19: 64.21 | AG19: 49.293 | AH19: 14 | AI19: =IF(AI$3=0,"",INDEX(INDIRECT(AI$1),$AH19,AI$3)) -> 20.32 | AJ19: 34.44 | AK19: 1.17 | AL19: 0 | AM19: 8.28 | AO19: 64.21 | AP19: 49.293 | AQ19: 14 | AR19: =IF(AR$3=0,"",INDEX(INDIRECT(AR$1),$AQ19,AR$3)) -> 20.32 | AS19: 34.44 | AT19: 1.17 | AU19: 0 | AV19: 8.28 | AX19: 64.21 | AY19: 49.293 | AZ19: U01R11 | BA19: 19
A20: U01 | B20: R12 | C20: Zone 12 | D20: Pass | E20: 41.44 | F20: 41.44 | G20: 0 | H20: Yes | I20: 41.44 | J20: 41.44 | K20: 41.44 | L20: 0 | M20: Yes | N20: U01R12 | O20: 0 | P20: 15 | Q20: 21.38 | R20: 10.23 | S20: 1.17 | T20: 0 | U20: 8.66 | V20: 0 | W20: 41.44 | X20: 45.6092 | Y20: 15 | Z20: 21.38 | AA20: 10.23 | AB20: 1.17 | AC20: 0 | AD20: 8.66 | AE20: 0 | AF20: 41.44 | AG20: 45.6092 | AH20: 15 | AI20: 21.38 | AJ20: 10.23 | AK20: 1.17 | AL20: 0 | AM20: 8.66 | AO20: 41.44 | AP20: 45.6092 | AQ20: 15 | AR20: 21.38 | AS20: 10.23 | AT20: 1.17 | AU20: 0 | AV20: 8.66 | AX20: 41.44 | AY20: 45.6092 | AZ20: U01R12 | BA20: 20
A21: U01 | B21: R13 | C21: Zone 13 | D21: Pass | E21: 65.47 | F21: 65.47 | G21: 0 | H21: Yes | I21: 65.47 | J21: 65.47 | K21: 65.47 | L21: 0 | M21: Yes | N21: U01R13 | O21: 0 | P21: 16 | Q21: 17.77 | R21: 38.4 | S21: 1.17 | T21: 0 | U21: 8.13 | V21: 0 | W21: 65.47 | X21: 50.9429 | Y21: 16 | Z21: 17.77 | AA21: 38.4 | AB21: 1.17 | AC21: 0 | AD21: 8.13 | AE21: 0 | AF21: 65.47 | AG21: 50.9429 | AH21: 16 | AI21: 17.77 | AJ21: 38.4 | AK21: 1.17 | AL21: 0 | AM21: 8.13 | AO21: 65.47 | AP21: 50.9429 | AQ21: 16 | AR21: 17.77 | AS21: 38.4 | AT21: 1.17 | AU21: 0 | AV21: 8.13 | AX21: 65.47 | AY21: 50.9429 | AZ21: U01R13 | BA21: 21
A22: U01 | B22: R14 | C22: Zone 14 | D22: Pass | E22: 61.45 | F22: 61.45 | G22: 0 | H22: Yes | I22: 61.45 | J22: 61.45 | K22: 61.45 | L22: 0 | M22: Yes | N22: U01R14 | O22: 0 | P22: 17 | Q22: 19.76 | R22: 32.12 | S22: 1.12 | T22: 0 | U22: 8.45 | V22: 0 | W22: 61.45 | X22: 49.9689 | Y22: 17 | Z22: 19.76 | AA22: 32.12 | AB22: 1.12 | AC22: 0 | AD22: 8.45 | AE22: 0 | AF22: 61.45 | AG22: 49.9689 | AH22: 17 | AI22: 19.76 | AJ22: 32.12 | AK22: 1.12 | AL22: 0 | AM22: 8.45 | AO22: 61.45 | AP22: 49.9689 | AQ22: 17 | AR22: 19.76 | AS22: 32.12 | AT22: 1.12 | AU22: 0 | AV22: 8.45 | AX22: 61.45 | AY22: 49.9689 | AZ22: U01R14 | BA22: 22
A23: U01 | B23: R15 | C23: Zone 15 | D23: Pass | E23: 96.09 | F23: 96.09 | G23: 0 | H23: Yes | I23: 96.09 | J23: 96.09 | K23: 96.09 | L23: 0 | M23: Yes | N23: U01R15 | O23: 0 | P23: 18 | Q23: 0.66 | R23: 88.15 | S23: 1.12 | T23: 0 | U23: 6.16 | V23: 0 | W23: 96.09 | X23: 56.3309 | Y23: 18 | Z23: 0.66 | AA23: 88.15 | AB23: 1.12 | AC23: 0 | AD23: 6.16 | AE23: 0 | AF23: 96.09 | AG23: 56.3309 | AH23: 18 | AI23: 0.66 | AJ23: 88.15 | AK23: 1.12 | AL23: 0 | AM23: 6.16 | AO23: 96.09 | AP23: 56.3309 | AQ23: 18 | AR23: 0.66 | AS23: 88.15 | AT23: 1.12 | AU23: 0 | AV23: 6.16 | AX23: 96.09 | AY23: 56.3309 | AZ23: U01R15 | BA23: 23
A24: U01 | B24: R16 | C24: Zone 16 | D24: Pass | E24: 58.52 | F24: 58.52 | G24: 0 | H24: Yes | I24: 58.52 | J24: 58.52 | K24: 58.52 | L24: 0 | M24: Yes | N24: U01R16 | O24: 0 | P24: 19 | Q24: 45.71 | R24: 1.35 | S24: 1.11 | T24: 0 | U24: 10.35 | V24: 0 | W24: 58.52 | X24: 53.253 | Y24: 19 | Z24: 45.71 | AA24: 1.35 | AB24: 1.11 | AC24: 0 | AD24: 10.35 | AE24: 0 | AF24: 58.52 | AG24: 53.253 | AH24: 19 | AI24: 45.71 | AJ24: 1.35 | AK24: 1.11 | AL24: 0 | AM24: 10.35 | AO24: 58.52 | AP24: 53.253 | AQ24: 19 | AR24: 45.71 | AS24: 1.35 | AT24: 1.11 | AU24: 0 | AV24: 10.35 | AX24: 58.52 | AY24: 53.253 | AZ24: U01R16 | BA24: 24
A25: ="Result "&A8 -> Result U01 | D25: =IF(SoftwareType="Candidate","n/a",IF(COUNTIF(D9:D24,Pass)=16,Pass,Fail)) -> Pass | E25: =AVERAGE(E9:E24) -> 41.2425 | F25: =AVERAGE(F9:F24) -> 41.2425 | G25: =IF(E25=0,0,(F25-E25)/E25) -> 0 | I25: =AVERAGE(I9:I24) -> 41.2425 | J25: =AVERAGE(J9:J24) -> 41.2425 | K25: =AVERAGE(K9:K24) -> 41.2425 | L25: 0 | M25: Min | N25: =MIN(L9:L24) -> 0 | O25: =AVERAGE(O9:O24) -> 0 | P25: Ave | Q25: =AVERAGE(Q9:Q24) -> 15.91875 | R25: =AVERAGE(R9:R24) -> 15.53125 | S25: =AVERAGE(S9:S24) -> 1.14875 | U25: =AVERAGE(U9:U24) -> 8.64375 | V25: =AVERAGE(V9:V24) -> 0 | W25: =AVERAGE(W9:W24) -> 41.2425 | X25: =AVERAGE(X9:X24) -> 49.68218125 | Y25: Ave | Z25: =AVERAGE(Z9:Z24) -> 15.91875 | AA25: =AVERAGE(AA9:AA24) -> 15.53125 | AB25: =AVERAGE(AB9:AB24) -> 1.14875 | AC25: =AVERAGE(AC9:AC24) -> 0 | AD25: =AVERAGE(AD9:AD24) -> 8.64375 | AF25: =AVERAGE(AF9:AF24) -> 41.2425 | AG25: =AVERAGE(AG9:AG24) -> 49.68218125 | AI25: =AVERAGE(AI9:AI24) -> 15.91875 | AJ25: =AVERAGE(AJ9:AJ24) -> 15.53125 | AK25: =AVERAGE(AK9:AK24) -> 1.14875 | AL25: =AVERAGE(AL9:AL24) -> 0 | AM25: =AVERAGE(AM9:AM24) -> 8.64375 | AO25: =AVERAGE(AO9:AO24) -> 41.2425 | AP25: =AVERAGE(AP9:AP24) -> 49.68218125 | AQ25: Ave | AR25: =AVERAGE(AR9:AR24) -> 15.91875 | AS25: =AVERAGE(AS9:AS24) -> 15.53125 | AT25: =AVERAGE(AT9:AT24) -> 1.14875 | AU25: =AVERAGE(AU9:AU24) -> 0 | AV25: =AVERAGE(AV9:AV24) -> 8.64375 | AX25: =AVERAGE(AX9:AX24) -> 41.2425 | AY25: =AVERAGE(AY9:AY24) -> 49.68218125
L26: Ave | M26: Max | N26: =MAX(L9:L24) -> 0 | Y26: % Diff | Z26: =(Z25-Q25)/Q25 -> 0 | AA26: =(AA25-R25)/R25 -> 0 | AB26: =(AB25-S25)/S25 -> 0 | AD26: =(AD25-U25)/U25 -> 0 | AF26: =(AF25-W25)/W25 -> 0
A27: U02 | B27: =VLOOKUP(A27,TestArray,2)&" in "&VLOOKUP(A27,TestArray,3)&" for Prototype "&VLOOKUP(A27,TestArray,4) -> Standard Design in All Zones for Prototype S2700ft2 | I27: =VLOOKUP(A27,TestArray,21) -> Standard = Proposed for this test
A28: =A27 -> U02 | B28: R01 | C28: =VLOOKUP(A28,TestArray,4+RIGHT(B28,2)) -> Zone 01 | D28: =IF(SoftwareType="Candidate","n/a",IF(AND(H28=Yes,M28=Yes,ABS(E28-I28)<=Tolerance/2),Pass,Fail)) -> Pass | E28: =IF(Units="EDR",X28,W28) -> 35.67 | F28: =IF(Units="EDR",AG28,AF28) -> 35.67 | G28: =IF(E28=0,0,(F28-E28)/E28) -> 0 | H28: =IF(AND((E28-Tolerance<=F28),(E28+Tolerance>=F28)),Yes,No) -> Yes | I28: =IF(Units="EDR",J28,INDIRECT(RefCol&INDEX(StandardArray,MATCH($N28,StandardList,0),2))) -> 35.67 | J28: =IF(Units="EDR",AP28,AO28) -> 35.67 | K28: =IF(Units="EDR",AY28,AX28) -> 35.67 | L28: =IF(I28=0,0,(K28-I28)/I28) -> 0 | M28: =IF(AND((I28-Tolerance<=K28),(I28+Tolerance>=K28),(J28-Tolerance<=K28),(J28+Tolerance>=K28)),Yes,No) -> Yes | N28: =A28&B28 -> U02R01 | O28: =K28-F28 -> 0 | P28: =MATCH($A28&$B28,INDIRECT(P$2),0) -> 20 | Q28: =IF(Q$3=0,"",INDEX(INDIRECT(Q$1),$P28,Q$3)) -> 25.56 | R28: 0 | S28: 1.15 | T28: 0 | U28: 8.96 | V28: 0 | W28: =IF(TotalSum="No",INDEX(INDIRECT(W$1),$P28,W$3),SUM(Q28:V28)) -> 35.67 | X28: =IF(X$3=0,"",INDEX(INDIRECT(X$1),$P28,X$3)) -> 52.843 | Y28: =MATCH($A28&$B28,INDIRECT(Y$2),0) -> 20 | Z28: =IF(Z$3=0,"",INDEX(INDIRECT(Z$1),$Y28,Z$3)) -> 25.56 | AA28: 0 | AB28: 1.15 | AC28: 0 | AD28: 8.96 | AE28: 0 | AF28: =IF(TotalSum="No",INDEX(INDIRECT(AF$1),$Y28,AF$3),SUM(Z28:AE28)) -> 35.67 | AG28: =IF(AG$3=0,"",INDEX(INDIRECT(AG$1),$P28,AG$3)) -> 52.843 | AH28: =MATCH($A28&$B28,INDIRECT(AH$2),0) -> 20 | AI28: =IF(AI$3=0,"",INDEX(INDIRECT(AI$1),$AH28,AI$3)) -> 25.56 | AJ28: 0 | AK28: 1.15 | AL28: 0 | AM28: 8.96 | AO28: =IF(TotalSum="No",INDEX(INDIRECT(AO$1),$AH28,AO$3),SUM(AI28:AN28)) -> 35.67 | AP28: =IF(AP$3=0,"",INDEX(INDIRECT(AP$1),$P28,AP$3)) -> 52.843 | AQ28: =MATCH($A28&$B28,INDIRECT(AQ$2),0) -> 20 | AR28: =IF(AR$3=0,"",INDEX(INDIRECT(AR$1),$AQ28,AR$3)) -> 25.56 | AS28: 0 | AT28: 1.15 | AU28: 0 | AV28: 8.96 | AX28: =IF(TotalSum="No",INDEX(INDIRECT(AX$1),$AQ28,AX$3),SUM(AR28:AW28)) -> 35.67 | AY28: =IF(AY$3=0,"",INDEX(INDIRECT(AY$1),$P28,AY$3)) -> 52.843 | AZ28: =A28&B28 -> U02R01 | BA28: =ROW(AZ28) -> 28
A29: =A28 -> U02 | B29: R02 | C29: Zone 02 | D29: Pass | E29: 31.06 | F29: 31.06 | G29: =IF(E29=0,0,(F29-E29)/E29) -> 0 | H29: Yes | I29: 31.06 | J29: 31.06 | K29: 31.06 | L29: =IF(I29=0,0,(K29-I29)/I29) -> 0 | M29: Yes | N29: U02R02 | O29: =K29-F29 -> 0 | P29: 21 | Q29: 20.27 | R29: 1.57 | S29: 1.15 | T29: 0 | U29: 8.07 | V29: 0 | W29: 31.06 | X29: 47.035 | Y29: 21 | Z29: 20.27 | AA29: 1.57 | AB29: 1.15 | AC29: 0 | AD29: 8.07 | AE29: 0 | AF29: 31.06 | AG29: 47.035 | AH29: 21 | AI29: 20.27 | AJ29: 1.57 | AK29: 1.15 | AL29: 0 | AM29: 8.07 | AO29: 31.06 | AP29: 47.035 | AQ29: 21 | AR29: 20.27 | AS29: 1.57 | AT29: 1.15 | AU29: 0 | AV29: 8.07 | AX29: 31.06 | AY29: 47.035 | AZ29: U02R02 | BA29: 29
A30: U02 | B30: R03 | C30: Zone 03 | D30: Pass | E30: 20.44 | F30: 20.44 | G30: 0 | H30: Yes | I30: 20.44 | J30: 20.44 | K30: 20.44 | L30: 0 | M30: Yes | N30: U02R03 | O30: 0 | P30: 22 | Q30: 11.1 | R30: 0.1 | S30: 1.15 | T30: 0 | U30: 8.09 | V30: 0 | W30: 20.44 | X30: 44.7079 | Y30: 22 | Z30: 11.1 | AA30: 0.1 | AB30: 1.15 | AC30: 0 | AD30: 8.09 | AE30: 0 | AF30: 20.44 | AG30: 44.7079 | AH30: 22 | AI30: 11.1 | AJ30: 0.1 | AK30: 1.15 | AL30: 0 | AM30: 8.09 | AO30: 20.44 | AP30: 44.7079 | AQ30: 22 | AR30: 11.1 | AS30: 0.1 | AT30: 1.15 | AU30: 0 | AV30: 8.09 | AX30: 20.44 | AY30: 44.7079 | AZ30: U02R03 | BA30: 30
A31: U02 | B31: R04 | C31: Zone 04 | D31: Pass | E31: 26.47 | F31: 26.47 | G31: 0 | H31: Yes | I31: 26.47 | J31: 26.47 | K31: 26.47 | L31: 0 | M31: Yes | N31: U02R04 | O31: 0 | P31: 23 | Q31: 14.7 | R31: 2.89 | S31: 1.15 | T31: 0 | U31: 7.73 | V31: 0 | W31: 26.47 | X31: 45.4713 | Y31: 23 | Z31: 14.7 | AA31: 2.89 | AB31: 1.15 | AC31: 0 | AD31: 7.73 | AE31: 0 | AF31: 26.47 | AG31: 45.4713 | AH31: 23 | AI31: 14.7 | AJ31: 2.89 | AK31: 1.15 | AL31: 0 | AM31: 7.73 | AO31: 26.47 | AP31: 45.4713 | AQ31: 23 | AR31: 14.7 | AS31: 2.89 | AT31: 1.15 | AU31: 0 | AV31: 7.73 | AX31: 26.47 | AY31: 45.4713 | AZ31: U02R04 | BA31: 31
A32: U02 | B32: R05 | C32: Zone 05 | D32: Pass | E32: 17.94 | F32: 17.94 | G32: 0 | H32: Yes | I32: 17.94 | J32: 17.94 | K32: 17.94 | L32: 0 | M32: Yes | N32: U02R05 | O32: 0 | P32: 24 | Q32: 8.52 | R32: 0 | S32: 1.15 | T32: 0 | U32: 8.27 | V32: 0 | W32: 17.94 | X32: 41.5491 | Y32: 24 | Z32: 8.52 | AA32: 0 | AB32: 1.15 | AC32: 0 | AD32: 8.27 | AE32: 0 | AF32: 17.94 | AG32: 41.5491 | AH32: 24 | AI32: 8.52 | AJ32: 0 | AK32: 1.15 | AL32: 0 | AM32: 8.27 | AO32: 17.94 | AP32: 41.5491 | AQ32: 24 | AR32: 8.52 | AS32: 0 | AT32: 1.15 | AU32: 0 | AV32: 8.27 | AX32: 17.94 | AY32: 41.5491 | AZ32: U02R05 | BA32: 32
A33: U02 | B33: R06 | C33: Zone 06 | D33: Pass | E33: 18.38 | F33: 18.38 | G33: 0 | H33: Yes | I33: 18.38 | J33: 18.38 | K33: 18.38 | L33: 0 | M33: Yes | N33: U02R06 | O33: 0 | P33: 25 | Q33: 6.81 | R33: 3.06 | S33: 1.11 | T33: 0 | U33: 7.4 | V33: 0 | W33: 18.38 | X33: 49.1752 | Y33: 25 | Z33: 6.81 | AA33: 3.06 | AB33: 1.11 | AC33: 0 | AD33: 7.4 | AE33: 0 | AF33: 18.38 | AG33: 49.1752 | AH33: 25 | AI33: 6.81 | AJ33: 3.06 | AK33: 1.11 | AL33: 0 | AM33: 7.4 | AO33: 18.38 | AP33: 49.1752 | AQ33: 25 | AR33: 6.81 | AS33: 3.06 | AT33: 1.11 | AU33: 0 | AV33: 7.4 | AX33: 18.38 | AY33: 49.1752 | AZ33: U02R06 | BA33: 33
A34: U02 | B34: R07 | C34: Zone 07 | D34: Pass | E34: 11.25 | F34: 11.25 | G34: 0 | H34: Yes | I34: 11.25 | J34: 11.25 | K34: 11.25 | L34: 0 | M34: Yes | N34: U02R07 | O34: 0 | P34: 26 | Q34: 2.33 | R34: 0.62 | S34: 1.15 | T34: 0 | U34: 7.15 | V34: 0 | W34: 11.25 | X34: 47.8638 | Y34: 26 | Z34: 2.33 | AA34: 0.62 | AB34: 1.15 | AC34: 0 | AD34: 7.15 | AE34: 0 | AF34: 11.25 | AG34: 47.8638 | AH34: 26 | AI34: 2.33 | AJ34: 0.62 | AK34: 1.15 | AL34: 0 | AM34: 7.15 | AO34: 11.25 | AP34: 47.8638 | AQ34: 26 | AR34: 2.33 | AS34: 0.62 | AT34: 1.15 | AU34: 0 | AV34: 7.15 | AX34: 11.25 | AY34: 47.8638 | AZ34: U02R07 | BA34: 34
A35: U02 | B35: R08 | C35: Zone 08 | D35: Pass | E35: 20.12 | F35: 20.12 | G35: 0 | H35: Yes | I35: 20.12 | J35: 20.12 | K35: 20.12 | L35: 0 | M35: Yes | N35: U02R08 | O35: 0 | P35: 27 | Q35: 3.87 | R35: 8.04 | S35: 1.11 | T35: 0 | U35: 7.1 | V35: 0 | W35: 20.12 | X35: 45.5094 | Y35: 27 | Z35: 3.87 | AA35: 8.04 | AB35: 1.11 | AC35: 0 | AD35: 7.1 | AE35: 0 | AF35: 20.12 | AG35: 45.5094 | AH35: 27 | AI35: 3.87 | AJ35: 8.04 | AK35: 1.11 | AL35: 0 | AM35: 7.1 | AO35: 20.12 | AP35: 45.5094 | AQ35: 27 | AR35: 3.87 | AS35: 8.04 | AT35: 1.11 | AU35: 0 | AV35: 7.1 | AX35: 20.12 | AY35: 45.5094 | AZ35: U02R08 | BA35: 35
A36: U02 | B36: R09 | C36: Zone 09 | D36: Pass | E36: 32.69 | F36: 32.69 | G36: 0 | H36: Yes | I36: 32.69 | J36: 32.69 | K36: 32.69 | L36: 0 | M36: Yes | N36: U02R09 | O36: 0 | P36: 28 | Q36: 5.94 | R36: 18.55 | S36: 1.1 | T36: 0 | U36: 7.1 | V36: 0 | W36: 32.69 | X36: 45.6332 | Y36: 28 | Z36: 5.94 | AA36: 18.55 | AB36: 1.1 | AC36: 0 | AD36: 7.1 | AE36: 0 | AF36: 32.69 | AG36: 45.6332 | AH36: 28 | AI36: 5.94 | AJ36: 18.55 | AK36: 1.1 | AL36: 0 | AM36: 7.1 | AO36: 32.69 | AP36: 45.6332 | AQ36: 28 | AR36: 5.94 | AS36: 18.55 | AT36: 1.1 | AU36: 0 | AV36: 7.1 | AX36: 32.69 | AY36: 45.6332 | AZ36: U02R09 | BA36: 36
A37: U02 | B37: R10 | C37: Zone 10 | D37: Pass | E37: 33.59 | F37: 33.59 | G37: 0 | H37: Yes | I37: 33.59 | J37: 33.59 | K37: 33.59 | L37: 0 | M37: Yes | N37: U02R10 | O37: 0 | P37: 29 | Q37: 6.93 | R37: 18.5 | S37: 1.1 | T37: 0 | U37: 7.06 | V37: 0 | W37: 33.59 | X37: 43.9983 | Y37: 29 | Z37: 6.93 | AA37: 18.5 | AB37: 1.1 | AC37: 0 | AD37: 7.06 | AE37: 0 | AF37: 33.59 | AG37: 43.9983 | AH37: 29 | AI37: 6.93 | AJ37: 18.5 | AK37: 1.1 | AL37: 0 | AM37: 7.06 | AO37: 33.59 | AP37: 43.9983 | AQ37: 29 | AR37: 6.93 | AS37: 18.5 | AT37: 1.1 | AU37: 0 | AV37: 7.06 | AX37: 33.59 | AY37: 43.9983 | AZ37: U02R10 | BA37: 37
A38: U02 | B38: R11 | C38: Zone 11 | D38: Pass | E38: 63.44 | F38: 63.44 | G38: 0 | H38: Yes | I38: 63.44 | J38: 63.44 | K38: 63.44 | L38: 0 | M38: Yes | N38: U02R11 | O38: 0 | P38: 30 | Q38: =IF(Q$3=0,"",INDEX(INDIRECT(Q$1),$P38,Q$3)) -> 18.96 | R38: 36.12 | S38: 1.15 | T38: 0 | U38: 7.21 | V38: 0 | W38: 63.44 | X38: 46.9036 | Y38: 30 | Z38: =IF(Z$3=0,"",INDEX(INDIRECT(Z$1),$Y38,Z$3)) -> 18.96 | AA38: 36.12 | AB38: 1.15 | AC38: 0 | AD38: 7.21 | AE38: 0 | AF38: 63.44 | AG38: 46.9036 | AH38: 30 | AI38: =IF(AI$3=0,"",INDEX(INDIRECT(AI$1),$AH38,AI$3)) -> 18.96 | AJ38: 36.12 | AK38: 1.15 | AL38: 0 | AM38: 7.21 | AO38: 63.44 | AP38: 46.9036 | AQ38: 30 | AR38: =IF(AR$3=0,"",INDEX(INDIRECT(AR$1),$AQ38,AR$3)) -> 18.96 | AS38: 36.12 | AT38: 1.15 | AU38: 0 | AV38: 7.21 | AX38: 63.44 | AY38: 46.9036 | AZ38: U02R11 | BA38: 38
A39: U02 | B39: R12 | C39: Zone 12 | D39: Pass | E39: 42.52 | F39: 42.52 | G39: 0 | H39: Yes | I39: 42.52 | J39: 42.52 | K39: 42.52 | L39: 0 | M39: Yes | N39: U02R12 | O39: 0 | P39: 31 | Q39: 19.36 | R39: 14.47 | S39: 1.15 | T39: 0 | U39: 7.54 | V39: 0 | W39: 42.52 | X39: 43.9991 | Y39: 31 | Z39: 19.36 | AA39: 14.47 | AB39: 1.15 | AC39: 0 | AD39: 7.54 | AE39: 0 | AF39: 42.52 | AG39: 43.9991 | AH39: 31 | AI39: 19.36 | AJ39: 14.47 | AK39: 1.15 | AL39: 0 | AM39: 7.54 | AO39: 42.52 | AP39: 43.9991 | AQ39: 31 | AR39: 19.36 | AS39: 14.47 | AT39: 1.15 | AU39: 0 | AV39: 7.54 | AX39: 42.52 | AY39: 43.9991 | AZ39: U02R12 | BA39: 39
A40: U02 | B40: R13 | C40: Zone 13 | D40: Pass | E40: 64.69 | F40: 64.69 | G40: 0 | H40: Yes | I40: 64.69 | J40: 64.69 | K40: 64.69 | L40: 0 | M40: Yes | N40: U02R13 | O40: 0 | P40: 32 | Q40: 17.11 | R40: 39.36 | S40: 1.15 | T40: 0 | U40: 7.07 | V40: 0 | W40: 64.69 | X40: 48.561 | Y40: 32 | Z40: 17.11 | AA40: 39.36 | AB40: 1.15 | AC40: 0 | AD40: 7.07 | AE40: 0 | AF40: 64.69 | AG40: 48.561 | AH40: 32 | AI40: 17.11 | AJ40: 39.36 | AK40: 1.15 | AL40: 0 | AM40: 7.07 | AO40: 64.69 | AP40: 48.561 | AQ40: 32 | AR40: 17.11 | AS40: 39.36 | AT40: 1.15 | AU40: 0 | AV40: 7.07 | AX40: 64.69 | AY40: 48.561 | AZ40: U02R13 | BA40: 40
A41: U02 | B41: R14 | C41: Zone 14 | D41: Pass | E41: 60.79 | F41: 60.79 | G41: 0 | H41: Yes | I41: 60.79 | J41: 60.79 | K41: 60.79 | L41: 0 | M41: Yes | N41: U02R14 | O41: 0 | P41: 33 | Q41: 18.33 | R41: 34.02 | S41: 1.1 | T41: 0 | U41: 7.34 | V41: 0 | W41: 60.79 | X41: 47.6445 | Y41: 33 | Z41: 18.33 | AA41: 34.02 | AB41: 1.1 | AC41: 0 | AD41: 7.34 | AE41: 0 | AF41: 60.79 | AG41: 47.6445 | AH41: 33 | AI41: 18.33 | AJ41: 34.02 | AK41: 1.1 | AL41: 0 | AM41: 7.34 | AO41: 60.79 | AP41: 47.6445 | AQ41: 33 | AR41: 18.33 | AS41: 34.02 | AT41: 1.1 | AU41: 0 | AV41: 7.34 | AX41: 60.79 | AY41: 47.6445 | AZ41: U02R14 | BA41: 41
A42: U02 | B42: R15 | C42: Zone 15 | D42: Pass | E42: 90.36 | F42: 90.36 | G42: 0 | H42: Yes | I42: 90.36 | J42: 90.36 | K42: 90.36 | L42: 0 | M42: Yes | N42: U02R15 | O42: 0 | P42: 34 | Q42: 1.51 | R42: 82.41 | S42: 1.1 | T42: 0 | U42: 5.34 | V42: 0 | W42: 90.36 | X42: 52.7196 | Y42: 34 | Z42: 1.51 | AA42: 82.41 | AB42: 1.1 | AC42: 0 | AD42: 5.34 | AE42: 0 | AF42: 90.36 | AG42: 52.7196 | AH42: 34 | AI42: 1.51 | AJ42: 82.41 | AK42: 1.1 | AL42: 0 | AM42: 5.34 | AO42: 90.36 | AP42: 52.7196 | AQ42: 34 | AR42: 1.51 | AS42: 82.41 | AT42: 1.1 | AU42: 0 | AV42: 5.34 | AX42: 90.36 | AY42: 52.7196 | AZ42: U02R15 | BA42: 42
A43: U02 | B43: R16 | C43: Zone 16 | D43: Pass | E43: 55.28 | F43: 55.28 | G43: 0 | H43: Yes | I43: 55.28 | J43: 55.28 | K43: 55.28 | L43: 0 | M43: Yes | N43: U02R16 | O43: 0 | P43: 35 | Q43: 41.18 | R43: 3.98 | S43: 1.09 | T43: 0 | U43: 9.03 | V43: 0 | W43: 55.28 | X43: 50.4819 | Y43: 35 | Z43: 41.18 | AA43: 3.98 | AB43: 1.09 | AC43: 0 | AD43: 9.03 | AE43: 0 | AF43: 55.28 | AG43: 50.4819 | AH43: 35 | AI43: 41.18 | AJ43: 3.98 | AK43: 1.09 | AL43: 0 | AM43: 9.03 | AO43: 55.28 | AP43: 50.4819 | AQ43: 35 | AR43: 41.18 | AS43: 3.98 | AT43: 1.09 | AU43: 0 | AV43: 9.03 | AX43: 55.28 | AY43: 50.4819 | AZ43: U02R16 | BA43: 43
A44: ="Result "&A27 -> Result U02 | D44: =IF(SoftwareType="Candidate","n/a",IF(COUNTIF(D28:D43,Pass)=16,Pass,Fail)) -> Pass | E44: =AVERAGE(E28:E43) -> 39.043125 | F44: =AVERAGE(F28:F43) -> 39.043125 | G44: =IF(E44=0,0,(F44-E44)/E44) -> 0 | I44: =AVERAGE(I28:I43) -> 39.043125 | J44: =AVERAGE(J28:J43) -> 39.043125 | K44: =AVERAGE(K28:K43) -> 39.043125 | L44: 0 | M44: Min | N44: =MIN(L28:L43) -> 0 | O44: =AVERAGE(O28:O43) -> 0 | P44: Ave | Q44: =AVERAGE(Q28:Q43) -> 13.905 | R44: =AVERAGE(R28:R43) -> 16.480625 | S44: =AVERAGE(S28:S43) -> 1.12875 | U44: =AVERAGE(U28:U43) -> 7.52875 | V44: =AVERAGE(V28:V43) -> 0 | W44: =AVERAGE(W28:W43) -> 39.043125 | X44: =AVERAGE(X28:X43) -> 47.13099375 | Y44: Ave | Z44: =AVERAGE(Z28:Z43) -> 13.905 | AA44: =AVERAGE(AA28:AA43) -> 16.480625 | AB44: =AVERAGE(AB28:AB43) -> 1.12875 | AC44: =AVERAGE(AC28:AC43) -> 0 | AD44: =AVERAGE(AD28:AD43) -> 7.52875 | AF44: =AVERAGE(AF28:AF43) -> 39.043125 | AG44: =AVERAGE(AG28:AG43) -> 47.13099375 | AI44: =AVERAGE(AI28:AI43) -> 13.905 | AJ44: =AVERAGE(AJ28:AJ43) -> 16.480625 | AK44: =AVERAGE(AK28:AK43) -> 1.12875 | AL44: =AVERAGE(AL28:AL43) -> 0 | AM44: =AVERAGE(AM28:AM43) -> 7.52875 | AO44: =AVERAGE(AO28:AO43) -> 39.043125 | AP44: =AVERAGE(AP28:AP43) -> 47.13099375 | AQ44: Ave | AR44: =AVERAGE(AR28:AR43) -> 13.905 | AS44: =AVERAGE(AS28:AS43) -> 16.480625 | AT44: =AVERAGE(AT28:AT43) -> 1.12875 | AU44: =AVERAGE(AU28:AU43) -> 0 | AV44: =AVERAGE(AV28:AV43) -> 7.52875 | AX44: =AVERAGE(AX28:AX43) -> 39.043125 | AY44: =AVERAGE(AY28:AY43) -> 47.13099375
C45: Page 2 of 7 | L45: Ave | M45: Max | N45: =MAX(L28:L43) -> 0 | Y45: % Diff | Z45: =(Z44-Q44)/Q44 -> 0 | AA45: =(AA44-R44)/R44 -> 0 | AB45: =(AB44-S44)/S44 -> 0 | AD45: =(AD44-U44)/U44 -> 0 | AF45: =(AF44-W44)/W44 -> 0
A46: U03 | B46: =VLOOKUP(A46,TestArray,2)&" in "&VLOOKUP(A46,TestArray,3)&" for Prototype "&VLOOKUP(A46,TestArray,4) -> Standard Design in All Zones for Prototype S6960ft2 | I46: =VLOOKUP(A46,TestArray,21) -> Standard = Proposed for this test
A47: =A46 -> U03 | B47: R01 | C47: =VLOOKUP(A47,TestArray,4+RIGHT(B47,2)) -> Zone 01 | D47: =IF(SoftwareType="Candidate","n/a",IF(AND(H47=Yes,M47=Yes,ABS(E47-I47)<=Tolerance/2),Pass,Fail)) -> Pass | E47: =IF(Units="EDR",X47,W47) -> 36.82 | F47: =IF(Units="EDR",AG47,AF47) -> 36.82 | G47: =IF(E47=0,0,(F47-E47)/E47) -> 0 | H47: =IF(AND((E47-Tolerance<=F47),(E47+Tolerance>=F47)),Yes,No) -> Yes | I47: =IF(Units="EDR",J47,INDIRECT(RefCol&INDEX(StandardArray,MATCH($N47,StandardList,0),2))) -> 36.82 | J47: =IF(Units="EDR",AP47,AO47) -> 36.82 | K47: =IF(Units="EDR",AY47,AX47) -> 36.82 | L47: =IF(I47=0,0,(K47-I47)/I47) -> 0 | M47: =IF(AND((I47-Tolerance<=K47),(I47+Tolerance>=K47),(J47-Tolerance<=K47),(J47+Tolerance>=K47)),Yes,No) -> Yes | N47: =A47&B47 -> U03R01 | O47: =K47-F47 -> 0 | P47: =MATCH($A47&$B47,INDIRECT(P$2),0) -> 36 | Q47: =IF(Q$3=0,"",INDEX(INDIRECT(Q$1),$P47,Q$3)) -> 15.85 | R47: 0.05 | S47: 2.47 | T47: 0 | U47: 18.45 | V47: 0 | W47: =IF(TotalSum="No",INDEX(INDIRECT(W$1),$P47,W$3),SUM(Q47:V47)) -> 36.82 | X47: =IF(X$3=0,"",INDEX(INDIRECT(X$1),$P47,X$3)) -> 57.8434 | Y47: =MATCH($A47&$B47,INDIRECT(Y$2),0) -> 36 | Z47: =IF(Z$3=0,"",INDEX(INDIRECT(Z$1),$Y47,Z$3)) -> 15.85 | AA47: 0.05 | AB47: 2.47 | AC47: 0 | AD47: 18.45 | AE47: 0 | AF47: =IF(TotalSum="No",INDEX(INDIRECT(AF$1),$Y47,AF$3),SUM(Z47:AE47)) -> 36.82 | AG47: =IF(AG$3=0,"",INDEX(INDIRECT(AG$1),$P47,AG$3)) -> 57.8434 | AH47: =MATCH($A47&$B47,INDIRECT(AH$2),0) -> 36 | AI47: =IF(AI$3=0,"",INDEX(INDIRECT(AI$1),$AH47,AI$3)) -> 15.85 | AJ47: 0.05 | AK47: 2.47 | AL47: 0 | AM47: 18.45 | AO47: =IF(TotalSum="No",INDEX(INDIRECT(AO$1),$AH47,AO$3),SUM(AI47:AN47)) -> 36.82 | AP47: =IF(AP$3=0,"",INDEX(INDIRECT(AP$1),$P47,AP$3)) -> 57.8434 | AQ47: =MATCH($A47&$B47,INDIRECT(AQ$2),0) -> 36 | AR47: =IF(AR$3=0,"",INDEX(INDIRECT(AR$1),$AQ47,AR$3)) -> 15.85 | AS47: 0.05 | AT47: 2.47 | AU47: 0 | AV47: 18.45 | AX47: =IF(TotalSum="No",INDEX(INDIRECT(AX$1),$AQ47,AX$3),SUM(AR47:AW47)) -> 36.82 | AY47: =IF(AY$3=0,"",INDEX(INDIRECT(AY$1),$P47,AY$3)) -> 57.8434 | AZ47: =A47&B47 -> U03R01 | BA47: =ROW(AZ47) -> 47
A48: =A47 -> U03 | B48: R02 | C48: Zone 02 | D48: Pass | E48: 38.03 | F48: 38.03 | G48: =IF(E48=0,0,(F48-E48)/E48) -> 0 | H48: Yes | I48: 38.04 | J48: 38.04 | K48: 38.04 | L48: =IF(I48=0,0,(K48-I48)/I48) -> 0 | M48: Yes | N48: U03R02 | O48: =K48-F48 -> 0.01 | P48: 37 | Q48: 11.56 | R48: 7.36 | S48: 2.47 | T48: 0 | U48: 16.64 | V48: 0 | W48: 38.03 | X48: 55.9424 | Y48: 37 | Z48: 11.56 | AA48: 7.36 | AB48: 2.47 | AC48: 0 | AD48: 16.64 | AE48: 0 | AF48: 38.03 | AG48: 55.9424 | AH48: 37 | AI48: 11.56 | AJ48: 7.37 | AK48: 2.47 | AL48: 0 | AM48: 16.64 | AO48: 38.04 | AP48: 55.9476 | AQ48: 37 | AR48: 11.56 | AS48: 7.37 | AT48: 2.47 | AU48: 0 | AV48: 16.64 | AX48: 38.04 | AY48: 55.9476 | AZ48: U03R02 | BA48: 48
A49: U03 | B49: R03 | C49: Zone 03 | D49: Pass | E49: 26.19 | F49: 26.19 | G49: 0 | H49: Yes | I49: 26.19 | J49: 26.19 | K49: 26.19 | L49: 0 | M49: Yes | N49: U03R03 | O49: 0 | P49: 38 | Q49: 5.3 | R49: 1.75 | S49: 2.47 | T49: 0 | U49: 16.67 | V49: 0 | W49: 26.19 | X49: 55.4386 | Y49: 38 | Z49: 5.3 | AA49: 1.75 | AB49: 2.47 | AC49: 0 | AD49: 16.67 | AE49: 0 | AF49: 26.19 | AG49: 55.4386 | AH49: 38 | AI49: 5.3 | AJ49: 1.75 | AK49: 2.47 | AL49: 0 | AM49: 16.67 | AO49: 26.19 | AP49: 55.4386 | AQ49: 38 | AR49: 5.3 | AS49: 1.75 | AT49: 2.47 | AU49: 0 | AV49: 16.67 | AX49: 26.19 | AY49: 55.4386 | AZ49: U03R03 | BA49: 49
A50: U03 | B50: R04 | C50: Zone 04 | D50: Pass | E50: 34.96 | F50: 34.96 | G50: 0 | H50: Yes | I50: 34.96 | J50: 34.96 | K50: 34.96 | L50: 0 | M50: Yes | N50: U03R04 | O50: 0 | P50: 39 | Q50: 7.54 | R50: 9.01 | S50: 2.47 | T50: 0 | U50: 15.94 | V50: 0 | W50: 34.96 | X50: 54.7557 | Y50: 39 | Z50: 7.54 | AA50: 9.01 | AB50: 2.47 | AC50: 0 | AD50: 15.94 | AE50: 0 | AF50: 34.96 | AG50: 54.7557 | AH50: 39 | AI50: 7.54 | AJ50: 9.01 | AK50: 2.47 | AL50: 0 | AM50: 15.94 | AO50: 34.96 | AP50: 54.7557 | AQ50: 39 | AR50: 7.54 | AS50: 9.01 | AT50: 2.47 | AU50: 0 | AV50: 15.94 | AX50: 34.96 | AY50: 54.7557 | AZ50: U03R04 | BA50: 50
A51: U03 | B51: R05 | C51: Zone 05 | D51: Pass | E51: 24.89 | F51: 24.89 | G51: 0 | H51: Yes | I51: 24.89 | J51: 24.89 | K51: 24.89 | L51: 0 | M51: Yes | N51: U03R05 | O51: 0 | P51: 40 | Q51: 3.85 | R51: 1.52 | S51: 2.47 | T51: 0 | U51: 17.05 | V51: 0 | W51: 24.89 | X51: 53.8971 | Y51: 40 | Z51: 3.85 | AA51: 1.52 | AB51: 2.47 | AC51: 0 | AD51: 17.05 | AE51: 0 | AF51: 24.89 | AG51: 53.8971 | AH51: 40 | AI51: 3.85 | AJ51: 1.52 | AK51: 2.47 | AL51: 0 | AM51: 17.05 | AO51: 24.89 | AP51: 53.8971 | AQ51: 40 | AR51: 3.85 | AS51: 1.52 | AT51: 2.47 | AU51: 0 | AV51: 17.05 | AX51: 24.89 | AY51: 53.8971 | AZ51: U03R05 | BA51: 51
A52: U03 | B52: R06 | C52: Zone 06 | D52: Pass | E52: 26.79 | F52: 26.79 | G52: 0 | H52: Yes | I52: 26.79 | J52: 26.79 | K52: 26.79 | L52: 0 | M52: Yes | N52: U03R06 | O52: 0 | P52: 41 | Q52: 1.88 | R52: 7.24 | S52: 2.39 | T52: 0 | U52: 15.28 | V52: 0 | W52: 26.79 | X52: 59.491 | Y52: 41 | Z52: 1.88 | AA52: 7.24 | AB52: 2.39 | AC52: 0 | AD52: 15.28 | AE52: 0 | AF52: 26.79 | AG52: 59.491 | AH52: 41 | AI52: 1.88 | AJ52: 7.24 | AK52: 2.39 | AL52: 0 | AM52: 15.28 | AO52: 26.79 | AP52: 59.491 | AQ52: 41 | AR52: 1.88 | AS52: 7.24 | AT52: 2.39 | AU52: 0 | AV52: 15.28 | AX52: 26.79 | AY52: 59.491 | AZ52: U03R06 | BA52: 52
A53: U03 | B53: R07 | C53: Zone 07 | D53: Pass | E53: 23.64 | F53: 23.64 | G53: 0 | H53: Yes | I53: 23.64 | J53: 23.64 | K53: 23.64 | L53: 0 | M53: Yes | N53: U03R07 | O53: 0 | P53: 42 | Q53: 0.19 | R53: 6.21 | S53: 2.48 | T53: 0 | U53: 14.76 | V53: 0 | W53: 23.64 | X53: 60.4501 | Y53: 42 | Z53: 0.19 | AA53: 6.21 | AB53: 2.48 | AC53: 0 | AD53: 14.76 | AE53: 0 | AF53: 23.64 | AG53: 60.4501 | AH53: 42 | AI53: 0.19 | AJ53: 6.21 | AK53: 2.48 | AL53: 0 | AM53: 14.76 | AO53: 23.64 | AP53: 60.4501 | AQ53: 42 | AR53: 0.19 | AS53: 6.21 | AT53: 2.48 | AU53: 0 | AV53: 14.76 | AX53: 23.64 | AY53: 60.4501 | AZ53: U03R07 | BA53: 53
A54: U03 | B54: R08 | C54: Zone 08 | D54: Pass | E54: 35.08 | F54: 35.08 | G54: 0 | H54: Yes | I54: 35.09 | J54: 35.09 | K54: 35.09 | L54: 0 | M54: Yes | N54: U03R08 | O54: 0.01 | P54: 43 | Q54: 0.89 | R54: 17.13 | S54: 2.4 | T54: 0 | U54: 14.66 | V54: 0 | W54: 35.08 | X54: 59.0135 | Y54: 43 | Z54: 0.89 | AA54: 17.13 | AB54: 2.4 | AC54: 0 | AD54: 14.66 | AE54: 0 | AF54: 35.08 | AG54: 59.0135 | AH54: 43 | AI54: 0.89 | AJ54: 17.14 | AK54: 2.4 | AL54: 0 | AM54: 14.66 | AO54: 35.09 | AP54: 59.0192 | AQ54: 43 | AR54: 0.89 | AS54: 17.14 | AT54: 2.4 | AU54: 0 | AV54: 14.66 | AX54: 35.09 | AY54: 59.0192 | AZ54: U03R08 | BA54: 54
A55: U03 | B55: R09 | C55: Zone 09 | D55: Pass | E55: 46.09 | F55: 46.09 | G55: 0 | H55: Yes | I55: 46.09 | J55: 46.09 | K55: 46.09 | L55: 0 | M55: Yes | N55: U03R09 | O55: 0 | P55: 44 | Q55: 1.84 | R55: 27.22 | S55: 2.37 | T55: 0 | U55: 14.66 | V55: 0 | W55: 46.09 | X55: 57.5805 | Y55: 44 | Z55: 1.84 | AA55: 27.22 | AB55: 2.37 | AC55: 0 | AD55: 14.66 | AE55: 0 | AF55: 46.09 | AG55: 57.5805 | AH55: 44 | AI55: 1.84 | AJ55: 27.22 | AK55: 2.37 | AL55: 0 | AM55: 14.66 | AO55: 46.09 | AP55: 57.5805 | AQ55: 44 | AR55: 1.84 | AS55: 27.22 | AT55: 2.37 | AU55: 0 | AV55: 14.66 | AX55: 46.09 | AY55: 57.5805 | AZ55: U03R09 | BA55: 55
A56: U03 | B56: R10 | C56: Zone 10 | D56: Pass | E56: 46.99 | F56: 46.99 | G56: 0 | H56: Yes | I56: 46.99 | J56: 46.99 | K56: 46.99 | L56: 0 | M56: Yes | N56: U03R10 | O56: 0 | P56: 45 | Q56: 2.32 | R56: 27.73 | S56: 2.37 | T56: 0 | U56: 14.57 | V56: 0 | W56: 46.99 | X56: 56.0297 | Y56: 45 | Z56: 2.32 | AA56: 27.73 | AB56: 2.37 | AC56: 0 | AD56: 14.57 | AE56: 0 | AF56: 46.99 | AG56: 56.0297 | AH56: 45 | AI56: 2.32 | AJ56: 27.73 | AK56: 2.37 | AL56: 0 | AM56: 14.57 | AO56: 46.99 | AP56: 56.0297 | AQ56: 45 | AR56: 2.32 | AS56: 27.73 | AT56: 2.37 | AU56: 0 | AV56: 14.57 | AX56: 46.99 | AY56: 56.0297 | AZ56: U03R10 | BA56: 56
A57: U03 | B57: R11 | C57: Zone 11 | D57: Pass | E57: 73.34 | F57: 73.34 | G57: 0 | H57: Yes | I57: 73.34 | J57: 73.34 | K57: 73.34 | L57: 0 | M57: Yes | N57: U03R11 | O57: 0 | P57: 46 | Q57: =IF(Q$3=0,"",INDEX(INDIRECT(Q$1),$P57,Q$3)) -> 11.34 | R57: 44.66 | S57: 2.47 | T57: 0 | U57: 14.87 | V57: 0 | W57: 73.34 | X57: 56.1618 | Y57: 46 | Z57: =IF(Z$3=0,"",INDEX(INDIRECT(Z$1),$Y57,Z$3)) -> 11.34 | AA57: 44.66 | AB57: 2.47 | AC57: 0 | AD57: 14.87 | AE57: 0 | AF57: 73.34 | AG57: 56.1618 | AH57: 46 | AI57: =IF(AI$3=0,"",INDEX(INDIRECT(AI$1),$AH57,AI$3)) -> 11.34 | AJ57: 44.66 | AK57: 2.47 | AL57: 0 | AM57: 14.87 | AO57: 73.34 | AP57: 56.1618 | AQ57: 46 | AR57: =IF(AR$3=0,"",INDEX(INDIRECT(AR$1),$AQ57,AR$3)) -> 11.34 | AS57: 44.66 | AT57: 2.47 | AU57: 0 | AV57: 14.87 | AX57: 73.34 | AY57: 56.1618 | AZ57: U03R11 | BA57: 57
A58: U03 | B58: R12 | C58: Zone 12 | D58: Pass | E58: 56.87 | F58: 56.87 | G58: 0 | H58: Yes | I58: 56.87 | J58: 56.87 | K58: 56.87 | L58: 0 | M58: Yes | N58: U03R12 | O58: 0 | P58: 47 | Q58: 11.15 | R58: 27.7 | S58: 2.47 | T58: 0 | U58: 15.55 | V58: 0 | W58: 56.87 | X58: 55.6414 | Y58: 47 | Z58: 11.15 | AA58: 27.7 | AB58: 2.47 | AC58: 0 | AD58: 15.55 | AE58: 0 | AF58: 56.87 | AG58: 55.6414 | AH58: 47 | AI58: 11.15 | AJ58: 27.7 | AK58: 2.47 | AL58: 0 | AM58: 15.55 | AO58: 56.87 | AP58: 55.6414 | AQ58: 47 | AR58: 11.15 | AS58: 27.7 | AT58: 2.47 | AU58: 0 | AV58: 15.55 | AX58: 56.87 | AY58: 55.6414 | AZ58: U03R12 | BA58: 58
A59: U03 | B59: R13 | C59: Zone 13 | D59: Pass | E59: 74.84 | F59: 74.84 | G59: 0 | H59: Yes | I59: 74.84 | J59: 74.84 | K59: 74.84 | L59: 0 | M59: Yes | N59: U03R13 | O59: 0 | P59: 48 | Q59: 9.8 | R59: 47.98 | S59: 2.47 | T59: 0 | U59: 14.59 | V59: 0 | W59: 74.84 | X59: 56.8517 | Y59: 48 | Z59: 9.8 | AA59: 47.98 | AB59: 2.47 | AC59: 0 | AD59: 14.59 | AE59: 0 | AF59: 74.84 | AG59: 56.8517 | AH59: 48 | AI59: 9.8 | AJ59: 47.98 | AK59: 2.47 | AL59: 0 | AM59: 14.59 | AO59: 74.84 | AP59: 56.8517 | AQ59: 48 | AR59: 9.8 | AS59: 47.98 | AT59: 2.47 | AU59: 0 | AV59: 14.59 | AX59: 74.84 | AY59: 56.8517 | AZ59: U03R13 | BA59: 59
A60: U03 | B60: R14 | C60: Zone 14 | D60: Pass | E60: 69.54 | F60: 69.54 | G60: 0 | H60: Yes | I60: 69.54 | J60: 69.54 | K60: 69.54 | L60: 0 | M60: Yes | N60: U03R14 | O60: 0 | P60: 49 | Q60: 11.06 | R60: 40.96 | S60: 2.37 | T60: 0 | U60: 15.15 | V60: 0 | W60: 69.54 | X60: 56.8974 | Y60: 49 | Z60: 11.06 | AA60: 40.96 | AB60: 2.37 | AC60: 0 | AD60: 15.15 | AE60: 0 | AF60: 69.54 | AG60: 56.8974 | AH60: 49 | AI60: 11.06 | AJ60: 40.96 | AK60: 2.37 | AL60: 0 | AM60: 15.15 | AO60: 69.54 | AP60: 56.8974 | AQ60: 49 | AR60: 11.06 | AS60: 40.96 | AT60: 2.37 | AU60: 0 | AV60: 15.15 | AX60: 69.54 | AY60: 56.8974 | AZ60: U03R14 | BA60: 60
A61: U03 | B61: R15 | C61: Zone 15 | D61: Pass | E61: 105.23 | F61: 105.23 | G61: 0 | H61: Yes | I61: 105.23 | J61: 105.23 | K61: 105.23 | L61: 0 | M61: Yes | N61: U03R15 | O61: 0 | P61: 50 | Q61: 0.16 | R61: 91.62 | S61: 2.37 | T61: 0 | U61: 11.08 | V61: 0 | W61: 105.23 | X61: 62.3154 | Y61: 50 | Z61: 0.16 | AA61: 91.62 | AB61: 2.37 | AC61: 0 | AD61: 11.08 | AE61: 0 | AF61: 105.23 | AG61: 62.3154 | AH61: 50 | AI61: 0.16 | AJ61: 91.62 | AK61: 2.37 | AL61: 0 | AM61: 11.08 | AO61: 105.23 | AP61: 62.3154 | AQ61: 50 | AR61: 0.16 | AS61: 91.62 | AT61: 2.37 | AU61: 0 | AV61: 11.08 | AX61: 105.23 | AY61: 62.3154 | AZ61: U03R15 | BA61: 61
A62: U03 | B62: R16 | C62: Zone 16 | D62: Pass | E62: 59.46 | F62: 59.46 | G62: 0 | H62: Yes | I62: 59.46 | J62: 59.46 | K62: 59.46 | L62: 0 | M62: Yes | N62: U03R16 | O62: 0 | P62: 51 | Q62: 29.56 | R62: 8.98 | S62: 2.36 | T62: 0 | U62: 18.56 | V62: 0 | W62: 59.46 | X62: 56.9071 | Y62: 51 | Z62: 29.56 | AA62: 8.98 | AB62: 2.36 | AC62: 0 | AD62: 18.56 | AE62: 0 | AF62: 59.46 | AG62: 56.9071 | AH62: 51 | AI62: 29.56 | AJ62: 8.98 | AK62: 2.36 | AL62: 0 | AM62: 18.56 | AO62: 59.46 | AP62: 56.9071 | AQ62: 51 | AR62: 29.56 | AS62: 8.98 | AT62: 2.36 | AU62: 0 | AV62: 18.56 | AX62: 59.46 | AY62: 56.9071 | AZ62: U03R16 | BA62: 62
A63: ="Result "&A46 -> Result U03 | D63: =IF(SoftwareType="Candidate","n/a",IF(COUNTIF(D47:D62,Pass)=16,Pass,Fail)) -> Pass | E63: =AVERAGE(E47:E62) -> 48.6725 | F63: =AVERAGE(F47:F62) -> 48.6725 | G63: =IF(E63=0,0,(F63-E63)/E63) -> 0 | I63: =AVERAGE(I47:I62) -> 48.67375 | J63: =AVERAGE(J47:J62) -> 48.67375 | K63: =AVERAGE(K47:K62) -> 48.67375 | L63: 0 | M63: Min | N63: =MIN(L47:L62) -> 0 | O63: =AVERAGE(O47:O62) -> 0.00125 | P63: Ave | Q63: =AVERAGE(Q47:Q62) -> 7.768125 | R63: =AVERAGE(R47:R62) -> 22.945 | S63: =AVERAGE(S47:S62) -> 2.429375 | U63: =AVERAGE(U47:U62) -> 15.53 | V63: =AVERAGE(V47:V62) -> 0 | W63: =AVERAGE(W47:W62) -> 48.6725 | X63: =AVERAGE(X47:X62) -> 57.20105 | Y63: Ave | Z63: =AVERAGE(Z47:Z62) -> 7.768125 | AA63: =AVERAGE(AA47:AA62) -> 22.945 | AB63: =AVERAGE(AB47:AB62) -> 2.429375 | AC63: =AVERAGE(AC47:AC62) -> 0 | AD63: =AVERAGE(AD47:AD62) -> 15.53 | AF63: =AVERAGE(AF47:AF62) -> 48.6725 | AG63: =AVERAGE(AG47:AG62) -> 57.20105 | AI63: =AVERAGE(AI47:AI62) -> 7.768125 | AJ63: =AVERAGE(AJ47:AJ62) -> 22.94625 | AK63: =AVERAGE(AK47:AK62) -> 2.429375 | AL63: =AVERAGE(AL47:AL62) -> 0 | AM63: =AVERAGE(AM47:AM62) -> 15.53 | AO63: =AVERAGE(AO47:AO62) -> 48.67375 | AP63: =AVERAGE(AP47:AP62) -> 57.20173125 | AQ63: Ave | AR63: =AVERAGE(AR47:AR62) -> 7.768125 | AS63: =AVERAGE(AS47:AS62) -> 22.94625 | AT63: =AVERAGE(AT47:AT62) -> 2.429375 | AU63: =AVERAGE(AU47:AU62) -> 0 | AV63: =AVERAGE(AV47:AV62) -> 15.53 | AX63: =AVERAGE(AX47:AX62) -> 48.67375 | AY63: =AVERAGE(AY47:AY62) -> 57.20173125
L64: Ave | M64: Max | N64: =MAX(L47:L62) -> 0 | Y64: % Diff | Z64: =(Z63-Q63)/Q63 -> 0 | AA64: =(AA63-R63)/R63 -> 0 | AB64: =(AB63-S63)/S63 -> 0 | AD64: =(AD63-U63)/U63 -> 0 | AF64: =(AF63-W63)/W63 -> 0
A65: U04 | B65: =VLOOKUP(A65,TestArray,2)&" in "&VLOOKUP(A65,TestArray,3)&" for Prototype "&VLOOKUP(A65,TestArray,4) -> Proposed Design in All Zones for Prototype P2100ft2 | I65: =VLOOKUP(A65,TestArray,21) -> Standard = T01 Standard for this test
A66: =A65 -> U04 | B66: R01 | C66: =VLOOKUP(A66,TestArray,4+RIGHT(B66,2)) -> Zone 01 | D66: =IF(AND(H66=Yes,M66=Yes),Pass,Fail) -> Pass | E66: =IF(Units="EDR",X66,W66) -> 43.64 | F66: =IF(Units="EDR",AG66,AF66) -> 43.64 | G66: =IF(E66=0,0,(F66-E66)/E66) -> 0 | H66: =IF(AND((E66-Tolerance<=F66),(E66+Tolerance>=F66)),Yes,No) -> Yes | I66: =IF(Units="EDR",J66,INDIRECT(RefCol&INDEX(StandardArray,MATCH($N66,StandardList,0),2))) -> 45.44 | J66: =IF(Units="EDR",AP66,AO66) -> 45.44 | K66: =IF(Units="EDR",AY66,AX66) -> 45.44 | L66: =IF(I66=0,0,(K66-I66)/I66) -> 0 | M66: =IF(AND((I66-Tolerance<=K66),(I66+Tolerance>=K66),(J66-Tolerance<=K66),(J66+Tolerance>=K66)),Yes,No) -> Yes | N66: =N9 -> U01R01 | O66: =K66-F66 -> 1.8 | P66: =MATCH($A66&$B66,INDIRECT(P$2),0) -> 52 | Q66: =IF(Q$3=0,"",INDEX(INDIRECT(Q$1),$P66,Q$3)) -> 32.2 | R66: 0 | S66: 1.17 | T66: 0 | U66: 10.27 | V66: 0 | W66: =IF(TotalSum="No",INDEX(INDIRECT(W$1),$P66,W$3),SUM(Q66:V66)) -> 43.64 | X66: =IF(X$3=0,"",INDEX(INDIRECT(X$1),$P66,X$3)) -> 56.0389 | Y66: =MATCH($A66&$B66,INDIRECT(Y$2),0) -> 52 | Z66: =IF(Z$3=0,"",INDEX(INDIRECT(Z$1),$Y66,Z$3)) -> 32.2 | AA66: 0 | AB66: 1.17 | AC66: 0 | AD66: 10.27 | AE66: 0 | AF66: =IF(TotalSum="No",INDEX(INDIRECT(AF$1),$Y66,AF$3),SUM(Z66:AE66)) -> 43.64 | AG66: =IF(AG$3=0,"",INDEX(INDIRECT(AG$1),$P66,AG$3)) -> 56.0389 | AH66: =MATCH($A66&$B66,INDIRECT(AH$2),0) -> 52 | AI66: =IF(AI$3=0,"",INDEX(INDIRECT(AI$1),$AH66,AI$3)) -> 34 | AJ66: 0 | AK66: 1.17 | AL66: 0 | AM66: 10.27 | AO66: =IF(TotalSum="No",INDEX(INDIRECT(AO$1),$AH66,AO$3),SUM(AI66:AN66)) -> 45.44 | AP66: =IF(AP$3=0,"",INDEX(INDIRECT(AP$1),$P66,AP$3)) -> 57.2557 | AQ66: =MATCH($A66&$B66,INDIRECT(AQ$2),0) -> 52 | AR66: =IF(AR$3=0,"",INDEX(INDIRECT(AR$1),$AQ66,AR$3)) -> 34 | AS66: 0 | AT66: 1.17 | AU66: 0 | AV66: 10.27 | AX66: =IF(TotalSum="No",INDEX(INDIRECT(AX$1),$AQ66,AX$3),SUM(AR66:AW66)) -> 45.44 | AY66: =IF(AY$3=0,"",INDEX(INDIRECT(AY$1),$P66,AY$3)) -> 57.2557 | AZ66: =A66&B66 -> U04R01 | BA66: =ROW(AZ66) -> 66
A67: =A66 -> U04 | B67: R02 | C67: Zone 02 | D67: Pass | E67: 32.87 | F67: 32.87 | G67: =IF(E67=0,0,(F67-E67)/E67) -> 0 | H67: Yes | I67: 34.52 | J67: 34.52 | K67: 34.52 | L67: =IF(I67=0,0,(K67-I67)/I67) -> 0 | M67: Yes | N67: =N10 -> U01R02 | O67: =K67-F67 -> 1.65 | P67: 53 | Q67: 22.42 | R67: 0.02 | S67: 1.17 | T67: 0 | U67: 9.26 | V67: 0 | W67: 32.87 | X67: 49.472 | Y67: 53 | Z67: 22.42 | AA67: 0.02 | AB67: 1.17 | AC67: 0 | AD67: 9.26 | AE67: 0 | AF67: 32.87 | AG67: 49.472 | AH67: 53 | AI67: 23.73 | AJ67: 0.36 | AK67: 1.17 | AL67: 0 | AM67: 9.26 | AO67: 34.52 | AP67: 50.6128 | AQ67: 53 | AR67: 23.73 | AS67: 0.36 | AT67: 1.17 | AU67: 0 | AV67: 9.26 | AX67: 34.52 | AY67: 50.6128 | AZ67: U04R02 | BA67: 67
A68: U04 | B68: R03 | C68: Zone 03 | D68: Pass | E68: 22.94 | F68: 22.94 | G68: 0 | H68: Yes | I68: 25.13 | J68: 25.13 | K68: 25.13 | L68: 0 | M68: Yes | N68: U01R03 | O68: 2.19 | P68: 54 | Q68: 12.49 | R68: 0 | S68: 1.17 | T68: 0 | U68: 9.28 | V68: 0 | W68: 22.94 | X68: 46.2021 | Y68: 54 | Z68: 12.49 | AA68: 0 | AB68: 1.17 | AC68: 0 | AD68: 9.28 | AE68: 0 | AF68: 22.94 | AG68: 46.2021 | AH68: 54 | AI68: 14.68 | AJ68: 0 | AK68: 1.17 | AL68: 0 | AM68: 9.28 | AO68: 25.13 | AP68: 47.8076 | AQ68: 54 | AR68: 14.68 | AS68: 0 | AT68: 1.17 | AU68: 0 | AV68: 9.28 | AX68: 25.13 | AY68: 47.8076 | AZ68: U04R03 | BA68: 68
A69: U04 | B69: R04 | C69: Zone 04 | D69: Pass | E69: 25.67 | F69: 25.67 | G69: 0 | H69: Yes | I69: 28.46 | J69: 28.46 | K69: 28.46 | L69: 0 | M69: Yes | N69: U01R04 | O69: 2.79 | P69: 55 | Q69: 15.37 | R69: 0.26 | S69: 1.17 | T69: 0 | U69: 8.87 | V69: 0 | W69: 25.67 | X69: 46.2906 | Y69: 55 | Z69: 15.37 | AA69: 0.26 | AB69: 1.17 | AC69: 0 | AD69: 8.87 | AE69: 0 | AF69: 25.67 | AG69: 46.2906 | AH69: 55 | AI69: 16.82 | AJ69: 1.6 | AK69: 1.17 | AL69: 0 | AM69: 8.87 | AO69: 28.46 | AP69: 48.2446 | AQ69: 55 | AR69: 16.82 | AS69: 1.6 | AT69: 1.17 | AU69: 0 | AV69: 8.87 | AX69: 28.46 | AY69: 48.2446 | AZ69: U04R04 | BA69: 69
A70: U04 | B70: R05 | C70: Zone 05 | D70: Pass | E70: 20.38 | F70: 20.38 | G70: 0 | H70: Yes | I70: 22.68 | J70: 22.68 | K70: 22.68 | L70: 0 | M70: Yes | N70: U01R05 | O70: 2.3 | P70: 56 | Q70: 9.73 | R70: 0 | S70: 1.17 | T70: 0 | U70: 9.48 | V70: 0 | W70: 20.38 | X70: 42.9888 | Y70: 56 | Z70: 9.73 | AA70: 0 | AB70: 1.17 | AC70: 0 | AD70: 9.48 | AE70: 0 | AF70: 20.38 | AG70: 42.9888 | AH70: 56 | AI70: 12.03 | AJ70: 0 | AK70: 1.17 | AL70: 0 | AM70: 9.48 | AO70: 22.68 | AP70: 44.6339 | AQ70: 56 | AR70: 12.03 | AS70: 0 | AT70: 1.17 | AU70: 0 | AV70: 9.48 | AX70: 22.68 | AY70: 44.6339 | AZ70: U04R05 | BA70: 70
A71: U04 | B71: R06 | C71: Zone 06 | D71: Pass | E71: 17.82 | F71: 17.82 | G71: 0 | H71: Yes | I71: 19.49 | J71: 19.49 | K71: 19.49 | L71: 0 | M71: Yes | N71: U01R06 | O71: 1.67 | P71: 57 | Q71: 6.59 | R71: 1.6 | S71: 1.13 | T71: 0 | U71: 8.5 | V71: 0 | W71: 17.82 | X71: 49.5661 | Y71: 57 | Z71: 6.59 | AA71: 1.6 | AB71: 1.13 | AC71: 0 | AD71: 8.5 | AE71: 0 | AF71: 17.82 | AG71: 49.5661 | AH71: 57 | AI71: 7.7 | AJ71: 2.16 | AK71: 1.13 | AL71: 0 | AM71: 8.5 | AO71: 19.49 | AP71: 51.0209 | AQ71: 57 | AR71: 7.7 | AS71: 2.16 | AT71: 1.13 | AU71: 0 | AV71: 8.5 | AX71: 19.49 | AY71: 51.0209 | AZ71: U04R06 | BA71: 71
A72: U04 | B72: R07 | C72: Zone 07 | D72: Pass | E72: 11.54 | F72: 11.54 | G72: 0 | H72: Yes | I72: 12.42 | J72: 12.42 | K72: 12.42 | L72: 0 | M72: Yes | N72: U01R07 | O72: 0.88 | P72: 58 | Q72: 2.09 | R72: 0.08 | S72: 1.17 | T72: 0 | U72: 8.2 | V72: 0 | W72: 11.54 | X72: 48.9502 | Y72: 58 | Z72: 2.09 | AA72: 0.08 | AB72: 1.17 | AC72: 0 | AD72: 8.2 | AE72: 0 | AF72: 11.54 | AG72: 48.9502 | AH72: 58 | AI72: 2.75 | AJ72: 0.3 | AK72: 1.17 | AL72: 0 | AM72: 8.2 | AO72: 12.42 | AP72: 49.7965 | AQ72: 58 | AR72: 2.75 | AS72: 0.3 | AT72: 1.17 | AU72: 0 | AV72: 8.2 | AX72: 12.42 | AY72: 49.7965 | AZ72: U04R07 | BA72: 72
A73: U04 | B73: R08 | C73: Zone 08 | D73: Pass | E73: 17.52 | F73: 17.52 | G73: 0 | H73: Yes | I73: 19.53 | J73: 19.53 | K73: 19.53 | L73: 0 | M73: Yes | N73: U01R08 | O73: 2.01 | P73: 59 | Q73: 3.23 | R73: 5.01 | S73: 1.13 | T73: 0 | U73: 8.15 | V73: 0 | W73: 17.52 | X73: 45.1695 | Y73: 59 | Z73: 3.23 | AA73: 5.01 | AB73: 1.13 | AC73: 0 | AD73: 8.15 | AE73: 0 | AF73: 17.52 | AG73: 45.1695 | AH73: 59 | AI73: 4.03 | AJ73: 6.22 | AK73: 1.13 | AL73: 0 | AM73: 8.15 | AO73: 19.53 | AP73: 46.7554 | AQ73: 59 | AR73: 4.03 | AS73: 6.22 | AT73: 1.13 | AU73: 0 | AV73: 8.15 | AX73: 19.53 | AY73: 46.7554 | AZ73: U04R08 | BA73: 73
A74: U04 | B74: R09 | C74: Zone 09 | D74: Pass | E74: 28.35 | F74: 28.35 | G74: 0 | H74: Yes | I74: 32.3 | J74: 32.3 | K74: 32.3 | L74: 0 | M74: Yes | N74: U01R09 | O74: 3.95 | P74: 60 | Q74: 5.21 | R74: 13.87 | S74: 1.12 | T74: 0 | U74: 8.15 | V74: 0 | W74: 28.35 | X74: 44.9594 | Y74: 60 | Z74: 5.21 | AA74: 13.87 | AB74: 1.12 | AC74: 0 | AD74: 8.15 | AE74: 0 | AF74: 28.35 | AG74: 44.9594 | AH74: 60 | AI74: 6.13 | AJ74: 16.9 | AK74: 1.12 | AL74: 0 | AM74: 8.15 | AO74: 32.3 | AP74: 47.5638 | AQ74: 60 | AR74: 6.13 | AS74: 16.9 | AT74: 1.12 | AU74: 0 | AV74: 8.15 | AX74: 32.3 | AY74: 47.5638 | AZ74: U04R09 | BA74: 74
A75: U04 | B75: R10 | C75: Zone 10 | D75: Pass | E75: 29.04 | F75: 29.04 | G75: 0 | H75: Yes | I75: 32.73 | J75: 32.73 | K75: 32.73 | L75: 0 | M75: Yes | N75: U01R10 | O75: 3.69 | P75: 61 | Q75: 6.13 | R75: 13.68 | S75: 1.12 | T75: 0 | U75: 8.11 | V75: 0 | W75: 29.04 | X75: 43.4867 | Y75: 61 | Z75: 6.13 | AA75: 13.68 | AB75: 1.12 | AC75: 0 | AD75: 8.11 | AE75: 0 | AF75: 29.04 | AG75: 43.4867 | AH75: 61 | AI75: 7.23 | AJ75: 16.27 | AK75: 1.12 | AL75: 0 | AM75: 8.11 | AO75: 32.73 | AP75: 45.8258 | AQ75: 61 | AR75: 7.23 | AS75: 16.27 | AT75: 1.12 | AU75: 0 | AV75: 8.11 | AX75: 32.73 | AY75: 45.8258 | AZ75: U04R10 | BA75: 75
A76: U04 | B76: R11 | C76: Zone 11 | D76: Pass | E76: 58.69 | F76: 58.69 | G76: 0 | H76: Yes | I76: 64.21 | J76: 64.21 | K76: 64.21 | L76: 0 | M76: Yes | N76: U01R11 | O76: 5.52 | P76: 62 | Q76: =IF(Q$3=0,"",INDEX(INDIRECT(Q$1),$P76,Q$3)) -> 18.71 | R76: 30.53 | S76: 1.17 | T76: 0 | U76: 8.28 | V76: 0 | W76: 58.69 | X76: 46.7215 | Y76: 62 | Z76: =IF(Z$3=0,"",INDEX(INDIRECT(Z$1),$Y76,Z$3)) -> 18.71 | AA76: 30.53 | AB76: 1.17 | AC76: 0 | AD76: 8.28 | AE76: 0 | AF76: 58.69 | AG76: 46.7215 | AH76: 62 | AI76: =IF(AI$3=0,"",INDEX(INDIRECT(AI$1),$AH76,AI$3)) -> 20.32 | AJ76: 34.44 | AK76: 1.17 | AL76: 0 | AM76: 8.28 | AO76: 64.21 | AP76: 49.293 | AQ76: 62 | AR76: =IF(AR$3=0,"",INDEX(INDIRECT(AR$1),$AQ76,AR$3)) -> 20.32 | AS76: 34.44 | AT76: 1.17 | AU76: 0 | AV76: 8.28 | AX76: 64.21 | AY76: 49.293 | AZ76: U04R11 | BA76: 76
A77: U04 | B77: R12 | C77: Zone 12 | D77: Pass | E77: 37.4 | F77: 37.4 | G77: 0 | H77: Yes | I77: 41.44 | J77: 41.44 | K77: 41.44 | L77: 0 | M77: Yes | N77: U01R12 | O77: 4.04 | P77: 63 | Q77: 20.18 | R77: 7.39 | S77: 1.17 | T77: 0 | U77: 8.66 | V77: 0 | W77: 37.4 | X77: 43.378 | Y77: 63 | Z77: 20.18 | AA77: 7.39 | AB77: 1.17 | AC77: 0 | AD77: 8.66 | AE77: 0 | AF77: 37.4 | AG77: 43.378 | AH77: 63 | AI77: 21.38 | AJ77: 10.23 | AK77: 1.17 | AL77: 0 | AM77: 8.66 | AO77: 41.44 | AP77: 45.6092 | AQ77: 63 | AR77: 21.38 | AS77: 10.23 | AT77: 1.17 | AU77: 0 | AV77: 8.66 | AX77: 41.44 | AY77: 45.6092 | AZ77: U04R12 | BA77: 77
A78: U04 | B78: R13 | C78: Zone 13 | D78: Pass | E78: 59.8 | F78: 59.8 | G78: 0 | H78: Yes | I78: 65.47 | J78: 65.47 | K78: 65.47 | L78: 0 | M78: Yes | N78: U01R13 | O78: 5.67 | P78: 64 | Q78: 16.76 | R78: 33.74 | S78: 1.17 | T78: 0 | U78: 8.13 | V78: 0 | W78: 59.8 | X78: 48.2428 | Y78: 64 | Z78: 16.76 | AA78: 33.74 | AB78: 1.17 | AC78: 0 | AD78: 8.13 | AE78: 0 | AF78: 59.8 | AG78: 48.2428 | AH78: 64 | AI78: 17.77 | AJ78: 38.4 | AK78: 1.17 | AL78: 0 | AM78: 8.13 | AO78: 65.47 | AP78: 50.9429 | AQ78: 64 | AR78: 17.77 | AS78: 38.4 | AT78: 1.17 | AU78: 0 | AV78: 8.13 | AX78: 65.47 | AY78: 50.9429 | AZ78: U04R13 | BA78: 78
A79: U04 | B79: R14 | C79: Zone 14 | D79: Pass | E79: 54.6 | F79: 54.6 | G79: 0 | H79: Yes | I79: 61.45 | J79: 61.45 | K79: 61.45 | L79: 0 | M79: Yes | N79: U01R14 | O79: 6.85 | P79: 65 | Q79: 17.83 | R79: 27.2 | S79: 1.12 | T79: 0 | U79: 8.45 | V79: 0 | W79: 54.6 | X79: 46.5929 | Y79: 65 | Z79: 17.83 | AA79: 27.2 | AB79: 1.12 | AC79: 0 | AD79: 8.45 | AE79: 0 | AF79: 54.6 | AG79: 46.5929 | AH79: 65 | AI79: 19.76 | AJ79: 32.12 | AK79: 1.12 | AL79: 0 | AM79: 8.45 | AO79: 61.45 | AP79: 49.9689 | AQ79: 65 | AR79: 19.76 | AS79: 32.12 | AT79: 1.12 | AU79: 0 | AV79: 8.45 | AX79: 61.45 | AY79: 49.9689 | AZ79: U04R14 | BA79: 79
A80: U04 | B80: R15 | C80: Zone 15 | D80: Pass | E80: 89.6 | F80: 89.6 | G80: 0 | H80: Yes | I80: 96.09 | J80: 96.09 | K80: 96.09 | L80: 0 | M80: Yes | N80: U01R15 | O80: 6.49 | P80: 66 | Q80: 0.42 | R80: 81.9 | S80: 1.12 | T80: 0 | U80: 6.16 | V80: 0 | W80: 89.6 | X80: 53.6617 | Y80: 66 | Z80: 0.42 | AA80: 81.9 | AB80: 1.12 | AC80: 0 | AD80: 6.16 | AE80: 0 | AF80: 89.6 | AG80: 53.6617 | AH80: 66 | AI80: 0.66 | AJ80: 88.15 | AK80: 1.12 | AL80: 0 | AM80: 6.16 | AO80: 96.09 | AP80: 56.3309 | AQ80: 66 | AR80: 0.66 | AS80: 88.15 | AT80: 1.12 | AU80: 0 | AV80: 6.16 | AX80: 96.09 | AY80: 56.3309 | AZ80: U04R15 | BA80: 80
A81: U04 | B81: R16 | C81: Zone 16 | D81: Pass | E81: 55.22 | F81: 55.22 | G81: 0 | H81: Yes | I81: 58.52 | J81: 58.52 | K81: 58.52 | L81: 0 | M81: Yes | N81: U01R16 | O81: 3.3 | P81: 67 | Q81: 43.62 | R81: 0.14 | S81: 1.11 | T81: 0 | U81: 10.35 | V81: 0 | W81: 55.22 | X81: 51.4264 | Y81: 67 | Z81: 43.62 | AA81: 0.14 | AB81: 1.11 | AC81: 0 | AD81: 10.35 | AE81: 0 | AF81: 55.22 | AG81: 51.4264 | AH81: 67 | AI81: 45.71 | AJ81: 1.35 | AK81: 1.11 | AL81: 0 | AM81: 10.35 | AO81: 58.52 | AP81: 53.253 | AQ81: 67 | AR81: 45.71 | AS81: 1.35 | AT81: 1.11 | AU81: 0 | AV81: 10.35 | AX81: 58.52 | AY81: 53.253 | AZ81: U04R16 | BA81: 81
A82: ="Result "&A65 -> Result U04 | D82: =IF(SoftwareType="Candidate","n/a",IF(COUNTIF(D66:D81,Pass)=16,Pass,Fail)) -> Pass | E82: =AVERAGE(E66:E81) -> 37.8175 | F82: =AVERAGE(F66:F81) -> 37.8175 | G82: =IF(E82=0,0,(F82-E82)/E82) -> 0 | I82: =AVERAGE(I66:I81) -> 41.2425 | J82: =AVERAGE(J66:J81) -> 41.2425 | K82: =AVERAGE(K66:K81) -> 41.2425 | L82: 0 | M82: Min | N82: =MIN(L66:L81) -> 0 | O82: =AVERAGE(O66:O81) -> 3.425 | P82: Ave | Q82: =AVERAGE(Q66:Q81) -> 14.56125 | R82: =AVERAGE(R66:R81) -> 13.46375 | S82: =AVERAGE(S66:S81) -> 1.14875 | U82: =AVERAGE(U66:U81) -> 8.64375 | V82: =AVERAGE(V66:V81) -> 0 | W82: =AVERAGE(W66:W81) -> 37.8175 | X82: =AVERAGE(X66:X81) -> 47.696725 | Y82: Ave | Z82: =AVERAGE(Z66:Z81) -> 14.56125 | AA82: =AVERAGE(AA66:AA81) -> 13.46375 | AB82: =AVERAGE(AB66:AB81) -> 1.14875 | AC82: =AVERAGE(AC66:AC81) -> 0 | AD82: =AVERAGE(AD66:AD81) -> 8.64375 | AF82: =AVERAGE(AF66:AF81) -> 37.8175 | AG82: =AVERAGE(AG66:AG81) -> 47.696725 | AI82: =AVERAGE(AI66:AI81) -> 15.91875 | AJ82: =AVERAGE(AJ66:AJ81) -> 15.53125 | AK82: =AVERAGE(AK66:AK81) -> 1.14875 | AL82: =AVERAGE(AL66:AL81) -> 0 | AM82: =AVERAGE(AM66:AM81) -> 8.64375 | AO82: =AVERAGE(AO66:AO81) -> 41.2425 | AP82: =AVERAGE(AP66:AP81) -> 49.68218125 | AQ82: Ave | AR82: =AVERAGE(AR66:AR81) -> 15.91875 | AS82: =AVERAGE(AS66:AS81) -> 15.53125 | AT82: =AVERAGE(AT66:AT81) -> 1.14875 | AU82: =AVERAGE(AU66:AU81) -> 0 | AV82: =AVERAGE(AV66:AV81) -> 8.64375 | AX82: =AVERAGE(AX66:AX81) -> 41.2425 | AY82: =AVERAGE(AY66:AY81) -> 49.68218125
C83: Page 3 of 7 | L83: Ave | M83: Max | N83: =MAX(L66:L81) -> 0 | Y83: % Diff | Z83: =(Z82-Q82)/Q82 -> 0 | AA83: =(AA82-R82)/R82 -> 0 | AB83: =(AB82-S82)/S82 -> 0 | AD83: =(AD82-U82)/U82 -> 0 | AF83: =(AF82-W82)/W82 -> 0
A84: U05 | B84: =VLOOKUP(A84,TestArray,2)&" in "&VLOOKUP(A84,TestArray,3)&" for Prototype "&VLOOKUP(A84,TestArray,4) -> Proposed Design in All Zones for Prototype P2700ft2 | I84: =VLOOKUP(A84,TestArray,21) -> Standard = T02 Standard for this test
A85: =A84 -> U05 | B85: R01 | C85: =VLOOKUP(A85,TestArray,4+RIGHT(B85,2)) -> Zone 01 | D85: =IF(AND(H85=Yes,M85=Yes),Pass,Fail) -> Pass | E85: =IF(Units="EDR",X85,W85) -> 33.76 | F85: =IF(Units="EDR",AG85,AF85) -> 33.76 | G85: =IF(E85=0,0,(F85-E85)/E85) -> 0 | H85: =IF(AND((E85-Tolerance<=F85),(E85+Tolerance>=F85)),Yes,No) -> Yes | I85: =IF(Units="EDR",J85,INDIRECT(RefCol&INDEX(StandardArray,MATCH($N85,StandardList,0),2))) -> 35.67 | J85: =IF(Units="EDR",AP85,AO85) -> 35.67 | K85: =IF(Units="EDR",AY85,AX85) -> 35.67 | L85: =IF(I85=0,0,(K85-I85)/I85) -> 0 | M85: =IF(AND((I85-Tolerance<=K85),(I85+Tolerance>=K85),(J85-Tolerance<=K85),(J85+Tolerance>=K85)),Yes,No) -> Yes | N85: =N28 -> U02R01 | O85: =K85-F85 -> 1.91 | P85: =MATCH($A85&$B85,INDIRECT(P$2),0) -> 68 | Q85: =IF(Q$3=0,"",INDEX(INDIRECT(Q$1),$P85,Q$3)) -> 23.65 | R85: 0 | S85: 1.15 | T85: 0 | U85: 8.96 | V85: 0 | W85: =IF(TotalSum="No",INDEX(INDIRECT(W$1),$P85,W$3),SUM(Q85:V85)) -> 33.76 | X85: =IF(X$3=0,"",INDEX(INDIRECT(X$1),$P85,X$3)) -> 51.4042 | Y85: =MATCH($A85&$B85,INDIRECT(Y$2),0) -> 68 | Z85: =IF(Z$3=0,"",INDEX(INDIRECT(Z$1),$Y85,Z$3)) -> 23.65 | AA85: 0 | AB85: 1.15 | AC85: 0 | AD85: 8.96 | AE85: 0 | AF85: =IF(TotalSum="No",INDEX(INDIRECT(AF$1),$Y85,AF$3),SUM(Z85:AE85)) -> 33.76 | AG85: =IF(AG$3=0,"",INDEX(INDIRECT(AG$1),$P85,AG$3)) -> 51.4042 | AH85: =MATCH($A85&$B85,INDIRECT(AH$2),0) -> 68 | AI85: =IF(AI$3=0,"",INDEX(INDIRECT(AI$1),$AH85,AI$3)) -> 25.56 | AJ85: 0 | AK85: 1.15 | AL85: 0 | AM85: 8.96 | AO85: =IF(TotalSum="No",INDEX(INDIRECT(AO$1),$AH85,AO$3),SUM(AI85:AN85)) -> 35.67 | AP85: =IF(AP$3=0,"",INDEX(INDIRECT(AP$1),$P85,AP$3)) -> 52.843 | AQ85: =MATCH($A85&$B85,INDIRECT(AQ$2),0) -> 68 | AR85: =IF(AR$3=0,"",INDEX(INDIRECT(AR$1),$AQ85,AR$3)) -> 25.56 | AS85: 0 | AT85: 1.15 | AU85: 0 | AV85: 8.96 | AX85: =IF(TotalSum="No",INDEX(INDIRECT(AX$1),$AQ85,AX$3),SUM(AR85:AW85)) -> 35.67 | AY85: =IF(AY$3=0,"",INDEX(INDIRECT(AY$1),$P85,AY$3)) -> 52.843 | AZ85: =A85&B85 -> U05R01 | BA85: =ROW(AZ85) -> 85
A86: =A85 -> U05 | B86: R02 | C86: Zone 02 | D86: Pass | E86: 28.59 | F86: 28.59 | G86: =IF(E86=0,0,(F86-E86)/E86) -> 0 | H86: Yes | I86: 31.06 | J86: 31.06 | K86: 31.06 | L86: =IF(I86=0,0,(K86-I86)/I86) -> 0 | M86: Yes | N86: U02R02 | O86: =K86-F86 -> 2.47 | P86: 69 | Q86: 18.99 | R86: 0.38 | S86: 1.15 | T86: 0 | U86: 8.07 | V86: 0 | W86: 28.59 | X86: 45.2827 | Y86: 69 | Z86: 18.99 | AA86: 0.38 | AB86: 1.15 | AC86: 0 | AD86: 8.07 | AE86: 0 | AF86: 28.59 | AG86: 45.2827 | AH86: 69 | AI86: 20.27 | AJ86: 1.57 | AK86: 1.15 | AL86: 0 | AM86: 8.07 | AO86: 31.06 | AP86: 47.035 | AQ86: 69 | AR86: 20.27 | AS86: 1.57 | AT86: 1.15 | AU86: 0 | AV86: 8.07 | AX86: 31.06 | AY86: 47.035 | AZ86: U05R02 | BA86: 86
A87: U05 | B87: R03 | C87: Zone 03 | D87: Pass | E87: 18.26 | F87: 18.26 | G87: 0 | H87: Yes | I87: 20.44 | J87: 20.44 | K87: 20.44 | L87: 0 | M87: Yes | N87: U02R03 | O87: 2.18 | P87: 70 | Q87: 9.01 | R87: 0.01 | S87: 1.15 | T87: 0 | U87: 8.09 | V87: 0 | W87: 18.26 | X87: 42.9694 | Y87: 70 | Z87: 9.01 | AA87: 0.01 | AB87: 1.15 | AC87: 0 | AD87: 8.09 | AE87: 0 | AF87: 18.26 | AG87: 42.9694 | AH87: 70 | AI87: 11.1 | AJ87: 0.1 | AK87: 1.15 | AL87: 0 | AM87: 8.09 | AO87: 20.44 | AP87: 44.7079 | AQ87: 70 | AR87: 11.1 | AS87: 0.1 | AT87: 1.15 | AU87: 0 | AV87: 8.09 | AX87: 20.44 | AY87: 44.7079 | AZ87: U05R03 | BA87: 87
A88: U05 | B88: R04 | C88: Zone 04 | D88: Pass | E88: 24.13 | F88: 24.13 | G88: 0 | H88: Yes | I88: 26.47 | J88: 26.47 | K88: 26.47 | L88: 0 | M88: Yes | N88: U02R04 | O88: 2.34 | P88: 71 | Q88: 13.29 | R88: 1.96 | S88: 1.15 | T88: 0 | U88: 7.73 | V88: 0 | W88: 24.13 | X88: 43.7526 | Y88: 71 | Z88: 13.29 | AA88: 1.96 | AB88: 1.15 | AC88: 0 | AD88: 7.73 | AE88: 0 | AF88: 24.13 | AG88: 43.7526 | AH88: 71 | AI88: 14.7 | AJ88: 2.89 | AK88: 1.15 | AL88: 0 | AM88: 7.73 | AO88: 26.47 | AP88: 45.4713 | AQ88: 71 | AR88: 14.7 | AS88: 2.89 | AT88: 1.15 | AU88: 0 | AV88: 7.73 | AX88: 26.47 | AY88: 45.4713 | AZ88: U05R04 | BA88: 88
A89: U05 | B89: R05 | C89: Zone 05 | D89: Pass | E89: 15.76 | F89: 15.76 | G89: 0 | H89: Yes | I89: 17.94 | J89: 17.94 | K89: 17.94 | L89: 0 | M89: Yes | N89: U02R05 | O89: 2.18 | P89: 72 | Q89: 6.31 | R89: 0.03 | S89: 1.15 | T89: 0 | U89: 8.27 | V89: 0 | W89: 15.76 | X89: 39.8422 | Y89: 72 | Z89: 6.31 | AA89: 0.03 | AB89: 1.15 | AC89: 0 | AD89: 8.27 | AE89: 0 | AF89: 15.76 | AG89: 39.8422 | AH89: 72 | AI89: 8.52 | AJ89: 0 | AK89: 1.15 | AL89: 0 | AM89: 8.27 | AO89: 17.94 | AP89: 41.5491 | AQ89: 72 | AR89: 8.52 | AS89: 0 | AT89: 1.15 | AU89: 0 | AV89: 8.27 | AX89: 17.94 | AY89: 41.5491 | AZ89: U05R05 | BA89: 89
A90: U05 | B90: R06 | C90: Zone 06 | D90: Pass | E90: 16.62 | F90: 16.62 | G90: 0 | H90: Yes | I90: 18.38 | J90: 18.38 | K90: 18.38 | L90: 0 | M90: Yes | N90: U02R06 | O90: 1.76 | P90: 73 | Q90: 5.77 | R90: 2.34 | S90: 1.11 | T90: 0 | U90: 7.4 | V90: 0 | W90: 16.62 | X90: 47.5558 | Y90: 73 | Z90: 5.77 | AA90: 2.34 | AB90: 1.11 | AC90: 0 | AD90: 7.4 | AE90: 0 | AF90: 16.62 | AG90: 47.5558 | AH90: 73 | AI90: 6.81 | AJ90: 3.06 | AK90: 1.11 | AL90: 0 | AM90: 7.4 | AO90: 18.38 | AP90: 49.1752 | AQ90: 73 | AR90: 6.81 | AS90: 3.06 | AT90: 1.11 | AU90: 0 | AV90: 7.4 | AX90: 18.38 | AY90: 49.1752 | AZ90: U05R06 | BA90: 90
A91: U05 | B91: R07 | C91: Zone 07 | D91: Pass | E91: 10.43 | F91: 10.43 | G91: 0 | H91: Yes | I91: 11.25 | J91: 11.25 | K91: 11.25 | L91: 0 | M91: Yes | N91: U02R07 | O91: 0.82 | P91: 74 | Q91: 1.8 | R91: 0.33 | S91: 1.15 | T91: 0 | U91: 7.15 | V91: 0 | W91: 10.43 | X91: 47.0124 | Y91: 74 | Z91: 1.8 | AA91: 0.33 | AB91: 1.15 | AC91: 0 | AD91: 7.15 | AE91: 0 | AF91: 10.43 | AG91: 47.0124 | AH91: 74 | AI91: 2.33 | AJ91: 0.62 | AK91: 1.15 | AL91: 0 | AM91: 7.15 | AO91: 11.25 | AP91: 47.8638 | AQ91: 74 | AR91: 2.33 | AS91: 0.62 | AT91: 1.15 | AU91: 0 | AV91: 7.15 | AX91: 11.25 | AY91: 47.8638 | AZ91: U05R07 | BA91: 91
A92: U05 | B92: R08 | C92: Zone 08 | D92: Pass | E92: 17.92 | F92: 17.92 | G92: 0 | H92: Yes | I92: 20.12 | J92: 20.12 | K92: 20.12 | L92: 0 | M92: Yes | N92: U02R08 | O92: 2.2 | P92: 75 | Q92: 3.14 | R92: 6.57 | S92: 1.11 | T92: 0 | U92: 7.1 | V92: 0 | W92: 17.92 | X92: 43.7041 | Y92: 75 | Z92: 3.14 | AA92: 6.57 | AB92: 1.11 | AC92: 0 | AD92: 7.1 | AE92: 0 | AF92: 17.92 | AG92: 43.7041 | AH92: 75 | AI92: 3.87 | AJ92: 8.04 | AK92: 1.11 | AL92: 0 | AM92: 7.1 | AO92: 20.12 | AP92: 45.5094 | AQ92: 75 | AR92: 3.87 | AS92: 8.04 | AT92: 1.11 | AU92: 0 | AV92: 7.1 | AX92: 20.12 | AY92: 45.5094 | AZ92: U05R08 | BA92: 92
A93: U05 | B93: R09 | C93: Zone 09 | D93: Pass | E93: 28.83 | F93: 28.83 | G93: 0 | H93: Yes | I93: 32.69 | J93: 32.69 | K93: 32.69 | L93: 0 | M93: Yes | N93: U02R09 | O93: 3.86 | P93: 76 | Q93: 5.1 | R93: 15.53 | S93: 1.1 | T93: 0 | U93: 7.1 | V93: 0 | W93: 28.83 | X93: 43.037 | Y93: 76 | Z93: 5.1 | AA93: 15.53 | AB93: 1.1 | AC93: 0 | AD93: 7.1 | AE93: 0 | AF93: 28.83 | AG93: 43.037 | AH93: 76 | AI93: 5.94 | AJ93: 18.55 | AK93: 1.1 | AL93: 0 | AM93: 7.1 | AO93: 32.69 | AP93: 45.6332 | AQ93: 76 | AR93: 5.94 | AS93: 18.55 | AT93: 1.1 | AU93: 0 | AV93: 7.1 | AX93: 32.69 | AY93: 45.6332 | AZ93: U05R09 | BA93: 93
A94: U05 | B94: R10 | C94: Zone 10 | D94: Pass | E94: 29.51 | F94: 29.51 | G94: 0 | H94: Yes | I94: 33.59 | J94: 33.59 | K94: 33.59 | L94: 0 | M94: Yes | N94: U02R10 | O94: 4.08 | P94: 77 | Q94: 5.91 | R94: 15.44 | S94: 1.1 | T94: 0 | U94: 7.06 | V94: 0 | W94: 29.51 | X94: 41.3897 | Y94: 77 | Z94: 5.91 | AA94: 15.44 | AB94: 1.1 | AC94: 0 | AD94: 7.06 | AE94: 0 | AF94: 29.51 | AG94: 41.3897 | AH94: 77 | AI94: 6.93 | AJ94: 18.5 | AK94: 1.1 | AL94: 0 | AM94: 7.06 | AO94: 33.59 | AP94: 43.9983 | AQ94: 77 | AR94: 6.93 | AS94: 18.5 | AT94: 1.1 | AU94: 0 | AV94: 7.06 | AX94: 33.59 | AY94: 43.9983 | AZ94: U05R10 | BA94: 94
A95: U05 | B95: R11 | C95: Zone 11 | D95: Pass | E95: 57.16 | F95: 57.16 | G95: 0 | H95: Yes | I95: 63.44 | J95: 63.44 | K95: 63.44 | L95: 0 | M95: Yes | N95: U02R11 | O95: 6.28 | P95: 78 | Q95: =IF(Q$3=0,"",INDEX(INDIRECT(Q$1),$P95,Q$3)) -> 17.4 | R95: 31.4 | S95: 1.15 | T95: 0 | U95: 7.21 | V95: 0 | W95: 57.16 | X95: 43.971 | Y95: 78 | Z95: =IF(Z$3=0,"",INDEX(INDIRECT(Z$1),$Y95,Z$3)) -> 17.4 | AA95: 31.4 | AB95: 1.15 | AC95: 0 | AD95: 7.21 | AE95: 0 | AF95: 57.16 | AG95: 43.971 | AH95: 78 | AI95: =IF(AI$3=0,"",INDEX(INDIRECT(AI$1),$AH95,AI$3)) -> 18.96 | AJ95: 36.12 | AK95: 1.15 | AL95: 0 | AM95: 7.21 | AO95: 63.44 | AP95: 46.9036 | AQ95: 78 | AR95: =IF(AR$3=0,"",INDEX(INDIRECT(AR$1),$AQ95,AR$3)) -> 18.96 | AS95: 36.12 | AT95: 1.15 | AU95: 0 | AV95: 7.21 | AX95: 63.44 | AY95: 46.9036 | AZ95: U05R11 | BA95: 95
A96: U05 | B96: R12 | C96: Zone 12 | D96: Pass | E96: 37.64 | F96: 37.64 | G96: 0 | H96: Yes | I96: 42.52 | J96: 42.52 | K96: 42.52 | L96: 0 | M96: Yes | N96: U02R12 | O96: 4.88 | P96: 79 | Q96: 18.19 | R96: 10.76 | S96: 1.15 | T96: 0 | U96: 7.54 | V96: 0 | W96: 37.64 | X96: 41.2889 | Y96: 79 | Z96: 18.19 | AA96: 10.76 | AB96: 1.15 | AC96: 0 | AD96: 7.54 | AE96: 0 | AF96: 37.64 | AG96: 41.2889 | AH96: 79 | AI96: 19.36 | AJ96: 14.47 | AK96: 1.15 | AL96: 0 | AM96: 7.54 | AO96: 42.52 | AP96: 43.9991 | AQ96: 79 | AR96: 19.36 | AS96: 14.47 | AT96: 1.15 | AU96: 0 | AV96: 7.54 | AX96: 42.52 | AY96: 43.9991 | AZ96: U05R12 | BA96: 96
A97: U05 | B97: R13 | C97: Zone 13 | D97: Pass | E97: 58.34 | F97: 58.34 | G97: 0 | H97: Yes | I97: 64.69 | J97: 64.69 | K97: 64.69 | L97: 0 | M97: Yes | N97: U02R13 | O97: 6.35 | P97: 80 | Q97: 16.11 | R97: 34.01 | S97: 1.15 | T97: 0 | U97: 7.07 | V97: 0 | W97: 58.34 | X97: 45.5295 | Y97: 80 | Z97: 16.11 | AA97: 34.01 | AB97: 1.15 | AC97: 0 | AD97: 7.07 | AE97: 0 | AF97: 58.34 | AG97: 45.5295 | AH97: 80 | AI97: 17.11 | AJ97: 39.36 | AK97: 1.15 | AL97: 0 | AM97: 7.07 | AO97: 64.69 | AP97: 48.561 | AQ97: 80 | AR97: 17.11 | AS97: 39.36 | AT97: 1.15 | AU97: 0 | AV97: 7.07 | AX97: 64.69 | AY97: 48.561 | AZ97: U05R13 | BA97: 97
A98: U05 | B98: R14 | C98: Zone 14 | D98: Pass | E98: 53.41 | F98: 53.41 | G98: 0 | H98: Yes | I98: 60.79 | J98: 60.79 | K98: 60.79 | L98: 0 | M98: Yes | N98: U02R14 | O98: 7.38 | P98: 81 | Q98: 16.44 | R98: 28.53 | S98: 1.1 | T98: 0 | U98: 7.34 | V98: 0 | W98: 53.41 | X98: 43.9916 | Y98: 81 | Z98: 16.44 | AA98: 28.53 | AB98: 1.1 | AC98: 0 | AD98: 7.34 | AE98: 0 | AF98: 53.41 | AG98: 43.9916 | AH98: 81 | AI98: 18.33 | AJ98: 34.02 | AK98: 1.1 | AL98: 0 | AM98: 7.34 | AO98: 60.79 | AP98: 47.6445 | AQ98: 81 | AR98: 18.33 | AS98: 34.02 | AT98: 1.1 | AU98: 0 | AV98: 7.34 | AX98: 60.79 | AY98: 47.6445 | AZ98: U05R14 | BA98: 98
A99: U05 | B99: R15 | C99: Zone 15 | D99: Pass | E99: 83.44 | F99: 83.44 | G99: 0 | H99: Yes | I99: 90.36 | J99: 90.36 | K99: 90.36 | L99: 0 | M99: Yes | N99: U02R15 | O99: 6.92 | P99: 82 | Q99: 1.09 | R99: 75.91 | S99: 1.1 | T99: 0 | U99: 5.34 | V99: 0 | W99: 83.44 | X99: 49.839 | Y99: 82 | Z99: 1.09 | AA99: 75.91 | AB99: 1.1 | AC99: 0 | AD99: 5.34 | AE99: 0 | AF99: 83.44 | AG99: 49.839 | AH99: 82 | AI99: 1.51 | AJ99: 82.41 | AK99: 1.1 | AL99: 0 | AM99: 5.34 | AO99: 90.36 | AP99: 52.7196 | AQ99: 82 | AR99: 1.51 | AS99: 82.41 | AT99: 1.1 | AU99: 0 | AV99: 5.34 | AX99: 90.36 | AY99: 52.7196 | AZ99: U05R15 | BA99: 99
A100: U05 | B100: R16 | C100: Zone 16 | D100: Pass | E100: 51.02 | F100: 51.02 | G100: 0 | H100: Yes | I100: 55.28 | J100: 55.28 | K100: 55.28 | L100: 0 | M100: Yes | N100: U02R16 | O100: 4.26 | P100: 83 | Q100: 39.2 | R100: 1.7 | S100: 1.09 | T100: 0 | U100: 9.03 | V100: 0 | W100: 51.02 | X100: 48.0648 | Y100: 83 | Z100: 39.2 | AA100: 1.7 | AB100: 1.09 | AC100: 0 | AD100: 9.03 | AE100: 0 | AF100: 51.02 | AG100: 48.0648 | AH100: 83 | AI100: 41.18 | AJ100: 3.98 | AK100: 1.09 | AL100: 0 | AM100: 9.03 | AO100: 55.28 | AP100: 50.4819 | AQ100: 83 | AR100: 41.18 | AS100: 3.98 | AT100: 1.09 | AU100: 0 | AV100: 9.03 | AX100: 55.28 | AY100: 50.4819 | AZ100: U05R16 | BA100: 100
A101: ="Result "&A84 -> Result U05 | D101: =IF(SoftwareType="Candidate","n/a",IF(COUNTIF(D85:D100,Pass)=16,Pass,Fail)) -> Pass | E101: =AVERAGE(E85:E100) -> 35.30125 | F101: =AVERAGE(F85:F100) -> 35.30125 | G101: =IF(E101=0,0,(F101-E101)/E101) -> 0 | I101: =AVERAGE(I85:I100) -> 39.043125 | J101: =AVERAGE(J85:J100) -> 39.043125 | K101: =AVERAGE(K85:K100) -> 39.043125 | L101: 0 | M101: Min | N101: =MIN(L85:L100) -> 0 | O101: =AVERAGE(O85:O100) -> 3.741875 | P101: Ave | Q101: =AVERAGE(Q85:Q100) -> 12.5875 | R101: =AVERAGE(R85:R100) -> 14.05625 | S101: =AVERAGE(S85:S100) -> 1.12875 | U101: =AVERAGE(U85:U100) -> 7.52875 | V101: =AVERAGE(V85:V100) -> 0 | W101: =AVERAGE(W85:W100) -> 35.30125 | X101: =AVERAGE(X85:X100) -> 44.91468125 | Y101: Ave | Z101: =AVERAGE(Z85:Z100) -> 12.5875 | AA101: =AVERAGE(AA85:AA100) -> 14.05625 | AB101: =AVERAGE(AB85:AB100) -> 1.12875 | AC101: =AVERAGE(AC85:AC100) -> 0 | AD101: =AVERAGE(AD85:AD100) -> 7.52875 | AF101: =AVERAGE(AF85:AF100) -> 35.30125 | AG101: =AVERAGE(AG85:AG100) -> 44.91468125 | AI101: =AVERAGE(AI85:AI100) -> 13.905 | AJ101: =AVERAGE(AJ85:AJ100) -> 16.480625 | AK101: =AVERAGE(AK85:AK100) -> 1.12875 | AL101: =AVERAGE(AL85:AL100) -> 0 | AM101: =AVERAGE(AM85:AM100) -> 7.52875 | AO101: =AVERAGE(AO85:AO100) -> 39.043125 | AP101: =AVERAGE(AP85:AP100) -> 47.13099375 | AQ101: Ave | AR101: =AVERAGE(AR85:AR100) -> 13.905 | AS101: =AVERAGE(AS85:AS100) -> 16.480625 | AT101: =AVERAGE(AT85:AT100) -> 1.12875 | AU101: =AVERAGE(AU85:AU100) -> 0 | AV101: =AVERAGE(AV85:AV100) -> 7.52875 | AX101: =AVERAGE(AX85:AX100) -> 39.043125 | AY101: =AVERAGE(AY85:AY100) -> 47.13099375
L102: Ave | M102: Max | N102: =MAX(L85:L100) -> 0 | Y102: % Diff | Z102: =(Z101-Q101)/Q101 -> 0 | AA102: =(AA101-R101)/R101 -> 0 | AB102: =(AB101-S101)/S101 -> 0 | AD102: =(AD101-U101)/U101 -> 0 | AF102: =(AF101-W101)/W101 -> 0
A103: U06 | B103: =VLOOKUP(A103,TestArray,2)&" in "&VLOOKUP(A103,TestArray,3)&" for Prototype "&VLOOKUP(A103,TestArray,4) -> Proposed Design in All Zones for Prototype P6960ft2 | I103: =VLOOKUP(A103,TestArray,21) -> Standard = T03 Standard for this test
A104: =A103 -> U06 | B104: R01 | C104: =VLOOKUP(A104,TestArray,4+RIGHT(B104,2)) -> Zone 01 | D104: =IF(AND(H104=Yes,M104=Yes),Pass,Fail) -> Pass | E104: =IF(Units="EDR",X104,W104) -> 37.63 | F104: =IF(Units="EDR",AG104,AF104) -> 37.63 | G104: =IF(E104=0,0,(F104-E104)/E104) -> 0 | H104: =IF(AND((E104-Tolerance<=F104),(E104+Tolerance>=F104)),Yes,No) -> Yes | I104: =IF(Units="EDR",J104,INDIRECT(RefCol&INDEX(StandardArray,MATCH($N104,StandardList,0),2))) -> 36.82 | J104: =IF(Units="EDR",AP104,AO104) -> 36.82 | K104: =IF(Units="EDR",AY104,AX104) -> 36.82 | L104: =IF(I104=0,0,(K104-I104)/I104) -> 0 | M104: =IF(AND((I104-Tolerance<=K104),(I104+Tolerance>=K104),(J104-Tolerance<=K104),(J104+Tolerance>=K104)),Yes,No) -> Yes | N104: =N47 -> U03R01 | O104: =K104-F104 -> -0.81 | P104: =MATCH($A104&$B104,INDIRECT(P$2),0) -> 84 | Q104: =IF(Q$3=0,"",INDEX(INDIRECT(Q$1),$P104,Q$3)) -> 16.71 | R104: 0 | S104: 2.47 | T104: 0 | U104: 18.45 | V104: 0 | W104: =IF(TotalSum="No",INDEX(INDIRECT(W$1),$P104,W$3),SUM(Q104:V104)) -> 37.63 | X104: =IF(X$3=0,"",INDEX(INDIRECT(X$1),$P104,X$3)) -> 58.2158 | Y104: =MATCH($A104&$B104,INDIRECT(Y$2),0) -> 84 | Z104: =IF(Z$3=0,"",INDEX(INDIRECT(Z$1),$Y104,Z$3)) -> 16.71 | AA104: 0 | AB104: 2.47 | AC104: 0 | AD104: 18.45 | AE104: 0 | AF104: =IF(TotalSum="No",INDEX(INDIRECT(AF$1),$Y104,AF$3),SUM(Z104:AE104)) -> 37.63 | AG104: =IF(AG$3=0,"",INDEX(INDIRECT(AG$1),$P104,AG$3)) -> 58.2158 | AH104: =MATCH($A104&$B104,INDIRECT(AH$2),0) -> 84 | AI104: =IF(AI$3=0,"",INDEX(INDIRECT(AI$1),$AH104,AI$3)) -> 15.85 | AJ104: 0.05 | AK104: 2.47 | AL104: 0 | AM104: 18.45 | AO104: =IF(TotalSum="No",INDEX(INDIRECT(AO$1),$AH104,AO$3),SUM(AI104:AN104)) -> 36.82 | AP104: =IF(AP$3=0,"",INDEX(INDIRECT(AP$1),$P104,AP$3)) -> 57.8434 | AQ104: =MATCH($A104&$B104,INDIRECT(AQ$2),0) -> 84 | AR104: =IF(AR$3=0,"",INDEX(INDIRECT(AR$1),$AQ104,AR$3)) -> 15.85 | AS104: 0.05 | AT104: 2.47 | AU104: 0 | AV104: 18.45 | AX104: =IF(TotalSum="No",INDEX(INDIRECT(AX$1),$AQ104,AX$3),SUM(AR104:AW104)) -> 36.82 | AY104: =IF(AY$3=0,"",INDEX(INDIRECT(AY$1),$P104,AY$3)) -> 57.8434 | AZ104: =A104&B104 -> U06R01 | BA104: =ROW(AZ104) -> 104
A105: =A104 -> U06 | B105: R02 | C105: Zone 02 | D105: Pass | E105: 35.72 | F105: 35.72 | G105: =IF(E105=0,0,(F105-E105)/E105) -> 0 | H105: Yes | I105: 38.04 | J105: 38.04 | K105: 38.04 | L105: =IF(I105=0,0,(K105-I105)/I105) -> 0 | M105: Yes | N105: U03R02 | O105: =K105-F105 -> 2.32 | P105: 85 | Q105: 11.98 | R105: 4.63 | S105: 2.47 | T105: 0 | U105: 16.64 | V105: 0 | W105: 35.72 | X105: 54.7039 | Y105: 85 | Z105: 11.98 | AA105: 4.63 | AB105: 2.47 | AC105: 0 | AD105: 16.64 | AE105: 0 | AF105: 35.72 | AG105: 54.7039 | AH105: 85 | AI105: 11.56 | AJ105: 7.37 | AK105: 2.47 | AL105: 0 | AM105: 16.64 | AO105: 38.04 | AP105: 55.9476 | AQ105: 85 | AR105: 11.56 | AS105: 7.37 | AT105: 2.47 | AU105: 0 | AV105: 16.64 | AX105: 38.04 | AY105: 55.9476 | AZ105: U06R02 | BA105: 105
A106: U06 | B106: R03 | C106: Zone 03 | D106: Pass | E106: 25.16 | F106: 25.16 | G106: 0 | H106: Yes | I106: 26.19 | J106: 26.19 | K106: 26.19 | L106: 0 | M106: Yes | N106: U03R03 | O106: 1.03 | P106: 86 | Q106: 5.28 | R106: 0.74 | S106: 2.47 | T106: 0 | U106: 16.67 | V106: 0 | W106: 25.16 | X106: 54.7735 | Y106: 86 | Z106: 5.28 | AA106: 0.74 | AB106: 2.47 | AC106: 0 | AD106: 16.67 | AE106: 0 | AF106: 25.16 | AG106: 54.7735 | AH106: 86 | AI106: 5.3 | AJ106: 1.75 | AK106: 2.47 | AL106: 0 | AM106: 16.67 | AO106: 26.19 | AP106: 55.4386 | AQ106: 86 | AR106: 5.3 | AS106: 1.75 | AT106: 2.47 | AU106: 0 | AV106: 16.67 | AX106: 26.19 | AY106: 55.4386 | AZ106: U06R03 | BA106: 106
A107: U06 | B107: R04 | C107: Zone 04 | D107: Pass | E107: 31.55 | F107: 31.55 | G107: 0 | H107: Yes | I107: 34.96 | J107: 34.96 | K107: 34.96 | L107: 0 | M107: Yes | N107: U03R04 | O107: 3.41 | P107: 87 | Q107: 7.81 | R107: 5.33 | S107: 2.47 | T107: 0 | U107: 15.94 | V107: 0 | W107: 31.55 | X107: 52.9414 | Y107: 87 | Z107: 7.81 | AA107: 5.33 | AB107: 2.47 | AC107: 0 | AD107: 15.94 | AE107: 0 | AF107: 31.55 | AG107: 52.9414 | AH107: 87 | AI107: 7.54 | AJ107: 9.01 | AK107: 2.47 | AL107: 0 | AM107: 15.94 | AO107: 34.96 | AP107: 54.7557 | AQ107: 87 | AR107: 7.54 | AS107: 9.01 | AT107: 2.47 | AU107: 0 | AV107: 15.94 | AX107: 34.96 | AY107: 54.7557 | AZ107: U06R04 | BA107: 107
A108: U06 | B108: R05 | C108: Zone 05 | D108: Pass | E108: 24.03 | F108: 24.03 | G108: 0 | H108: Yes | I108: 24.89 | J108: 24.89 | K108: 24.89 | L108: 0 | M108: Yes | N108: U03R05 | O108: 0.86 | P108: 88 | Q108: 4.23 | R108: 0.28 | S108: 2.47 | T108: 0 | U108: 17.05 | V108: 0 | W108: 24.03 | X108: 53.3144 | Y108: 88 | Z108: 4.23 | AA108: 0.28 | AB108: 2.47 | AC108: 0 | AD108: 17.05 | AE108: 0 | AF108: 24.03 | AG108: 53.3144 | AH108: 88 | AI108: 3.85 | AJ108: 1.52 | AK108: 2.47 | AL108: 0 | AM108: 17.05 | AO108: 24.89 | AP108: 53.8971 | AQ108: 88 | AR108: 3.85 | AS108: 1.52 | AT108: 2.47 | AU108: 0 | AV108: 17.05 | AX108: 24.89 | AY108: 53.8971 | AZ108: U06R05 | BA108: 108
A109: U06 | B109: R06 | C109: Zone 06 | D109: Pass | E109: 24.8 | F109: 24.8 | G109: 0 | H109: Yes | I109: 26.79 | J109: 26.79 | K109: 26.79 | L109: 0 | M109: Yes | N109: U03R06 | O109: 1.99 | P109: 89 | Q109: 2.03 | R109: 5.1 | S109: 2.39 | T109: 0 | U109: 15.28 | V109: 0 | W109: 24.8 | X109: 58.2113 | Y109: 89 | Z109: 2.03 | AA109: 5.1 | AB109: 2.39 | AC109: 0 | AD109: 15.28 | AE109: 0 | AF109: 24.8 | AG109: 58.2113 | AH109: 89 | AI109: 1.88 | AJ109: 7.24 | AK109: 2.39 | AL109: 0 | AM109: 15.28 | AO109: 26.79 | AP109: 59.491 | AQ109: 89 | AR109: 1.88 | AS109: 7.24 | AT109: 2.39 | AU109: 0 | AV109: 15.28 | AX109: 26.79 | AY109: 59.491 | AZ109: U06R06 | BA109: 109
A110: U06 | B110: R07 | C110: Zone 07 | D110: Pass | E110: 21.16 | F110: 21.16 | G110: 0 | H110: Yes | I110: 23.64 | J110: 23.64 | K110: 23.64 | L110: 0 | M110: Yes | N110: U03R07 | O110: 2.48 | P110: 90 | Q110: 0.26 | R110: 3.66 | S110: 2.48 | T110: 0 | U110: 14.76 | V110: 0 | W110: 21.16 | X110: 58.8133 | Y110: 90 | Z110: 0.26 | AA110: 3.66 | AB110: 2.48 | AC110: 0 | AD110: 14.76 | AE110: 0 | AF110: 21.16 | AG110: 58.8133 | AH110: 90 | AI110: 0.19 | AJ110: 6.21 | AK110: 2.48 | AL110: 0 | AM110: 14.76 | AO110: 23.64 | AP110: 60.4501 | AQ110: 90 | AR110: 0.19 | AS110: 6.21 | AT110: 2.48 | AU110: 0 | AV110: 14.76 | AX110: 23.64 | AY110: 60.4501 | AZ110: U06R07 | BA110: 110
A111: U06 | B111: R08 | C111: Zone 08 | D111: Pass | E111: 31.72 | F111: 31.72 | G111: 0 | H111: Yes | I111: 35.09 | J111: 35.09 | K111: 35.09 | L111: 0 | M111: Yes | N111: U03R08 | O111: 3.37 | P111: 91 | Q111: 0.96 | R111: 13.7 | S111: 2.4 | T111: 0 | U111: 14.66 | V111: 0 | W111: 31.72 | X111: 57.0855 | Y111: 91 | Z111: 0.96 | AA111: 13.7 | AB111: 2.4 | AC111: 0 | AD111: 14.66 | AE111: 0 | AF111: 31.72 | AG111: 57.0855 | AH111: 91 | AI111: 0.89 | AJ111: 17.14 | AK111: 2.4 | AL111: 0 | AM111: 14.66 | AO111: 35.09 | AP111: 59.0192 | AQ111: 91 | AR111: 0.89 | AS111: 17.14 | AT111: 2.4 | AU111: 0 | AV111: 14.66 | AX111: 35.09 | AY111: 59.0192 | AZ111: U06R08 | BA111: 111
A112: U06 | B112: R09 | C112: Zone 09 | D112: Pass | E112: 40.78 | F112: 40.78 | G112: 0 | H112: Yes | I112: 46.09 | J112: 46.09 | K112: 46.09 | L112: 0 | M112: Yes | N112: U03R09 | O112: 5.31 | P112: 92 | Q112: 2.01 | R112: 21.74 | S112: 2.37 | T112: 0 | U112: 14.66 | V112: 0 | W112: 40.78 | X112: 54.8958 | Y112: 92 | Z112: 2.01 | AA112: 21.74 | AB112: 2.37 | AC112: 0 | AD112: 14.66 | AE112: 0 | AF112: 40.78 | AG112: 54.8958 | AH112: 92 | AI112: 1.84 | AJ112: 27.22 | AK112: 2.37 | AL112: 0 | AM112: 14.66 | AO112: 46.09 | AP112: 57.5805 | AQ112: 92 | AR112: 1.84 | AS112: 27.22 | AT112: 2.37 | AU112: 0 | AV112: 14.66 | AX112: 46.09 | AY112: 57.5805 | AZ112: U06R09 | BA112: 112
A113: U06 | B113: R10 | C113: Zone 10 | D113: Pass | E113: 41.81 | F113: 41.81 | G113: 0 | H113: Yes | I113: 46.99 | J113: 46.99 | K113: 46.99 | L113: 0 | M113: Yes | N113: U03R10 | O113: 5.18 | P113: 93 | Q113: 2.5 | R113: 22.37 | S113: 2.37 | T113: 0 | U113: 14.57 | V113: 0 | W113: 41.81 | X113: 53.4939 | Y113: 93 | Z113: 2.5 | AA113: 22.37 | AB113: 2.37 | AC113: 0 | AD113: 14.57 | AE113: 0 | AF113: 41.81 | AG113: 53.4939 | AH113: 93 | AI113: 2.32 | AJ113: 27.73 | AK113: 2.37 | AL113: 0 | AM113: 14.57 | AO113: 46.99 | AP113: 56.0297 | AQ113: 93 | AR113: 2.32 | AS113: 27.73 | AT113: 2.37 | AU113: 0 | AV113: 14.57 | AX113: 46.99 | AY113: 56.0297 | AZ113: U06R10 | BA113: 113
A114: U06 | B114: R11 | C114: Zone 11 | D114: Pass | E114: 67.28 | F114: 67.28 | G114: 0 | H114: Yes | I114: 73.34 | J114: 73.34 | K114: 73.34 | L114: 0 | M114: Yes | N114: U03R11 | O114: 6.06 | P114: 94 | Q114: =IF(Q$3=0,"",INDEX(INDIRECT(Q$1),$P114,Q$3)) -> 11.55 | R114: 38.39 | S114: 2.47 | T114: 0 | U114: 14.87 | V114: 0 | W114: 67.28 | X114: 53.8033 | Y114: 94 | Z114: =IF(Z$3=0,"",INDEX(INDIRECT(Z$1),$Y114,Z$3)) -> 11.55 | AA114: 38.39 | AB114: 2.47 | AC114: 0 | AD114: 14.87 | AE114: 0 | AF114: 67.28 | AG114: 53.8033 | AH114: 94 | AI114: =IF(AI$3=0,"",INDEX(INDIRECT(AI$1),$AH114,AI$3)) -> 11.34 | AJ114: 44.66 | AK114: 2.47 | AL114: 0 | AM114: 14.87 | AO114: 73.34 | AP114: 56.1618 | AQ114: 94 | AR114: =IF(AR$3=0,"",INDEX(INDIRECT(AR$1),$AQ114,AR$3)) -> 11.34 | AS114: 44.66 | AT114: 2.47 | AU114: 0 | AV114: 14.87 | AX114: 73.34 | AY114: 56.1618 | AZ114: U06R11 | BA114: 114
A115: U06 | B115: R12 | C115: Zone 12 | D115: Pass | E115: 51.03 | F115: 51.03 | G115: 0 | H115: Yes | I115: 56.87 | J115: 56.87 | K115: 56.87 | L115: 0 | M115: Yes | N115: U03R12 | O115: 5.84 | P115: 95 | Q115: 11.39 | R115: 21.62 | S115: 2.47 | T115: 0 | U115: 15.55 | V115: 0 | W115: 51.03 | X115: 53.087 | Y115: 95 | Z115: 11.39 | AA115: 21.62 | AB115: 2.47 | AC115: 0 | AD115: 15.55 | AE115: 0 | AF115: 51.03 | AG115: 53.087 | AH115: 95 | AI115: 11.15 | AJ115: 27.7 | AK115: 2.47 | AL115: 0 | AM115: 15.55 | AO115: 56.87 | AP115: 55.6414 | AQ115: 95 | AR115: 11.15 | AS115: 27.7 | AT115: 2.47 | AU115: 0 | AV115: 15.55 | AX115: 56.87 | AY115: 55.6414 | AZ115: U06R12 | BA115: 115
A116: U06 | B116: R13 | C116: Zone 13 | D116: Pass | E116: 67.85 | F116: 67.85 | G116: 0 | H116: Yes | I116: 74.84 | J116: 74.84 | K116: 74.84 | L116: 0 | M116: Yes | N116: U03R13 | O116: 6.99 | P116: 96 | Q116: 9.98 | R116: 40.81 | S116: 2.47 | T116: 0 | U116: 14.59 | V116: 0 | W116: 67.85 | X116: 54.123 | Y116: 96 | Z116: 9.98 | AA116: 40.81 | AB116: 2.47 | AC116: 0 | AD116: 14.59 | AE116: 0 | AF116: 67.85 | AG116: 54.123 | AH116: 96 | AI116: 9.8 | AJ116: 47.98 | AK116: 2.47 | AL116: 0 | AM116: 14.59 | AO116: 74.84 | AP116: 56.8517 | AQ116: 96 | AR116: 9.8 | AS116: 47.98 | AT116: 2.47 | AU116: 0 | AV116: 14.59 | AX116: 74.84 | AY116: 56.8517 | AZ116: U06R13 | BA116: 116
A117: U06 | B117: R14 | C117: Zone 14 | D117: Pass | E117: 63.25 | F117: 63.25 | G117: 0 | H117: Yes | I117: 69.54 | J117: 69.54 | K117: 69.54 | L117: 0 | M117: Yes | N117: U03R14 | O117: 6.29 | P117: 97 | Q117: 11.61 | R117: 34.12 | S117: 2.37 | T117: 0 | U117: 15.15 | V117: 0 | W117: 63.25 | X117: 54.2896 | Y117: 97 | Z117: 11.61 | AA117: 34.12 | AB117: 2.37 | AC117: 0 | AD117: 15.15 | AE117: 0 | AF117: 63.25 | AG117: 54.2896 | AH117: 97 | AI117: 11.06 | AJ117: 40.96 | AK117: 2.37 | AL117: 0 | AM117: 15.15 | AO117: 69.54 | AP117: 56.8974 | AQ117: 97 | AR117: 11.06 | AS117: 40.96 | AT117: 2.37 | AU117: 0 | AV117: 15.15 | AX117: 69.54 | AY117: 56.8974 | AZ117: U06R14 | BA117: 117
A118: U06 | B118: R15 | C118: Zone 15 | D118: Pass | E118: 96.48 | F118: 96.48 | G118: 0 | H118: Yes | I118: 105.23 | J118: 105.23 | K118: 105.23 | L118: 0 | M118: Yes | N118: U03R15 | O118: 8.75 | P118: 98 | Q118: 0.18 | R118: 82.85 | S118: 2.37 | T118: 0 | U118: 11.08 | V118: 0 | W118: 96.48 | X118: 59.1854 | Y118: 98 | Z118: 0.18 | AA118: 82.85 | AB118: 2.37 | AC118: 0 | AD118: 11.08 | AE118: 0 | AF118: 96.48 | AG118: 59.1854 | AH118: 98 | AI118: 0.16 | AJ118: 91.62 | AK118: 2.37 | AL118: 0 | AM118: 11.08 | AO118: 105.23 | AP118: 62.3154 | AQ118: 98 | AR118: 0.16 | AS118: 91.62 | AT118: 2.37 | AU118: 0 | AV118: 11.08 | AX118: 105.23 | AY118: 62.3154 | AZ118: U06R15 | BA118: 118
A119: U06 | B119: R16 | C119: Zone 16 | D119: Pass | E119: 56.57 | F119: 56.57 | G119: 0 | H119: Yes | I119: 59.46 | J119: 59.46 | K119: 59.46 | L119: 0 | M119: Yes | N119: U03R16 | O119: 2.89 | P119: 99 | Q119: 30.46 | R119: 5.19 | S119: 2.36 | T119: 0 | U119: 18.56 | V119: 0 | W119: 56.57 | X119: 55.5781 | Y119: 99 | Z119: 30.46 | AA119: 5.19 | AB119: 2.36 | AC119: 0 | AD119: 18.56 | AE119: 0 | AF119: 56.57 | AG119: 55.5781 | AH119: 99 | AI119: 29.56 | AJ119: 8.98 | AK119: 2.36 | AL119: 0 | AM119: 18.56 | AO119: 59.46 | AP119: 56.9071 | AQ119: 99 | AR119: 29.56 | AS119: 8.98 | AT119: 2.36 | AU119: 0 | AV119: 18.56 | AX119: 59.46 | AY119: 56.9071 | AZ119: U06R16 | BA119: 119
A120: ="Result "&A103 -> Result U06 | D120: =IF(SoftwareType="Candidate","n/a",IF(COUNTIF(D104:D119,Pass)=16,Pass,Fail)) -> Pass | E120: =AVERAGE(E104:E119) -> 44.80125 | F120: =AVERAGE(F104:F119) -> 44.80125 | G120: =IF(E120=0,0,(F120-E120)/E120) -> 0 | I120: =AVERAGE(I104:I119) -> 48.67375 | J120: =AVERAGE(J104:J119) -> 48.67375 | K120: =AVERAGE(K104:K119) -> 48.67375 | L120: 0 | M120: Min | N120: =MIN(L104:L119) -> 0 | O120: =AVERAGE(O104:O119) -> 3.8725 | P120: Ave | Q120: =AVERAGE(Q104:Q119) -> 8.05875 | R120: =AVERAGE(R104:R119) -> 18.783125 | S120: =AVERAGE(S104:S119) -> 2.429375 | U120: =AVERAGE(U104:U119) -> 15.53 | V120: =AVERAGE(V104:V119) -> 0 | W120: =AVERAGE(W104:W119) -> 44.80125 | X120: =AVERAGE(X104:X119) -> 55.4072 | Y120: Ave | Z120: =AVERAGE(Z104:Z119) -> 8.05875 | AA120: =AVERAGE(AA104:AA119) -> 18.783125 | AB120: =AVERAGE(AB104:AB119) -> 2.429375 | AC120: =AVERAGE(AC104:AC119) -> 0 | AD120: =AVERAGE(AD104:AD119) -> 15.53 | AF120: =AVERAGE(AF104:AF119) -> 44.80125 | AG120: =AVERAGE(AG104:AG119) -> 55.4072 | AI120: =AVERAGE(AI104:AI119) -> 7.768125 | AJ120: =AVERAGE(AJ104:AJ119) -> 22.94625 | AK120: =AVERAGE(AK104:AK119) -> 2.429375 | AL120: =AVERAGE(AL104:AL119) -> 0 | AM120: =AVERAGE(AM104:AM119) -> 15.53 | AO120: =AVERAGE(AO104:AO119) -> 48.67375 | AP120: =AVERAGE(AP104:AP119) -> 57.20173125 | AQ120: Ave | AR120: =AVERAGE(AR104:AR119) -> 7.768125 | AS120: =AVERAGE(AS104:AS119) -> 22.94625 | AT120: =AVERAGE(AT104:AT119) -> 2.429375 | AU120: =AVERAGE(AU104:AU119) -> 0 | AV120: =AVERAGE(AV104:AV119) -> 15.53 | AX120: =AVERAGE(AX104:AX119) -> 48.67375 | AY120: =AVERAGE(AY104:AY119) -> 57.20173125
C121: Page 4 of 7 | L121: Ave | M121: Max | N121: =MAX(L104:L119) -> 0 | Y121: % Diff | Z121: =(Z120-Q120)/Q120 -> 0 | AA121: =(AA120-R120)/R120 -> 0 | AB121: =(AB120-S120)/S120 -> 0 | AD121: =(AD120-U120)/U120 -> 0 | AF121: =(AF120-W120)/W120 -> 0
A122: U07 | B122: =VLOOKUP(A122,TestArray,2)&" in "&VLOOKUP(A122,TestArray,3)&" for Prototype "&VLOOKUP(A122,TestArray,4) -> Common Measures in Zone 12 for Prototype P2100ft2 | I122: =VLOOKUP(A122,TestArray,21) -> Standard = T01 Standard for this test
A123: =A122 -> U07 | B123: R01 | C123: =VLOOKUP(A123,TestArray,4+RIGHT(B123,2)) -> Package | D123: =IF(AND(H123=Yes,M123=Yes),Pass,Fail) -> Pass | E123: =IF(Units="EDR",X123,W123) -> 37.4 | F123: =IF(Units="EDR",AG123,AF123) -> 37.4 | G123: =IF(E123=0,0,(F123-E123)/E123) -> 0 | H123: =IF(AND((E123-Tolerance<=F123),(E123+Tolerance>=F123)),Yes,No) -> Yes | I123: =IF(Units="EDR",J123,INDIRECT(RefCol&INDEX(StandardArray,MATCH($N123,StandardList,0),2))) -> 41.44 | J123: =IF(Units="EDR",AP123,AO123) -> 41.44 | K123: =IF(Units="EDR",AY123,AX123) -> 41.44 | L123: =IF(I123=0,0,(K123-I123)/I123) -> 0 | M123: =IF(AND((I123-Tolerance<=K123),(I123+Tolerance>=K123),(J123-Tolerance<=K123),(J123+Tolerance>=K123)),Yes,No) -> Yes | N123: U01R12 | O123: =K123-F123 -> 4.04 | P123: =MATCH($A123&$B123,INDIRECT(P$2),0) -> 100 | Q123: =IF(Q$3=0,"",INDEX(INDIRECT(Q$1),$P123,Q$3)) -> 20.18 | R123: 7.39 | S123: 1.17 | T123: 0 | U123: 8.66 | V123: 0 | W123: =IF(TotalSum="No",INDEX(INDIRECT(W$1),$P123,W$3),SUM(Q123:V123)) -> 37.4 | X123: =IF(X$3=0,"",INDEX(INDIRECT(X$1),$P123,X$3)) -> 43.378 | Y123: =MATCH($A123&$B123,INDIRECT(Y$2),0) -> 100 | Z123: =IF(Z$3=0,"",INDEX(INDIRECT(Z$1),$Y123,Z$3)) -> 20.18 | AA123: 7.39 | AB123: 1.17 | AC123: 0 | AD123: 8.66 | AE123: 0 | AF123: =IF(TotalSum="No",INDEX(INDIRECT(AF$1),$Y123,AF$3),SUM(Z123:AE123)) -> 37.4 | AG123: =IF(AG$3=0,"",INDEX(INDIRECT(AG$1),$P123,AG$3)) -> 43.378 | AH123: =MATCH($A123&$B123,INDIRECT(AH$2),0) -> 100 | AI123: =IF(AI$3=0,"",INDEX(INDIRECT(AI$1),$AH123,AI$3)) -> 21.38 | AJ123: 10.23 | AK123: 1.17 | AL123: 0 | AM123: 8.66 | AO123: =IF(TotalSum="No",INDEX(INDIRECT(AO$1),$AH123,AO$3),SUM(AI123:AN123)) -> 41.44 | AP123: =IF(AP$3=0,"",INDEX(INDIRECT(AP$1),$P123,AP$3)) -> 45.6092 | AQ123: =MATCH($A123&$B123,INDIRECT(AQ$2),0) -> 100 | AR123: =IF(AR$3=0,"",INDEX(INDIRECT(AR$1),$AQ123,AR$3)) -> 21.38 | AS123: 10.23 | AT123: 1.17 | AU123: 0 | AV123: 8.66 | AX123: =IF(TotalSum="No",INDEX(INDIRECT(AX$1),$AQ123,AX$3),SUM(AR123:AW123)) -> 41.44 | AY123: =IF(AY$3=0,"",INDEX(INDIRECT(AY$1),$P123,AY$3)) -> 45.6092 | AZ123: =A123&B123 -> U07R01 | BA123: =ROW(AZ123) -> 123
A124: =A123 -> U07 | B124: R02 | C124: Fenestration U 0.40/S 0.40 | D124: Pass | E124: 42.89 | F124: 42.89 | G124: 0 | H124: Yes | I124: 41.44 | J124: 41.44 | K124: 41.44 | L124: 0 | M124: Yes | N124: =N123 -> U01R12 | O124: -1.45 | P124: 101 | Q124: 18.51 | R124: 14.55 | S124: 1.17 | T124: 0 | U124: 8.66 | V124: 0 | W124: 42.89 | X124: 46.3983 | Y124: 101 | Z124: 18.51 | AA124: 14.55 | AB124: 1.17 | AC124: 0 | AD124: 8.66 | AE124: 0 | AF124: 42.89 | AG124: 46.3983 | AH124: 101 | AI124: 21.38 | AJ124: 10.23 | AK124: 1.17 | AL124: 0 | AM124: 8.66 | AO124: 41.44 | AP124: 45.6092 | AQ124: 101 | AR124: 21.38 | AS124: 10.23 | AT124: 1.17 | AU124: 0 | AV124: 8.66 | AX124: 41.44 | AY124: 45.6092 | AZ124: U07R02 | BA124: 124
A125: U07 | B125: R03 | C125: Wall R13/Roof Deck Above R6 | D125: Pass | E125: 36.47 | F125: 36.47 | G125: 0 | H125: Yes | I125: 41.44 | J125: 41.44 | K125: 41.44 | L125: 0 | M125: Yes | N125: =N124 -> U01R12 | O125: 4.97 | P125: 102 | Q125: 20.58 | R125: 6.06 | S125: 1.17 | T125: 0 | U125: 8.66 | V125: 0 | W125: 36.47 | X125: 42.8665 | Y125: 102 | Z125: 20.58 | AA125: 6.06 | AB125: 1.17 | AC125: 0 | AD125: 8.66 | AE125: 0 | AF125: 36.47 | AG125: 42.8665 | AH125: 102 | AI125: 21.38 | AJ125: 10.23 | AK125: 1.17 | AL125: 0 | AM125: 8.66 | AO125: 41.44 | AP125: 45.6092 | AQ125: 102 | AR125: 21.38 | AS125: 10.23 | AT125: 1.17 | AU125: 0 | AV125: 8.66 | AX125: 41.44 | AY125: 45.6092 | AZ125: U07R03 | BA125: 125
A126: U07 | B126: R04 | C126: Ceiling R49 /Roof Deck Below R0/Radiant Barrier | D126: Pass | E126: 41.68 | F126: 41.68 | G126: 0 | H126: Yes | I126: 41.44 | J126: 41.44 | K126: 41.44 | L126: 0 | M126: Yes | N126: U01R12 | O126: -0.24 | P126: 103 | Q126: 21.64 | R126: 10.21 | S126: 1.17 | T126: 0 | U126: 8.66 | V126: 0 | W126: 41.68 | X126: 45.7126 | Y126: 103 | Z126: 21.64 | AA126: 10.21 | AB126: 1.17 | AC126: 0 | AD126: 8.66 | AE126: 0 | AF126: 41.68 | AG126: 45.7126 | AH126: 103 | AI126: 21.38 | AJ126: 10.23 | AK126: 1.17 | AL126: 0 | AM126: 8.66 | AO126: 41.44 | AP126: 45.6092 | AQ126: 103 | AR126: 21.38 | AS126: 10.23 | AT126: 1.17 | AU126: 0 | AV126: 8.66 | AX126: 41.44 | AY126: 45.6092 | AZ126: U07R04 | BA126: 126
A127: U07 | B127: R05 | C127: Furnace AFUE 92 | D127: Pass | E127: 34.58 | F127: 34.58 | G127: 0 | H127: Yes | I127: 41.44 | J127: 41.44 | K127: 41.44 | L127: 0 | M127: Yes | N127: U01R12 | O127: 6.86 | P127: 104 | Q127: 17.36 | R127: 7.39 | S127: 1.17 | T127: 0 | U127: 8.66 | V127: 0 | W127: 34.58 | X127: 41.8434 | Y127: 104 | Z127: 17.36 | AA127: 7.39 | AB127: 1.17 | AC127: 0 | AD127: 8.66 | AE127: 0 | AF127: 34.58 | AG127: 41.8434 | AH127: 104 | AI127: 21.38 | AJ127: 10.23 | AK127: 1.17 | AL127: 0 | AM127: 8.66 | AO127: 41.44 | AP127: 45.6092 | AQ127: 104 | AR127: 21.38 | AS127: 10.23 | AT127: 1.17 | AU127: 0 | AV127: 8.66 | AX127: 41.44 | AY127: 45.6092 | AZ127: U07R05 | BA127: 127
A128: U07 | B128: R06 | C128: Air Conditioner SEER 16/EER 14 | D128: Pass | E128: 36.39 | F128: 36.39 | G128: 0 | H128: Yes | I128: 41.44 | J128: 41.44 | K128: 41.44 | L128: 0 | M128: Yes | N128: U01R12 | O128: 5.05 | P128: 105 | Q128: 20.18 | R128: 6.38 | S128: 1.17 | T128: 0 | U128: 8.66 | V128: 0 | W128: 36.39 | X128: 42.8284 | Y128: 105 | Z128: 20.18 | AA128: 6.38 | AB128: 1.17 | AC128: 0 | AD128: 8.66 | AE128: 0 | AF128: 36.39 | AG128: 42.8284 | AH128: 105 | AI128: 21.38 | AJ128: 10.23 | AK128: 1.17 | AL128: 0 | AM128: 8.66 | AO128: 41.44 | AP128: 45.6092 | AQ128: 105 | AR128: 21.38 | AS128: 10.23 | AT128: 1.17 | AU128: 0 | AV128: 8.66 | AX128: 41.44 | AY128: 45.6092 | AZ128: U07R06 | BA128: 128
A129: U07 | B129: R07 | C129: No Cool Vent | D129: Pass | E129: 41.84 | F129: 41.84 | G129: 0 | H129: Yes | I129: 41.44 | J129: 41.44 | K129: 41.44 | L129: 0 | M129: Yes | N129: U01R12 | O129: -0.4 | P129: 106 | Q129: 20.2 | R129: 11.81 | S129: 1.17 | T129: 0 | U129: 8.66 | V129: 0 | W129: 41.84 | X129: 45.816 | Y129: 106 | Z129: 20.2 | AA129: 11.81 | AB129: 1.17 | AC129: 0 | AD129: 8.66 | AE129: 0 | AF129: 41.84 | AG129: 45.816 | AH129: 106 | AI129: 21.38 | AJ129: 10.23 | AK129: 1.17 | AL129: 0 | AM129: 8.66 | AO129: 41.44 | AP129: 45.6092 | AQ129: 106 | AR129: 21.38 | AS129: 10.23 | AT129: 1.17 | AU129: 0 | AV129: 8.66 | AX129: 41.44 | AY129: 45.6092 | AZ129: U07R07 | BA129: 129
A130: U07 | B130: R08 | C130: Ducts 2% Leakage | D130: Pass | E130: 36.82 | F130: 36.82 | G130: 0 | H130: Yes | I130: 41.44 | J130: 41.44 | K130: 41.44 | L130: 0 | M130: Yes | N130: U01R12 | O130: 4.62 | P130: 107 | Q130: 19.78 | R130: 7.21 | S130: 1.17 | T130: 0 | U130: 8.66 | V130: 0 | W130: 36.82 | X130: 43.0624 | Y130: 107 | Z130: 19.78 | AA130: 7.21 | AB130: 1.17 | AC130: 0 | AD130: 8.66 | AE130: 0 | AF130: 36.82 | AG130: 43.0624 | AH130: 107 | AI130: 21.38 | AJ130: 10.23 | AK130: 1.17 | AL130: 0 | AM130: 8.66 | AO130: 41.44 | AP130: 45.6092 | AQ130: 107 | AR130: 21.38 | AS130: 10.23 | AT130: 1.17 | AU130: 0 | AV130: 8.66 | AX130: 41.44 | AY130: 45.6092 | AZ130: U07R08 | BA130: 130
A131: U07 | B131: R09 | C131: Insulation Construction Quality Improved | D131: Pass | E131: 33.03 | F131: 33.03 | G131: 0 | H131: Yes | I131: 41.44 | J131: 41.44 | K131: 41.44 | L131: 0 | M131: Yes | N131: U01R12 | O131: 8.41 | P131: 108 | Q131: 17.63 | R131: 5.57 | S131: 1.17 | T131: 0 | U131: 8.66 | V131: 0 | W131: 33.03 | X131: 40.9944 | Y131: 108 | Z131: 17.63 | AA131: 5.57 | AB131: 1.17 | AC131: 0 | AD131: 8.66 | AE131: 0 | AF131: 33.03 | AG131: 40.9944 | AH131: 108 | AI131: 21.38 | AJ131: 10.23 | AK131: 1.17 | AL131: 0 | AM131: 8.66 | AO131: 41.44 | AP131: 45.6092 | AQ131: 108 | AR131: 21.38 | AS131: 10.23 | AT131: 1.17 | AU131: 0 | AV131: 8.66 | AX131: 41.44 | AY131: 45.6092 | AZ131: U07R09 | BA131: 131
A132: U07 | B132: R10 | C132: Air Leakage ACH50 2.0 | D132: Pass | E132: 35.86 | F132: 35.86 | G132: 0 | H132: Yes | I132: 41.44 | J132: 41.44 | K132: 41.44 | L132: 0 | M132: Yes | N132: U01R12 | O132: 5.58 | P132: 109 | Q132: 19.51 | R132: 6.52 | S132: 1.17 | T132: 0 | U132: 8.66 | V132: 0 | W132: 35.86 | X132: 42.5399 | Y132: 109 | Z132: 19.51 | AA132: 6.52 | AB132: 1.17 | AC132: 0 | AD132: 8.66 | AE132: 0 | AF132: 35.86 | AG132: 42.5399 | AH132: 109 | AI132: 21.38 | AJ132: 10.23 | AK132: 1.17 | AL132: 0 | AM132: 8.66 | AO132: 41.44 | AP132: 45.6092 | AQ132: 109 | AR132: 21.38 | AS132: 10.23 | AT132: 1.17 | AU132: 0 | AV132: 8.66 | AX132: 41.44 | AY132: 45.6092 | AZ132: U07R10 | BA132: 132
A133: ="Result "&A122 -> Result U07 | D133: =IF(COUNTIF(D123:D132,Pass)=10,Pass,Fail) -> Pass | E133: =AVERAGE(E123:E132) -> 37.696 | F133: =AVERAGE(F123:F132) -> 37.696 | G133: =IF(E133=0,0,(F133-E133)/E133) -> 0 | I133: =AVERAGE(I123:I132) -> 41.44 | J133: =AVERAGE(J123:J132) -> 41.44 | K133: =AVERAGE(K123:K132) -> 41.44 | L133: 0 | M133: Min | N133: =MIN(L123:L132) -> 0 | O133: =AVERAGE(O123:O132) -> 3.744 | P133: Ave | Q133: =AVERAGE(Q123:Q132) -> 19.557 | R133: =AVERAGE(R123:R132) -> 8.309 | S133: =AVERAGE(S123:S132) -> 1.17 | U133: =AVERAGE(U123:U132) -> 8.66 | V133: =AVERAGE(V123:V132) -> 0 | W133: =AVERAGE(W123:W132) -> 37.696 | X133: =AVERAGE(X117:X132) -> 47.13572857 | Y133: Ave | Z133: =AVERAGE(Z123:Z132) -> 19.557 | AA133: =AVERAGE(AA123:AA132) -> 8.309 | AB133: =AVERAGE(AB123:AB132) -> 1.17 | AC133: =AVERAGE(AC123:AC132) -> 0 | AD133: =AVERAGE(AD123:AD132) -> 8.66 | AF133: =AVERAGE(AF123:AF132) -> 37.696 | AG133: =AVERAGE(AG117:AG132) -> 47.13572857 | AI133: =AVERAGE(AI123:AI132) -> 21.38 | AJ133: =AVERAGE(AJ123:AJ132) -> 10.23 | AK133: =AVERAGE(AK123:AK132) -> 1.17 | AL133: =AVERAGE(AL123:AL132) -> 0 | AM133: =AVERAGE(AM123:AM132) -> 8.66 | AO133: =AVERAGE(AO123:AO132) -> 41.44 | AP133: =AVERAGE(AP117:AP132) -> 49.2438308 | AR133: =AVERAGE(AR123:AR132) -> 21.38 | AS133: =AVERAGE(AS123:AS132) -> 10.23 | AT133: =AVERAGE(AT123:AT132) -> 1.17 | AU133: =AVERAGE(AU123:AU132) -> 0 | AV133: =AVERAGE(AV123:AV132) -> 8.66 | AX133: =AVERAGE(AX123:AX132) -> 41.44 | AY133: =AVERAGE(AY117:AY132) -> 49.2438308
L134: Ave | M134: Max | N134: =MAX(L123:L132) -> 0 | Y134: % Diff | Z134: =(Z133-Q133)/Q133 -> 0 | AA134: =(AA133-R133)/R133 -> 0 | AB134: =(AB133-S133)/S133 -> 0 | AD134: =(AD133-U133)/U133 -> 0 | AF134: =(AF133-W133)/W133 -> 0
A135: U08 | B135: =VLOOKUP(A135,TestArray,2)&" in "&VLOOKUP(A135,TestArray,3)&" for Prototype "&VLOOKUP(A135,TestArray,4) -> Water Heating in Zone 12 for Prototype P2100ft2 | I135: =VLOOKUP(A135,TestArray,21) -> Standard = T01 Standard for this test
A136: =A135 -> U08 | B136: R01 | C136: =VLOOKUP(A136,TestArray,4+RIGHT(B136,2)) -> Package | D136: =IF(AND(H136=Yes,M136=Yes),Pass,Fail) -> Pass | E136: =IF(Units="EDR",X136,W136) -> 37.4 | F136: =IF(Units="EDR",AG136,AF136) -> 37.4 | G136: =IF(E136=0,0,(F136-E136)/E136) -> 0 | H136: =IF(AND((E136-Tolerance<=F136),(E136+Tolerance>=F136)),Yes,No) -> Yes | I136: =IF(Units="EDR",J136,INDIRECT(RefCol&INDEX(StandardArray,MATCH($N136,StandardList,0),2))) -> 41.44 | J136: =IF(Units="EDR",AP136,AO136) -> 41.44 | K136: =IF(Units="EDR",AY136,AX136) -> 41.44 | L136: =IF(I136=0,0,(K136-I136)/I136) -> 0 | M136: =IF(AND((I136-Tolerance<=K136),(I136+Tolerance>=K136),(J136-Tolerance<=K136),(J136+Tolerance>=K136)),Yes,No) -> Yes | N136: U01R12 | O136: =K136-F136 -> 4.04 | P136: =MATCH($A136&$B136,INDIRECT(P$2),0) -> 110 | Q136: =IF(Q$3=0,"",INDEX(INDIRECT(Q$1),$P136,Q$3)) -> 20.18 | R136: 7.39 | S136: 1.17 | T136: 0 | U136: 8.66 | V136: 0 | W136: =IF(TotalSum="No",INDEX(INDIRECT(W$1),$P136,W$3),SUM(Q136:V136)) -> 37.4 | X136: =IF(X$3=0,"",INDEX(INDIRECT(X$1),$P136,X$3)) -> 43.378 | Y136: =MATCH($A136&$B136,INDIRECT(Y$2),0) -> 110 | Z136: =IF(Z$3=0,"",INDEX(INDIRECT(Z$1),$Y136,Z$3)) -> 20.18 | AA136: 7.39 | AB136: 1.17 | AC136: 0 | AD136: 8.66 | AE136: 0 | AF136: =IF(TotalSum="No",INDEX(INDIRECT(AF$1),$Y136,AF$3),SUM(Z136:AE136)) -> 37.4 | AG136: =IF(AG$3=0,"",INDEX(INDIRECT(AG$1),$P136,AG$3)) -> 43.378 | AH136: =MATCH($A136&$B136,INDIRECT(AH$2),0) -> 110 | AI136: =IF(AI$3=0,"",INDEX(INDIRECT(AI$1),$AH136,AI$3)) -> 21.38 | AJ136: 10.23 | AK136: 1.17 | AL136: 0 | AM136: 8.66 | AO136: =IF(TotalSum="No",INDEX(INDIRECT(AO$1),$AH136,AO$3),SUM(AI136:AN136)) -> 41.44 | AP136: =IF(AP$3=0,"",INDEX(INDIRECT(AP$1),$P136,AP$3)) -> 45.6092 | AQ136: =MATCH($A136&$B136,INDIRECT(AQ$2),0) -> 110 | AR136: =IF(AR$3=0,"",INDEX(INDIRECT(AR$1),$AQ136,AR$3)) -> 21.38 | AS136: 10.23 | AT136: 1.17 | AU136: 0 | AV136: 8.66 | AX136: =IF(TotalSum="No",INDEX(INDIRECT(AX$1),$AQ136,AX$3),SUM(AR136:AW136)) -> 41.44 | AY136: =IF(AY$3=0,"",INDEX(INDIRECT(AY$1),$P136,AY$3)) -> 45.6092 | AZ136: =A136&B136 -> U08R01 | BA136: =ROW(AZ136) -> 136
A137: =A136 -> U08 | B137: R02 | C137: Parallel Piping | D137: Pass | E137: 37.46 | F137: 37.46 | G137: 0 | H137: Yes | I137: 41.44 | J137: 41.44 | K137: 41.44 | L137: 0 | M137: Yes | N137: =N136 -> U01R12 | O137: 3.98 | P137: 111 | Q137: 20.18 | R137: 7.39 | S137: 1.17 | T137: 0 | U137: 8.72 | V137: 0 | W137: 37.46 | X137: 43.4106 | Y137: 111 | Z137: 20.18 | AA137: 7.39 | AB137: 1.17 | AC137: 0 | AD137: 8.72 | AE137: 0 | AF137: 37.46 | AG137: 43.4106 | AH137: 111 | AI137: 21.38 | AJ137: 10.23 | AK137: 1.17 | AL137: 0 | AM137: 8.66 | AO137: 41.44 | AP137: 45.6092 | AQ137: 111 | AR137: 21.38 | AS137: 10.23 | AT137: 1.17 | AU137: 0 | AV137: 8.66 | AX137: 41.44 | AY137: 45.6092 | AZ137: U08R02 | BA137: 137
A138: U08 | B138: R03 | C138: Small Tankless EF 0.80/Input 195000/0 gal | D138: Pass | E138: 37.62 | F138: 37.62 | G138: 0 | H138: Yes | I138: 41.44 | J138: 41.44 | K138: 41.44 | L138: 0 | M138: Yes | N138: =N137 -> U01R12 | O138: 3.82 | P138: 112 | Q138: 20.18 | R138: 7.39 | S138: 1.17 | T138: 0 | U138: 8.88 | V138: 0 | W138: 37.62 | X138: 43.4977 | Y138: 112 | Z138: 20.18 | AA138: 7.39 | AB138: 1.17 | AC138: 0 | AD138: 8.88 | AE138: 0 | AF138: 37.62 | AG138: 43.4977 | AH138: 112 | AI138: 21.38 | AJ138: 10.23 | AK138: 1.17 | AL138: 0 | AM138: 8.66 | AO138: 41.44 | AP138: 45.6092 | AQ138: 112 | AR138: 21.38 | AS138: 10.23 | AT138: 1.17 | AU138: 0 | AV138: 8.66 | AX138: 41.44 | AY138: 45.6092 | AZ138: U08R03 | BA138: 138
A139: U08 | B139: R04 | C139: Large Tankless RE 0.76/Input 300000/0 gal | D139: Pass | E139: 38.08 | F139: 38.08 | G139: 0 | H139: Yes | I139: 41.44 | J139: 41.44 | K139: 41.44 | L139: 0 | M139: Yes | N139: U01R12 | O139: 3.36 | P139: 113 | Q139: 20.18 | R139: 7.39 | S139: 1.17 | T139: 0 | U139: 9.34 | V139: 0 | W139: 38.08 | X139: 43.7481 | Y139: 113 | Z139: 20.18 | AA139: 7.39 | AB139: 1.17 | AC139: 0 | AD139: 9.34 | AE139: 0 | AF139: 38.08 | AG139: 43.7481 | AH139: 113 | AI139: 21.38 | AJ139: 10.23 | AK139: 1.17 | AL139: 0 | AM139: 8.66 | AO139: 41.44 | AP139: 45.6092 | AQ139: 113 | AR139: 21.38 | AS139: 10.23 | AT139: 1.17 | AU139: 0 | AV139: 8.66 | AX139: 41.44 | AY139: 45.6092 | AZ139: U08R04 | BA139: 139
A140: U08 | B140: R05 | C140: Large Storage RE 0.77/Input 100000/75gal/Stby 0.01 | D140: Pass | E140: 40.21 | F140: 40.21 | G140: 0 | H140: Yes | I140: 41.44 | J140: 41.44 | K140: 41.44 | L140: 0 | M140: Yes | N140: U01R12 | O140: 1.23 | P140: 114 | Q140: 20.18 | R140: 7.39 | S140: 1.17 | T140: 0 | U140: 11.47 | V140: 0 | W140: 40.21 | X140: 44.9072 | Y140: 114 | Z140: 20.18 | AA140: 7.39 | AB140: 1.17 | AC140: 0 | AD140: 11.47 | AE140: 0 | AF140: 40.21 | AG140: 44.9072 | AH140: 114 | AI140: 21.38 | AJ140: 10.23 | AK140: 1.17 | AL140: 0 | AM140: 8.66 | AO140: 41.44 | AP140: 45.6092 | AQ140: 114 | AR140: 21.38 | AS140: 10.23 | AT140: 1.17 | AU140: 0 | AV140: 8.66 | AX140: 41.44 | AY140: 45.6092 | AZ140: U08R05 | BA140: 140
A141: U08 | B141: R06 | C141: Large Storage RE 0.77/Input 100000/75gal/Stby 0.03 | D141: Pass | E141: 46.17 | F141: 46.17 | G141: 0 | H141: Yes | I141: 41.44 | J141: 41.44 | K141: 41.44 | L141: 0 | M141: Yes | N141: U01R12 | O141: -4.73 | P141: 115 | Q141: 20.18 | R141: 7.39 | S141: 1.17 | T141: 0 | U141: 17.43 | V141: 0 | W141: 46.17 | X141: 48.1506 | Y141: 115 | Z141: 20.18 | AA141: 7.39 | AB141: 1.17 | AC141: 0 | AD141: 17.43 | AE141: 0 | AF141: 46.17 | AG141: 48.1506 | AH141: 115 | AI141: 21.38 | AJ141: 10.23 | AK141: 1.17 | AL141: 0 | AM141: 8.66 | AO141: 41.44 | AP141: 45.6092 | AQ141: 115 | AR141: 21.38 | AS141: 10.23 | AT141: 1.17 | AU141: 0 | AV141: 8.66 | AX141: 41.44 | AY141: 45.6092 | AZ141: U08R06 | BA141: 141
A142: U08 | B142: R07 | C142: Electric Resistance EF 0.92/Input 4500 | D142: Pass | E142: 58.35 | F142: 58.35 | G142: 0 | H142: Yes | I142: 41.44 | J142: 41.44 | K142: 41.44 | L142: 0 | M142: Yes | N142: U01R12 | O142: -16.91 | P142: 116 | Q142: 20.18 | R142: 7.39 | S142: 1.17 | T142: 0 | U142: 29.61 | V142: 0 | W142: 58.35 | X142: 55.6287 | Y142: 116 | Z142: 20.18 | AA142: 7.39 | AB142: 1.17 | AC142: 0 | AD142: 29.61 | AE142: 0 | AF142: 58.35 | AG142: 55.6287 | AH142: 116 | AI142: 21.38 | AJ142: 10.23 | AK142: 1.17 | AL142: 0 | AM142: 8.66 | AO142: 41.44 | AP142: 46.3167 | AQ142: 116 | AR142: 21.38 | AS142: 10.23 | AT142: 1.17 | AU142: 0 | AV142: 8.66 | AX142: 41.44 | AY142: 46.3167 | AZ142: U08R07 | BA142: 142
A143: U08 | B143: R08 | C143: Heat Pump EF 2.4/Input 4500 | D143: Pass | E143: 39.83 | F143: 39.83 | G143: 0 | H143: Yes | I143: 41.44 | J143: 41.44 | K143: 41.44 | L143: 0 | M143: Yes | N143: U01R12 | O143: 1.61 | P143: 117 | Q143: 20.4 | R143: 7.2 | S143: 1.17 | T143: 0 | U143: 11.06 | V143: 0 | W143: 39.83 | X143: 45.3606 | Y143: 117 | Z143: 20.4 | AA143: 7.2 | AB143: 1.17 | AC143: 0 | AD143: 11.06 | AE143: 0 | AF143: 39.83 | AG143: 45.3606 | AH143: 117 | AI143: 21.38 | AJ143: 10.23 | AK143: 1.17 | AL143: 0 | AM143: 8.66 | AO143: 41.44 | AP143: 46.3167 | AQ143: 117 | AR143: 21.38 | AS143: 10.23 | AT143: 1.17 | AU143: 0 | AV143: 8.66 | AX143: 41.44 | AY143: 46.3167 | AZ143: U08R08 | BA143: 143
A144: U08 | B144: R09 | C144: 2 Water Heaters using Multiplier | D144: Pass | E144: 37.4 | F144: 37.4 | G144: 0 | H144: Yes | I144: 41.44 | J144: 41.44 | K144: 41.44 | L144: 0 | M144: Yes | N144: U01R12 | O144: 4.04 | P144: 118 | Q144: 20.18 | R144: 7.39 | S144: 1.17 | T144: 0 | U144: 8.66 | V144: 0 | W144: 37.4 | X144: 43.378 | Y144: 118 | Z144: 20.18 | AA144: 7.39 | AB144: 1.17 | AC144: 0 | AD144: 8.66 | AE144: 0 | AF144: 37.4 | AG144: 43.378 | AH144: 118 | AI144: 21.38 | AJ144: 10.23 | AK144: 1.17 | AL144: 0 | AM144: 8.66 | AO144: 41.44 | AP144: 45.6092 | AQ144: 118 | AR144: 21.38 | AS144: 10.23 | AT144: 1.17 | AU144: 0 | AV144: 8.66 | AX144: 41.44 | AY144: 45.6092 | AZ144: U08R09 | BA144: 144
A145: U08 | B145: R10 | C145: 2 Water Heaters Using 2 entries | D145: Pass | E145: 37.4 | F145: 37.4 | G145: 0 | H145: Yes | I145: 41.44 | J145: 41.44 | K145: 41.44 | L145: 0 | M145: Yes | N145: U01R12 | O145: 4.04 | P145: 119 | Q145: 20.18 | R145: 7.39 | S145: 1.17 | T145: 0 | U145: 8.66 | V145: 0 | W145: 37.4 | X145: 43.378 | Y145: 119 | Z145: 20.18 | AA145: 7.39 | AB145: 1.17 | AC145: 0 | AD145: 8.66 | AE145: 0 | AF145: 37.4 | AG145: 43.378 | AH145: 119 | AI145: 21.38 | AJ145: 10.23 | AK145: 1.17 | AL145: 0 | AM145: 8.66 | AO145: 41.44 | AP145: 45.6092 | AQ145: 119 | AR145: 21.38 | AS145: 10.23 | AT145: 1.17 | AU145: 0 | AV145: 8.66 | AX145: 41.44 | AY145: 45.6092 | AZ145: U08R10 | BA145: 145
A146: ="Result "&A135 -> Result U08 | D146: =IF(COUNTIF(D136:D145,Pass)=10,Pass,Fail) -> Pass | E146: =AVERAGE(E136:E145) -> 40.992 | F146: =AVERAGE(F136:F145) -> 40.992 | G146: =IF(E146=0,0,(F146-E146)/E146) -> 0 | I146: =AVERAGE(I136:I145) -> 41.44 | J146: =AVERAGE(J136:J145) -> 41.44 | K146: =AVERAGE(K136:K145) -> 41.44 | L146: 0 | M146: Min | N146: =MIN(L136:L145) -> 0 | O146: =AVERAGE(O136:O145) -> 0.448 | P146: Ave | Q146: =AVERAGE(Q136:Q145) -> 20.202 | R146: =AVERAGE(R136:R145) -> 7.371 | S146: =AVERAGE(S136:S145) -> 1.17 | U146: =AVERAGE(U136:U145) -> 12.249 | V146: =AVERAGE(V136:V145) -> 0 | W146: =AVERAGE(W136:W145) -> 40.992 | X146: =AVERAGE(X130:X145) -> 44.89785204 | Y146: Ave | Z146: =AVERAGE(Z136:Z145) -> 20.202 | AA146: =AVERAGE(AA136:AA145) -> 7.371 | AB146: =AVERAGE(AB136:AB145) -> 1.17 | AC146: =AVERAGE(AC136:AC145) -> 0 | AD146: =AVERAGE(AD136:AD145) -> 12.249 | AF146: =AVERAGE(AF136:AF145) -> 40.992 | AG146: =AVERAGE(AG130:AG145) -> 44.89785204 | AI146: =AVERAGE(AI136:AI145) -> 21.38 | AJ146: =AVERAGE(AJ136:AJ145) -> 10.23 | AK146: =AVERAGE(AK136:AK145) -> 1.17 | AL146: =AVERAGE(AL136:AL145) -> 0 | AM146: =AVERAGE(AM136:AM145) -> 8.66 | AO146: =AVERAGE(AO136:AO145) -> 41.44 | AP146: =AVERAGE(AP130:AP145) -> 45.96988791 | AR146: =AVERAGE(AR136:AR145) -> 21.38 | AS146: =AVERAGE(AS136:AS145) -> 10.23 | AT146: =AVERAGE(AT136:AT145) -> 1.17 | AU146: =AVERAGE(AU136:AU145) -> 0 | AV146: =AVERAGE(AV136:AV145) -> 8.66 | AX146: =AVERAGE(AX136:AX145) -> 41.44 | AY146: =AVERAGE(AY130:AY145) -> 45.96988791
L147: Ave | M147: Max | N147: =MAX(L136:L145) -> 0 | Y147: % Diff | Z147: =(Z146-Q146)/Q146 -> 0 | AA147: =(AA146-R146)/R146 -> 0 | AB147: =(AB146-S146)/S146 -> 0 | AD147: =(AD146-U146)/U146 -> 0 | AF147: =(AF146-W146)/W146 -> 0
A148: U09 | B148: =VLOOKUP(A148,TestArray,2)&" in "&VLOOKUP(A148,TestArray,3)&" for Prototype "&VLOOKUP(A148,TestArray,4) -> Multiple Orientation in Zone 12 for Prototype S2100ft2/P2100ft2 | I148: =VLOOKUP(A148,TestArray,21) -> Standard = T01 Standard for this test
A149: =A148 -> U09 | B149: R01 | C149: =VLOOKUP(A149,TestArray,4+RIGHT(B149,2)) -> Single Standard Front 45 | D149: =IF(SoftwareType="Candidate","n/a",IF(AND(H149=Yes,M149=Yes),Pass,Fail)) -> Pass | E149: =IF(Units="EDR",X149,W149) -> 42.65 | F149: =IF(Units="EDR",AG149,AF149) -> 42.65 | G149: =IF(E149=0,0,(F149-E149)/E149) -> 0 | H149: =IF(AND((E149-Tolerance<=F149),(E149+Tolerance>=F149)),Yes,No) -> Yes | I149: =IF(Units="EDR",J149,INDIRECT(RefCol&INDEX(StandardArray,MATCH($N149,StandardList,0),2))) -> 41.44 | J149: =IF(Units="EDR",AP149,AO149) -> 41.44 | K149: =IF(Units="EDR",AY149,AX149) -> 41.44 | L149: =IF(I149=0,0,(K149-I149)/I149) -> 0 | M149: =IF(AND((I149-Tolerance<=K149),(I149+Tolerance>=K149),(J149-Tolerance<=K149),(J149+Tolerance>=K149)),Yes,No) -> Yes | N149: U01R12 | O149: =K149-F149 -> -1.21 | P149: =MATCH($A149&$B149,INDIRECT(P$2),0) -> 120 | Q149: =IF(Q$3=0,"",INDEX(INDIRECT(Q$1),$P149,Q$3)) -> 21.59 | R149: 11.23 | S149: 1.17 | T149: 0 | U149: 8.66 | V149: 0 | W149: =IF(TotalSum="No",INDEX(INDIRECT(W$1),$P149,W$3),SUM(Q149:V149)) -> 42.65 | X149: =IF(X$3=0,"",INDEX(INDIRECT(X$1),$P149,X$3)) -> 46.2731 | Y149: =MATCH($A149&$B149,INDIRECT(Y$2),0) -> 120 | Z149: =IF(Z$3=0,"",INDEX(INDIRECT(Z$1),$Y149,Z$3)) -> 21.59 | AA149: 11.23 | AB149: 1.17 | AC149: 0 | AD149: 8.66 | AE149: 0 | AF149: =IF(TotalSum="No",INDEX(INDIRECT(AF$1),$Y149,AF$3),SUM(Z149:AE149)) -> 42.65 | AG149: =IF(AG$3=0,"",INDEX(INDIRECT(AG$1),$P149,AG$3)) -> 46.2731 | AH149: =MATCH($A149&$B149,INDIRECT(AH$2),0) -> 120 | AI149: =IF(AI$3=0,"",INDEX(INDIRECT(AI$1),$AH149,AI$3)) -> 21.38 | AJ149: 10.23 | AK149: 1.17 | AL149: 0 | AM149: 8.66 | AO149: =IF(TotalSum="No",INDEX(INDIRECT(AO$1),$AH149,AO$3),SUM(AI149:AN149)) -> 41.44 | AP149: =IF(AP$3=0,"",INDEX(INDIRECT(AP$1),$P149,AP$3)) -> 45.6092 | AQ149: =MATCH($A149&$B149,INDIRECT(AQ$2),0) -> 120 | AR149: =IF(AR$3=0,"",INDEX(INDIRECT(AR$1),$AQ149,AR$3)) -> 21.38 | AS149: 10.23 | AT149: 1.17 | AU149: 0 | AV149: 8.66 | AX149: =IF(TotalSum="No",INDEX(INDIRECT(AX$1),$AQ149,AX$3),SUM(AR149:AW149)) -> 41.44 | AY149: =IF(AY$3=0,"",INDEX(INDIRECT(AY$1),$P149,AY$3)) -> 45.6092 | AZ149: =A149&B149 -> U09R01 | BA149: =ROW(AZ149) -> 149
A150: =A149 -> U09 | B150: R02 | C150: East Standard | D150: =IF(SoftwareType="Candidate","n/a",IF(AND(H150=Yes,M150=Yes),Pass,Fail)) -> Pass | E150: 41.44 | F150: 41.44 | G150: 0 | H150: Yes | I150: 41.44 | J150: 41.44 | K150: 41.44 | L150: 0 | M150: Yes | N150: =N149 -> U01R12 | O150: 0 | P150: 122 | Q150: 21.38 | R150: 10.23 | S150: 1.17 | T150: 0 | U150: 8.66 | V150: 0 | W150: 41.44 | X150: 45.6092 | Y150: 122 | Z150: 21.38 | AA150: 10.23 | AB150: 1.17 | AC150: 0 | AD150: 8.66 | AE150: 0 | AF150: 41.44 | AG150: 45.6092 | AH150: 122 | AI150: 21.38 | AJ150: 10.23 | AK150: 1.17 | AL150: 0 | AM150: 8.66 | AO150: 41.44 | AP150: 45.6092 | AQ150: 122 | AR150: 21.38 | AS150: 10.23 | AT150: 1.17 | AU150: 0 | AV150: 8.66 | AX150: 41.44 | AY150: 45.6092 | AZ150: U09R02 | BA150: 150
A151: U09 | B151: R03 | C151: South Standard | D151: =IF(SoftwareType="Candidate","n/a",IF(AND(H151=Yes,M151=Yes),Pass,Fail)) -> Pass | E151: 41.44 | F151: 41.44 | G151: 0 | H151: Yes | I151: 41.44 | J151: 41.44 | K151: 41.44 | L151: 0 | M151: Yes | N151: =N150 -> U01R12 | O151: 0 | P151: 123 | Q151: 21.38 | R151: 10.23 | S151: 1.17 | T151: 0 | U151: 8.66 | V151: 0 | W151: 41.44 | X151: 45.6092 | Y151: 123 | Z151: 21.38 | AA151: 10.23 | AB151: 1.17 | AC151: 0 | AD151: 8.66 | AE151: 0 | AF151: 41.44 | AG151: 45.6092 | AH151: 123 | AI151: 21.38 | AJ151: 10.23 | AK151: 1.17 | AL151: 0 | AM151: 8.66 | AO151: 41.44 | AP151: 45.6092 | AQ151: 123 | AR151: 21.38 | AS151: 10.23 | AT151: 1.17 | AU151: 0 | AV151: 8.66 | AX151: 41.44 | AY151: 45.6092 | AZ151: U09R03 | BA151: 151
A152: U09 | B152: R04 | C152: West Standard | D152: =IF(SoftwareType="Candidate","n/a",IF(AND(H152=Yes,M152=Yes),Pass,Fail)) -> Pass | E152: 41.44 | F152: 41.44 | G152: 0 | H152: Yes | I152: 41.44 | J152: 41.44 | K152: 41.44 | L152: 0 | M152: Yes | N152: U01R12 | O152: 0 | P152: 124 | Q152: 21.38 | R152: 10.23 | S152: 1.17 | T152: 0 | U152: 8.66 | V152: 0 | W152: 41.44 | X152: 45.6092 | Y152: 124 | Z152: 21.38 | AA152: 10.23 | AB152: 1.17 | AC152: 0 | AD152: 8.66 | AE152: 0 | AF152: 41.44 | AG152: 45.6092 | AH152: 124 | AI152: 21.38 | AJ152: 10.23 | AK152: 1.17 | AL152: 0 | AM152: 8.66 | AO152: 41.44 | AP152: 45.6092 | AQ152: 124 | AR152: 21.38 | AS152: 10.23 | AT152: 1.17 | AU152: 0 | AV152: 8.66 | AX152: 41.44 | AY152: 45.6092 | AZ152: U09R04 | BA152: 152
A153: U09 | B153: R05 | C153: North Standard | D153: =IF(SoftwareType="Candidate","n/a",IF(AND(H153=Yes,M153=Yes),Pass,Fail)) -> Pass | E153: 41.44 | F153: 41.44 | G153: 0 | H153: Yes | I153: 41.44 | J153: 41.44 | K153: 41.44 | L153: 0 | M153: Yes | N153: U01R12 | O153: 0 | P153: 121 | Q153: 21.38 | R153: 10.23 | S153: 1.17 | T153: 0 | U153: 8.66 | V153: 0 | W153: 41.44 | X153: 45.6092 | Y153: 121 | Z153: 21.38 | AA153: 10.23 | AB153: 1.17 | AC153: 0 | AD153: 8.66 | AE153: 0 | AF153: 41.44 | AG153: 45.6092 | AH153: 121 | AI153: 21.38 | AJ153: 10.23 | AK153: 1.17 | AL153: 0 | AM153: 8.66 | AO153: 41.44 | AP153: 45.6092 | AQ153: 121 | AR153: 21.38 | AS153: 10.23 | AT153: 1.17 | AU153: 0 | AV153: 8.66 | AX153: 41.44 | AY153: 45.6092 | AZ153: U09R05 | BA153: 153
A154: U09 | B154: R06 | C154: Single Proposed front 45 | D154: =IF(AND(H154=Yes,M154=Yes),Pass,Fail) -> Pass | E154: 42.5 | F154: 42.5 | G154: 0 | H154: Yes | I154: 41.44 | J154: 41.44 | K154: 41.44 | L154: 0 | M154: Yes | N154: U01R12 | O154: -1.06 | P154: 125 | Q154: 21.04 | R154: 11.63 | S154: 1.17 | T154: 0 | U154: 8.66 | V154: 0 | W154: 42.5 | X154: 46.1752 | Y154: 125 | Z154: 21.04 | AA154: 11.63 | AB154: 1.17 | AC154: 0 | AD154: 8.66 | AE154: 0 | AF154: 42.5 | AG154: 46.1752 | AH154: 125 | AI154: 21.38 | AJ154: 10.23 | AK154: 1.17 | AL154: 0 | AM154: 8.66 | AO154: 41.44 | AP154: 45.6092 | AQ154: 125 | AR154: 21.38 | AS154: 10.23 | AT154: 1.17 | AU154: 0 | AV154: 8.66 | AX154: 41.44 | AY154: 45.6092 | AZ154: U09R06 | BA154: 154
A155: U09 | B155: R07 | C155: East Proposed | D155: =IF(AND(H155=Yes,M155=Yes),Pass,Fail) -> Pass | E155: 44.13 | F155: 44.13 | G155: 0 | H155: Yes | I155: 41.44 | J155: 41.44 | K155: 41.44 | L155: 0 | M155: Yes | N155: U01R12 | O155: -2.69 | P155: 127 | Q155: 21.92 | R155: 12.38 | S155: 1.17 | T155: 0 | U155: 8.66 | V155: 0 | W155: 44.13 | X155: 47.0785 | Y155: 127 | Z155: 21.92 | AA155: 12.38 | AB155: 1.17 | AC155: 0 | AD155: 8.66 | AE155: 0 | AF155: 44.13 | AG155: 47.0785 | AH155: 127 | AI155: 21.38 | AJ155: 10.23 | AK155: 1.17 | AL155: 0 | AM155: 8.66 | AO155: 41.44 | AP155: 45.6092 | AQ155: 127 | AR155: 21.38 | AS155: 10.23 | AT155: 1.17 | AU155: 0 | AV155: 8.66 | AX155: 41.44 | AY155: 45.6092 | AZ155: U09R07 | BA155: 155
A156: U09 | B156: R08 | C156: South Proposed | D156: =IF(SoftwareType="Candidate","n/a",IF(AND(H156=Yes,M156=Yes),Pass,Fail)) -> Pass | E156: 38.02 | F156: 38.02 | G156: 0 | H156: Yes | I156: 41.44 | J156: 41.44 | K156: 41.44 | L156: 0 | M156: Yes | N156: U01R12 | O156: 3.42 | P156: 128 | Q156: 22.46 | R156: 5.73 | S156: 1.17 | T156: 0 | U156: 8.66 | V156: 0 | W156: 38.02 | X156: 47.0785 | Y156: 128 | Z156: 22.46 | AA156: 5.73 | AB156: 1.17 | AC156: 0 | AD156: 8.66 | AE156: 0 | AF156: 38.02 | AG156: 47.0785 | AH156: 128 | AI156: 21.38 | AJ156: 10.23 | AK156: 1.17 | AL156: 0 | AM156: 8.66 | AO156: 41.44 | AP156: 45.6092 | AQ156: 128 | AR156: 21.38 | AS156: 10.23 | AT156: 1.17 | AU156: 0 | AV156: 8.66 | AX156: 41.44 | AY156: 45.6092 | AZ156: U09R08 | BA156: 156
A157: U09 | B157: R09 | C157: West Proposed | D157: =IF(SoftwareType="Candidate","n/a",IF(AND(H157=Yes,M157=Yes),Pass,Fail)) -> Pass | E157: 43.05 | F157: 43.05 | G157: 0 | H157: Yes | I157: 41.44 | J157: 41.44 | K157: 41.44 | L157: 0 | M157: Yes | N157: U01R12 | O157: -1.61 | P157: 129 | Q157: 21.63 | R157: 11.59 | S157: 1.17 | T157: 0 | U157: 8.66 | V157: 0 | W157: 43.05 | X157: 47.0785 | Y157: 129 | Z157: 21.63 | AA157: 11.59 | AB157: 1.17 | AC157: 0 | AD157: 8.66 | AE157: 0 | AF157: 43.05 | AG157: 47.0785 | AH157: 129 | AI157: 21.38 | AJ157: 10.23 | AK157: 1.17 | AL157: 0 | AM157: 8.66 | AO157: 41.44 | AP157: 45.6092 | AQ157: 129 | AR157: 21.38 | AS157: 10.23 | AT157: 1.17 | AU157: 0 | AV157: 8.66 | AX157: 41.44 | AY157: 45.6092 | AZ157: U09R09 | BA157: 157
A158: U09 | B158: R10 | C158: North Proposed | D158: =IF(SoftwareType="Candidate","n/a",IF(AND(H158=Yes,M158=Yes),Pass,Fail)) -> Pass | E158: 37.4 | F158: 37.4 | G158: 0 | H158: Yes | I158: 41.44 | J158: 41.44 | K158: 41.44 | L158: 0 | M158: Yes | N158: U01R12 | O158: 4.04 | P158: 126 | Q158: 20.18 | R158: 7.39 | S158: 1.17 | T158: 0 | U158: 8.66 | V158: 0 | W158: 37.4 | X158: 47.0785 | Y158: 126 | Z158: 20.18 | AA158: 7.39 | AB158: 1.17 | AC158: 0 | AD158: 8.66 | AE158: 0 | AF158: 37.4 | AG158: 47.0785 | AH158: 126 | AI158: 21.38 | AJ158: 10.23 | AK158: 1.17 | AL158: 0 | AM158: 8.66 | AO158: 41.44 | AP158: 45.6092 | AQ158: 126 | AR158: 21.38 | AS158: 10.23 | AT158: 1.17 | AU158: 0 | AV158: 8.66 | AX158: 41.44 | AY158: 45.6092 | AZ158: U09R10 | BA158: 158
A159: ="Result "&A148 -> Result U09 | D159: =IF(SoftwareType="Candidate",IF(COUNTIF(D154:D155,Pass)=2,Pass,Fail),IF(COUNTIF(D149:D158,Pass)=10,Pass,Fail)) -> Pass | E159: =AVERAGE(E149:E158) -> 41.351 | F159: =AVERAGE(F149:F158) -> 41.351 | G159: =IF(E159=0,0,(F159-E159)/E159) -> 0 | I159: =AVERAGE(I149:I158) -> 41.44 | J159: =AVERAGE(J149:J158) -> 41.44 | K159: =AVERAGE(K149:K158) -> 41.44 | L159: 0 | M159: Min | N159: =MIN(L149:L158) -> 0 | O159: =AVERAGE(O149:O158) -> 0.089 | P159: Ave | Q159: =AVERAGE(Q149:Q158) -> 21.434 | R159: =AVERAGE(R149:R158) -> 10.087 | S159: =AVERAGE(S149:S158) -> 1.17 | U159: =AVERAGE(U149:U158) -> 8.66 | V159: =AVERAGE(V149:V158) -> 0 | W159: =AVERAGE(W149:W158) -> 41.351 | X159: =AVERAGE(X143:X158) -> 45.72953943 | Y159: Ave | Z159: =AVERAGE(Z149:Z158) -> 21.434 | AA159: =AVERAGE(AA149:AA158) -> 10.087 | AB159: =AVERAGE(AB149:AB158) -> 1.17 | AC159: =AVERAGE(AC149:AC158) -> 0 | AD159: =AVERAGE(AD149:AD158) -> 8.66 | AF159: =AVERAGE(AF149:AF158) -> 41.351 | AG159: =AVERAGE(AG143:AG158) -> 45.72953943 | AI159: =AVERAGE(AI149:AI158) -> 21.38 | AJ159: =AVERAGE(AJ149:AJ158) -> 10.23 | AK159: =AVERAGE(AK149:AK158) -> 1.17 | AL159: =AVERAGE(AL149:AL158) -> 0 | AM159: =AVERAGE(AM149:AM158) -> 8.66 | AO159: =AVERAGE(AO149:AO158) -> 41.44 | AP159: =AVERAGE(AP143:AP158) -> 45.68549914 | AR159: =AVERAGE(AR149:AR158) -> 21.38 | AS159: =AVERAGE(AS149:AS158) -> 10.23 | AT159: =AVERAGE(AT149:AT158) -> 1.17 | AU159: =AVERAGE(AU149:AU158) -> 0 | AV159: =AVERAGE(AV149:AV158) -> 8.66 | AX159: =AVERAGE(AX149:AX158) -> 41.44 | AY159: =AVERAGE(AY143:AY158) -> 45.68549914
C160: Page 5 of 7 | L160: Ave | M160: Max | N160: =MAX(L149:L158) -> 0 | Y160: % Diff | Z160: =(Z159-Q159)/Q159 -> 0 | AA160: =(AA159-R159)/R159 -> 0 | AB160: =(AB159-S159)/S159 -> 0 | AD160: =(AD159-U159)/U159 -> 0 | AF160: =(AF159-W159)/W159 -> 0
A161: U10 | B161: =VLOOKUP(A161,TestArray,2)&" in "&VLOOKUP(A161,TestArray,3)&" for Prototype "&VLOOKUP(A161,TestArray,4) -> Multi Family Water Heating in Zone 12 for Prototype P6960ft2 | I161: =VLOOKUP(A161,TestArray,21) -> Standard = Varies for this test
A162: =A161 -> U10 | B162: R01 | C162: =VLOOKUP(A162,TestArray,4+RIGHT(B162,2)) -> 8 Storage | D162: =IF(AND(H162=Yes,M162=Yes),Pass,Fail) -> Pass | E162: =IF(Units="EDR",X162,W162) -> 61.31 | F162: =IF(Units="EDR",AG162,AF162) -> 61.31 | G162: =IF(E162=0,0,(F162-E162)/E162) -> 0 | H162: =IF(AND((E162-Tolerance<=F162),(E162+Tolerance>=F162)),Yes,No) -> Yes | I162: =IF(Units="EDR",J162,INDIRECT(RefCol&INDEX(StandardArray,MATCH($N162,StandardList,0),2))) -> 56.87 | J162: =IF(Units="EDR",AP162,AO162) -> 56.87 | K162: =IF(Units="EDR",AY162,AX162) -> 56.87 | L162: =IF(I162=0,0,(K162-I162)/I162) -> 0 | M162: =IF(AND((I162-Tolerance<=K162),(I162+Tolerance>=K162),(J162-Tolerance<=K162),(J162+Tolerance>=K162)),Yes,No) -> Yes | N162: U06R12 | O162: =K162-F162 -> -4.44 | P162: =MATCH($A162&$B162,INDIRECT(P$2),0) -> 130 | Q162: =IF(Q$3=0,"",INDEX(INDIRECT(Q$1),$P162,Q$3)) -> 11.39 | R162: 21.62 | S162: 2.47 | T162: 0 | U162: 25.83 | V162: 0 | W162: =IF(TotalSum="No",INDEX(INDIRECT(W$1),$P162,W$3),SUM(Q162:V162)) -> 61.31 | X162: =IF(X$3=0,"",INDEX(INDIRECT(X$1),$P162,X$3)) -> 57.5376 | Y162: =MATCH($A162&$B162,INDIRECT(Y$2),0) -> 130 | Z162: =IF(Z$3=0,"",INDEX(INDIRECT(Z$1),$Y162,Z$3)) -> 11.39 | AA162: 21.62 | AB162: 2.47 | AC162: 0 | AD162: 25.83 | AE162: 0 | AF162: =IF(TotalSum="No",INDEX(INDIRECT(AF$1),$Y162,AF$3),SUM(Z162:AE162)) -> 61.31 | AG162: =IF(AG$3=0,"",INDEX(INDIRECT(AG$1),$P162,AG$3)) -> 57.5376 | AH162: =MATCH($A162&$B162,INDIRECT(AH$2),0) -> 130 | AI162: =IF(AI$3=0,"",INDEX(INDIRECT(AI$1),$AH162,AI$3)) -> 11.15 | AJ162: 27.7 | AK162: 2.47 | AL162: 0 | AM162: 15.55 | AO162: =IF(TotalSum="No",INDEX(INDIRECT(AO$1),$AH162,AO$3),SUM(AI162:AN162)) -> 56.87 | AP162: =IF(AP$3=0,"",INDEX(INDIRECT(AP$1),$P162,AP$3)) -> 55.6414 | AQ162: =MATCH($A162&$B162,INDIRECT(AQ$2),0) -> 130 | AR162: =IF(AR$3=0,"",INDEX(INDIRECT(AR$1),$AQ162,AR$3)) -> 11.15 | AS162: 27.7 | AT162: 2.47 | AU162: 0 | AV162: 15.55 | AX162: =IF(TotalSum="No",INDEX(INDIRECT(AX$1),$AQ162,AX$3),SUM(AR162:AW162)) -> 56.87 | AY162: =IF(AY$3=0,"",INDEX(INDIRECT(AY$1),$P162,AY$3)) -> 55.6414 | AZ162: =A162&B162 -> U10R01 | BA162: =ROW(AZ162) -> 162
A163: =A162 -> U10 | B163: R02 | C163: 8 Storage 2 Systems | D163: Pass | E163: 61.31 | F163: 61.31 | G163: 0 | H163: Yes | I163: 56.87 | J163: 56.87 | K163: 56.87 | L163: 0 | M163: Yes | N163: =N162 -> U06R12 | O163: -4.44 | P163: 131 | Q163: 11.39 | R163: 21.62 | S163: 2.47 | T163: 0 | U163: 25.83 | V163: 0 | W163: 61.31 | X163: 57.5376 | Y163: 131 | Z163: 11.39 | AA163: 21.62 | AB163: 2.47 | AC163: 0 | AD163: 25.83 | AE163: 0 | AF163: 61.31 | AG163: 57.5376 | AH163: 131 | AI163: 11.15 | AJ163: 27.7 | AK163: 2.47 | AL163: 0 | AM163: 15.55 | AO163: 56.87 | AP163: 55.6414 | AQ163: 131 | AR163: 11.15 | AS163: 27.7 | AT163: 2.47 | AU163: 0 | AV163: 15.55 | AX163: 56.87 | AY163: 55.6414 | AZ163: U10R02 | BA163: 163
A164: U10 | B164: R03 | C164: 8 LgStor | D164: Pass | E164: 68.06 | F164: 68.06 | G164: 0 | H164: Yes | I164: 56.87 | J164: 56.87 | K164: 56.87 | L164: 0 | M164: Yes | N164: =N163 -> U06R12 | O164: -11.19 | P164: 132 | Q164: 11.39 | R164: 21.62 | S164: 2.47 | T164: 0 | U164: 32.58 | V164: 0 | W164: 68.06 | X164: 60.46 | Y164: 132 | Z164: 11.39 | AA164: 21.62 | AB164: 2.47 | AC164: 0 | AD164: 32.58 | AE164: 0 | AF164: 68.06 | AG164: 60.46 | AH164: 132 | AI164: 11.15 | AJ164: 27.7 | AK164: 2.47 | AL164: 0 | AM164: 15.55 | AO164: 56.87 | AP164: 55.6414 | AQ164: 132 | AR164: 11.15 | AS164: 27.7 | AT164: 2.47 | AU164: 0 | AV164: 15.55 | AX164: 56.87 | AY164: 55.6414 | AZ164: U10R03 | BA164: 164
A165: U10 | B165: R04 | C165: 2 LgStor Central Solar | D165: =IF(AND(H165=Yes,M165=Yes),Pass,Fail) -> Pass | E165: 55.36 | F165: 55.36 | G165: 0 | H165: Yes | I165: 61.2 | J165: 61.2 | K165: 61.2 | L165: 0 | M165: Yes | N165: U10R04 | O165: 5.84 | P165: 133 | Q165: 11.39 | R165: 21.62 | S165: 2.47 | T165: 0 | U165: 19.88 | V165: 0 | W165: 55.36 | X165: 55.4733 | Y165: 133 | Z165: 11.39 | AA165: 21.62 | AB165: 2.47 | AC165: 0 | AD165: 19.88 | AE165: 0 | AF165: 55.36 | AG165: 55.4733 | AH165: 133 | AI165: 11.15 | AJ165: 27.7 | AK165: 2.47 | AL165: 0 | AM165: 19.88 | AO165: 61.2 | AP165: 58.0514 | AQ165: 133 | AR165: 11.15 | AS165: 27.7 | AT165: 2.47 | AU165: 0 | AV165: 19.88 | AX165: 61.2 | AY165: 58.0514 | AZ165: U10R04 | BA165: 165
A166: U10 | B166: R05 | C166: 2 LgStor Central Solar Recirc | D166: Pass | E166: 62.02 | F166: 62.02 | G166: 0 | H166: Yes | I166: 67.86 | J166: 67.86 | K166: 67.86 | L166: 0 | M166: Yes | N166: U10R05 | O166: 5.84 | P166: 134 | Q166: 11.39 | R166: 21.62 | S166: 2.47 | T166: 0 | U166: 26.54 | V166: 0 | W166: 62.02 | X166: 54.5974 | Y166: 134 | Z166: 11.39 | AA166: 21.62 | AB166: 2.47 | AC166: 0 | AD166: 26.54 | AE166: 0 | AF166: 62.02 | AG166: 54.5974 | AH166: 134 | AI166: 11.15 | AJ166: 27.7 | AK166: 2.47 | AL166: 0 | AM166: 26.54 | AO166: 67.86 | AP166: 57.0083 | AQ166: 134 | AR166: 11.15 | AS166: 27.7 | AT166: 2.47 | AU166: 0 | AV166: 26.54 | AX166: 67.86 | AY166: 57.0083 | AZ166: U10R05 | BA166: 166
A167: U10 | B167: R06 | C167: 2 LgStor Central Recirc | D167: Pass | E167: 66.77 | F167: 66.77 | G167: 0 | H167: Yes | I167: 67.86 | J167: 67.86 | K167: 67.86 | L167: 0 | M167: Yes | N167: U10R05 | O167: 1.09 | P167: 135 | Q167: 11.39 | R167: 21.62 | S167: 2.47 | T167: 0 | U167: 31.29 | V167: 0 | W167: 66.77 | X167: 56.5384 | Y167: 135 | Z167: 11.39 | AA167: 21.62 | AB167: 2.47 | AC167: 0 | AD167: 31.29 | AE167: 0 | AF167: 66.77 | AG167: 56.5384 | AH167: 135 | AI167: 11.15 | AJ167: 27.7 | AK167: 2.47 | AL167: 0 | AM167: 26.54 | AO167: 67.86 | AP167: 57.0083 | AQ167: 135 | AR167: 11.15 | AS167: 27.7 | AT167: 2.47 | AU167: 0 | AV167: 26.54 | AX167: 67.86 | AY167: 57.0083 | AZ167: U10R06 | BA167: 167
A168: U10 | B168: R07 | C168: 2 SmInstantant Central Solar | D168: Pass | E168: 51.82 | F168: 51.82 | G168: 0 | H168: Yes | I168: 57.66 | J168: 57.66 | K168: 57.66 | L168: 0 | M168: Yes | N168: U10R07 | O168: 5.84 | P168: 136 | Q168: 11.39 | R168: 21.62 | S168: 2.47 | T168: 0 | U168: 16.34 | V168: 0 | W168: 51.82 | X168: 54.6585 | Y168: 136 | Z168: 11.39 | AA168: 21.62 | AB168: 2.47 | AC168: 0 | AD168: 16.34 | AE168: 0 | AF168: 51.82 | AG168: 54.6585 | AH168: 136 | AI168: 11.15 | AJ168: 27.7 | AK168: 2.47 | AL168: 0 | AM168: 16.34 | AO168: 57.66 | AP168: 57.2717 | AQ168: 136 | AR168: 11.15 | AS168: 27.7 | AT168: 2.47 | AU168: 0 | AV168: 16.34 | AX168: 57.66 | AY168: 57.2717 | AZ168: U10R07 | BA168: 168
A169: U10 | B169: R08 | C169: 2 SmInstantant Central Solar Recirc | D169: Pass | E169: 58.76 | F169: 58.76 | G169: 0 | H169: Yes | I169: 64.6 | J169: 64.6 | K169: 64.6 | L169: 0 | M169: Yes | N169: U10R08 | O169: 5.84 | P169: 137 | Q169: 11.39 | R169: 21.62 | S169: 2.47 | T169: 0 | U169: 23.28 | V169: 0 | W169: 58.76 | X169: 53.6657 | Y169: 137 | Z169: 11.39 | AA169: 21.62 | AB169: 2.47 | AC169: 0 | AD169: 23.28 | AE169: 0 | AF169: 58.76 | AG169: 53.6657 | AH169: 137 | AI169: 11.15 | AJ169: 27.7 | AK169: 2.47 | AL169: 0 | AM169: 23.28 | AO169: 64.6 | AP169: 56.0947 | AQ169: 137 | AR169: 11.15 | AS169: 27.7 | AT169: 2.47 | AU169: 0 | AV169: 23.28 | AX169: 64.6 | AY169: 56.0947 | AZ169: U10R08 | BA169: 169
A170: U10 | B170: R09 | C170: 1 Indirect Central Solar | D170: Pass | E170: 58.14 | F170: 58.14 | G170: 0 | H170: Yes | I170: 63.3 | J170: 63.3 | K170: 63.3 | L170: 0 | M170: Yes | N170: U10R09 | O170: 5.16 | P170: 138 | Q170: 11.39 | R170: 21.62 | S170: 2.47 | T170: 0 | U170: 22.66 | V170: 0 | W170: 58.14 | X170: 55.1326 | Y170: 138 | Z170: 11.39 | AA170: 21.62 | AB170: 2.47 | AC170: 0 | AD170: 22.66 | AE170: 0 | AF170: 58.14 | AG170: 55.1326 | AH170: 138 | AI170: 11.15 | AJ170: 27.7 | AK170: 2.47 | AL170: 0 | AM170: 21.98 | AO170: 63.3 | AP170: 57.351 | AQ170: 138 | AR170: 11.15 | AS170: 27.7 | AT170: 2.47 | AU170: 0 | AV170: 21.98 | AX170: 63.3 | AY170: 57.351 | AZ170: U10R09 | BA170: 170
A171: U10 | B171: R10 | C171: 1 Indirect Central Solar Recirc | D171: Pass | E171: 65.21 | F171: 65.21 | G171: 0 | H171: Yes | I171: 70.38 | J171: 70.38 | K171: 70.38 | L171: 0 | M171: Yes | N171: U10R10 | O171: 5.17 | P171: 139 | Q171: 11.39 | R171: 21.62 | S171: 2.47 | T171: 0 | U171: 29.73 | V171: 0 | W171: 65.21 | X171: 54.1966 | Y171: 139 | Z171: 11.39 | AA171: 21.62 | AB171: 2.47 | AC171: 0 | AD171: 29.73 | AE171: 0 | AF171: 65.21 | AG171: 54.1966 | AH171: 139 | AI171: 11.15 | AJ171: 27.7 | AK171: 2.47 | AL171: 0 | AM171: 29.06 | AO171: 70.38 | AP171: 56.2686 | AQ171: 139 | AR171: 11.15 | AS171: 27.7 | AT171: 2.47 | AU171: 0 | AV171: 29.06 | AX171: 70.38 | AY171: 56.2686 | AZ171: U10R10 | BA171: 171
A172: ="Result "&A161 -> Result U10 | D172: =IF(COUNTIF(D162:D171,Pass)=10,Pass,Fail) -> Pass | E172: =AVERAGE(E162:E171) -> 60.876 | F172: =AVERAGE(F162:F171) -> 60.876 | G172: =IF(E172=0,0,(F172-E172)/E172) -> 0 | I172: =AVERAGE(I162:I171) -> 62.347 | J172: =AVERAGE(J162:J171) -> 62.347 | K172: =AVERAGE(K162:K171) -> 62.347 | L172: 0 | M172: Min | N172: =MIN(L162:L171) -> 0 | O172: =AVERAGE(O162:O171) -> 1.471 | P172: Ave | Q172: =AVERAGE(Q162:Q171) -> 11.39 | R172: =AVERAGE(R162:R171) -> 21.62 | S172: =AVERAGE(S162:S171) -> 2.47 | U172: =AVERAGE(U162:U171) -> 25.396 | V172: =AVERAGE(V162:V171) -> 0 | W172: =AVERAGE(W162:W171) -> 60.876 | X172: =AVERAGE(X156:X171) -> 53.34019567 | Y172: Ave | Z172: =AVERAGE(Z162:Z171) -> 11.39 | AA172: =AVERAGE(AA162:AA171) -> 21.62 | AB172: =AVERAGE(AB162:AB171) -> 2.47 | AC172: =AVERAGE(AC162:AC171) -> 0 | AD172: =AVERAGE(AD162:AD171) -> 25.396 | AF172: =AVERAGE(AF162:AF171) -> 60.876 | AG172: =AVERAGE(AG156:AG171) -> 53.34019567 | AI172: =AVERAGE(AI162:AI171) -> 11.15 | AJ172: =AVERAGE(AJ162:AJ171) -> 27.7 | AK172: =AVERAGE(AK162:AK171) -> 2.47 | AL172: =AVERAGE(AL162:AL171) -> 0 | AM172: =AVERAGE(AM162:AM171) -> 21.027 | AO172: =AVERAGE(AO162:AO171) -> 62.347 | AP172: =AVERAGE(AP156:AP171) -> 53.46366422 | AR172: =AVERAGE(AR162:AR171) -> 11.15 | AS172: =AVERAGE(AS162:AS171) -> 27.7 | AT172: =AVERAGE(AT162:AT171) -> 2.47 | AU172: =AVERAGE(AU162:AU171) -> 0 | AV172: =AVERAGE(AV162:AV171) -> 21.027 | AX172: =AVERAGE(AX162:AX171) -> 62.347 | AY172: =AVERAGE(AY156:AY171) -> 53.46366422
L173: Ave | M173: Max | N173: =MAX(L162:L171) -> 0 | Y173: % Diff | Z173: =(Z172-Q172)/Q172 -> 0 | AA173: =(AA172-R172)/R172 -> 0 | AB173: =(AB172-S172)/S172 -> 0 | AD173: =(AD172-U172)/U172 -> 0 | AF173: =(AF172-W172)/W172 -> 0
A174: U11 | B174: =VLOOKUP(A174,TestArray,2)&" in "&VLOOKUP(A174,TestArray,3)&" for Prototype "&VLOOKUP(A174,TestArray,4) -> Source Energy in Zone 12 for Prototype P2100ft2 | I174: =VLOOKUP(A174,TestArray,21) -> Standard = Varies for this test
A175: =A174 -> U11 | B175: R01 | C175: =VLOOKUP(A175,TestArray,4+RIGHT(B175,2)) -> Package | D175: =IF(AND(H175=Yes,M175=Yes),Pass,Fail) -> Pass | E175: =IF(Units="EDR",X175,W175) -> 37.4 | F175: =IF(Units="EDR",AG175,AF175) -> 37.4 | G175: =IF(E175=0,0,(F175-E175)/E175) -> 0 | H175: =IF(AND((E175-Tolerance<=F175),(E175+Tolerance>=F175)),Yes,No) -> Yes | I175: =IF(Units="EDR",J175,INDIRECT(RefCol&INDEX(StandardArray,MATCH($N175,StandardList,0),2))) -> 41.44 | J175: =IF(Units="EDR",AP175,AO175) -> 41.44 | K175: =IF(Units="EDR",AY175,AX175) -> 41.44 | L175: =IF(I175=0,0,(K175-I175)/I175) -> 0 | M175: =IF(AND((I175-Tolerance<=K175),(I175+Tolerance>=K175),(J175-Tolerance<=K175),(J175+Tolerance>=K175)),Yes,No) -> Yes | N175: U04R12 | O175: =K175-F175 -> 4.04 | P175: =MATCH($A175&$B175,INDIRECT(P$2),0) -> 140 | Q175: =IF(Q$3=0,"",INDEX(INDIRECT(Q$1),$P175,Q$3)) -> 20.18 | R175: 7.39 | S175: 1.17 | T175: 0 | U175: 8.66 | V175: 0 | W175: =IF(TotalSum="No",INDEX(INDIRECT(W$1),$P175,W$3),SUM(Q175:V175)) -> 37.4 | X175: =IF(X$3=0,"",INDEX(INDIRECT(X$1),$P175,X$3)) -> 43.378 | Y175: =MATCH($A175&$B175,INDIRECT(Y$2),0) -> 140 | Z175: =IF(Z$3=0,"",INDEX(INDIRECT(Z$1),$Y175,Z$3)) -> 20.18 | AA175: 7.39 | AB175: 1.17 | AC175: 0 | AD175: 8.66 | AE175: 0 | AF175: =IF(TotalSum="No",INDEX(INDIRECT(AF$1),$Y175,AF$3),SUM(Z175:AE175)) -> 37.4 | AG175: =IF(AG$3=0,"",INDEX(INDIRECT(AG$1),$P175,AG$3)) -> 43.378 | AH175: =MATCH($A175&$B175,INDIRECT(AH$2),0) -> 140 | AI175: =IF(AI$3=0,"",INDEX(INDIRECT(AI$1),$AH175,AI$3)) -> 21.38 | AJ175: 10.23 | AK175: 1.17 | AL175: 0 | AM175: 8.66 | AO175: =IF(TotalSum="No",INDEX(INDIRECT(AO$1),$AH175,AO$3),SUM(AI175:AN175)) -> 41.44 | AP175: =IF(AP$3=0,"",INDEX(INDIRECT(AP$1),$P175,AP$3)) -> 45.6092 | AQ175: =MATCH($A175&$B175,INDIRECT(AQ$2),0) -> 140 | AR175: =IF(AR$3=0,"",INDEX(INDIRECT(AR$1),$AQ175,AR$3)) -> 21.38 | AS175: 10.23 | AT175: 1.17 | AU175: 0 | AV175: 8.66 | AX175: =IF(TotalSum="No",INDEX(INDIRECT(AX$1),$AQ175,AX$3),SUM(AR175:AW175)) -> 41.44 | AY175: =IF(AY$3=0,"",INDEX(INDIRECT(AY$1),$P175,AY$3)) -> 45.6092 | AZ175: =A175&B175 -> U11R01 | BA175: =ROW(AZ175) -> 175
A176: =A175 -> U11 | B176: R02 | C176: Package No Natural Gas | D176: Pass | E176: 62.88 | F176: 62.88 | G176: 0 | H176: Yes | I176: 67.83 | J176: 67.83 | K176: 67.83 | L176: 0 | M176: Yes | N176: U11R02 | O176: 4.95 | P176: 141 | Q176: 37.54 | R176: 7.22 | S176: 1.17 | T176: 0 | U176: 16.95 | V176: 0 | W176: 62.88 | X176: 45.7682 | Y176: 141 | Z176: 37.54 | AA176: 7.22 | AB176: 1.17 | AC176: 0 | AD176: 16.95 | AE176: 0 | AF176: 62.88 | AG176: 45.7682 | AH176: 141 | AI176: 39.66 | AJ176: 10.05 | AK176: 1.17 | AL176: 0 | AM176: 16.95 | AO176: 67.83 | AP176: 47.7822 | AQ176: 141 | AR176: 39.66 | AS176: 10.05 | AT176: 1.17 | AU176: 0 | AV176: 16.95 | AX176: 67.83 | AY176: 47.7822 | AZ176: U11R02 | BA176: 176
A177: U11 | B177: R03 | C177: Electric DHW | D177: Pass | E177: 55 | F177: 55 | G177: 0 | H177: Yes | I177: 41.44 | J177: 41.44 | K177: 41.44 | L177: 0 | M177: Yes | N177: U04R12 | O177: -13.56 | P177: 142 | Q177: 20.15 | R177: 7.41 | S177: 1.17 | T177: 0 | U177: 26.27 | V177: 0 | W177: 55 | X177: 53.7773 | Y177: 142 | Z177: 20.15 | AA177: 7.41 | AB177: 1.17 | AC177: 0 | AD177: 26.27 | AE177: 0 | AF177: 55 | AG177: 53.7773 | AH177: 142 | AI177: 21.38 | AJ177: 10.23 | AK177: 1.17 | AL177: 0 | AM177: 8.66 | AO177: 41.44 | AP177: 46.3167 | AQ177: 142 | AR177: 21.38 | AS177: 10.23 | AT177: 1.17 | AU177: 0 | AV177: 8.66 | AX177: 41.44 | AY177: 46.3167 | AZ177: U11R03 | BA177: 177
A178: U11 | B178: R04 | C178: Electric DHW no Natural Gas | D178: Pass | E178: 72.15 | F178: 72.15 | G178: 0 | H178: Yes | I178: 67.83 | J178: 67.83 | K178: 67.83 | L178: 0 | M178: Yes | N178: U11R02 | O178: -4.32 | P178: 143 | Q178: 37.48 | R178: 7.23 | S178: 1.17 | T178: 0 | U178: 26.27 | V178: 0 | W178: 72.15 | X178: 56.7577 | Y178: 143 | Z178: 37.48 | AA178: 7.23 | AB178: 1.17 | AC178: 0 | AD178: 26.27 | AE178: 0 | AF178: 72.15 | AG178: 56.7577 | AH178: 143 | AI178: 39.66 | AJ178: 10.05 | AK178: 1.17 | AL178: 0 | AM178: 16.95 | AO178: 67.83 | AP178: 54.7895 | AQ178: 143 | AR178: 39.66 | AS178: 10.05 | AT178: 1.17 | AU178: 0 | AV178: 16.95 | AX178: 67.83 | AY178: 54.7895 | AZ178: U11R04 | BA178: 178
A179: U11 | B179: R05 | C179: Heatpump DHW | D179: Pass | E179: 39.83 | F179: 39.83 | G179: 0 | H179: Yes | I179: 41.44 | J179: 41.44 | K179: 41.44 | L179: 0 | M179: Yes | N179: U04R12 | O179: 1.61 | P179: 144 | Q179: 20.4 | R179: 7.2 | S179: 1.17 | T179: 0 | U179: 11.06 | V179: 0 | W179: 39.83 | X179: 45.3606 | Y179: 144 | Z179: 20.4 | AA179: 7.2 | AB179: 1.17 | AC179: 0 | AD179: 11.06 | AE179: 0 | AF179: 39.83 | AG179: 45.3606 | AH179: 144 | AI179: 21.38 | AJ179: 10.23 | AK179: 1.17 | AL179: 0 | AM179: 8.66 | AO179: 41.44 | AP179: 46.3167 | AQ179: 144 | AR179: 21.38 | AS179: 10.23 | AT179: 1.17 | AU179: 0 | AV179: 8.66 | AX179: 41.44 | AY179: 46.3167 | AZ179: U11R05 | BA179: 179
A180: U11 | B180: R06 | C180: Heatpump DHW no Natural Gas | D180: Pass | E180: 57.2 | F180: 57.2 | G180: 0 | H180: Yes | I180: 67.83 | J180: 67.83 | K180: 67.83 | L180: 0 | M180: Yes | N180: =N178 -> U11R02 | O180: 10.63 | P180: 145 | Q180: 37.94 | R180: 7.03 | S180: 1.17 | T180: 0 | U180: 11.06 | V180: 0 | W180: 57.2 | X180: 49.8342 | Y180: 145 | Z180: 37.94 | AA180: 7.03 | AB180: 1.17 | AC180: 0 | AD180: 11.06 | AE180: 0 | AF180: 57.2 | AG180: 49.8342 | AH180: 145 | AI180: 39.66 | AJ180: 10.05 | AK180: 1.17 | AL180: 0 | AM180: 16.95 | AO180: 67.83 | AP180: 54.7895 | AQ180: 145 | AR180: 39.66 | AS180: 10.05 | AT180: 1.17 | AU180: 0 | AV180: 16.95 | AX180: 67.83 | AY180: 54.7895 | AZ180: U11R06 | BA180: 180
A181: U11 | B181: R07 | C181: Heatpump HVAC | D181: Pass | E181: 35.28 | F181: 35.28 | G181: 0 | H181: Yes | I181: 40.03 | J181: 40.03 | K181: 40.03 | L181: 0 | M181: Yes | N181: U11R07 | O181: 4.75 | P181: 146 | Q181: 18.55 | R181: 6.9 | S181: 1.17 | T181: 0 | U181: 8.66 | V181: 0 | W181: 35.28 | X181: 43.2585 | Y181: 146 | Z181: 18.55 | AA181: 6.9 | AB181: 1.17 | AC181: 0 | AD181: 8.66 | AE181: 0 | AF181: 35.28 | AG181: 43.2585 | AH181: 146 | AI181: 19.97 | AJ181: 10.23 | AK181: 1.17 | AL181: 0 | AM181: 8.66 | AO181: 40.03 | AP181: 45.9395 | AQ181: 146 | AR181: 19.97 | AS181: 10.23 | AT181: 1.17 | AU181: 0 | AV181: 8.66 | AX181: 40.03 | AY181: 45.9395 | AZ181: U11R07 | BA181: 181
A182: U11 | B182: R08 | C182: Heatpump HVAC no Natural Gas | D182: Pass | E182: 43.48 | F182: 43.48 | G182: 0 | H182: Yes | I182: 48.23 | J182: 48.23 | K182: 48.23 | L182: 0 | M182: Yes | N182: U11R08 | O182: 4.75 | P182: 147 | Q182: 18.63 | R182: 6.73 | S182: 1.17 | T182: 0 | U182: 16.95 | V182: 0 | W182: 43.48 | X182: 44.3634 | Y182: 147 | Z182: 18.63 | AA182: 6.73 | AB182: 1.17 | AC182: 0 | AD182: 16.95 | AE182: 0 | AF182: 43.48 | AG182: 44.3634 | AH182: 147 | AI182: 20.06 | AJ182: 10.05 | AK182: 1.17 | AL182: 0 | AM182: 16.95 | AO182: 48.23 | AP182: 46.6222 | AQ182: 147 | AR182: 20.06 | AS182: 10.05 | AT182: 1.17 | AU182: 0 | AV182: 16.95 | AX182: 48.23 | AY182: 46.6222 | AZ182: U11R08 | BA182: 182
A183: U11 | B183: R09 | C183: Heatpump HVAC & DHW | D183: Pass | E183: 37.67 | F183: 37.67 | G183: 0 | H183: Yes | I183: 40.03 | J183: 40.03 | K183: 40.03 | L183: 0 | M183: Yes | N183: =N181 -> U11R07 | O183: 2.36 | P183: 148 | Q183: 18.73 | R183: 6.71 | S183: 1.17 | T183: 0 | U183: 11.06 | V183: 0 | W183: 37.67 | X183: 45.2673 | Y183: 148 | Z183: 18.73 | AA183: 6.71 | AB183: 1.17 | AC183: 0 | AD183: 11.06 | AE183: 0 | AF183: 37.67 | AG183: 45.2673 | AH183: 148 | AI183: 19.97 | AJ183: 10.23 | AK183: 1.17 | AL183: 0 | AM183: 8.66 | AO183: 40.03 | AP183: 46.6658 | AQ183: 148 | AR183: 19.97 | AS183: 10.23 | AT183: 1.17 | AU183: 0 | AV183: 8.66 | AX183: 40.03 | AY183: 46.6658 | AZ183: U11R09 | BA183: 183
A184: U11 | B184: R10 | C184: Heatpump HVAC & DHW no Natural Gas | D184: Pass | E184: 37.6 | F184: 37.6 | G184: 0 | H184: Yes | I184: 48.23 | J184: 48.23 | K184: 48.23 | L184: 0 | M184: Yes | N184: U11R08 | O184: 10.63 | P184: 149 | Q184: 18.82 | R184: 6.55 | S184: 1.17 | T184: 0 | U184: 11.06 | V184: 0 | W184: 37.6 | X184: 48.8631 | Y184: 149 | Z184: 18.82 | AA184: 6.55 | AB184: 1.17 | AC184: 0 | AD184: 11.06 | AE184: 0 | AF184: 37.6 | AG184: 48.8631 | AH184: 149 | AI184: 20.06 | AJ184: 10.05 | AK184: 1.17 | AL184: 0 | AM184: 16.95 | AO184: 48.23 | AP184: 54.7903 | AQ184: 149 | AR184: 20.06 | AS184: 10.05 | AT184: 1.17 | AU184: 0 | AV184: 16.95 | AX184: 48.23 | AY184: 54.7903 | AZ184: U11R10 | BA184: 184
A185: ="Result "&A174 -> Result U11 | D185: =IF(COUNTIF(D175:D184,Pass)=10,Pass,Fail) -> Pass | E185: =AVERAGE(E175:E184) -> 47.849 | F185: =AVERAGE(F175:F184) -> 47.849 | G185: =IF(E185=0,0,(F185-E185)/E185) -> 0 | I185: =AVERAGE(I175:I184) -> 50.433 | J185: =AVERAGE(J175:J184) -> 50.433 | K185: =AVERAGE(K175:K184) -> 50.433 | L185: 0 | M185: Min | N185: =MIN(L175:L184) -> 0 | O185: =AVERAGE(O175:O184) -> 2.584 | P185: Ave | Q185: =AVERAGE(Q175:Q184) -> 24.842 | R185: =AVERAGE(R175:R184) -> 7.037 | S185: =AVERAGE(S175:S184) -> 1.17 | U185: =AVERAGE(U175:U184) -> 14.8 | V185: =AVERAGE(V175:V184) -> 0 | W185: =AVERAGE(W175:W184) -> 47.849 | X185: =AVERAGE(X169:X184) -> 49.49738541 | Y185: Ave | Z185: =AVERAGE(Z175:Z184) -> 24.842 | AA185: =AVERAGE(AA175:AA184) -> 7.037 | AB185: =AVERAGE(AB175:AB184) -> 1.17 | AC185: =AVERAGE(AC175:AC184) -> 0 | AD185: =AVERAGE(AD175:AD184) -> 14.8 | AF185: =AVERAGE(AF175:AF184) -> 47.849 | AG185: =AVERAGE(AG169:AG184) -> 49.49738541 | AI185: =AVERAGE(AI175:AI184) -> 26.318 | AJ185: =AVERAGE(AJ175:AJ184) -> 10.14 | AK185: =AVERAGE(AK175:AK184) -> 1.17 | AL185: =AVERAGE(AL175:AL184) -> 0 | AM185: =AVERAGE(AM175:AM184) -> 12.805 | AO185: =AVERAGE(AO175:AO184) -> 50.433 | AP185: =AVERAGE(AP169:AP184) -> 50.91425459 | AR185: =AVERAGE(AR175:AR184) -> 26.318 | AS185: =AVERAGE(AS175:AS184) -> 10.14 | AT185: =AVERAGE(AT175:AT184) -> 1.17 | AU185: =AVERAGE(AU175:AU184) -> 0 | AV185: =AVERAGE(AV175:AV184) -> 12.805 | AX185: =AVERAGE(AX175:AX184) -> 50.433 | AY185: =AVERAGE(AY169:AY184) -> 50.91425459
L186: Ave | M186: Max | N186: =MAX(L175:L184) -> 0 | Y186: % Diff | Z186: =(Z185-Q185)/Q185 -> 0 | AA186: =(AA185-R185)/R185 -> 0 | AB186: =(AB185-S185)/S185 -> 0 | AD186: =(AD185-U185)/U185 -> 0 | AF186: =(AF185-W185)/W185 -> 0
A187: U12 | B187: =VLOOKUP(A187,TestArray,2)&" in "&VLOOKUP(A187,TestArray,3)&" for Prototype "&VLOOKUP(A187,TestArray,4) -> E+A+A Base & Windows in Zone 12 for Prototype P1665ft2 | I187: =VLOOKUP(A187,TestArray,21) -> Standard = Varies for this test
A188: =A187 -> U12 | B188: R01 | C188: =VLOOKUP(A188,TestArray,4+RIGHT(B188,2)) -> E 1440ft2 as New Construction | D188: =IF(ConstructionType="New","n/a",IF(AND(H188=Yes,M188=Yes),Pass,Fail)) -> Pass | E188: =IF(Units="EDR",0,W188) -> 238.29 | F188: =IF(Units="EDR",0,AF188) -> 238.29 | G188: =IF(E188=0,0,(F188-E188)/E188) -> 0 | H188: =IF(AND((E188-Tolerance<=F188),(E188+Tolerance>=F188)),Yes,No) -> Yes | I188: =IF(Units="EDR",0,INDIRECT(RefCol&INDEX(StandardArray,MATCH($N188,StandardList,0),2))) -> 46.72 | J188: =IF(Units="EDR",0,AO188) -> 46.72 | K188: =IF(Units="EDR",0,AX188) -> 46.72 | L188: =IF(I188=0,0,(K188-I188)/I188) -> 0 | M188: =IF(AND((I188-Tolerance<=K188),(I188+Tolerance>=K188),(J188-Tolerance<=K188),(J188+Tolerance>=K188)),Yes,No) -> Yes | N188: U12R01 | O188: =K188-F188 -> -191.57 | P188: =MATCH($A188&$B188,INDIRECT(P$2),0) -> 150 | Q188: =IF(Q$3=0,"",INDEX(INDIRECT(Q$1),$P188,Q$3)) -> 61.74 | R188: 156.73 | S188: 1.48 | T188: 0 | U188: 18.34 | V188: 0 | W188: =IF(TotalSum="No",INDEX(INDIRECT(W$1),$P188,W$3),SUM(Q188:V188)) -> 238.29 | X188: =IF(X$3=0,"",INDEX(INDIRECT(X$1),$P188,X$3)) -> 138.085 | Y188: =MATCH($A188&$B188,INDIRECT(Y$2),0) -> 150 | Z188: =IF(Z$3=0,"",INDEX(INDIRECT(Z$1),$Y188,Z$3)) -> 61.74 | AA188: 156.73 | AB188: 1.48 | AC188: 0 | AD188: 18.34 | AE188: 0 | AF188: =IF(TotalSum="No",INDEX(INDIRECT(AF$1),$Y188,AF$3),SUM(Z188:AE188)) -> 238.29 | AG188: =IF(AG$3=0,"",INDEX(INDIRECT(AG$1),$P188,AG$3)) -> 138.085 | AH188: =MATCH($A188&$B188,INDIRECT(AH$2),0) -> 150 | AI188: =IF(AI$3=0,"",INDEX(INDIRECT(AI$1),$AH188,AI$3)) -> 21.24 | AJ188: 11.81 | AK188: 1.48 | AL188: 0 | AM188: 12.19 | AO188: =IF(TotalSum="No",INDEX(INDIRECT(AO$1),$AH188,AO$3),SUM(AI188:AN188)) -> 46.72 | AP188: =IF(AP$3=0,"",INDEX(INDIRECT(AP$1),$P188,AP$3)) -> 48.1844 | AQ188: =MATCH($A188&$B188,INDIRECT(AQ$2),0) -> 150 | AR188: =IF(AR$3=0,"",INDEX(INDIRECT(AR$1),$AQ188,AR$3)) -> 21.24 | AS188: 11.81 | AT188: 1.48 | AU188: 0 | AV188: 12.19 | AX188: =IF(TotalSum="No",INDEX(INDIRECT(AX$1),$AQ188,AX$3),SUM(AR188:AW188)) -> 46.72 | AY188: =IF(AY$3=0,"",INDEX(INDIRECT(AY$1),$P188,AY$3)) -> 48.1844 | AZ188: =A188&B188 -> U12R01 | BA188: =ROW(AZ188) -> 188
A189: =A188 -> U12 | B189: R02 | C189: E 1440ft2 as Addition/Alteration | D189: Pass | E189: 240.98 | F189: 240.98 | G189: 0 | H189: Yes | I189: 240.98 | J189: 240.98 | K189: 240.98 | L189: 0 | M189: Yes | N189: U12R02 | O189: 0 | P189: 151 | Q189: 60.09 | R189: 162.55 | S189: 0 | T189: 0 | U189: 18.34 | V189: 0 | W189: 240.98 | X189: 0 | Y189: 151 | Z189: 60.09 | AA189: 162.55 | AB189: 0 | AC189: 0 | AD189: 18.34 | AE189: 0 | AF189: 240.98 | AG189: 0 | AH189: 151 | AI189: 60.09 | AJ189: 162.55 | AK189: 0 | AL189: 0 | AM189: 18.34 | AO189: 240.98 | AP189: 0 | AQ189: 151 | AR189: 60.09 | AS189: 162.55 | AT189: 0 | AU189: 0 | AV189: 18.34 | AX189: 240.98 | AY189: 0 | AZ189: U12R02 | BA189: 189
A190: U12 | B190: R03 | C190: EA 1665ft2 | D190: Pass | E190: 210.32 | F190: 210.32 | G190: 0 | H190: Yes | I190: 206.96 | J190: 206.96 | K190: 206.96 | L190: 0 | M190: Yes | N190: U12R03 | O190: -3.36 | P190: 152 | Q190: 55.69 | R190: 138.64 | S190: 0 | T190: 0 | U190: 15.99 | V190: 0 | W190: 210.32 | X190: 0 | Y190: 152 | Z190: 55.69 | AA190: 138.64 | AB190: 0 | AC190: 0 | AD190: 15.99 | AE190: 0 | AF190: 210.32 | AG190: 0 | AH190: 152 | AI190: 54.78 | AJ190: 136.19 | AK190: 0 | AL190: 0 | AM190: 15.99 | AO190: 206.96 | AP190: 0 | AQ190: 152 | AR190: 54.78 | AS190: 136.19 | AT190: 0 | AU190: 0 | AV190: 15.99 | AX190: 206.96 | AY190: 0 | AZ190: U12R03 | BA190: 190
A191: U12 | B191: R04 | C191: EAA Ceiling R38 Verified | D191: Pass | E191: 184.64 | F191: 184.64 | G191: 0 | H191: Yes | I191: 206.96 | J191: 206.96 | K191: 206.96 | L191: 0 | M191: Yes | N191: U12R03 | O191: 22.32 | P191: 153 | Q191: 51.15 | R191: 117.5 | S191: 0 | T191: 0 | U191: 15.99 | V191: 0 | W191: 184.64 | X191: 0 | Y191: 153 | Z191: 51.15 | AA191: 117.5 | AB191: 0 | AC191: 0 | AD191: 15.99 | AE191: 0 | AF191: 184.64 | AG191: 0 | AH191: 153 | AI191: 54.78 | AJ191: 136.19 | AK191: 0 | AL191: 0 | AM191: 15.99 | AO191: 206.96 | AP191: 0 | AQ191: 153 | AR191: 54.78 | AS191: 136.19 | AT191: 0 | AU191: 0 | AV191: 15.99 | AX191: 206.96 | AY191: 0 | AZ191: U12R04 | BA191: 191
A192: U12 | B192: R05 | C192: EAA Ceiling R38 Verified Wind U0.41/S0.36 | D192: Pass | E192: 150.64 | F192: 150.64 | G192: 0 | H192: Yes | I192: 174.1 | J192: 174.1 | K192: 174.1 | L192: 0 | M192: Yes | N192: U12R05 | O192: 23.46 | P192: 154 | Q192: 47.12 | R192: 87.53 | S192: 0 | T192: 0 | U192: 15.99 | V192: 0 | W192: 150.64 | X192: 0 | Y192: 154 | Z192: 47.12 | AA192: 87.53 | AB192: 0 | AC192: 0 | AD192: 15.99 | AE192: 0 | AF192: 150.64 | AG192: 0 | AH192: 154 | AI192: 50.58 | AJ192: 107.53 | AK192: 0 | AL192: 0 | AM192: 15.99 | AO192: 174.1 | AP192: 0 | AQ192: 154 | AR192: 50.58 | AS192: 107.53 | AT192: 0 | AU192: 0 | AV192: 15.99 | AX192: 174.1 | AY192: 0 | AZ192: U12R05 | BA192: 192
A193: U12 | B193: R06 | C193: EAA Ceiling R38 Verified Wind U0.41/S0.36 Verified | D193: Pass | E193: 150.64 | F193: 150.64 | G193: 0 | H193: Yes | I193: 174.1 | J193: 174.1 | K193: 174.1 | L193: 0 | M193: Yes | N193: =N192 -> U12R05 | O193: 23.46 | P193: 155 | Q193: 47.12 | R193: 87.53 | S193: 0 | T193: 0 | U193: 15.99 | V193: 0 | W193: 150.64 | X193: 0 | Y193: 155 | Z193: 47.12 | AA193: 87.53 | AB193: 0 | AC193: 0 | AD193: 15.99 | AE193: 0 | AF193: 150.64 | AG193: 0 | AH193: 155 | AI193: 50.58 | AJ193: 107.53 | AK193: 0 | AL193: 0 | AM193: 15.99 | AO193: 174.1 | AP193: 0 | AQ193: 155 | AR193: 50.58 | AS193: 107.53 | AT193: 0 | AU193: 0 | AV193: 15.99 | AX193: 174.1 | AY193: 0 | AZ193: U12R06 | BA193: 193
A194: U12 | B194: R07 | C194: EAA Ceiling R38 Verified Wind U0.40/S0.35 | D194: Pass | E194: 149.9 | F194: 149.9 | G194: 0 | H194: Yes | I194: 174.1 | J194: 174.1 | K194: 174.1 | L194: 0 | M194: Yes | N194: =N192 -> U12R05 | O194: 24.2 | P194: 156 | Q194: 47.09 | R194: 86.82 | S194: 0 | T194: 0 | U194: 15.99 | V194: 0 | W194: 149.9 | X194: 0 | Y194: 156 | Z194: 47.09 | AA194: 86.82 | AB194: 0 | AC194: 0 | AD194: 15.99 | AE194: 0 | AF194: 149.9 | AG194: 0 | AH194: 156 | AI194: 50.58 | AJ194: 107.53 | AK194: 0 | AL194: 0 | AM194: 15.99 | AO194: 174.1 | AP194: 0 | AQ194: 156 | AR194: 50.58 | AS194: 107.53 | AT194: 0 | AU194: 0 | AV194: 15.99 | AX194: 174.1 | AY194: 0 | AZ194: U12R07 | BA194: 194
A195: U12 | B195: R08 | C195: EAA Ceiling R38 Verified Wind U0.40/S0.35 Verified | D195: Pass | E195: 149.9 | F195: 149.9 | G195: 0 | H195: Yes | I195: 206.96 | J195: 206.96 | K195: 206.96 | L195: 0 | M195: Yes | N195: =N191 -> U12R03 | O195: 57.06 | P195: 157 | Q195: 47.09 | R195: 86.82 | S195: 0 | T195: 0 | U195: 15.99 | V195: 0 | W195: 149.9 | X195: 0 | Y195: 157 | Z195: 47.09 | AA195: 86.82 | AB195: 0 | AC195: 0 | AD195: 15.99 | AE195: 0 | AF195: 149.9 | AG195: 0 | AH195: 157 | AI195: 54.78 | AJ195: 136.19 | AK195: 0 | AL195: 0 | AM195: 15.99 | AO195: 206.96 | AP195: 0 | AQ195: 157 | AR195: 54.78 | AS195: 136.19 | AT195: 0 | AU195: 0 | AV195: 15.99 | AX195: 206.96 | AY195: 0 | AZ195: U12R08 | BA195: 195
A196: U12 | B196: R09 | C196: EAA Ceiling R38 Verified Wind U0.39/S0.34 | D196: Pass | E196: 149.09 | F196: 149.09 | G196: 0 | H196: Yes | I196: 174.1 | J196: 174.1 | K196: 174.1 | L196: 0 | M196: Yes | N196: =N192 -> U12R05 | O196: 25.01 | P196: 158 | Q196: 47.06 | R196: 86.04 | S196: 0 | T196: 0 | U196: 15.99 | V196: 0 | W196: 149.09 | X196: 0 | Y196: 158 | Z196: 47.06 | AA196: 86.04 | AB196: 0 | AC196: 0 | AD196: 15.99 | AE196: 0 | AF196: 149.09 | AG196: 0 | AH196: 158 | AI196: 50.58 | AJ196: 107.53 | AK196: 0 | AL196: 0 | AM196: 15.99 | AO196: 174.1 | AP196: 0 | AQ196: 158 | AR196: 50.58 | AS196: 107.53 | AT196: 0 | AU196: 0 | AV196: 15.99 | AX196: 174.1 | AY196: 0 | AZ196: U12R09 | BA196: 196
A197: U12 | B197: R10 | C197: EAA Ceiling R38 Verified Wind U0.39/S0.34 Verified | D197: Pass | E197: 149.09 | F197: 149.09 | G197: 0 | H197: Yes | I197: 206.96 | J197: 206.96 | K197: 206.96 | L197: 0 | M197: Yes | N197: =N191 -> U12R03 | O197: 57.87 | P197: 159 | Q197: 47.06 | R197: 86.04 | S197: 0 | T197: 0 | U197: 15.99 | V197: 0 | W197: 149.09 | X197: 0 | Y197: 159 | Z197: 47.06 | AA197: 86.04 | AB197: 0 | AC197: 0 | AD197: 15.99 | AE197: 0 | AF197: 149.09 | AG197: 0 | AH197: 159 | AI197: 54.78 | AJ197: 136.19 | AK197: 0 | AL197: 0 | AM197: 15.99 | AO197: 206.96 | AP197: 0 | AQ197: 159 | AR197: 54.78 | AS197: 136.19 | AT197: 0 | AU197: 0 | AV197: 15.99 | AX197: 206.96 | AY197: 0 | AZ197: U12R10 | BA197: 197
A198: ="Result "&A187 -> Result U12 | D198: =IF(ConstructionType="New","n/a",IF(COUNTIF(D188:D197,Pass)=10,Pass,Fail)) -> Pass | E198: =IF(Units="EDR","n/a",AVERAGE(E188:E197)) -> 177.349 | F198: =IF(Units="EDR","n/a",AVERAGE(F188:F197)) -> 177.349 | G198: =IF(Units="EDR","n/a",IF(E198=0,0,(F198-E198)/E198)) -> 0 | I198: =IF(Units="EDR","n/a",AVERAGE(I188:I197)) -> 181.194 | J198: =IF(Units="EDR","n/a",AVERAGE(J188:J197)) -> 181.194 | K198: =IF(Units="EDR","n/a",AVERAGE(K188:K197)) -> 181.194 | L198: =IF(Units="EDR","n/a",IF(J198=0,0,(K198-J198)/J198)) -> 0 | M198: Min | N198: =MIN(L188:L197) -> 0 | O198: =AVERAGE(O188:O197) -> 3.845 | P198: Ave | Q198: =AVERAGE(Q188:Q197) -> 51.121 | R198: =AVERAGE(R188:R197) -> 109.62 | S198: =AVERAGE(S188:S197) -> 0.148 | U198: =AVERAGE(U188:U197) -> 16.46 | V198: =AVERAGE(V188:V197) -> 0 | W198: =AVERAGE(W188:W197) -> 177.349 | X198: =AVERAGE(X182:X197) -> 23.2911561 | Y198: Ave | Z198: =AVERAGE(Z188:Z197) -> 51.121 | AA198: =AVERAGE(AA188:AA197) -> 109.62 | AB198: =AVERAGE(AB188:AB197) -> 0.148 | AC198: =AVERAGE(AC188:AC197) -> 0 | AD198: =AVERAGE(AD188:AD197) -> 16.46 | AF198: =AVERAGE(AF188:AF197) -> 177.349 | AG198: =AVERAGE(AG182:AG197) -> 23.2911561 | AI198: =AVERAGE(AI188:AI197) -> 50.277 | AJ198: =AVERAGE(AJ188:AJ197) -> 114.924 | AK198: =AVERAGE(AK188:AK197) -> 0.148 | AL198: =AVERAGE(AL188:AL197) -> 0 | AM198: =AVERAGE(AM188:AM197) -> 15.845 | AO198: =AVERAGE(AO188:AO197) -> 181.194 | AP198: =AVERAGE(AP182:AP197) -> 17.65549676 | AR198: =AVERAGE(AR188:AR197) -> 50.277 | AS198: =AVERAGE(AS188:AS197) -> 114.924 | AT198: =AVERAGE(AT188:AT197) -> 0.148 | AU198: =AVERAGE(AU188:AU197) -> 0 | AV198: =AVERAGE(AV188:AV197) -> 15.845 | AX198: =AVERAGE(AX188:AX197) -> 181.194 | AY198: =AVERAGE(AY182:AY197) -> 17.65549676
C199: Page 6 of 7 | L199: Ave | M199: Max | N199: =MAX(L188:L197) -> 0 | Y199: % Diff | Z199: =(Z198-Q198)/Q198 -> 0 | AA199: =(AA198-R198)/R198 -> 0 | AB199: =(AB198-S198)/S198 -> 0 | AD199: =(AD198-U198)/U198 -> 0 | AF199: =(AF198-W198)/W198 -> 0
A200: U13 | B200: =VLOOKUP(A200,TestArray,2)&" in "&VLOOKUP(A200,TestArray,3)&" for Prototype "&VLOOKUP(A200,TestArray,4) -> E+A+A Walls & HVAC in Zone 12 for Prototype P1665ft2 | I200: =VLOOKUP(A200,TestArray,21) -> Standard = Varies for this test
... 12 more rows

Sheet Reference
A1: 2016-08-31T16:59:42 | B1: 667 | C1: U | D1: 166 | E1: 0 | H1: Proposed Model Site Electric Use | R1: Proposed Model Site Natural Gas Use | AB1: Proposed Model Site Other Fuel Use | AL1: Proposed Model TDV | AX1: Standard Model Site Electric Use | BH1: Standard Model Site Natural Gas Use | BR1: Standard Model Site Other Fuel Use | CB1: Standard Model TDV | CM1: Software Versions | CQ1: Proposed Model Electric Demand | DB1: Standard Model Electric Demand | DM1: Savings Results | DQ1: CAHP-SF / CAHP-MF / CMFNH Results | DZ1: Proposed Design Rating Model Site Electric Use | EK1: Proposed Design Rating Model Site Natural Gas Use | EU1: Proposed Design Rating Model Site Other Fuel Use | FE1: Proposed Design Rating Model TDV | FP1: Proposed Design Rating Model Electric Demand | GA1: Reference Design Rating Model Site Electric Use | GK1: Reference Design Rating Model Site Natural Gas Use | GU1: Reference Design Rating Model Site Other Fuel Use | HE1: Reference Design Rating Model TDV | HO1: Reference Design Rating Model Electric Demand | HY1: Energy Design Ratings
B2: Project | E2: Pass / | F2: Compliance | G2: Design | H2: Spc Heat | I2: Spc Cool | J2: IAQ Vent | K2: Other HVAC | L2: Wtr Heat | M2: Ins Light | N2: Appl & Cook | O2: Plug Lds | P2: Exterior | Q2: TOTAL | R2: Spc Heat | S2: Spc Cool | T2: IAQ Vent | U2: Other HVAC | V2: Wtr Heat | W2: Ins Light | X2: Appl & Cook | Y2: Plug Lds | Z2: Exterior | AA2: TOTAL | AB2: Spc Heat | AC2: Spc Cool | AD2: IAQ Vent | AE2: Other HVAC | AF2: Wtr Heat | AG2: Ins Light | AH2: Appl & Cook | AI2: Plug Lds | AJ2: Exterior | AK2: TOTAL | AL2: Spc Heat | AM2: Spc Cool | AN2: IAQ Vent | AO2: Other HVAC | AP2: Wtr Heat | AQ2: PV Credit | AR2: Ins Light | AS2: Appl & Cook | AT2: Plug Lds | AU2: Exterior | AV2: TOTAL | AW2: Comp Total | AX2: Spc Heat | AY2: Spc Cool | AZ2: IAQ Vent | BA2: Other HVAC | BB2: Wtr Heat | BC2: Ins Light | BD2: Appl & Cook | BE2: Plug Lds | BF2: Exterior | BG2: TOTAL | BH2: Spc Heat | BI2: Spc Cool | BJ2: IAQ Vent | BK2: Other HVAC | BL2: Wtr Heat | BM2: Ins Light | BN2: Appl & Cook | BO2: Plug Lds | BP2: Exterior | BQ2: TOTAL | BR2: Spc Heat | BS2: Spc Cool | BT2: IAQ Vent | BU2: Other HVAC | BV2: Wtr Heat | BW2: Ins Light | BX2: Appl & Cook | BY2: Plug Lds | BZ2: Exterior | CA2: TOTAL | CB2: Spc Heat | CC2: Spc Cool | CD2: IAQ Vent | CE2: Other HVAC | CF2: Wtr Heat | CG2: Ins Light | CH2: Appl & Cook | CI2: Plug Lds | CJ2: Exterior | CK2: TOTAL | CL2: Comp Total | CM2: Compliance | CP2: End User | CQ2: Spc Heat | CR2: Spc Cool | CS2: IAQ Vent | CT2: Other HVAC | CU2: Wtr Heat | CV2: Ins Light | CW2: Appl & Cook | CX2: Plug Lds | CY2: Exterior | CZ2: TOTAL | DA2: Comp Total | DB2: Spc Heat | DC2: Spc Cool | DD2: IAQ Vent | DE2: Other HVAC | DF2: Wtr Heat | DG2: Ins Light | DH2: Appl & Cook | DI2: Plug Lds | DJ2: Exterior | DK2: TOTAL | DL2: Comp Total | DM2: Total Demand | DN2: Compliance Demand | DO2: Total TDV | DP2: Compliance TDV | DQ2: Zero Energy Ready Kicker | DR2: Future Code Kicker | DS2: High Efficacy Licker | DT2: Low Use Kicker | DU2: Ultra Low Use Kicker | DV2: Initial Score | DW2: Initial Incentive | DX2: Final Score | DY2: Final Incentive | DZ2: Spc Heat | EA2: Spc Cool | EB2: IAQ Vent | EC2: Other HVAC | ED2: Wtr Heat | EE2: PV | EF2: Ins Light | EG2: Appl & Cook | EH2: Plug Lds | EI2: Exterior | EJ2: TOTAL | EK2: Spc Heat | EL2: Spc Cool | EM2: IAQ Vent | EN2: Other HVAC | EO2: Wtr Heat | EP2: Ins Light | EQ2: Appl & Cook | ER2: Plug Lds | ES2: Exterior | ET2: TOTAL | EU2: Spc Heat | EV2: Spc Cool | EW2: IAQ Vent | EX2: Other HVAC | EY2: Wtr Heat | EZ2: Ins Light | FA2: Appl & Cook | FB2: Plug Lds | FC2: Exterior | FD2: TOTAL | FE2: Spc Heat | FF2: Spc Cool | FG2: IAQ Vent | FH2: Other HVAC | FI2: Wtr Heat | FJ2: PV Credit | FK2: Ins Light | FL2: Appl & Cook | FM2: Plug Lds | FN2: Exterior | FO2: TOTAL | FP2: Spc Heat | FQ2: Spc Cool | FR2: IAQ Vent | FS2: Other HVAC | FT2: Wtr Heat | FU2: PV | FV2: Ins Light | FW2: Appl & Cook | FX2: Plug Lds | FY2: Exterior | FZ2: TOTAL | GA2: Spc Heat | GB2: Spc Cool | GC2: IAQ Vent | GD2: Other HVAC | GE2: Wtr Heat | GF2: Ins Light | GG2: Appl & Cook | GH2: Plug Lds | GI2: Exterior | GJ2: TOTAL | GK2: Spc Heat | GL2: Spc Cool | GM2: IAQ Vent | GN2: Other HVAC | GO2: Wtr Heat | GP2: Ins Light | GQ2: Appl & Cook | GR2: Plug Lds | GS2: Exterior | GT2: TOTAL | GU2: Spc Heat | GV2: Spc Cool | GW2: IAQ Vent | GX2: Other HVAC | GY2: Wtr Heat | GZ2: Ins Light | HA2: Appl & Cook | HB2: Plug Lds | HC2: Exterior | HD2: TOTAL | HE2: Spc Heat | HF2: Spc Cool | HG2: IAQ Vent | HH2: Other HVAC | HI2: Wtr Heat | HJ2: Ins Light | HK2: Appl & Cook | HL2: Plug Lds | HM2: Exterior | HN2: TOTAL | HO2: Spc Heat | HP2: Spc Cool | HQ2: IAQ Vent | HR2: Other HVAC | HS2: Wtr Heat | HT2: Ins Light | HU2: Appl & Cook | HV2: Plug Lds | HW2: Exterior | HX2: TOTAL | HY2: Excluding | HZ2: Only | IA2: Standard
A3: Run Date/Time | B3: Path/File | C3: Run Title | D3: Analysis Type | E3: Fail | F3: Margin | G3: Rating | H3: (kWh) | I3: (kWh) | J3: (kWh) | K3: (kWh) | L3: (kWh) | M3: (kWh) | N3: (kWh) | O3: (kWh) | P3: (kWh) | Q3: (kWh) | R3: (Therms) | S3: (Therms) | T3: (Therms) | U3: (Therms) | V3: (Therms) | W3: (Therms) | X3: (Therms) | Y3: (Therms) | Z3: (Therms) | AA3: (Therms) | AB3: (MMBtu) | AC3: (MMBtu) | AD3: (MMBtu) | AE3: (MMBtu) | AF3: (MMBtu) | AG3: (MMBtu) | AH3: (MMBtu) | AI3: (MMBtu) | AJ3: (MMBtu) | AK3: (MMBtu) | AL3: (kTDV/ft2-yr) | AM3: (kTDV/ft2-yr) | AN3: (kTDV/ft2-yr) | AO3: (kTDV/ft2-yr) | AP3: (kTDV/ft2-yr) | AQ3: (kTDV/ft2-yr) | AR3: (kTDV/ft2-yr) | AS3: (kTDV/ft2-yr) | AT3: (kTDV/ft2-yr) | AU3: (kTDV/ft2-yr) | AV3: (kTDV/ft2-yr) | AW3: (kTDV/ft2-yr) | AX3: (kWh) | AY3: (kWh) | AZ3: (kWh) | BA3: (kWh) | BB3: (kWh) | BC3: (kWh) | BD3: (kWh) | BE3: (kWh) | BF3: (kWh) | BG3: (kWh) | BH3: (Therms) | BI3: (Therms) | BJ3: (Therms) | BK3: (Therms) | BL3: (Therms) | BM3: (Therms) | BN3: (Therms) | BO3: (Therms) | BP3: (Therms) | BQ3: (Therms) | BR3: (MMBtu) | BS3: (MMBtu) | BT3: (MMBtu) | BU3: (MMBtu) | BV3: (MMBtu) | BW3: (MMBtu) | BX3: (MMBtu) | BY3: (MMBtu) | BZ3: (MMBtu) | CA3: (MMBtu) | CB3: (kTDV/ft2-yr) | CC3: (kTDV/ft2-yr) | CD3: (kTDV/ft2-yr) | CE3: (kTDV/ft2-yr) | CF3: (kTDV/ft2-yr) | CG3: (kTDV/ft2-yr) | CH3: (kTDV/ft2-yr) | CI3: (kTDV/ft2-yr) | CJ3: (kTDV/ft2-yr) | CK3: (kTDV/ft2-yr) | CL3: (kTDV/ft2-yr) | CM3: Ruleset | CN3: CSE | CO3: CEC DHW | CP3: Application | CQ3: (kW) | CR3: (kW) | CS3: (kW) | CT3: (kW) | CU3: (kW) | CV3: (kW) | CW3: (kW) | CX3: (kW) | CY3: (kW) | CZ3: (kW) | DA3: (kW) | DB3: (kW) | DC3: (kW) | DD3: (kW) | DE3: (kW) | DF3: (kW) | DG3: (kW) | DH3: (kW) | DI3: (kW) | DJ3: (kW) | DK3: (kW) | DL3: (kW) | DM3: (kW) | DN3: (kW) | DO3: (%) | DP3: (%) | DQ3: (0 or 5) | DR3: (0 or 3) | DS3: (0 or 5) | DT3: (0 or 5) | DU3: (0 or 5) | DV3: (int) | DW3: ($) | DX3: (int) | DY3: ($) | DZ3: (kWh) | EA3: (kWh) | EB3: (kWh) | EC3: (kWh) | ED3: (kWh) | EE3: (kWh) | EF3: (kWh) | EG3: (kWh) | EH3: (kWh) | EI3: (kWh) | EJ3: (kWh) | EK3: (Therms) | EL3: (Therms) | EM3: (Therms) | EN3: (Therms) | EO3: (Therms) | EP3: (Therms) | EQ3: (Therms) | ER3: (Therms) | ES3: (Therms) | ET3: (Therms) | EU3: (MMBtu) | EV3: (MMBtu) | EW3: (MMBtu) | EX3: (MMBtu) | EY3: (MMBtu) | EZ3: (MMBtu) | FA3: (MMBtu) | FB3: (MMBtu) | FC3: (MMBtu) | FD3: (MMBtu) | FE3: (kTDV/ft2-yr) | FF3: (kTDV/ft2-yr) | FG3: (kTDV/ft2-yr) | FH3: (kTDV/ft2-yr) | FI3: (kTDV/ft2-yr) | FJ3: (kTDV/ft2-yr) | FK3: (kTDV/ft2-yr) | FL3: (kTDV/ft2-yr) | FM3: (kTDV/ft2-yr) | FN3: (kTDV/ft2-yr) | FO3: (kTDV/ft2-yr) | FP3: (kW) | FQ3: (kW) | FR3: (kW) | FS3: (kW) | FT3: (kW) | FU3: (kW) | FV3: (kW) | FW3: (kW) | FX3: (kW) | FY3: (kW) | FZ3: (kW) | GA3: (kWh) | GB3: (kWh) | GC3: (kWh) | GD3: (kWh) | GE3: (kWh) | GF3: (kWh) | GG3: (kWh) | GH3: (kWh) | GI3: (kWh) | GJ3: (kWh) | GK3: (Therms) | GL3: (Therms) | GM3: (Therms) | GN3: (Therms) | GO3: (Therms) | GP3: (Therms) | GQ3: (Therms) | GR3: (Therms) | GS3: (Therms) | GT3: (Therms) | GU3: (MMBtu) | GV3: (MMBtu) | GW3: (MMBtu) | GX3: (MMBtu) | GY3: (MMBtu) | GZ3: (MMBtu) | HA3: (MMBtu) | HB3: (MMBtu) | HC3: (MMBtu) | HD3: (MMBtu) | HE3: (kTDV/ft2-yr) | HF3: (kTDV/ft2-yr) | HG3: (kTDV/ft2-yr) | HH3: (kTDV/ft2-yr) | HI3: (kTDV/ft2-yr) | HJ3: (kTDV/ft2-yr) | HK3: (kTDV/ft2-yr) | HL3: (kTDV/ft2-yr) | HM3: (kTDV/ft2-yr) | HN3: (kTDV/ft2-yr) | HO3: (kW) | HP3: (kW) | HQ3: (kW) | HR3: (kW) | HS3: (kW) | HT3: (kW) | HU3: (kW) | HV3: (kW) | HW3: (kW) | HX3: (kW) | HY3: PV | HZ3: PV | IA3: Design
A4: 2016-08-31T17:00:50 | B4: U01R01 | C4: v27 01 S21 G20 M01 | D4: Proposed and Standard | E4: PASS | F4: 0 | G4: 57.2557 | H4: 315.019 | I4: 0 | J4: 111.69 | K4: 0 | L4: 0 | M4: 505.557 | N4: 889.016 | O4: 2025.88 | P4: 119.621 | Q4: 3966.79 | R4: 366.858 | S4: 0 | T4: 0 | U4: 0 | V4: 129.651 | W4: 0 | X4: 43.6697 | Y4: 0 | Z4: 0 | AA4: 540.179 | AB4: 0 | AC4: 0 | AD4: 0 | AE4: 0 | AF4: 0 | AG4: 0 | AH4: 0 | AI4: 0 | AJ4: 0 | AK4: 0 | AL4: 34 | AM4: 0 | AN4: 1.17 | AO4: 0 | AP4: 10.27 | AQ4: 0 | AR4: 5.44 | AS4: 13.06 | AT4: 21.44 | AU4: 1.2 | AV4: 86.58 | AW4: 45.44 | AX4: 315.018 | AY4: 0 | AZ4: 111.69 | BA4: 0 | BB4: 0 | BC4: 505.557 | BD4: 889.016 | BE4: 2025.88 | BF4: 119.621 | BG4: 3966.79 | BH4: 366.857 | BI4: 0 | BJ4: 0 | BK4: 0 | BL4: 129.651 | BM4: 0 | BN4: 43.6697 | BO4: 0 | BP4: 0 | BQ4: 540.178 | BR4: 0 | BS4: 0 | BT4: 0 | BU4: 0 | BV4: 0 | BW4: 0 | BX4: 0 | BY4: 0 | BZ4: 0 | CA4: 0 | CB4: 34 | CC4: 0 | CD4: 1.17 | CE4: 0 | CF4: 10.27 | CG4: 5.44 | CH4: 13.06 | CI4: 21.44 | CJ4: 1.2 | CK4: 86.58 | CL4: 45.44 | CM4: CA Residential 2016, Vers. 1.0 | CN4: CSE 0.813 EXE | CP4: MPCBECC | CQ4: 1.31208e-09 | CR4: 0 | CS4: 0.0127538 | CT4: 0 | CU4: 0 | CV4: 0.074916 | CW4: 0.132283 | CX4: 0.258468 | CY4: 0.0105306 | CZ4: 0.488951 | DA4: 0.0127538 | DB4: 1.31208e-09 | DC4: 0 | DD4: 0.0127538 | DE4: 0 | DF4: 0 | DG4: 0.074916 | DH4: 0.132283 | DI4: 0.258468 | DJ4: 0.0105306 | DK4: 0.488951 | DL4: 0.0127538 | DM4: 0 | DN4: 0 | DO4: 0 | DP4: 0 | DZ4: 315.019 | EA4: 0 | EB4: 111.69 | EC4: 0 | ED4: 0 | EE4: 0 | EF4: 505.557 | EG4: 889.016 | EH4: 2025.88 | EI4: 119.621 | EJ4: 3966.79 | EK4: 366.858 | EL4: 0 | EM4: 0 | EN4: 0 | EO4: 129.651 | EP4: 0 | EQ4: 43.6697 | ER4: 0 | ES4: 0 | ET4: 540.179 | EU4: 0 | EV4: 0 | EW4: 0 | EX4: 0 | EY4: 0 | EZ4: 0 | FA4: 0 | FB4: 0 | FC4: 0 | FD4: 0 | FE4: 34 | FF4: 0 | FG4: 1.17 | FH4: 0 | FI4: 10.27 | FJ4: 0 | FK4: 5.44 | FL4: 13.06 | FM4: 21.44 | FN4: 1.2 | FO4: 86.58 | FP4: 1.31208e-09 | FQ4: 0 | FR4: 0.0127538 | FS4: 0 | FT4: 0 | FU4: 0 | FV4: 0.074916 | FW4: 0.132283 | FX4: 0.258468 | FY4: 0.0105306 | FZ4: 0.488951 | GA4: 419.189 | GB4: 0 | GC4: 111.69 | GD4: 0 | GE4: 0 | GF4: 2135 | GG4: 930.001 | GH4: 2637.81 | GI4: 297.5 | GJ4: 6531.19 | GK4: 348.879 | GL4: 0 | GM4: 0 | GN4: 0 | GO4: 183.466 | GP4: 0 | GQ4: 65.4 | GR4: 0 | GS4: 0 | GT4: 597.745 | GU4: 0 | GV4: 0 | GW4: 0 | GX4: 0 | GY4: 0 | GZ4: 0 | HA4: 0 | HB4: 0 | HC4: 0 | HD4: 0 | HE4: 33.33 | HF4: 0 | HG4: 1.17 | HH4: 0 | HI4: 14.53 | HJ4: 23.21 | HK4: 14.89 | HL4: 28.04 | HM4: 2.82 | HN4: 117.99 | HO4: 1.80283e-09 | HP4: 0 | HQ4: 0.0127538 | HR4: 0 | HS4: 0 | HT4: 0.3358 | HU4: 0.110741 | HV4: 0.35138 | HW4: 0.00414612 | HX4: 0.814822 | HY4: 57.2557 | HZ4: 0 | IA4: 57.2557
A5: 2016-08-31T17:00:51 | B5: U01R02 | C5: v27 02 S21 G20 M01 | D5: Proposed and Standard | E5: PASS | F5: 0 | G5: 50.6128 | H5: 212.216 | I5: 6.16716 | J5: 111.69 | K5: 0 | L5: 0 | M5: 505.557 | N5: 926.023 | O5: 2025.88 | P5: 119.621 | Q5: 3907.16 | R5: 247.129 | S5: 0 | T5: 0 | U5: 0 | V5: 116.405 | W5: 0 | X5: 43.6697 | Y5: 0 | Z5: 0 | AA5: 407.204 | AB5: 0 | AC5: 0 | AD5: 0 | AE5: 0 | AF5: 0 | AG5: 0 | AH5: 0 | AI5: 0 | AJ5: 0 | AK5: 0 | AL5: 23.73 | AM5: 0.36 | AN5: 1.17 | AO5: 0 | AP5: 9.26 | AQ5: 0 | AR5: 5.44 | AS5: 13.69 | AT5: 21.46 | AU5: 1.2 | AV5: 76.31 | AW5: 34.52 | AX5: 212.216 | AY5: 6.16716 | AZ5: 111.69 | BA5: 0 | BB5: 0 | BC5: 505.557 | BD5: 926.023 | BE5: 2025.88 | BF5: 119.621 | BG5: 3907.16 | BH5: 247.129 | BI5: 0 | BJ5: 0 | BK5: 0 | BL5: 116.405 | BM5: 0 | BN5: 43.6697 | BO5: 0 | BP5: 0 | BQ5: 407.204 | BR5: 0 | BS5: 0 | BT5: 0 | BU5: 0 | BV5: 0 | BW5: 0 | BX5: 0 | BY5: 0 | BZ5: 0 | CA5: 0 | CB5: 23.73 | CC5: 0.36 | CD5: 1.17 | CE5: 0 | CF5: 9.26 | CG5: 5.44 | CH5: 13.69 | CI5: 21.46 | CJ5: 1.2 | CK5: 76.31 | CL5: 34.52 | CM5: CA Residential 2016, Vers. 1.0 | CN5: CSE 0.813 EXE | CP5: MPCBECC | CQ5: 0 | CR5: 0.0112493 | CS5: 0.0127538 | CT5: 0 | CU5: 0 | CV5: 0.074916 | CW5: 0.143023 | CX5: 0.258468 | CY5: 0.0105306 | CZ5: 0.510941 | DA5: 0.024003 | DB5: 0 | DC5: 0.0112493 | DD5: 0.0127538 | DE5: 0 | DF5: 0 | DG5: 0.074916 | DH5: 0.143023 | DI5: 0.258468 | DJ5: 0.0105306 | DK5: 0.510941 | DL5: 0.024003 | DM5: 0 | DN5: 0 | DO5: 0 | DP5: 0 | DZ5: 212.216 | EA5: 6.16716 | EB5: 111.69 | EC5: 0 | ED5: 0 | EE5: 0 | EF5: 505.557 | EG5: 926.023 | EH5: 2025.88 | EI5: 119.621 | EJ5: 3907.16 | EK5: 247.129 | EL5: 0 | EM5: 0 | EN5: 0 | EO5: 116.405 | EP5: 0 | EQ5: 43.6697 | ER5: 0 | ES5: 0 | ET5: 407.204 | EU5: 0 | EV5: 0 | EW5: 0 | EX5: 0 | EY5: 0 | EZ5: 0 | FA5: 0 | FB5: 0 | FC5: 0 | FD5: 0 | FE5: 23.73 | FF5: 0.36 | FG5: 1.17 | FH5: 0 | FI5: 9.26 | FJ5: 0 | FK5: 5.44 | FL5: 13.69 | FM5: 21.46 | FN5: 1.2 | FO5: 76.31 | FP5: 0 | FQ5: 0.0112493 | FR5: 0.0127538 | FS5: 0 | FT5: 0 | FU5: 0 | FV5: 0.074916 | FW5: 0.143023 | FX5: 0.258468 | FY5: 0.0105306 | FZ5: 0.510941 | GA5: 455.723 | GB5: 63.2055 | GC5: 111.69 | GD5: 0 | GE5: 0 | GF5: 2135 | GG5: 930.001 | GH5: 2637.81 | GI5: 297.5 | GJ5: 6630.93 | GK5: 379.271 | GL5: 0 | GM5: 0 | GN5: 0 | GO5: 170.803 | GP5: 0 | GQ5: 65.4 | GR5: 0 | GS5: 0 | GT5: 615.474 | GU5: 0 | GV5: 0 | GW5: 0 | GX5: 0 | GY5: 0 | GZ5: 0 | HA5: 0 | HB5: 0 | HC5: 0 | HD5: 0 | HE5: 37.39 | HF5: 3.55 | HG5: 1.17 | HH5: 0 | HI5: 13.59 | HJ5: 23.29 | HK5: 14.9 | HL5: 28.13 | HM5: 2.81 | HN5: 124.83 | HO5: 0 | HP5: 0.130719 | HQ5: 0.0127538 | HR5: 0 | HS5: 0 | HT5: 0.3358 | HU5: 0.110741 | HV5: 0.35138 | HW5: 0.00414612 | HX5: 0.945541 | HY5: 50.6128 | HZ5: 0 | IA5: 50.6128
A6: 2016-08-31T17:00:51 | B6: U01R03 | C6: v27 03 S21 G20 M01 | D6: Proposed and Standard | E6: PASS | F6: 0 | G6: 47.8076 | H6: 129.868 | I6: 0 | J6: 111.69 | K6: 0 | L6: 0 | M6: 505.557 | N6: 919.538 | O6: 2025.88 | P6: 119.621 | Q6: 3812.16 | R6: 151.225 | S6: 0 | T6: 0 | U6: 0 | V6: 116.887 | W6: 0 | X6: 43.6697 | Y6: 0 | Z6: 0 | AA6: 311.781 | AB6: 0 | AC6: 0 | AD6: 0 | AE6: 0 | AF6: 0 | AG6: 0 | AH6: 0 | AI6: 0 | AJ6: 0 | AK6: 0 | AL6: 14.68 | AM6: 0 | AN6: 1.17 | AO6: 0 | AP6: 9.28 | AQ6: 0 | AR6: 5.41 | AS6: 13.54 | AT6: 21.43 | AU6: 1.19 | AV6: 66.7 | AW6: 25.13 | AX6: 129.868 | AY6: 0 | AZ6: 111.69 | BA6: 0 | BB6: 0 | BC6: 505.557 | BD6: 919.538 | BE6: 2025.88 | BF6: 119.621 | BG6: 3812.16 | BH6: 151.225 | BI6: 0 | BJ6: 0 | BK6: 0 | BL6: 116.887 | BM6: 0 | BN6: 43.6697 | BO6: 0 | BP6: 0 | BQ6: 311.781 | BR6: 0 | BS6: 0 | BT6: 0 | BU6: 0 | BV6: 0 | BW6: 0 | BX6: 0 | BY6: 0 | BZ6: 0 | CA6: 0 | CB6: 14.68 | CC6: 0 | CD6: 1.17 | CE6: 0 | CF6: 9.28 | CG6: 5.41 | CH6: 13.54 | CI6: 21.43 | CJ6: 1.19 | CK6: 66.7 | CL6: 25.13 | CM6: CA Residential 2016, Vers. 1.0 | CN6: CSE 0.813 EXE | CP6: MPCBECC | CQ6: 0 | CR6: 0 | CS6: 0.0127538 | CT6: 0 | CU6: 0 | CV6: 0.074916 | CW6: 0.138941 | CX6: 0.258468 | CY6: 0.0105306 | CZ6: 0.495609 | DA6: 0.0127538 | DB6: 0 | DC6: 0 | DD6: 0.0127538 | DE6: 0 | DF6: 0 | DG6: 0.074916 | DH6: 0.138941 | DI6: 0.258468 | DJ6: 0.0105306 | DK6: 0.495609 | DL6: 0.0127538 | DM6: 0 | DN6: 0 | DO6: 0 | DP6: 0 | DZ6: 129.868 | EA6: 0 | EB6: 111.69 | EC6: 0 | ED6: 0 | EE6: 0 | EF6: 505.557 | EG6: 919.538 | EH6: 2025.88 | EI6: 119.621 | EJ6: 3812.16 | EK6: 151.225 | EL6: 0 | EM6: 0 | EN6: 0 | EO6: 116.887 | EP6: 0 | EQ6: 43.6697 | ER6: 0 | ES6: 0 | ET6: 311.781 | EU6: 0 | EV6: 0 | EW6: 0 | EX6: 0 | EY6: 0 | EZ6: 0 | FA6: 0 | FB6: 0 | FC6: 0 | FD6: 0 | FE6: 14.68 | FF6: 0 | FG6: 1.17 | FH6: 0 | FI6: 9.28 | FJ6: 0 | FK6: 5.41 | FL6: 13.54 | FM6: 21.43 | FN6: 1.19 | FO6: 66.7 | FP6: 0 | FQ6: 0 | FR6: 0.0127538 | FS6: 0 | FT6: 0 | FU6: 0 | FV6: 0.074916 | FW6: 0.138941 | FX6: 0.258468 | FY6: 0.0105306 | FZ6: 0.495609 | GA6: 387.177 | GB6: 0 | GC6: 111.69 | GD6: 0 | GE6: 0 | GF6: 2135 | GG6: 930.001 | GH6: 2637.81 | GI6: 297.5 | GJ6: 6499.18 | GK6: 322.207 | GL6: 0 | GM6: 0 | GN6: 0 | GO6: 171.372 | GP6: 0 | GQ6: 65.4 | GR6: 0 | GS6: 0 | GT6: 558.979 | GU6: 0 | GV6: 0 | GW6: 0 | GX6: 0 | GY6: 0 | GZ6: 0 | HA6: 0 | HB6: 0 | HC6: 0 | HD6: 0 | HE6: 31.69 | HF6: 0 | HG6: 1.17 | HH6: 0 | HI6: 13.6 | HJ6: 23.09 | HK6: 14.89 | HL6: 28.02 | HM6: 2.78 | HN6: 115.24 | HO6: 0 | HP6: 0 | HQ6: 0.0127538 | HR6: 0 | HS6: 0 | HT6: 0.3358 | HU6: 0.110741 | HV6: 0.35138 | HW6: 0.00414612 | HX6: 0.814822 | HY6: 47.8076 | HZ6: 0 | IA6: 47.8076
A7: 2016-08-31T17:00:51 | B7: U01R04 | C7: v27 04 S21 G20 M01 | D7: Proposed and Standard | E7: PASS | F7: 0 | G7: 48.2446 | H7: 149.8 | I7: 24.5619 | J7: 111.69 | K7: 0 | L7: 0 | M7: 505.557 | N7: 938.955 | O7: 2025.88 | P7: 119.621 | Q7: 3876.07 | R7: 174.445 | S7: 0 | T7: 0 | U7: 0 | V7: 111.371 | W7: 0 | X7: 43.6697 | Y7: 0 | Z7: 0 | AA7: 329.486 | AB7: 0 | AC7: 0 | AD7: 0 | AE7: 0 | AF7: 0 | AG7: 0 | AH7: 0 | AI7: 0 | AJ7: 0 | AK7: 0 | AL7: 16.82 | AM7: 1.6 | AN7: 1.17 | AO7: 0 | AP7: 8.87 | AQ7: 0 | AR7: 5.46 | AS7: 13.77 | AT7: 21.48 | AU7: 1.2 | AV7: 70.37 | AW7: 28.46 | AX7: 149.8 | AY7: 24.5619 | AZ7: 111.69 | BA7: 0 | BB7: 0 | BC7: 505.557 | BD7: 938.955 | BE7: 2025.88 | BF7: 119.621 | BG7: 3876.07 | BH7: 174.445 | BI7: 0 | BJ7: 0 | BK7: 0 | BL7: 111.371 | BM7: 0 | BN7: 43.6697 | BO7: 0 | BP7: 0 | BQ7: 329.486 | BR7: 0 | BS7: 0 | BT7: 0 | BU7: 0 | BV7: 0 | BW7: 0 | BX7: 0 | BY7: 0 | BZ7: 0 | CA7: 0 | CB7: 16.82 | CC7: 1.6 | CD7: 1.17 | CE7: 0 | CF7: 8.87 | CG7: 5.46 | CH7: 13.77 | CI7: 21.48 | CJ7: 1.2 | CK7: 70.37 | CL7: 28.46 | CM7: CA Residential 2016, Vers. 1.0 | CN7: CSE 0.813 EXE | CP7: MPCBECC | CQ7: 0 | CR7: 0.15347 | CS7: 0.0127538 | CT7: 0 | CU7: 0 | CV7: 0.074916 | CW7: 0.1466 | CX7: 0.258468 | CY7: 0.0105306 | CZ7: 0.656738 | DA7: 0.166223 | DB7: 0 | DC7: 0.15347 | DD7: 0.0127538 | DE7: 0 | DF7: 0 | DG7: 0.074916 | DH7: 0.1466 | DI7: 0.258468 | DJ7: 0.0105306 | DK7: 0.656738 | DL7: 0.166223 | DM7: 0 | DN7: 0 | DO7: 0 | DP7: 0 | DZ7: 149.8 | EA7: 24.5619 | EB7: 111.69 | EC7: 0 | ED7: 0 | EE7: 0 | EF7: 505.557 | EG7: 938.955 | EH7: 2025.88 | EI7: 119.621 | EJ7: 3876.07 | EK7: 174.445 | EL7: 0 | EM7: 0 | EN7: 0 | EO7: 111.371 | EP7: 0 | EQ7: 43.6697 | ER7: 0 | ES7: 0 | ET7: 329.486 | EU7: 0 | EV7: 0 | EW7: 0 | EX7: 0 | EY7: 0 | EZ7: 0 | FA7: 0 | FB7: 0 | FC7: 0 | FD7: 0 | FE7: 16.82 | FF7: 1.6 | FG7: 1.17 | FH7: 0 | FI7: 8.87 | FJ7: 0 | FK7: 5.46 | FL7: 13.77 | FM7: 21.48 | FN7: 1.2 | FO7: 70.37 | FP7: 0 | FQ7: 0.15347 | FR7: 0.0127538 | FS7: 0 | FT7: 0 | FU7: 0 | FV7: 0.074916 | FW7: 0.1466 | FX7: 0.258468 | FY7: 0.0105306 | FZ7: 0.656738 | GA7: 351.056 | GB7: 151.226 | GC7: 111.69 | GD7: 0 | GE7: 0 | GF7: 2135 | GG7: 930.001 | GH7: 2637.81 | GI7: 297.5 | GJ7: 6614.28 | GK7: 292.164 | GL7: 0 | GM7: 0 | GN7: 0 | GO7: 165.96 | GP7: 0 | GQ7: 65.4 | GR7: 0 | GS7: 0 | GT7: 523.524 | GU7: 0 | GV7: 0 | GW7: 0 | GX7: 0 | GY7: 0 | GZ7: 0 | HA7: 0 | HB7: 0 | HC7: 0 | HD7: 0 | HE7: 28.98 | HF7: 8.16 | HG7: 1.17 | HH7: 0 | HI7: 13.22 | HJ7: 23.33 | HK7: 14.9 | HL7: 28.15 | HM7: 2.8 | HN7: 120.71 | HO7: 0 | HP7: 0.641943 | HQ7: 0.0127538 | HR7: 0 | HS7: 0 | HT7: 0.3358 | HU7: 0.110741 | HV7: 0.35138 | HW7: 0.00414612 | HX7: 1.45676 | HY7: 48.2446 | HZ7: 0 | IA7: 48.2446
A8: 2016-08-31T17:00:50 | B8: U01R05 | C8: v27 05 S21 G20 M01 | D8: Proposed and Standard | E8: PASS | F8: 0 | G8: 44.6339 | H8: 108.196 | I8: 0 | J8: 111.69 | K8: 0 | L8: 0 | M8: 505.557 | N8: 919.427 | O8: 2025.88 | P8: 119.621 | Q8: 3790.37 | R8: 126.003 | S8: 0 | T8: 0 | U8: 0 | V8: 119.652 | W8: 0 | X8: 43.6697 | Y8: 0 | Z8: 0 | AA8: 289.325 | AB8: 0 | AC8: 0 | AD8: 0 | AE8: 0 | AF8: 0 | AG8: 0 | AH8: 0 | AI8: 0 | AJ8: 0 | AK8: 0 | AL8: 12.03 | AM8: 0 | AN8: 1.17 | AO8: 0 | AP8: 9.48 | AQ8: 0 | AR8: 5.36 | AS8: 13.44 | AT8: 21.36 | AU8: 1.19 | AV8: 64.03 | AW8: 22.68 | AX8: 108.196 | AY8: 0 | AZ8: 111.69 | BA8: 0 | BB8: 0 | BC8: 505.557 | BD8: 919.427 | BE8: 2025.88 | BF8: 119.621 | BG8: 3790.37 | BH8: 126.003 | BI8: 0 | BJ8: 0 | BK8: 0 | BL8: 119.652 | BM8: 0 | BN8: 43.6697 | BO8: 0 | BP8: 0 | BQ8: 289.325 | BR8: 0 | BS8: 0 | BT8: 0 | BU8: 0 | BV8: 0 | BW8: 0 | BX8: 0 | BY8: 0 | BZ8: 0 | CA8: 0 | CB8: 12.03 | CC8: 0 | CD8: 1.17 | CE8: 0 | CF8: 9.48 | CG8: 5.36 | CH8: 13.44 | CI8: 21.36 | CJ8: 1.19 | CK8: 64.03 | CL8: 22.68 | CM8: CA Residential 2016, Vers. 1.0 | CN8: CSE 0.813 EXE | CP8: MPCBECC | CQ8: 0 | CR8: 0 | CS8: 0.0127538 | CT8: 0 | CU8: 0 | CV8: 0.074916 | CW8: 0.138463 | CX8: 0.258468 | CY8: 0.0105306 | CZ8: 0.495131 | DA8: 0.0127538 | DB8: 0 | DC8: 0 | DD8: 0.0127538 | DE8: 0 | DF8: 0 | DG8: 0.074916 | DH8: 0.138463 | DI8: 0.258468 | DJ8: 0.0105306 | DK8: 0.495131 | DL8: 0.0127538 | DM8: 0 | DN8: 0 | DO8: 0 | DP8: 0 | DZ8: 108.196 | EA8: 0 | EB8: 111.69 | EC8: 0 | ED8: 0 | EE8: 0 | EF8: 505.557 | EG8: 919.427 | EH8: 2025.88 | EI8: 119.621 | EJ8: 3790.37 | EK8: 126.003 | EL8: 0 | EM8: 0 | EN8: 0 | EO8: 119.652 | EP8: 0 | EQ8: 43.6697 | ER8: 0 | ES8: 0 | ET8: 289.325 | EU8: 0 | EV8: 0 | EW8: 0 | EX8: 0 | EY8: 0 | EZ8: 0 | FA8: 0 | FB8: 0 | FC8: 0 | FD8: 0 | FE8: 12.03 | FF8: 0 | FG8: 1.17 | FH8: 0 | FI8: 9.48 | FJ8: 0 | FK8: 5.36 | FL8: 13.44 | FM8: 21.36 | FN8: 1.19 | FO8: 64.03 | FP8: 0 | FQ8: 0 | FR8: 0.0127538 | FS8: 0 | FT8: 0 | FU8: 0 | FV8: 0.074916 | FW8: 0.138463 | FX8: 0.258468 | FY8: 0.0105306 | FZ8: 0.495131 | GA8: 402.941 | GB8: 0 | GC8: 111.69 | GD8: 0 | GE8: 0 | GF8: 2135 | GG8: 930.001 | GH8: 2637.81 | GI8: 297.5 | GJ8: 6514.94 | GK8: 335.364 | GL8: 0 | GM8: 0 | GN8: 0 | GO8: 174.023 | GP8: 0 | GQ8: 65.4 | GR8: 0 | GS8: 0 | GT8: 574.788 | GU8: 0 | GV8: 0 | GW8: 0 | GX8: 0 | GY8: 0 | GZ8: 0 | HA8: 0 | HB8: 0 | HC8: 0 | HD8: 0 | HE8: 32.38 | HF8: 0 | HG8: 1.17 | HH8: 0 | HI8: 13.79 | HJ8: 22.84 | HK8: 14.87 | HL8: 27.86 | HM8: 2.78 | HN8: 115.69 | HO8: 2.65127e-15 | HP8: 0 | HQ8: 0.0127538 | HR8: 0 | HS8: 0 | HT8: 0.3358 | HU8: 0.110741 | HV8: 0.35138 | HW8: 0.00414612 | HX8: 0.814822 | HY8: 44.6339 | HZ8: 0 | IA8: 44.6339
A9: 2016-08-31T17:00:50 | B9: U01R06 | C9: v27 06 S21 G20 M01 | D9: Proposed and Standard | E9: PASS | F9: 0 | G9: 51.0209 | H9: 67.7378 | I9: 35.9259 | J9: 111.69 | K9: 0 | L9: 0 | M9: 505.557 | N9: 953.526 | O9: 2025.88 | P9: 119.621 | Q9: 3819.94 | R9: 78.8804 | S9: 0 | T9: 0 | U9: 0 | V9: 106.275 | W9: 0 | X9: 43.6697 | Y9: 0 | Z9: 0 | AA9: 228.825 | AB9: 0 | AC9: 0 | AD9: 0 | AE9: 0 | AF9: 0 | AG9: 0 | AH9: 0 | AI9: 0 | AJ9: 0 | AK9: 0 | AL9: 7.7 | AM9: 2.16 | AN9: 1.13 | AO9: 0 | AP9: 8.5 | AQ9: 0 | AR9: 5.27 | AS9: 13.63 | AT9: 20.78 | AU9: 1.15 | AV9: 60.32 | AW9: 19.49 | AX9: 67.7377 | AY9: 35.9259 | AZ9: 111.69 | BA9: 0 | BB9: 0 | BC9: 505.557 | BD9: 953.526 | BE9: 2025.88 | BF9: 119.621 | BG9: 3819.94 | BH9: 78.8803 | BI9: 0 | BJ9: 0 | BK9: 0 | BL9: 106.275 | BM9: 0 | BN9: 43.6697 | BO9: 0 | BP9: 0 | BQ9: 228.825 | BR9: 0 | BS9: 0 | BT9: 0 | BU9: 0 | BV9: 0 | BW9: 0 | BX9: 0 | BY9: 0 | BZ9: 0 | CA9: 0 | CB9: 7.7 | CC9: 2.16 | CD9: 1.13 | CE9: 0 | CF9: 8.5 | CG9: 5.27 | CH9: 13.63 | CI9: 20.78 | CJ9: 1.15 | CK9: 60.32 | CL9: 19.49 | CM9: CA Residential 2016, Vers. 1.0 | CN9: CSE 0.813 EXE | CP9: MPCBECC | CQ9: 0 | CR9: 0.172993 | CS9: 0.0127538 | CT9: 0 | CU9: 0 | CV9: 0.074916 | CW9: 0.144546 | CX9: 0.258468 | CY9: 0.0105306 | CZ9: 0.674208 | DA9: 0.185747 | DB9: 0 | DC9: 0.172993 | DD9: 0.0127538 | DE9: 0 | DF9: 0 | DG9: 0.074916 | DH9: 0.144546 | DI9: 0.258468 | DJ9: 0.0105306 | DK9: 0.674208 | DL9: 0.185747 | DM9: 0 | DN9: 0 | DO9: 0 | DP9: 0 | DZ9: 67.7378 | EA9: 35.9259 | EB9: 111.69 | EC9: 0 | ED9: 0 | EE9: 0 | EF9: 505.557 | EG9: 953.526 | EH9: 2025.88 | EI9: 119.621 | EJ9: 3819.94 | EK9: 78.8804 | EL9: 0 | EM9: 0 | EN9: 0 | EO9: 106.275 | EP9: 0 | EQ9: 43.6697 | ER9: 0 | ES9: 0 | ET9: 228.825 | EU9: 0 | EV9: 0 | EW9: 0 | EX9: 0 | EY9: 0 | EZ9: 0 | FA9: 0 | FB9: 0 | FC9: 0 | FD9: 0 | FE9: 7.7 | FF9: 2.16 | FG9: 1.13 | FH9: 0 | FI9: 8.5 | FJ9: 0 | FK9: 5.27 | FL9: 13.63 | FM9: 20.78 | FN9: 1.15 | FO9: 60.32 | FP9: 0 | FQ9: 0.172993 | FR9: 0.0127538 | FS9: 0 | FT9: 0 | FU9: 0 | FV9: 0.074916 | FW9: 0.144546 | FX9: 0.258468 | FY9: 0.0105306 | FZ9: 0.674208 | GA9: 148.465 | GB9: 90.9263 | GC9: 111.69 | GD9: 0 | GE9: 0 | GF9: 2135 | GG9: 930.001 | GH9: 2637.81 | GI9: 297.5 | GJ9: 6351.39 | GK9: 123.557 | GL9: 0 | GM9: 0 | GN9: 0 | GO9: 161.156 | GP9: 0 | GQ9: 65.4 | GR9: 0 | GS9: 0 | GT9: 350.113 | GU9: 0 | GV9: 0 | GW9: 0 | GX9: 0 | GY9: 0 | GZ9: 0 | HA9: 0 | HB9: 0 | HC9: 0 | HD9: 0 | HE9: 12.35 | HF9: 5.55 | HG9: 1.13 | HH9: 0 | HI9: 12.88 | HJ9: 22.42 | HK9: 14.59 | HL9: 27.08 | HM9: 2.74 | HN9: 98.74 | HO9: 0 | HP9: 0.299789 | HQ9: 0.0127538 | HR9: 0 | HS9: 0 | HT9: 0.3358 | HU9: 0.110741 | HV9: 0.35138 | HW9: 0.00414612 | HX9: 1.11461 | HY9: 51.0209 | HZ9: 0 | IA9: 51.0209
A10: 2016-08-31T17:00:50 | B10: U01R07 | C10: v27 07 S21 G20 M01 | D10: Proposed and Standard | E10: PASS | F10: 0 | G10: 49.7965 | H10: 25.065 | I10: 3.65082 | J10: 111.69 | K10: 0 | L10: 0 | M10: 505.557 | N10: 955.102 | O10: 2025.88 | P10: 119.621 | Q10: 3746.57 | R10: 29.1872 | S10: 0 | T10: 0 | U10: 0 | V10: 104.546 | W10: 0 | X10: 43.6697 | Y10: 0 | Z10: 0 | AA10: 177.403 | AB10: 0 | AC10: 0 | AD10: 0 | AE10: 0 | AF10: 0 | AG10: 0 | AH10: 0 | AI10: 0 | AJ10: 0 | AK10: 0 | AL10: 2.75 | AM10: 0.3 | AN10: 1.17 | AO10: 0 | AP10: 8.2 | AQ10: 0 | AR10: 5.54 | AS10: 13.89 | AT10: 21.65 | AU10: 1.22 | AV10: 54.72 | AW10: 12.42 | AX10: 25.065 | AY10: 3.65082 | AZ10: 111.69 | BA10: 0 | BB10: 0 | BC10: 505.557 | BD10: 955.102 | BE10: 2025.88 | BF10: 119.621 | BG10: 3746.57 | BH10: 29.1872 | BI10: 0 | BJ10: 0 | BK10: 0 | BL10: 104.546 | BM10: 0 | BN10: 43.6697 | BO10: 0 | BP10: 0 | BQ10: 177.403 | BR10: 0 | BS10: 0 | BT10: 0 | BU10: 0 | BV10: 0 | BW10: 0 | BX10: 0 | BY10: 0 | BZ10: 0 | CA10: 0 | CB10: 2.75 | CC10: 0.3 | CD10: 1.17 | CE10: 0 | CF10: 8.2 | CG10: 5.54 | CH10: 13.89 | CI10: 21.65 | CJ10: 1.22 | CK10: 54.72 | CL10: 12.42 | CM10: CA Residential 2016, Vers. 1.0 | CN10: CSE 0.813 EXE | CP10: MPCBECC | CQ10: 0 | CR10: 0.0320551 | CS10: 0.0127538 | CT10: 0 | CU10: 0 | CV10: 0.074916 | CW10: 0.144064 | CX10: 0.258468 | CY10: 0.0105306 | CZ10: 0.532787 | DA10: 0.0448089 | DB10: 0 | DC10: 0.0320551 | DD10: 0.0127538 | DE10: 0 | DF10: 0 | DG10: 0.074916 | DH10: 0.144064 | DI10: 0.258468 | DJ10: 0.0105306 | DK10: 0.532787 | DL10: 0.0448089 | DM10: 0 | DN10: 0 | DO10: 0 | DP10: 0 | DZ10: 25.065 | EA10: 3.65082 | EB10: 111.69 | EC10: 0 | ED10: 0 | EE10: 0 | EF10: 505.557 | EG10: 955.102 | EH10: 2025.88 | EI10: 119.621 | EJ10: 3746.57 | EK10: 29.1872 | EL10: 0 | EM10: 0 | EN10: 0 | EO10: 104.546 | EP10: 0 | EQ10: 43.6697 | ER10: 0 | ES10: 0 | ET10: 177.403 | EU10: 0 | EV10: 0 | EW10: 0 | EX10: 0 | EY10: 0 | EZ10: 0 | FA10: 0 | FB10: 0 | FC10: 0 | FD10: 0 | FE10: 2.75 | FF10: 0.3 | FG10: 1.17 | FH10: 0 | FI10: 8.2 | FJ10: 0 | FK10: 5.54 | FL10: 13.89 | FM10: 21.65 | FN10: 1.22 | FO10: 54.72 | FP10: 0 | FQ10: 0.0320551 | FR10: 0.0127538 | FS10: 0 | FT10: 0 | FU10: 0 | FV10: 0.074916 | FW10: 0.144064 | FX10: 0.258468 | FY10: 0.0105306 | FZ10: 0.532787 | GA10: 60.1105 | GB10: 29.0237 | GC10: 111.69 | GD10: 0 | GE10: 0 | GF10: 2135 | GG10: 930.001 | GH10: 2637.81 | GI10: 297.5 | GJ10: 6201.14 | GK10: 50.0238 | GL10: 0 | GM10: 0 | GN10: 0 | GO10: 159.6 | GP10: 0 | GQ10: 65.4 | GR10: 0 | GS10: 0 | GT10: 275.024 | GU10: 0 | GV10: 0 | GW10: 0 | GX10: 0 | GY10: 0 | GZ10: 0 | HA10: 0 | HB10: 0 | HC10: 0 | HD10: 0 | HE10: 4.85 | HF10: 2.38 | HG10: 1.17 | HH10: 0 | HI10: 12.51 | HJ10: 23.59 | HK10: 14.88 | HL10: 28.26 | HM10: 2.93 | HN10: 90.57 | HO10: 0 | HP10: 0.133802 | HQ10: 0.0127538 | HR10: 0 | HS10: 0 | HT10: 0.3358 | HU10: 0.110741 | HV10: 0.35138 | HW10: 0.00414612 | HX10: 0.948623 | HY10: 49.7965 | HZ10: 0 | IA10: 49.7965
A11: 2016-08-31T17:00:51 | B11: U01R08 | C11: v27 08 S21 G20 M01 | D11: Proposed and Standard | E11: PASS | F11: 0 | G11: 46.7554 | H11: 35.3462 | I11: 226.191 | J11: 111.69 | K11: 0 | L11: 0 | M11: 505.557 | N11: 969.943 | O11: 2025.88 | P11: 119.621 | Q11: 3994.23 | R11: 41.1607 | S11: 0 | T11: 0 | U11: 0 | V11: 101.841 | W11: 0 | X11: 43.6697 | Y11: 0 | Z11: 0 | AA11: 186.672 | AB11: 0 | AC11: 0 | AD11: 0 | AE11: 0 | AF11: 0 | AG11: 0 | AH11: 0 | AI11: 0 | AJ11: 0 | AK11: 0 | AL11: 4.03 | AM11: 6.22 | AN11: 1.13 | AO11: 0 | AP11: 8.15 | AQ11: 0 | AR11: 5.32 | AS11: 13.84 | AT11: 20.87 | AU11: 1.17 | AV11: 60.73 | AW11: 19.53 | AX11: 35.3462 | AY11: 226.191 | AZ11: 111.69 | BA11: 0 | BB11: 0 | BC11: 505.557 | BD11: 969.943 | BE11: 2025.88 | BF11: 119.621 | BG11: 3994.23 | BH11: 41.1607 | BI11: 0 | BJ11: 0 | BK11: 0 | BL11: 101.841 | BM11: 0 | BN11: 43.6697 | BO11: 0 | BP11: 0 | BQ11: 186.672 | BR11: 0 | BS11: 0 | BT11: 0 | BU11: 0 | BV11: 0 | BW11: 0 | BX11: 0 | BY11: 0 | BZ11: 0 | CA11: 0 | CB11: 4.03 | CC11: 6.22 | CD11: 1.13 | CE11: 0 | CF11: 8.15 | CG11: 5.32 | CH11: 13.84 | CI11: 20.87 | CJ11: 1.17 | CK11: 60.73 | CL11: 19.53 | CM11: CA Residential 2016, Vers. 1.0 | CN11: CSE 0.813 EXE | CP11: MPCBECC | CQ11: 0 | CR11: 0.451415 | CS11: 0.0127538 | CT11: 0 | CU11: 0 | CV11: 0.074916 | CW11: 0.149196 | CX11: 0.258468 | CY11: 0.0105306 | CZ11: 0.957278 | DA11: 0.464168 | DB11: 0 | DC11: 0.451415 | DD11: 0.0127538 | DE11: 0 | DF11: 0 | DG11: 0.074916 | DH11: 0.149196 | DI11: 0.258468 | DJ11: 0.0105306 | DK11: 0.957278 | DL11: 0.464168 | DM11: 0 | DN11: 0 | DO11: 0 | DP11: 0 | DZ11: 35.3462 | EA11: 226.191 | EB11: 111.69 | EC11: 0 | ED11: 0 | EE11: 0 | EF11: 505.557 | EG11: 969.943 | EH11: 2025.88 | EI11: 119.621 | EJ11: 3994.23 | EK11: 41.1607 | EL11: 0 | EM11: 0 | EN11: 0 | EO11: 101.841 | EP11: 0 | EQ11: 43.6697 | ER11: 0 | ES11: 0 | ET11: 186.672 | EU11: 0 | EV11: 0 | EW11: 0 | EX11: 0 | EY11: 0 | EZ11: 0 | FA11: 0 | FB11: 0 | FC11: 0 | FD11: 0 | FE11: 4.03 | FF11: 6.22 | FG11: 1.13 | FH11: 0 | FI11: 8.15 | FJ11: 0 | FK11: 5.32 | FL11: 13.84 | FM11: 20.87 | FN11: 1.17 | FO11: 60.73 | FP11: 0 | FQ11: 0.451415 | FR11: 0.0127538 | FS11: 0 | FT11: 0 | FU11: 0 | FV11: 0.074916 | FW11: 0.149196 | FX11: 0.258468 | FY11: 0.0105306 | FZ11: 0.957278 | GA11: 108.019 | GB11: 654.303 | GC11: 111.69 | GD11: 0 | GE11: 0 | GF11: 2135 | GG11: 930.001 | GH11: 2637.81 | GI11: 297.5 | GJ11: 6874.32 | GK11: 89.8967 | GL11: 0 | GM11: 0 | GN11: 0 | GO11: 156.838 | GP11: 0 | GQ11: 65.4 | GR11: 0 | GS11: 0 | GT11: 312.134 | GU11: 0 | GV11: 0 | GW11: 0 | GX11: 0 | GY11: 0 | GZ11: 0 | HA11: 0 | HB11: 0 | HC11: 0 | HD11: 0 | HE11: 9.02 | HF11: 22.55 | HG11: 1.13 | HH11: 0 | HI11: 12.55 | HJ11: 22.64 | HK11: 14.62 | HL11: 27.23 | HM11: 2.79 | HN11: 112.53 | HO11: 0 | HP11: 1.52465 | HQ11: 0.0127538 | HR11: 0 | HS11: 0 | HT11: 0.3358 | HU11: 0.110741 | HV11: 0.35138 | HW11: 0.00414612 | HX11: 2.33948 | HY11: 46.7554 | HZ11: 0 | IA11: 46.7554
A12: 2016-08-31T17:00:45 | B12: U01R09 | C12: v27 09 S21 G20 M01 | D12: Proposed and Standard | E12: PASS | F12: 0 | G12: 47.5638 | H12: 54.219 | I12: 462.121 | J12: 111.69 | K12: 0 | L12: 0 | M12: 505.557 | N12: 969.652 | O12: 2025.88 | P12: 119.621 | Q12: 4248.74 | R12: 63.1571 | S12: 0 | T12: 0 | U12: 0 | V12: 101.676 | W12: 0 | X12: 43.6697 | Y12: 0 | Z12: 0 | AA12: 208.503 | AB12: 0 | AC12: 0 | AD12: 0 | AE12: 0 | AF12: 0 | AG12: 0 | AH12: 0 | AI12: 0 | AJ12: 0 | AK12: 0 | AL12: 6.13 | AM12: 16.9 | AN12: 1.12 | AO12: 0 | AP12: 8.15 | AQ12: 0 | AR12: 5.25 | AS12: 13.72 | AT12: 20.63 | AU12: 1.15 | AV12: 73.05 | AW12: 32.3 | AX12: 54.219 | AY12: 462.121 | AZ12: 111.69 | BA12: 0 | BB12: 0 | BC12: 505.557 | BD12: 969.652 | BE12: 2025.88 | BF12: 119.621 | BG12: 4248.74 | BH12: 63.1571 | BI12: 0 | BJ12: 0 | BK12: 0 | BL12: 101.676 | BM12: 0 | BN12: 43.6697 | BO12: 0 | BP12: 0 | BQ12: 208.503 | BR12: 0 | BS12: 0 | BT12: 0 | BU12: 0 | BV12: 0 | BW12: 0 | BX12: 0 | BY12: 0 | BZ12: 0 | CA12: 0 | CB12: 6.13 | CC12: 16.9 | CD12: 1.12 | CE12: 0 | CF12: 8.15 | CG12: 5.25 | CH12: 13.72 | CI12: 20.63 | CJ12: 1.15 | CK12: 73.05 | CL12: 32.3 | CM12: CA Residential 2016, Vers. 1.0 | CN12: CSE 0.813 EXE | CP12: MPCBECC | CQ12: 0 | CR12: 1.17225 | CS12: 0.0127538 | CT12: 0 | CU12: 0 | CV12: 0.074916 | CW12: 0.151798 | CX12: 0.258468 | CY12: 0.0105306 | CZ12: 1.68071 | DA12: 1.185 | DB12: 0 | DC12: 1.17225 | DD12: 0.0127538 | DE12: 0 | DF12: 0 | DG12: 0.074916 | DH12: 0.151798 | DI12: 0.258468 | DJ12: 0.0105306 | DK12: 1.68071 | DL12: 1.185 | DM12: -1.19209e-07 | DN12: -1.19209e-07 | DO12: 0 | DP12: 0 | DZ12: 54.219 | EA12: 462.121 | EB12: 111.69 | EC12: 0 | ED12: 0 | EE12: 0 | EF12: 505.557 | EG12: 969.652 | EH12: 2025.88 | EI12: 119.621 | EJ12: 4248.74 | EK12: 63.1571 | EL12: 0 | EM12: 0 | EN12: 0 | EO12: 101.676 | EP12: 0 | EQ12: 43.6697 | ER12: 0 | ES12: 0 | ET12: 208.503 | EU12: 0 | EV12: 0 | EW12: 0 | EX12: 0 | EY12: 0 | EZ12: 0 | FA12: 0 | FB12: 0 | FC12: 0 | FD12: 0 | FE12: 6.13 | FF12: 16.9 | FG12: 1.12 | FH12: 0 | FI12: 8.15 | FJ12: 0 | FK12: 5.25 | FL12: 13.72 | FM12: 20.63 | FN12: 1.15 | FO12: 73.05 | FP12: 0 | FQ12: 1.17225 | FR12: 0.0127538 | FS12: 0 | FT12: 0 | FU12: 0 | FV12: 0.074916 | FW12: 0.151798 | FX12: 0.258468 | FY12: 0.0105306 | FZ12: 1.68071 | GA12: 152.267 | GB12: 1205.06 | GC12: 111.69 | GD12: 0 | GE12: 0 | GF12: 2135 | GG12: 930.001 | GH12: 2637.81 | GI12: 297.5 | GJ12: 7469.33 | GK12: 126.76 | GL12: 0 | GM12: 0 | GN12: 0 | GO12: 156.635 | GP12: 0 | GQ12: 65.4 | GR12: 0 | GS12: 0 | GT12: 348.795 | GU12: 0 | GV12: 0 | GW12: 0 | GX12: 0 | GY12: 0 | GZ12: 0 | HA12: 0 | HB12: 0 | HC12: 0 | HD12: 0 | HE12: 12.63 | HF12: 43.11 | HG12: 1.12 | HH12: 0 | HI12: 12.56 | HJ12: 22.39 | HK12: 14.52 | HL12: 26.97 | HM12: 2.75 | HN12: 136.05 | HO12: 0 | HP12: 2.45269 | HQ12: 0.0127538 | HR12: 0 | HS12: 0 | HT12: 0.3358 | HU12: 0.110741 | HV12: 0.35138 | HW12: 0.00414612 | HX12: 3.26751 | HY12: 47.5638 | HZ12: 0 | IA12: 47.5638
A13: 2016-08-31T17:00:47 | B13: U01R10 | C13: v27 10 S21 G20 M01 | D13: Proposed and Standard | E13: PASS | F13: 0 | G13: 45.8258 | H13: 64.0581 | I13: 580.507 | J13: 111.69 | K13: 0 | L13: 0 | M13: 505.557 | N13: 971.486 | O13: 2025.88 | P13: 119.621 | Q13: 4378.8 | R13: 74.6216 | S13: 0 | T13: 0 | U13: 0 | V13: 100.913 | W13: 0 | X13: 43.6697 | Y13: 0 | Z13: 0 | AA13: 219.204 | AB13: 0 | AC13: 0 | AD13: 0 | AE13: 0 | AF13: 0 | AG13: 0 | AH13: 0 | AI13: 0 | AJ13: 0 | AK13: 0 | AL13: 7.23 | AM13: 16.27 | AN13: 1.12 | AO13: 0 | AP13: 8.11 | AQ13: 0 | AR13: 5.18 | AS13: 13.68 | AT13: 20.54 | AU13: 1.14 | AV13: 73.27 | AW13: 32.73 | AX13: 64.0581 | AY13: 580.507 | AZ13: 111.69 | BA13: 0 | BB13: 0 | BC13: 505.557 | BD13: 971.486 | BE13: 2025.88 | BF13: 119.621 | BG13: 4378.8 | BH13: 74.6216 | BI13: 0 | BJ13: 0 | BK13: 0 | BL13: 100.913 | BM13: 0 | BN13: 43.6697 | BO13: 0 | BP13: 0 | BQ13: 219.204 | BR13: 0 | BS13: 0 | BT13: 0 | BU13: 0 | BV13: 0 | BW13: 0 | BX13: 0 | BY13: 0 | BZ13: 0 | CA13: 0 | CB13: 7.23 | CC13: 16.27 | CD13: 1.12 | CE13: 0 | CF13: 8.11 | CG13: 5.18 | CH13: 13.68 | CI13: 20.54 | CJ13: 1.14 | CK13: 73.27 | CL13: 32.73 | CM13: CA Residential 2016, Vers. 1.0 | CN13: CSE 0.813 EXE | CP13: MPCBECC | CQ13: 0 | CR13: 1.15487 | CS13: 0.0127538 | CT13: 0 | CU13: 0 | CV13: 0.074916 | CW13: 0.152294 | CX13: 0.258468 | CY13: 0.0105306 | CZ13: 1.66383 | DA13: 1.16762 | DB13: 0 | DC13: 1.15487 | DD13: 0.0127538 | DE13: 0 | DF13: 0 | DG13: 0.074916 | DH13: 0.152294 | DI13: 0.258468 | DJ13: 0.0105306 | DK13: 1.66383 | DL13: 1.16762 | DM13: 0 | DN13: 0 | DO13: 0 | DP13: 0 | DZ13: 64.0581 | EA13: 580.507 | EB13: 111.69 | EC13: 0 | ED13: 0 | EE13: 0 | EF13: 505.557 | EG13: 971.486 | EH13: 2025.88 | EI13: 119.621 | EJ13: 4378.8 | EK13: 74.6216 | EL13: 0 | EM13: 0 | EN13: 0 | EO13: 100.913 | EP13: 0 | EQ13: 43.6697 | ER13: 0 | ES13: 0 | ET13: 219.204 | EU13: 0 | EV13: 0 | EW13: 0 | EX13: 0 | EY13: 0 | EZ13: 0 | FA13: 0 | FB13: 0 | FC13: 0 | FD13: 0 | FE13: 7.23 | FF13: 16.27 | FG13: 1.12 | FH13: 0 | FI13: 8.11 | FJ13: 0 | FK13: 5.18 | FL13: 13.68 | FM13: 20.54 | FN13: 1.14 | FO13: 73.27 | FP13: 0 | FQ13: 1.15487 | FR13: 0.0127538 | FS13: 0 | FT13: 0 | FU13: 0 | FV13: 0.074916 | FW13: 0.152294 | FX13: 0.258468 | FY13: 0.0105306 | FZ13: 1.66383 | GA13: 170.912 | GB13: 1686.8 | GC13: 111.69 | GD13: 0 | GE13: 0 | GF13: 2135 | GG13: 930.001 | GH13: 2637.81 | GI13: 297.5 | GJ13: 7969.71 | GK13: 142.288 | GL13: 0 | GM13: 0 | GN13: 0 | GO13: 155.807 | GP13: 0 | GQ13: 65.4 | GR13: 0 | GS13: 0 | GT13: 363.495 | GU13: 0 | GV13: 0 | GW13: 0 | GX13: 0 | GY13: 0 | GZ13: 0 | HA13: 0 | HB13: 0 | HC13: 0 | HD13: 0 | HE13: 14.15 | HF13: 48.73 | HG13: 1.12 | HH13: 0 | HI13: 12.51 | HJ13: 22.15 | HK13: 14.51 | HL13: 26.85 | HM13: 2.71 | HN13: 142.73 | HO13: 0 | HP13: 2.71545 | HQ13: 0.0127538 | HR13: 0 | HS13: 0 | HT13: 0.3358 | HU13: 0.110741 | HV13: 0.35138 | HW13: 0.00414612 | HX13: 3.53027 | HY13: 45.8258 | HZ13: 0 | IA13: 45.8258
A14: 2016-08-31T17:00:45 | B14: U01R11 | C14: v27 11 S21 G20 M01 | D14: Proposed and Standard | E14: PASS | F14: 0 | G14: 49.293 | H14: 180.417 | I14: 1317.77 | J14: 111.69 | K14: 0 | L14: 0 | M14: 505.557 | N14: 966.471 | O14: 2025.88 | P14: 119.621 | Q14: 5227.41 | R14: 210.12 | S14: 0 | T14: 0 | U14: 0 | V14: 103.003 | W14: 0 | X14: 43.6697 | Y14: 0 | Z14: 0 | AA14: 356.792 | AB14: 0 | AC14: 0 | AD14: 0 | AE14: 0 | AF14: 0 | AG14: 0 | AH14: 0 | AI14: 0 | AJ14: 0 | AK14: 0 | AL14: 20.32 | AM14: 34.44 | AN14: 1.17 | AO14: 0 | AP14: 8.28 | AQ14: 0 | AR14: 5.52 | AS14: 14.3 | AT14: 21.53 | AU14: 1.21 | AV14: 106.77 | AW14: 64.21 | AX14: 180.417 | AY14: 1317.77 | AZ14: 111.69 | BA14: 0 | BB14: 0 | BC14: 505.557 | BD14: 966.471 | BE14: 2025.88 | BF14: 119.621 | BG14: 5227.41 | BH14: 210.12 | BI14: 0 | BJ14: 0 | BK14: 0 | BL14: 103.003 | BM14: 0 | BN14: 43.6697 | BO14: 0 | BP14: 0 | BQ14: 356.792 | BR14: 0 | BS14: 0 | BT14: 0 | BU14: 0 | BV14: 0 | BW14: 0 | BX14: 0 | BY14: 0 | BZ14: 0 | CA14: 0 | CB14: 20.32 | CC14: 34.44 | CD14: 1.17 | CE14: 0 | CF14: 8.28 | CG14: 5.52 | CH14: 14.3 | CI14: 21.53 | CJ14: 1.21 | CK14: 106.77 | CL14: 64.21 | CM14: CA Residential 2016, Vers. 1.0 | CN14: CSE 0.813 EXE | CP14: MPCBECC | CQ14: 0 | CR14: 1.54339 | CS14: 0.0127538 | CT14: 0 | CU14: 0 | CV14: 0.074916 | CW14: 0.152701 | CX14: 0.258468 | CY14: 0.0105306 | CZ14: 2.05276 | DA14: 1.55614 | DB14: 0 | DC14: 1.54339 | DD14: 0.0127538 | DE14: 0 | DF14: 0 | DG14: 0.074916 | DH14: 0.152701 | DI14: 0.258468 | DJ14: 0.0105306 | DK14: 2.05276 | DL14: 1.55614 | DM14: 0 | DN14: 0 | DO14: 0 | DP14: 0 | DZ14: 180.417 | EA14: 1317.77 | EB14: 111.69 | EC14: 0 | ED14: 0 | EE14: 0 | EF14: 505.557 | EG14: 966.471 | EH14: 2025.88 | EI14: 119.621 | EJ14: 5227.41 | EK14: 210.12 | EL14: 0 | EM14: 0 | EN14: 0 | EO14: 103.003 | EP14: 0 | EQ14: 43.6697 | ER14: 0 | ES14: 0 | ET14: 356.792 | EU14: 0 | EV14: 0 | EW14: 0 | EX14: 0 | EY14: 0 | EZ14: 0 | FA14: 0 | FB14: 0 | FC14: 0 | FD14: 0 | FE14: 20.32 | FF14: 34.44 | FG14: 1.17 | FH14: 0 | FI14: 8.28 | FJ14: 0 | FK14: 5.52 | FL14: 14.3 | FM14: 21.53 | FN14: 1.21 | FO14: 106.77 | FP14: 0 | FQ14: 1.54339 | FR14: 0.0127538 | FS14: 0 | FT14: 0 | FU14: 0 | FV14: 0.074916 | FW14: 0.152701 | FX14: 0.258468 | FY14: 0.0105306 | FZ14: 2.05276 | GA14: 414.501 | GB14: 3106.48 | GC14: 111.69 | GD14: 0 | GE14: 0 | GF14: 2135 | GG14: 930.001 | GH14: 2637.81 | GI14: 297.5 | GJ14: 9632.98 | GK14: 345.001 | GL14: 0 | GM14: 0 | GN14: 0 | GO14: 157.638 | GP14: 0 | GQ14: 65.4 | GR14: 0 | GS14: 0 | GT14: 568.039 | GU14: 0 | GV14: 0 | GW14: 0 | GX14: 0 | GY14: 0 | GZ14: 0 | HA14: 0 | HB14: 0 | HC14: 0 | HD14: 0 | HE14: 34.33 | HF14: 74.87 | HG14: 1.17 | HH14: 0 | HI14: 12.68 | HJ14: 23.7 | HK14: 14.91 | HL14: 28.28 | HM14: 2.86 | HN14: 192.8 | HO14: 0 | HP14: 3.16703 | HQ14: 0.0127538 | HR14: 0 | HS14: 0 | HT14: 0.3358 | HU14: 0.110741 | HV14: 0.35138 | HW14: 0.00414612 | HX14: 3.98186 | HY14: 49.293 | HZ14: 0 | IA14: 49.293
A15: 2016-08-31T17:00:46 | B15: U01R12 | C15: v27 12 S21 G20 M01 | D15: Proposed and Standard | E15: PASS | F15: 0 | G15: 45.6092 | H15: 189.36 | I15: 276.128 | J15: 111.69 | K15: 0 | L15: 0 | M15: 505.557 | N15: 948.788 | O15: 2025.88 | P15: 119.621 | Q15: 4177.03 | R15: 220.502 | S15: 0 | T15: 0 | U15: 0 | V15: 108.29 | W15: 0 | X15: 43.6697 | Y15: 0 | Z15: 0 | AA15: 372.462 | AB15: 0 | AC15: 0 | AD15: 0 | AE15: 0 | AF15: 0 | AG15: 0 | AH15: 0 | AI15: 0 | AJ15: 0 | AK15: 0 | AL15: 21.38 | AM15: 10.23 | AN15: 1.17 | AO15: 0 | AP15: 8.66 | AQ15: 0 | AR15: 5.55 | AS15: 14.02 | AT15: 21.58 | AU15: 1.22 | AV15: 83.81 | AW15: 41.44 | AX15: 189.36 | AY15: 276.128 | AZ15: 111.69 | BA15: 0 | BB15: 0 | BC15: 505.557 | BD15: 948.788 | BE15: 2025.88 | BF15: 119.621 | BG15: 4177.03 | BH15: 220.502 | BI15: 0 | BJ15: 0 | BK15: 0 | BL15: 108.29 | BM15: 0 | BN15: 43.6697 | BO15: 0 | BP15: 0 | BQ15: 372.462 | BR15: 0 | BS15: 0 | BT15: 0 | BU15: 0 | BV15: 0 | BW15: 0 | BX15: 0 | BY15: 0 | BZ15: 0 | CA15: 0 | CB15: 21.38 | CC15: 10.23 | CD15: 1.17 | CE15: 0 | CF15: 8.66 | CG15: 5.55 | CH15: 14.02 | CI15: 21.58 | CJ15: 1.22 | CK15: 83.81 | CL15: 41.44 | CM15: CA Residential 2016, Vers. 1.0 | CN15: CSE 0.813 EXE | CP15: MPCBECC | CQ15: 0 | CR15: 0.534068 | CS15: 0.0127538 | CT15: 0 | CU15: 0 | CV15: 0.074916 | CW15: 0.149846 | CX15: 0.258468 | CY15: 0.0105306 | CZ15: 1.04058 | DA15: 0.546822 | DB15: 0 | DC15: 0.534068 | DD15: 0.0127538 | DE15: 0 | DF15: 0 | DG15: 0.074916 | DH15: 0.149846 | DI15: 0.258468 | DJ15: 0.0105306 | DK15: 1.04058 | DL15: 0.546822 | DM15: 0 | DN15: 0 | DO15: 0 | DP15: 0 | DZ15: 189.36 | EA15: 276.128 | EB15: 111.69 | EC15: 0 | ED15: 0 | EE15: 0 | EF15: 505.557 | EG15: 948.788 | EH15: 2025.88 | EI15: 119.621 | EJ15: 4177.03 | EK15: 220.502 | EL15: 0 | EM15: 0 | EN15: 0 | EO15: 108.29 | EP15: 0 | EQ15: 43.6697 | ER15: 0 | ES15: 0 | ET15: 372.462 | EU15: 0 | EV15: 0 | EW15: 0 | EX15: 0 | EY15: 0 | EZ15: 0 | FA15: 0 | FB15: 0 | FC15: 0 | FD15: 0 | FE15: 21.38 | FF15: 10.23 | FG15: 1.17 | FH15: 0 | FI15: 8.66 | FJ15: 0 | FK15: 5.55 | FL15: 14.02 | FM15: 21.58 | FN15: 1.22 | FO15: 83.81 | FP15: 0 | FQ15: 0.534068 | FR15: 0.0127538 | FS15: 0 | FT15: 0 | FU15: 0 | FV15: 0.074916 | FW15: 0.149846 | FX15: 0.258468 | FY15: 0.0105306 | FZ15: 1.04058 | GA15: 420.762 | GB15: 1095.06 | GC15: 111.69 | GD15: 0 | GE15: 0 | GF15: 2135 | GG15: 930.001 | GH15: 2637.81 | GI15: 297.5 | GJ15: 7627.83 | GK15: 350.158 | GL15: 0 | GM15: 0 | GN15: 0 | GO15: 162.852 | GP15: 0 | GQ15: 65.4 | GR15: 0 | GS15: 0 | GT15: 578.41 | GU15: 0 | GV15: 0 | GW15: 0 | GX15: 0 | GY15: 0 | GZ15: 0 | HA15: 0 | HB15: 0 | HC15: 0 | HD15: 0 | HE15: 34.94 | HF15: 41.16 | HG15: 1.17 | HH15: 0 | HI15: 13.03 | HJ15: 23.83 | HK15: 14.92 | HL15: 28.35 | HM15: 2.86 | HN15: 160.26 | HO15: 0 | HP15: 2.25164 | HQ15: 0.0127538 | HR15: 0 | HS15: 0 | HT15: 0.3358 | HU15: 0.110741 | HV15: 0.35138 | HW15: 0.00414612 | HX15: 3.06646 | HY15: 45.6092 | HZ15: 0 | IA15: 45.6092
A16: 2016-08-31T17:00:46 | B16: U01R13 | C16: v27 13 S21 G20 M01 | D16: Proposed and Standard | E16: PASS | F16: 0 | G16: 50.9429 | H16: 156.693 | I16: 1495.85 | J16: 111.69 | K16: 0 | L16: 0 | M16: 505.557 | N16: 975.747 | O16: 2025.88 | P16: 119.621 | Q16: 5391.04 | R16: 182.489 | S16: 0 | T16: 0 | U16: 0 | V16: 101.053 | W16: 0 | X16: 43.6697 | Y16: 0 | Z16: 0 | AA16: 327.212 | AB16: 0 | AC16: 0 | AD16: 0 | AE16: 0 | AF16: 0 | AG16: 0 | AH16: 0 | AI16: 0 | AJ16: 0 | AK16: 0 | AL16: 17.77 | AM16: 38.4 | AN16: 1.17 | AO16: 0 | AP16: 8.13 | AQ16: 0 | AR16: 5.5 | AS16: 14.21 | AT16: 21.53 | AU16: 1.21 | AV16: 107.92 | AW16: 65.47 | AX16: 156.693 | AY16: 1495.85 | AZ16: 111.69 | BA16: 0 | BB16: 0 | BC16: 505.557 | BD16: 975.747 | BE16: 2025.88 | BF16: 119.621 | BG16: 5391.04 | BH16: 182.489 | BI16: 0 | BJ16: 0 | BK16: 0 | BL16: 101.053 | BM16: 0 | BN16: 43.6697 | BO16: 0 | BP16: 0 | BQ16: 327.212 | BR16: 0 | BS16: 0 | BT16: 0 | BU16: 0 | BV16: 0 | BW16: 0 | BX16: 0 | BY16: 0 | BZ16: 0 | CA16: 0 | CB16: 17.77 | CC16: 38.4 | CD16: 1.17 | CE16: 0 | CF16: 8.13 | CG16: 5.5 | CH16: 14.21 | CI16: 21.53 | CJ16: 1.21 | CK16: 107.92 | CL16: 65.47 | CM16: CA Residential 2016, Vers. 1.0 | CN16: CSE 0.813 EXE | CP16: MPCBECC | CQ16: 0 | CR16: 1.98539 | CS16: 0.0127538 | CT16: 0 | CU16: 0 | CV16: 0.074916 | CW16: 0.153729 | CX16: 0.258468 | CY16: 0.0105306 | CZ16: 2.49579 | DA16: 1.99815 | DB16: 0 | DC16: 1.98539 | DD16: 0.0127538 | DE16: 0 | DF16: 0 | DG16: 0.074916 | DH16: 0.153729 | DI16: 0.258468 | DJ16: 0.0105306 | DK16: 2.49579 | DL16: 1.99815 | DM16: 0 | DN16: 0 | DO16: 0 | DP16: 0 | DZ16: 156.693 | EA16: 1495.85 | EB16: 111.69 | EC16: 0 | ED16: 0 | EE16: 0 | EF16: 505.557 | EG16: 975.747 | EH16: 2025.88 | EI16: 119.621 | EJ16: 5391.04 | EK16: 182.489 | EL16: 0 | EM16: 0 | EN16: 0 | EO16: 101.053 | EP16: 0 | EQ16: 43.6697 | ER16: 0 | ES16: 0 | ET16: 327.212 | EU16: 0 | EV16: 0 | EW16: 0 | EX16: 0 | EY16: 0 | EZ16: 0 | FA16: 0 | FB16: 0 | FC16: 0 | FD16: 0 | FE16: 17.77 | FF16: 38.4 | FG16: 1.17 | FH16: 0 | FI16: 8.13 | FJ16: 0 | FK16: 5.5 | FL16: 14.21 | FM16: 21.53 | FN16: 1.21 | FO16: 107.92 | FP16: 0 | FQ16: 1.98539 | FR16: 0.0127538 | FS16: 0 | FT16: 0 | FU16: 0 | FV16: 0.074916 | FW16: 0.153729 | FX16: 0.258468 | FY16: 0.0105306 | FZ16: 2.49579 | GA16: 365.692 | GB16: 3417.01 | GC16: 111.69 | GD16: 0 | GE16: 0 | GF16: 2135 | GG16: 930.001 | GH16: 2637.81 | GI16: 297.5 | GJ16: 9894.7 | GK16: 304.374 | GL16: 0 | GM16: 0 | GN16: 0 | GO16: 155.657 | GP16: 0 | GQ16: 65.4 | GR16: 0 | GS16: 0 | GT16: 525.431 | GU16: 0 | GV16: 0 | GW16: 0 | GX16: 0 | GY16: 0 | GZ16: 0 | HA16: 0 | HB16: 0 | HC16: 0 | HD16: 0 | HE16: 30.5 | HF16: 75.56 | HG16: 1.17 | HH16: 0 | HI16: 12.52 | HJ16: 23.59 | HK16: 14.91 | HL16: 28.27 | HM16: 2.82 | HN16: 189.34 | HO16: 0 | HP16: 3.41087 | HQ16: 0.0127538 | HR16: 0 | HS16: 0 | HT16: 0.3358 | HU16: 0.110741 | HV16: 0.35138 | HW16: 0.00414612 | HX16: 4.22569 | HY16: 50.9429 | HZ16: 0 | IA16: 50.9429
A17: 2016-08-31T17:01:03 | B17: U01R14 | C17: v27 14 S21 G20 M01 | D17: Proposed and Standard | E17: PASS | F17: 0 | G17: 49.9689 | H17: 174.58 | I17: 1281.03 | J17: 111.69 | K17: 0 | L17: 0 | M17: 505.557 | N17: 964.496 | O17: 2025.88 | P17: 119.621 | Q17: 5182.86 | R17: 203.537 | S17: 0 | T17: 0 | U17: 0 | V17: 104.271 | W17: 0 | X17: 43.6697 | Y17: 0 | Z17: 0 | AA17: 351.479 | AB17: 0 | AC17: 0 | AD17: 0 | AE17: 0 | AF17: 0 | AG17: 0 | AH17: 0 | AI17: 0 | AJ17: 0 | AK17: 0 | AL17: 19.76 | AM17: 32.12 | AN17: 1.12 | AO17: 0 | AP17: 8.45 | AQ17: 0 | AR17: 5.26 | AS17: 13.67 | AT17: 20.6 | AU17: 1.15 | AV17: 102.13 | AW17: 61.45 | AX17: 174.58 | AY17: 1281.03 | AZ17: 111.69 | BA17: 0 | BB17: 0 | BC17: 505.557 | BD17: 964.496 | BE17: 2025.88 | BF17: 119.621 | BG17: 5182.86 | BH17: 203.537 | BI17: 0 | BJ17: 0 | BK17: 0 | BL17: 104.271 | BM17: 0 | BN17: 43.6697 | BO17: 0 | BP17: 0 | BQ17: 351.479 | BR17: 0 | BS17: 0 | BT17: 0 | BU17: 0 | BV17: 0 | BW17: 0 | BX17: 0 | BY17: 0 | BZ17: 0 | CA17: 0 | CB17: 19.76 | CC17: 32.12 | CD17: 1.12 | CE17: 0 | CF17: 8.45 | CG17: 5.26 | CH17: 13.67 | CI17: 20.6 | CJ17: 1.15 | CK17: 102.13 | CL17: 61.45 | CM17: CA Residential 2016, Vers. 1.0 | CN17: CSE 0.813 EXE | CP17: MPCBECC | CQ17: 0 | CR17: 1.79266 | CS17: 0.0127538 | CT17: 0 | CU17: 0 | CV17: 0.074916 | CW17: 0.153661 | CX17: 0.258468 | CY17: 0.0105306 | CZ17: 2.30299 | DA17: 1.80541 | DB17: 0 | DC17: 1.79266 | DD17: 0.0127538 | DE17: 0 | DF17: 0 | DG17: 0.074916 | DH17: 0.153661 | DI17: 0.258468 | DJ17: 0.0105306 | DK17: 2.30299 | DL17: 1.80541 | DM17: 0 | DN17: 0 | DO17: 0 | DP17: 0 | DZ17: 174.58 | EA17: 1281.03 | EB17: 111.69 | EC17: 0 | ED17: 0 | EE17: 0 | EF17: 505.557 | EG17: 964.496 | EH17: 2025.88 | EI17: 119.621 | EJ17: 5182.86 | EK17: 203.537 | EL17: 0 | EM17: 0 | EN17: 0 | EO17: 104.271 | EP17: 0 | EQ17: 43.6697 | ER17: 0 | ES17: 0 | ET17: 351.479 | EU17: 0 | EV17: 0 | EW17: 0 | EX17: 0 | EY17: 0 | EZ17: 0 | FA17: 0 | FB17: 0 | FC17: 0 | FD17: 0 | FE17: 19.76 | FF17: 32.12 | FG17: 1.12 | FH17: 0 | FI17: 8.45 | FJ17: 0 | FK17: 5.26 | FL17: 13.67 | FM17: 20.6 | FN17: 1.15 | FO17: 102.13 | FP17: 0 | FQ17: 1.79266 | FR17: 0.0127538 | FS17: 0 | FT17: 0 | FU17: 0 | FV17: 0.074916 | FW17: 0.153661 | FX17: 0.258468 | FY17: 0.0105306 | FZ17: 2.30299 | GA17: 413.594 | GB17: 2961.78 | GC17: 111.69 | GD17: 0 | GE17: 0 | GF17: 2135 | GG17: 930.001 | GH17: 2637.81 | GI17: 297.5 | GJ17: 9487.38 | GK17: 344.616 | GL17: 0 | GM17: 0 | GN17: 0 | GO17: 158.755 | GP17: 0 | GQ17: 65.4 | GR17: 0 | GS17: 0 | GT17: 568.77 | GU17: 0 | GV17: 0 | GW17: 0 | GX17: 0 | GY17: 0 | GZ17: 0 | HA17: 0 | HB17: 0 | HC17: 0 | HD17: 0 | HE17: 34.38 | HF17: 66.82 | HG17: 1.12 | HH17: 0 | HI17: 12.86 | HJ17: 22.6 | HK17: 14.52 | HL17: 27.07 | HM17: 2.72 | HN17: 182.09 | HO17: 0 | HP17: 3.17167 | HQ17: 0.0127538 | HR17: 0 | HS17: 0 | HT17: 0.3358 | HU17: 0.110741 | HV17: 0.35138 | HW17: 0.00414612 | HX17: 3.98649 | HY17: 49.9689 | HZ17: 0 | IA17: 49.9689
A18: 2016-08-31T17:00:46 | B18: U01R15 | C18: v27 15 S21 G20 M01 | D18: Proposed and Standard | E18: PASS | F18: 0 | G18: 56.3309 | H18: 5.72511 | I18: 4900.54 | J18: 111.69 | K18: 0 | L18: 0 | M18: 505.557 | N18: 1044.02 | O18: 2025.88 | P18: 119.621 | Q18: 8713.04 | R18: 6.66806 | S18: 0 | T18: 0 | U18: 0 | V18: 75.512 | W18: 0 | X18: 43.6697 | Y18: 0 | Z18: 0 | AA18: 125.85 | AB18: 0 | AC18: 0 | AD18: 0 | AE18: 0 | AF18: 0 | AG18: 0 | AH18: 0 | AI18: 0 | AJ18: 0 | AK18: 0 | AL18: 0.66 | AM18: 88.15 | AN18: 1.12 | AO18: 0 | AP18: 6.16 | AQ18: 0 | AR18: 5.29 | AS18: 14.42 | AT18: 20.64 | AU18: 1.16 | AV18: 137.6 | AW18: 96.09 | AX18: 5.72511 | AY18: 4900.54 | AZ18: 111.69 | BA18: 0 | BB18: 0 | BC18: 505.557 | BD18: 1044.02 | BE18: 2025.88 | BF18: 119.621 | BG18: 8713.04 | BH18: 6.66806 | BI18: 0 | BJ18: 0 | BK18: 0 | BL18: 75.512 | BM18: 0 | BN18: 43.6697 | BO18: 0 | BP18: 0 | BQ18: 125.85 | BR18: 0 | BS18: 0 | BT18: 0 | BU18: 0 | BV18: 0 | BW18: 0 | BX18: 0 | BY18: 0 | BZ18: 0 | CA18: 0 | CB18: 0.66 | CC18: 88.15 | CD18: 1.12 | CE18: 0 | CF18: 6.16 | CG18: 5.29 | CH18: 14.42 | CI18: 20.64 | CJ18: 1.16 | CK18: 137.6 | CL18: 96.09 | CM18: CA Residential 2016, Vers. 1.0 | CN18: CSE 0.813 EXE | CP18: MPCBECC | CQ18: 0 | CR18: 3.71062 | CS18: 0.0127538 | CT18: 0 | CU18: 0 | CV18: 0.074916 | CW18: 0.158046 | CX18: 0.258468 | CY18: 0.0105306 | CZ18: 4.22533 | DA18: 3.72337 | DB18: 0 | DC18: 3.71062 | DD18: 0.0127538 | DE18: 0 | DF18: 0 | DG18: 0.074916 | DH18: 0.158046 | DI18: 0.258468 | DJ18: 0.0105306 | DK18: 4.22533 | DL18: 3.72337 | DM18: 0 | DN18: 0 | DO18: 0 | DP18: 0 | DZ18: 5.72511 | EA18: 4900.54 | EB18: 111.69 | EC18: 0 | ED18: 0 | EE18: 0 | EF18: 505.557 | EG18: 1044.02 | EH18: 2025.88 | EI18: 119.621 | EJ18: 8713.04 | EK18: 6.66806 | EL18: 0 | EM18: 0 | EN18: 0 | EO18: 75.512 | EP18: 0 | EQ18: 43.6697 | ER18: 0 | ES18: 0 | ET18: 125.85 | EU18: 0 | EV18: 0 | EW18: 0 | EX18: 0 | EY18: 0 | EZ18: 0 | FA18: 0 | FB18: 0 | FC18: 0 | FD18: 0 | FE18: 0.66 | FF18: 88.15 | FG18: 1.12 | FH18: 0 | FI18: 6.16 | FJ18: 0 | FK18: 5.29 | FL18: 14.42 | FM18: 20.64 | FN18: 1.16 | FO18: 137.6 | FP18: 0 | FQ18: 3.71062 | FR18: 0.0127538 | FS18: 0 | FT18: 0 | FU18: 0 | FV18: 0.074916 | FW18: 0.158046 | FX18: 0.258468 | FY18: 0.0105306 | FZ18: 4.22533 | GA18: 33.8995 | GB18: 9519.69 | GC18: 111.69 | GD18: 0 | GE18: 0 | GF18: 2135 | GG18: 930.001 | GH18: 2637.81 | GI18: 297.5 | GJ18: 15665.6 | GK18: 28.2172 | GL18: 0 | GM18: 0 | GN18: 0 | GO18: 130.134 | GP18: 0 | GQ18: 65.4 | GR18: 0 | GS18: 0 | GT18: 223.751 | GU18: 0 | GV18: 0 | GW18: 0 | GX18: 0 | GY18: 0 | GZ18: 0 | HA18: 0 | HB18: 0 | HC18: 0 | HD18: 0 | HE18: 2.85 | HF18: 149.29 | HG18: 1.12 | HH18: 0 | HI18: 10.62 | HJ18: 22.73 | HK18: 14.54 | HL18: 27.12 | HM18: 2.76 | HN18: 231.03 | HO18: 0 | HP18: 5.08764 | HQ18: 0.0127538 | HR18: 0 | HS18: 0 | HT18: 0.3358 | HU18: 0.110741 | HV18: 0.35138 | HW18: 0.00414612 | HX18: 5.90246 | HY18: 56.3309 | HZ18: 0 | IA18: 56.3309
A19: 2016-08-31T17:00:45 | B19: U01R16 | C19: v27 16 S21 G20 M01 | D19: Proposed and Standard | E19: PASS | F19: 0 | G19: 53.253 | H19: 416.115 | I19: 36.5481 | J19: 111.69 | K19: 0 | L19: 0 | M19: 505.557 | N19: 907.139 | O19: 2025.88 | P19: 119.621 | Q19: 4122.55 | R19: 485.862 | S19: 0 | T19: 0 | U19: 0 | V19: 128.688 | W19: 0 | X19: 43.6697 | Y19: 0 | Z19: 0 | AA19: 658.219 | AB19: 0 | AC19: 0 | AD19: 0 | AE19: 0 | AF19: 0 | AG19: 0 | AH19: 0 | AI19: 0 | AJ19: 0 | AK19: 0 | AL19: 45.71 | AM19: 1.35 | AN19: 1.11 | AO19: 0 | AP19: 10.35 | AQ19: 0 | AR19: 5.22 | AS19: 13.12 | AT19: 20.54 | AU19: 1.14 | AV19: 98.54 | AW19: 58.52 | AX19: 416.115 | AY19: 36.5481 | AZ19: 111.69 | BA19: 0 | BB19: 0 | BC19: 505.557 | BD19: 907.139 | BE19: 2025.88 | BF19: 119.621 | BG19: 4122.55 | BH19: 485.862 | BI19: 0 | BJ19: 0 | BK19: 0 | BL19: 128.688 | BM19: 0 | BN19: 43.6697 | BO19: 0 | BP19: 0 | BQ19: 658.219 | BR19: 0 | BS19: 0 | BT19: 0 | BU19: 0 | BV19: 0 | BW19: 0 | BX19: 0 | BY19: 0 | BZ19: 0 | CA19: 0 | CB19: 45.71 | CC19: 1.35 | CD19: 1.11 | CE19: 0 | CF19: 10.35 | CG19: 5.22 | CH19: 13.12 | CI19: 20.54 | CJ19: 1.14 | CK19: 98.54 | CL19: 58.52 | CM19: CA Residential 2016, Vers. 1.0 | CN19: CSE 0.813 EXE | CP19: MPCBECC | CQ19: 0 | CR19: 0.0512037 | CS19: 0.0127538 | CT19: 0 | CU19: 0 | CV19: 0.074916 | CW19: 0.145137 | CX19: 0.258468 | CY19: 0.0105306 | CZ19: 0.553009 | DA19: 0.0639574 | DB19: 0 | DC19: 0.0512037 | DD19: 0.0127538 | DE19: 0 | DF19: 0 | DG19: 0.074916 | DH19: 0.145137 | DI19: 0.258468 | DJ19: 0.0105306 | DK19: 0.553009 | DL19: 0.0639574 | DM19: 0 | DN19: 0 | DO19: 0 | DP19: 0 | DZ19: 416.115 | EA19: 36.5481 | EB19: 111.69 | EC19: 0 | ED19: 0 | EE19: 0 | EF19: 505.557 | EG19: 907.139 | EH19: 2025.88 | EI19: 119.621 | EJ19: 4122.55 | EK19: 485.862 | EL19: 0 | EM19: 0 | EN19: 0 | EO19: 128.688 | EP19: 0 | EQ19: 43.6697 | ER19: 0 | ES19: 0 | ET19: 658.219 | EU19: 0 | EV19: 0 | EW19: 0 | EX19: 0 | EY19: 0 | EZ19: 0 | FA19: 0 | FB19: 0 | FC19: 0 | FD19: 0 | FE19: 45.71 | FF19: 1.35 | FG19: 1.11 | FH19: 0 | FI19: 10.35 | FJ19: 0 | FK19: 5.22 | FL19: 13.12 | FM19: 20.54 | FN19: 1.14 | FO19: 98.54 | FP19: 0 | FQ19: 0.0512037 | FR19: 0.0127538 | FS19: 0 | FT19: 0 | FU19: 0 | FV19: 0.074916 | FW19: 0.145137 | FX19: 0.258468 | FY19: 0.0105306 | FZ19: 0.553009 | GA19: 532.289 | GB19: 250.172 | GC19: 111.69 | GD19: 0 | GE19: 0 | GF19: 2135 | GG19: 930.001 | GH19: 2637.81 | GI19: 297.5 | GJ19: 6894.46 | GK19: 444.189 | GL19: 0 | GM19: 0 | GN19: 0 | GO19: 182.246 | GP19: 0 | GQ19: 65.4 | GR19: 0 | GS19: 0 | GT19: 691.835 | GU19: 0 | GV19: 0 | GW19: 0 | GX19: 0 | GY19: 0 | GZ19: 0 | HA19: 0 | HB19: 0 | HC19: 0 | HD19: 0 | HE19: 43.19 | HF19: 10.18 | HG19: 1.11 | HH19: 0 | HI19: 14.66 | HJ19: 22.38 | HK19: 14.5 | HL19: 26.96 | HM19: 2.7 | HN19: 135.68 | HO19: 0 | HP19: 0.538704 | HQ19: 0.0127538 | HR19: 0 | HS19: 0 | HT19: 0.3358 | HU19: 0.110741 | HV19: 0.35138 | HW19: 0.00414612 | HX19: 1.35353 | HY19: 53.253 | HZ19: 0 | IA19: 53.253
A20: 2016-08-31T17:00:47 | B20: U02R01 | C20: v27 01 S27 G20 M01 | D20: Proposed and Standard | E20: PASS | F20: 0 | G20: 52.843 | H20: 302.299 | I20: 0 | J20: 141.255 | K20: 0 | L20: 0 | M20: 615.745 | N20: 974.092 | O20: 2371.31 | P20: 151.515 | Q20: 4556.21 | R20: 352.044 | S20: 0 | T20: 0 | U20: 0 | V20: 146.272 | W20: 0 | X20: 45.121 | Y20: 0 | Z20: 0 | AA20: 543.437 | AB20: 0 | AC20: 0 | AD20: 0 | AE20: 0 | AF20: 0 | AG20: 0 | AH20: 0 | AI20: 0 | AJ20: 0 | AK20: 0 | AL20: 25.56 | AM20: 0 | AN20: 1.15 | AO20: 0 | AP20: 8.96 | AQ20: 0 | AR20: 5.15 | AS20: 10.83 | AT20: 19.52 | AU20: 1.18 | AV20: 72.35 | AW20: 35.67 | AX20: 302.299 | AY20: 0 | AZ20: 141.255 | BA20: 0 | BB20: 0 | BC20: 615.745 | BD20: 974.092 | BE20: 2371.31 | BF20: 151.515 | BG20: 4556.21 | BH20: 352.044 | BI20: 0 | BJ20: 0 | BK20: 0 | BL20: 146.272 | BM20: 0 | BN20: 45.121 | BO20: 0 | BP20: 0 | BQ20: 543.437 | BR20: 0 | BS20: 0 | BT20: 0 | BU20: 0 | BV20: 0 | BW20: 0 | BX20: 0 | BY20: 0 | BZ20: 0 | CA20: 0 | CB20: 25.56 | CC20: 0 | CD20: 1.15 | CE20: 0 | CF20: 8.96 | CG20: 5.15 | CH20: 10.83 | CI20: 19.52 | CJ20: 1.18 | CK20: 72.35 | CL20: 35.67 | CM20: CA Residential 2016, Vers. 1.0 | CN20: CSE 0.813 EXE | CP20: MPCBECC | CQ20: 9.81034e-14 | CR20: 0 | CS20: 0.0161297 | CT20: 0 | CU20: 0 | CV20: 0.0912442 | CW20: 0.1288 | CX20: 0.302188 | CY20: 0.0133383 | CZ20: 0.5517 | DA20: 0.0161297 | DB20: 9.81011e-14 | DC20: 0 | DD20: 0.0161297 | DE20: 0 | DF20: 0 | DG20: 0.0912442 | DH20: 0.1288 | DI20: 0.302188 | DJ20: 0.0133383 | DK20: 0.5517 | DL20: 0.0161297 | DM20: 0 | DN20: 0 | DO20: 0 | DP20: 0 | DZ20: 302.299 | EA20: 0 | EB20: 141.255 | EC20: 0 | ED20: 0 | EE20: 0 | EF20: 615.745 | EG20: 974.092 | EH20: 2371.31 | EI20: 151.515 | EJ20: 4556.21 | EK20: 352.044 | EL20: 0 | EM20: 0 | EN20: 0 | EO20: 146.272 | EP20: 0 | EQ20: 45.121 | ER20: 0 | ES20: 0 | ET20: 543.437 | EU20: 0 | EV20: 0 | EW20: 0 | EX20: 0 | EY20: 0 | EZ20: 0 | FA20: 0 | FB20: 0 | FC20: 0 | FD20: 0 | FE20: 25.56 | FF20: 0 | FG20: 1.15 | FH20: 0 | FI20: 8.96 | FJ20: 0 | FK20: 5.15 | FL20: 10.83 | FM20: 19.52 | FN20: 1.18 | FO20: 72.35 | FP20: 9.81034e-14 | FQ20: 0 | FR20: 0.0161297 | FS20: 0 | FT20: 0 | FU20: 0 | FV20: 0.0912442 | FW20: 0.1288 | FX20: 0.302188 | FY20: 0.0133383 | FZ20: 0.5517 | GA20: 498.408 | GB20: 0 | GC20: 141.255 | GD20: 0 | GE20: 0 | GF20: 2615 | GG20: 989.001 | GH20: 3267.2 | GI20: 327.5 | GJ20: 7838.36 | GK20: 414.811 | GL20: 0 | GM20: 0 | GN20: 0 | GO20: 199.325 | GP20: 0 | GQ20: 73.4 | GR20: 0 | GS20: 0 | GT20: 687.536 | GU20: 0 | GV20: 0 | GW20: 0 | GX20: 0 | GY20: 0 | GZ20: 0 | HA20: 0 | HB20: 0 | HC20: 0 | HD20: 0 | HE20: 30.92 | HF20: 0 | HG20: 1.15 | HH20: 0 | HI20: 12.21 | HJ20: 22.11 | HK20: 12.56 | HL20: 27.01 | HM20: 2.41 | HN20: 108.37 | HO20: 1.62352e-09 | HP20: 0 | HQ20: 0.0161297 | HR20: 0 | HS20: 0 | HT20: 0.411296 | HU20: 0.118258 | HV20: 0.43522 | HW20: 0.00456421 | HX20: 0.985468 | HY20: 52.843 | HZ20: 0 | IA20: 52.843
A21: 2016-08-31T17:00:42 | B21: U02R02 | C21: v27 02 S27 G20 M01 | D21: Proposed and Standard | E21: PASS | F21: 0 | G21: 47.035 | H21: 232.7 | I21: 41.0319 | J21: 141.255 | K21: 0 | L21: 0 | M21: 615.745 | N21: 1015.23 | O21: 2371.31 | P21: 151.515 | Q21: 4568.78 | R21: 270.983 | S21: 0 | T21: 0 | U21: 0 | V21: 131.187 | W21: 0 | X21: 45.121 | Y21: 0 | Z21: 0 | AA21: 447.291 | AB21: 0 | AC21: 0 | AD21: 0 | AE21: 0 | AF21: 0 | AG21: 0 | AH21: 0 | AI21: 0 | AJ21: 0 | AK21: 0 | AL21: 20.27 | AM21: 1.57 | AN21: 1.15 | AO21: 0 | AP21: 8.07 | AQ21: 0 | AR21: 5.16 | AS21: 11.24 | AT21: 19.54 | AU21: 1.18 | AV21: 68.18 | AW21: 31.06 | AX21: 232.7 | AY21: 41.0319 | AZ21: 141.255 | BA21: 0 | BB21: 0 | BC21: 615.745 | BD21: 1015.23 | BE21: 2371.31 | BF21: 151.515 | BG21: 4568.78 | BH21: 270.983 | BI21: 0 | BJ21: 0 | BK21: 0 | BL21: 131.187 | BM21: 0 | BN21: 45.121 | BO21: 0 | BP21: 0 | BQ21: 447.291 | BR21: 0 | BS21: 0 | BT21: 0 | BU21: 0 | BV21: 0 | BW21: 0 | BX21: 0 | BY21: 0 | BZ21: 0 | CA21: 0 | CB21: 20.27 | CC21: 1.57 | CD21: 1.15 | CE21: 0 | CF21: 8.07 | CG21: 5.16 | CH21: 11.24 | CI21: 19.54 | CJ21: 1.18 | CK21: 68.18 | CL21: 31.06 | CM21: CA Residential 2016, Vers. 1.0 | CN21: CSE 0.813 EXE | CP21: MPCBECC | CQ21: 0 | CR21: 0.0517277 | CS21: 0.0161297 | CT21: 0 | CU21: 0 | CV21: 0.0912442 | CW21: 0.140946 | CX21: 0.302188 | CY21: 0.0133383 | CZ21: 0.615574 | DA21: 0.0678574 | DB21: 0 | DC21: 0.0517277 | DD21: 0.0161297 | DE21: 0 | DF21: 0 | DG21: 0.0912442 | DH21: 0.140946 | DI21: 0.302188 | DJ21: 0.0133383 | DK21: 0.615574 | DL21: 0.0678574 | DM21: 0 | DN21: 0 | DO21: 0 | DP21: 0 | DZ21: 232.7 | EA21: 41.0319 | EB21: 141.255 | EC21: 0 | ED21: 0 | EE21: 0 | EF21: 615.745 | EG21: 1015.23 | EH21: 2371.31 | EI21: 151.515 | EJ21: 4568.78 | EK21: 270.983 | EL21: 0 | EM21: 0 | EN21: 0 | EO21: 131.187 | EP21: 0 | EQ21: 45.121 | ER21: 0 | ES21: 0 | ET21: 447.291 | EU21: 0 | EV21: 0 | EW21: 0 | EX21: 0 | EY21: 0 | EZ21: 0 | FA21: 0 | FB21: 0 | FC21: 0 | FD21: 0 | FE21: 20.27 | FF21: 1.57 | FG21: 1.15 | FH21: 0 | FI21: 8.07 | FJ21: 0 | FK21: 5.16 | FL21: 11.24 | FM21: 19.54 | FN21: 1.18 | FO21: 68.18 | FP21: 0 | FQ21: 0.0517277 | FR21: 0.0161297 | FS21: 0 | FT21: 0 | FU21: 0 | FV21: 0.0912442 | FW21: 0.140946 | FX21: 0.302188 | FY21: 0.0133383 | FZ21: 0.615574 | GA21: 592.998 | GB21: 193.111 | GC21: 141.255 | GD21: 0 | GE21: 0 | GF21: 2615 | GG21: 989.001 | GH21: 3267.2 | GI21: 327.5 | GJ21: 8126.06 | GK21: 493.517 | GL21: 0 | GM21: 0 | GN21: 0 | GO21: 185.191 | GP21: 0 | GQ21: 73.4 | GR21: 0 | GS21: 0 | GT21: 752.108 | GU21: 0 | GV21: 0 | GW21: 0 | GX21: 0 | GY21: 0 | GZ21: 0 | HA21: 0 | HB21: 0 | HC21: 0 | HD21: 0 | HE21: 37.83 | HF21: 7.84 | HG21: 1.15 | HH21: 0 | HI21: 11.4 | HJ21: 22.19 | HK21: 12.57 | HL21: 27.1 | HM21: 2.41 | HN21: 122.49 | HO21: 0 | HP21: 0.37591 | HQ21: 0.0161297 | HR21: 0 | HS21: 0 | HT21: 0.411296 | HU21: 0.118258 | HV21: 0.43522 | HW21: 0.00456421 | HX21: 1.36138 | HY21: 47.035 | HZ21: 0 | IA21: 47.035
A22: 2016-08-31T17:00:42 | B22: U02R03 | C22: v27 03 S27 G20 M01 | D22: Proposed and Standard | E22: PASS | F22: 0 | G22: 44.7079 | H22: 125.801 | I22: 1.93152 | J22: 141.255 | K22: 0 | L22: 0 | M22: 615.745 | N22: 1009.52 | O22: 2371.31 | P22: 151.515 | Q22: 4417.08 | R22: 146.49 | S22: 0 | T22: 0 | U22: 0 | V22: 131.749 | W22: 0 | X22: 45.121 | Y22: 0 | Z22: 0 | AA22: 323.36 | AB22: 0 | AC22: 0 | AD22: 0 | AE22: 0 | AF22: 0 | AG22: 0 | AH22: 0 | AI22: 0 | AJ22: 0 | AK22: 0 | AL22: 11.1 | AM22: 0.1 | AN22: 1.15 | AO22: 0 | AP22: 8.09 | AQ22: 0 | AR22: 5.13 | AS22: 11.11 | AT22: 19.5 | AU22: 1.17 | AV22: 57.35 | AW22: 20.44 | AX22: 125.801 | AY22: 1.93151 | AZ22: 141.255 | BA22: 0 | BB22: 0 | BC22: 615.745 | BD22: 1009.52 | BE22: 2371.31 | BF22: 151.515 | BG22: 4417.08 | BH22: 146.49 | BI22: 0 | BJ22: 0 | BK22: 0 | BL22: 131.749 | BM22: 0 | BN22: 45.121 | BO22: 0 | BP22: 0 | BQ22: 323.36 | BR22: 0 | BS22: 0 | BT22: 0 | BU22: 0 | BV22: 0 | BW22: 0 | BX22: 0 | BY22: 0 | BZ22: 0 | CA22: 0 | CB22: 11.1 | CC22: 0.1 | CD22: 1.15 | CE22: 0 | CF22: 8.09 | CG22: 5.13 | CH22: 11.11 | CI22: 19.5 | CJ22: 1.17 | CK22: 57.35 | CL22: 20.44 | CM22: CA Residential 2016, Vers. 1.0 | CN22: CSE 0.813 EXE | CP22: MPCBECC | CQ22: 0 | CR22: 0.00883079 | CS22: 0.0161297 | CT22: 0 | CU22: 0 | CV22: 0.0912442 | CW22: 0.135768 | CX22: 0.302188 | CY22: 0.0133383 | CZ22: 0.567499 | DA22: 0.0249605 | DB22: 0 | DC22: 0.00883078 | DD22: 0.0161297 | DE22: 0 | DF22: 0 | DG22: 0.0912442 | DH22: 0.135768 | DI22: 0.302188 | DJ22: 0.0133383 | DK22: 0.567499 | DL22: 0.0249605 | DM22: 0 | DN22: -3.72529e-09 | DO22: 0 | DP22: 0 | DZ22: 125.801 | EA22: 1.93152 | EB22: 141.255 | EC22: 0 | ED22: 0 | EE22: 0 | EF22: 615.745 | EG22: 1009.52 | EH22: 2371.31 | EI22: 151.515 | EJ22: 4417.08 | EK22: 146.49 | EL22: 0 | EM22: 0 | EN22: 0 | EO22: 131.749 | EP22: 0 | EQ22: 45.121 | ER22: 0 | ES22: 0 | ET22: 323.36 | EU22: 0 | EV22: 0 | EW22: 0 | EX22: 0 | EY22: 0 | EZ22: 0 | FA22: 0 | FB22: 0 | FC22: 0 | FD22: 0 | FE22: 11.1 | FF22: 0.1 | FG22: 1.15 | FH22: 0 | FI22: 8.09 | FJ22: 0 | FK22: 5.13 | FL22: 11.11 | FM22: 19.5 | FN22: 1.17 | FO22: 57.35 | FP22: 0 | FQ22: 0.00883079 | FR22: 0.0161297 | FS22: 0 | FT22: 0 | FU22: 0 | FV22: 0.0912442 | FW22: 0.135768 | FX22: 0.302188 | FY22: 0.0133383 | FZ22: 0.567499 | GA22: 491.655 | GB22: 0 | GC22: 141.255 | GD22: 0 | GE22: 0 | GF22: 2615 | GG22: 989.001 | GH22: 3267.2 | GI22: 327.5 | GJ22: 7831.61 | GK22: 409.153 | GL22: 0 | GM22: 0 | GN22: 0 | GO22: 185.824 | GP22: 0 | GQ22: 73.4 | GR22: 0 | GS22: 0 | GT22: 668.377 | GU22: 0 | GV22: 0 | GW22: 0 | GX22: 0 | GY22: 0 | GZ22: 0 | HA22: 0 | HB22: 0 | HC22: 0 | HD22: 0 | HE22: 31.3 | HF22: 0 | HG22: 1.15 | HH22: 0 | HI22: 11.4 | HJ22: 22 | HK22: 12.56 | HL22: 27 | HM22: 2.38 | HN22: 107.79 | HO22: 0 | HP22: 0 | HQ22: 0.0161297 | HR22: 0 | HS22: 0 | HT22: 0.411296 | HU22: 0.118258 | HV22: 0.43522 | HW22: 0.00456421 | HX22: 0.985468 | HY22: 44.7079 | HZ22: 0 | IA22: 44.7079
A23: 2016-08-31T17:00:42 | B23: U02R04 | C23: v27 04 S27 G20 M01 | D23: Proposed and Standard | E23: PASS | F23: 0 | G23: 45.4713 | H23: 168.105 | I23: 71.3658 | J23: 141.255 | K23: 0 | L23: 0 | M23: 615.745 | N23: 1030.26 | O23: 2371.31 | P23: 151.515 | Q23: 4549.56 | R23: 195.762 | S23: 0 | T23: 0 | U23: 0 | V23: 125.44 | W23: 0 | X23: 45.121 | Y23: 0 | Z23: 0 | AA23: 366.323 | AB23: 0 | AC23: 0 | AD23: 0 | AE23: 0 | AF23: 0 | AG23: 0 | AH23: 0 | AI23: 0 | AJ23: 0 | AK23: 0 | AL23: 14.7 | AM23: 2.89 | AN23: 1.15 | AO23: 0 | AP23: 7.73 | AQ23: 0 | AR23: 5.17 | AS23: 11.39 | AT23: 19.55 | AU23: 1.18 | AV23: 63.76 | AW23: 26.47 | AX23: 168.105 | AY23: 71.3658 | AZ23: 141.255 | BA23: 0 | BB23: 0 | BC23: 615.745 | BD23: 1030.26 | BE23: 2371.31 | BF23: 151.515 | BG23: 4549.56 | BH23: 195.762 | BI23: 0 | BJ23: 0 | BK23: 0 | BL23: 125.44 | BM23: 0 | BN23: 45.121 | BO23: 0 | BP23: 0 | BQ23: 366.324 | BR23: 0 | BS23: 0 | BT23: 0 | BU23: 0 | BV23: 0 | BW23: 0 | BX23: 0 | BY23: 0 | BZ23: 0 | CA23: 0 | CB23: 14.7 | CC23: 2.89 | CD23: 1.15 | CE23: 0 | CF23: 7.73 | CG23: 5.17 | CH23: 11.39 | CI23: 19.55 | CJ23: 1.18 | CK23: 63.76 | CL23: 26.47 | CM23: CA Residential 2016, Vers. 1.0 | CN23: CSE 0.813 EXE | CP23: MPCBECC | CQ23: 0 | CR23: 0.340327 | CS23: 0.0161297 | CT23: 0 | CU23: 0 | CV23: 0.0912442 | CW23: 0.144708 | CX23: 0.302188 | CY23: 0.0133383 | CZ23: 0.907934 | DA23: 0.356456 | DB23: 0 | DC23: 0.340327 | DD23: 0.0161297 | DE23: 0 | DF23: 0 | DG23: 0.0912442 | DH23: 0.144708 | DI23: 0.302188 | DJ23: 0.0133383 | DK23: 0.907935 | DL23: 0.356457 | DM23: 5.96046e-08 | DN23: 5.96046e-08 | DO23: 0 | DP23: 0 | DZ23: 168.105 | EA23: 71.3658 | EB23: 141.255 | EC23: 0 | ED23: 0 | EE23: 0 | EF23: 615.745 | EG23: 1030.26 | EH23: 2371.31 | EI23: 151.515 | EJ23: 4549.56 | EK23: 195.762 | EL23: 0 | EM23: 0 | EN23: 0 | EO23: 125.44 | EP23: 0 | EQ23: 45.121 | ER23: 0 | ES23: 0 | ET23: 366.323 | EU23: 0 | EV23: 0 | EW23: 0 | EX23: 0 | EY23: 0 | EZ23: 0 | FA23: 0 | FB23: 0 | FC23: 0 | FD23: 0 | FE23: 14.7 | FF23: 2.89 | FG23: 1.15 | FH23: 0 | FI23: 7.73 | FJ23: 0 | FK23: 5.17 | FL23: 11.39 | FM23: 19.55 | FN23: 1.18 | FO23: 63.76 | FP23: 0 | FQ23: 0.340327 | FR23: 0.0161297 | FS23: 0 | FT23: 0 | FU23: 0 | FV23: 0.0912442 | FW23: 0.144708 | FX23: 0.302188 | FY23: 0.0133383 | FZ23: 0.907934 | GA23: 464.315 | GB23: 327.919 | GC23: 141.255 | GD23: 0 | GE23: 0 | GF23: 2615 | GG23: 989.001 | GH23: 3267.2 | GI23: 327.5 | GJ23: 8132.19 | GK23: 386.424 | GL23: 0 | GM23: 0 | GN23: 0 | GO23: 179.765 | GP23: 0 | GQ23: 73.4 | GR23: 0 | GS23: 0 | GT23: 639.588 | GU23: 0 | GV23: 0 | GW23: 0 | GX23: 0 | GY23: 0 | GZ23: 0 | HA23: 0 | HB23: 0 | HC23: 0 | HD23: 0 | HE23: 29.8 | HF23: 12.25 | HG23: 1.15 | HH23: 0 | HI23: 11.07 | HJ23: 22.23 | HK23: 12.57 | HL23: 27.12 | HM23: 2.4 | HN23: 118.59 | HO23: 0 | HP23: 1.18878 | HQ23: 0.0161297 | HR23: 0 | HS23: 0 | HT23: 0.411296 | HU23: 0.118258 | HV23: 0.43522 | HW23: 0.00456421 | HX23: 2.17425 | HY23: 45.4713 | HZ23: 0 | IA23: 45.4713
A24: 2016-08-31T17:00:42 | B24: U02R05 | C24: v27 05 S27 G20 M01 | D24: Proposed and Standard | E24: PASS | F24: 0 | G24: 41.5491 | H24: 98.3904 | I24: 0 | J24: 141.255 | K24: 0 | L24: 0 | M24: 615.745 | N24: 1010.73 | O24: 2371.31 | P24: 151.515 | Q24: 4388.95 | R24: 114.584 | S24: 0 | T24: 0 | U24: 0 | V24: 134.918 | W24: 0 | X24: 45.121 | Y24: 0 | Z24: 0 | AA24: 294.623 | AB24: 0 | AC24: 0 | AD24: 0 | AE24: 0 | AF24: 0 | AG24: 0 | AH24: 0 | AI24: 0 | AJ24: 0 | AK24: 0 | AL24: 8.52 | AM24: 0 | AN24: 1.15 | AO24: 0 | AP24: 8.27 | AQ24: 0 | AR24: 5.08 | AS24: 11.14 | AT24: 19.44 | AU24: 1.17 | AV24: 54.77 | AW24: 17.94 | AX24: 98.3904 | AY24: 0 | AZ24: 141.255 | BA24: 0 | BB24: 0 | BC24: 615.745 | BD24: 1010.73 | BE24: 2371.31 | BF24: 151.515 | BG24: 4388.95 | BH24: 114.584 | BI24: 0 | BJ24: 0 | BK24: 0 | BL24: 134.918 | BM24: 0 | BN24: 45.121 | BO24: 0 | BP24: 0 | BQ24: 294.623 | BR24: 0 | BS24: 0 | BT24: 0 | BU24: 0 | BV24: 0 | BW24: 0 | BX24: 0 | BY24: 0 | BZ24: 0 | CA24: 0 | CB24: 8.52 | CC24: 0 | CD24: 1.15 | CE24: 0 | CF24: 8.27 | CG24: 5.08 | CH24: 11.14 | CI24: 19.44 | CJ24: 1.17 | CK24: 54.77 | CL24: 17.94 | CM24: CA Residential 2016, Vers. 1.0 | CN24: CSE 0.813 EXE | CP24: MPCBECC | CQ24: 0 | CR24: 0 | CS24: 0.0161297 | CT24: 0 | CU24: 0 | CV24: 0.0912442 | CW24: 0.135612 | CX24: 0.302188 | CY24: 0.0133383 | CZ24: 0.558512 | DA24: 0.0161297 | DB24: 0 | DC24: 0 | DD24: 0.0161297 | DE24: 0 | DF24: 0 | DG24: 0.0912442 | DH24: 0.135612 | DI24: 0.302188 | DJ24: 0.0133383 | DK24: 0.558512 | DL24: 0.0161297 | DM24: 0 | DN24: 0 | DO24: 0 | DP24: 0 | DZ24: 98.3904 | EA24: 0 | EB24: 141.255 | EC24: 0 | ED24: 0 | EE24: 0 | EF24: 615.745 | EG24: 1010.73 | EH24: 2371.31 | EI24: 151.515 | EJ24: 4388.95 | EK24: 114.584 | EL24: 0 | EM24: 0 | EN24: 0 | EO24: 134.918 | EP24: 0 | EQ24: 45.121 | ER24: 0 | ES24: 0 | ET24: 294.623 | EU24: 0 | EV24: 0 | EW24: 0 | EX24: 0 | EY24: 0 | EZ24: 0 | FA24: 0 | FB24: 0 | FC24: 0 | FD24: 0 | FE24: 8.52 | FF24: 0 | FG24: 1.15 | FH24: 0 | FI24: 8.27 | FJ24: 0 | FK24: 5.08 | FL24: 11.14 | FM24: 19.44 | FN24: 1.17 | FO24: 54.77 | FP24: 0 | FQ24: 0 | FR24: 0.0161297 | FS24: 0 | FT24: 0 | FU24: 0 | FV24: 0.0912442 | FW24: 0.135612 | FX24: 0.302188 | FY24: 0.0133383 | FZ24: 0.558512 | GA24: 507.68 | GB24: 0 | GC24: 141.255 | GD24: 0 | GE24: 0 | GF24: 2615 | GG24: 989.001 | GH24: 3267.2 | GI24: 327.5 | GJ24: 7847.63 | GK24: 422.538 | GL24: 0 | GM24: 0 | GN24: 0 | GO24: 188.804 | GP24: 0 | GQ24: 73.4 | GR24: 0 | GS24: 0 | GT24: 684.742 | GU24: 0 | GV24: 0 | GW24: 0 | GX24: 0 | GY24: 0 | GZ24: 0 | HA24: 0 | HB24: 0 | HC24: 0 | HD24: 0 | HE24: 31.71 | HF24: 0 | HG24: 1.15 | HH24: 0 | HI24: 11.57 | HJ24: 21.76 | HK24: 12.54 | HL24: 26.83 | HM24: 2.38 | HN24: 107.94 | HO24: 3.86566e-15 | HP24: 0 | HQ24: 0.0161297 | HR24: 0 | HS24: 0 | HT24: 0.411296 | HU24: 0.118258 | HV24: 0.43522 | HW24: 0.00456421 | HX24: 0.985468 | HY24: 41.5491 | HZ24: 0 | IA24: 41.5491
A25: 2016-08-31T17:00:42 | B25: U02R06 | C25: v27 06 S27 G20 M01 | D25: Proposed and Standard | E25: PASS | F25: 0 | G25: 49.1752 | H25: 77.0797 | I25: 71.2112 | J25: 141.255 | K25: 0 | L25: 0 | M25: 615.745 | N25: 1046.52 | O25: 2371.31 | P25: 151.515 | Q25: 4474.63 | R25: 89.759 | S25: 0 | T25: 0 | U25: 0 | V25: 119.752 | W25: 0 | X25: 45.121 | Y25: 0 | Z25: 0 | AA25: 254.632 | AB25: 0 | AC25: 0 | AD25: 0 | AE25: 0 | AF25: 0 | AG25: 0 | AH25: 0 | AI25: 0 | AJ25: 0 | AK25: 0 | AL25: 6.81 | AM25: 3.06 | AN25: 1.11 | AO25: 0 | AP25: 7.4 | AQ25: 0 | AR25: 4.99 | AS25: 11.24 | AT25: 18.91 | AU25: 1.14 | AV25: 54.66 | AW25: 18.38 | AX25: 77.0797 | AY25: 71.2112 | AZ25: 141.255 | BA25: 0 | BB25: 0 | BC25: 615.745 | BD25: 1046.52 | BE25: 2371.31 | BF25: 151.515 | BG25: 4474.63 | BH25: 89.759 | BI25: 0 | BJ25: 0 | BK25: 0 | BL25: 119.752 | BM25: 0 | BN25: 45.121 | BO25: 0 | BP25: 0 | BQ25: 254.632 | BR25: 0 | BS25: 0 | BT25: 0 | BU25: 0 | BV25: 0 | BW25: 0 | BX25: 0 | BY25: 0 | BZ25: 0 | CA25: 0 | CB25: 6.81 | CC25: 3.06 | CD25: 1.11 | CE25: 0 | CF25: 7.4 | CG25: 4.99 | CH25: 11.24 | CI25: 18.91 | CJ25: 1.14 | CK25: 54.66 | CL25: 18.38 | CM25: CA Residential 2016, Vers. 1.0 | CN25: CSE 0.813 EXE | CP25: MPCBECC | CQ25: 0 | CR25: 0.301091 | CS25: 0.0161297 | CT25: 0 | CU25: 0 | CV25: 0.0912442 | CW25: 0.141835 | CX25: 0.302188 | CY25: 0.0133383 | CZ25: 0.865826 | DA25: 0.31722 | DB25: 0 | DC25: 0.301091 | DD25: 0.0161297 | DE25: 0 | DF25: 0 | DG25: 0.0912442 | DH25: 0.141835 | DI25: 0.302188 | DJ25: 0.0133383 | DK25: 0.865826 | DL25: 0.31722 | DM25: 0 | DN25: 0 | DO25: 0 | DP25: 0 | DZ25: 77.0797 | EA25: 71.2112 | EB25: 141.255 | EC25: 0 | ED25: 0 | EE25: 0 | EF25: 615.745 | EG25: 1046.52 | EH25: 2371.31 | EI25: 151.515 | EJ25: 4474.63 | EK25: 89.759 | EL25: 0 | EM25: 0 | EN25: 0 | EO25: 119.752 | EP25: 0 | EQ25: 45.121 | ER25: 0 | ES25: 0 | ET25: 254.632 | EU25: 0 | EV25: 0 | EW25: 0 | EX25: 0 | EY25: 0 | EZ25: 0 | FA25: 0 | FB25: 0 | FC25: 0 | FD25: 0 | FE25: 6.81 | FF25: 3.06 | FG25: 1.11 | FH25: 0 | FI25: 7.4 | FJ25: 0 | FK25: 4.99 | FL25: 11.24 | FM25: 18.91 | FN25: 1.14 | FO25: 54.66 | FP25: 0 | FQ25: 0.301091 | FR25: 0.0161297 | FS25: 0 | FT25: 0 | FU25: 0 | FV25: 0.0912442 | FW25: 0.141835 | FX25: 0.302188 | FY25: 0.0133383 | FZ25: 0.865826 | GA25: 203.963 | GB25: 174.18 | GC25: 141.255 | GD25: 0 | GE25: 0 | GF25: 2615 | GG25: 989.001 | GH25: 3267.2 | GI25: 327.5 | GJ25: 7718.1 | GK25: 169.744 | GL25: 0 | GM25: 0 | GN25: 0 | GO25: 174.49 | GP25: 0 | GQ25: 73.4 | GR25: 0 | GS25: 0 | GT25: 417.634 | GU25: 0 | GV25: 0 | GW25: 0 | GX25: 0 | GY25: 0 | GZ25: 0 | HA25: 0 | HB25: 0 | HC25: 0 | HD25: 0 | HE25: 13.18 | HF25: 7.52 | HG25: 1.11 | HH25: 0 | HI25: 10.79 | HJ25: 21.36 | HK25: 12.31 | HL25: 26.08 | HM25: 2.35 | HN25: 94.7 | HO25: 0 | HP25: 0.498387 | HQ25: 0.0161297 | HR25: 0 | HS25: 0 | HT25: 0.411296 | HU25: 0.118258 | HV25: 0.43522 | HW25: 0.00456421 | HX25: 1.48385 | HY25: 49.1752 | HZ25: 0 | IA25: 49.1752
A26: 2016-08-31T17:00:42 | B26: U02R07 | C26: v27 07 S27 G20 M01 | D26: Proposed and Standard | E26: PASS | F26: 0 | G26: 47.8638 | H26: 27.4449 | I26: 12.1086 | J26: 141.255 | K26: 0 | L26: 0 | M26: 615.745 | N26: 1048.37 | O26: 2371.31 | P26: 151.515 | Q26: 4367.75 | R26: 31.9584 | S26: 0 | T26: 0 | U26: 0 | V26: 117.807 | W26: 0 | X26: 45.121 | Y26: 0 | Z26: 0 | AA26: 194.886 | AB26: 0 | AC26: 0 | AD26: 0 | AE26: 0 | AF26: 0 | AG26: 0 | AH26: 0 | AI26: 0 | AJ26: 0 | AK26: 0 | AL26: 2.33 | AM26: 0.62 | AN26: 1.15 | AO26: 0 | AP26: 7.15 | AQ26: 0 | AR26: 5.25 | AS26: 11.5 | AT26: 19.71 | AU26: 1.2 | AV26: 48.91 | AW26: 11.25 | AX26: 27.4451 | AY26: 12.1086 | AZ26: 141.255 | BA26: 0 | BB26: 0 | BC26: 615.745 | BD26: 1048.37 | BE26: 2371.31 | BF26: 151.515 | BG26: 4367.75 | BH26: 31.9587 | BI26: 0 | BJ26: 0 | BK26: 0 | BL26: 117.807 | BM26: 0 | BN26: 45.121 | BO26: 0 | BP26: 0 | BQ26: 194.887 | BR26: 0 | BS26: 0 | BT26: 0 | BU26: 0 | BV26: 0 | BW26: 0 | BX26: 0 | BY26: 0 | BZ26: 0 | CA26: 0 | CB26: 2.33 | CC26: 0.62 | CD26: 1.15 | CE26: 0 | CF26: 7.15 | CG26: 5.25 | CH26: 11.5 | CI26: 19.71 | CJ26: 1.2 | CK26: 48.91 | CL26: 11.25 | CM26: CA Residential 2016, Vers. 1.0 | CN26: CSE 0.813 EXE | CP26: MPCBECC | CQ26: 0 | CR26: 0.0733359 | CS26: 0.0161297 | CT26: 0 | CU26: 0 | CV26: 0.0912442 | CW26: 0.141223 | CX26: 0.302188 | CY26: 0.0133383 | CZ26: 0.637459 | DA26: 0.0894656 | DB26: 0 | DC26: 0.0733359 | DD26: 0.0161297 | DE26: 0 | DF26: 0 | DG26: 0.0912442 | DH26: 0.141223 | DI26: 0.302188 | DJ26: 0.0133383 | DK26: 0.637459 | DL26: 0.0894656 | DM26: 0 | DN26: 0 | DO26: 0 | DP26: 0 | DZ26: 27.4449 | EA26: 12.1086 | EB26: 141.255 | EC26: 0 | ED26: 0 | EE26: 0 | EF26: 615.745 | EG26: 1048.37 | EH26: 2371.31 | EI26: 151.515 | EJ26: 4367.75 | EK26: 31.9584 | EL26: 0 | EM26: 0 | EN26: 0 | EO26: 117.807 | EP26: 0 | EQ26: 45.121 | ER26: 0 | ES26: 0 | ET26: 194.886 | EU26: 0 | EV26: 0 | EW26: 0 | EX26: 0 | EY26: 0 | EZ26: 0 | FA26: 0 | FB26: 0 | FC26: 0 | FD26: 0 | FE26: 2.33 | FF26: 0.62 | FG26: 1.15 | FH26: 0 | FI26: 7.15 | FJ26: 0 | FK26: 5.25 | FL26: 11.5 | FM26: 19.71 | FN26: 1.2 | FO26: 48.91 | FP26: 0 | FQ26: 0.0733359 | FR26: 0.0161297 | FS26: 0 | FT26: 0 | FU26: 0 | FV26: 0.0912442 | FW26: 0.141223 | FX26: 0.302188 | FY26: 0.0133383 | FZ26: 0.637459 | GA26: 84.307 | GB26: 76.9071 | GC26: 141.255 | GD26: 0 | GE26: 0 | GF26: 2615 | GG26: 989.001 | GH26: 3267.2 | GI26: 327.5 | GJ26: 7501.17 | GK26: 70.1601 | GL26: 0 | GM26: 0 | GN26: 0 | GO26: 172.755 | GP26: 0 | GQ26: 73.4 | GR26: 0 | GS26: 0 | GT26: 316.315 | GU26: 0 | GV26: 0 | GW26: 0 | GX26: 0 | GY26: 0 | GZ26: 0 | HA26: 0 | HB26: 0 | HC26: 0 | HD26: 0 | HE26: 5.27 | HF26: 4.29 | HG26: 1.15 | HH26: 0 | HI26: 10.48 | HJ26: 22.47 | HK26: 12.55 | HL26: 27.22 | HM26: 2.51 | HN26: 85.94 | HO26: 0 | HP26: 0.319935 | HQ26: 0.0161297 | HR26: 0 | HS26: 0 | HT26: 0.411296 | HU26: 0.118258 | HV26: 0.43522 | HW26: 0.00456421 | HX26: 1.3054 | HY26: 47.8638 | HZ26: 0 | IA26: 47.8638
A27: 2016-08-31T17:00:42 | B27: U02R08 | C27: v27 08 S27 G20 M01 | D27: Proposed and Standard | E27: PASS | F27: 0 | G27: 45.5094 | H27: 43.6411 | I27: 358.953 | J27: 141.255 | K27: 0 | L27: 0 | M27: 615.745 | N27: 1066.38 | O27: 2371.31 | P27: 151.515 | Q27: 4748.8 | R27: 50.82 | S27: 0 | T27: 0 | U27: 0 | V27: 114.692 | W27: 0 | X27: 45.121 | Y27: 0 | Z27: 0 | AA27: 210.633 | AB27: 0 | AC27: 0 | AD27: 0 | AE27: 0 | AF27: 0 | AG27: 0 | AH27: 0 | AI27: 0 | AJ27: 0 | AK27: 0 | AL27: 3.87 | AM27: 8.04 | AN27: 1.11 | AO27: 0 | AP27: 7.1 | AQ27: 0 | AR27: 5.04 | AS27: 11.42 | AT27: 18.99 | AU27: 1.15 | AV27: 56.72 | AW27: 20.12 | AX27: 43.641 | AY27: 358.953 | AZ27: 141.255 | BA27: 0 | BB27: 0 | BC27: 615.745 | BD27: 1066.38 | BE27: 2371.31 | BF27: 151.515 | BG27: 4748.8 | BH27: 50.8199 | BI27: 0 | BJ27: 0 | BK27: 0 | BL27: 114.692 | BM27: 0 | BN27: 45.121 | BO27: 0 | BP27: 0 | BQ27: 210.633 | BR27: 0 | BS27: 0 | BT27: 0 | BU27: 0 | BV27: 0 | BW27: 0 | BX27: 0 | BY27: 0 | BZ27: 0 | CA27: 0 | CB27: 3.87 | CC27: 8.04 | CD27: 1.11 | CE27: 0 | CF27: 7.1 | CG27: 5.04 | CH27: 11.42 | CI27: 18.99 | CJ27: 1.15 | CK27: 56.72 | CL27: 20.12 | CM27: CA Residential 2016, Vers. 1.0 | CN27: CSE 0.813 EXE | CP27: MPCBECC | CQ27: 0 | CR27: 0.760711 | CS27: 0.0161297 | CT27: 0 | CU27: 0 | CV27: 0.0912442 | CW27: 0.147438 | CX27: 0.302188 | CY27: 0.0133383 | CZ27: 1.33105 | DA27: 0.77684 | DB27: 0 | DC27: 0.760711 | DD27: 0.0161297 | DE27: 0 | DF27: 0 | DG27: 0.0912442 | DH27: 0.147438 | DI27: 0.302188 | DJ27: 0.0133383 | DK27: 1.33105 | DL27: 0.77684 | DM27: 0 | DN27: 0 | DO27: 0 | DP27: 0 | DZ27: 43.6411 | EA27: 358.953 | EB27: 141.255 | EC27: 0 | ED27: 0 | EE27: 0 | EF27: 615.745 | EG27: 1066.38 | EH27: 2371.31 | EI27: 151.515 | EJ27: 4748.8 | EK27: 50.82 | EL27: 0 | EM27: 0 | EN27: 0 | EO27: 114.692 | EP27: 0 | EQ27: 45.121 | ER27: 0 | ES27: 0 | ET27: 210.633 | EU27: 0 | EV27: 0 | EW27: 0 | EX27: 0 | EY27: 0 | EZ27: 0 | FA27: 0 | FB27: 0 | FC27: 0 | FD27: 0 | FE27: 3.87 | FF27: 8.04 | FG27: 1.11 | FH27: 0 | FI27: 7.1 | FJ27: 0 | FK27: 5.04 | FL27: 11.42 | FM27: 18.99 | FN27: 1.15 | FO27: 56.72 | FP27: 0 | FQ27: 0.760711 | FR27: 0.0161297 | FS27: 0 | FT27: 0 | FU27: 0 | FV27: 0.0912442 | FW27: 0.147438 | FX27: 0.302188 | FY27: 0.0133383 | FZ27: 1.33105 | GA27: 155.221 | GB27: 963.406 | GC27: 141.255 | GD27: 0 | GE27: 0 | GF27: 2615 | GG27: 989.001 | GH27: 3267.2 | GI27: 327.5 | GJ27: 8458.58 | GK27: 129.179 | GL27: 0 | GM27: 0 | GN27: 0 | GO27: 169.65 | GP27: 0 | GQ27: 73.4 | GR27: 0 | GS27: 0 | GT27: 372.229 | GU27: 0 | GV27: 0 | GW27: 0 | GX27: 0 | GY27: 0 | GZ27: 0 | HA27: 0 | HB27: 0 | HC27: 0 | HD27: 0 | HE27: 10.07 | HF27: 25.89 | HG27: 1.11 | HH27: 0 | HI27: 10.5 | HJ27: 21.57 | HK27: 12.33 | HL27: 26.23 | HM27: 2.39 | HN27: 110.09 | HO27: 0 | HP27: 2.18783 | HQ27: 0.0161297 | HR27: 0 | HS27: 0 | HT27: 0.411296 | HU27: 0.118258 | HV27: 0.43522 | HW27: 0.00456421 | HX27: 3.1733 | HY27: 45.5094 | HZ27: 0 | IA27: 45.5094
A28: 2016-08-31T17:00:42 | B28: U02R09 | C28: v27 09 S27 G20 M01 | D28: Proposed and Standard | E28: PASS | F28: 0 | G28: 45.6332 | H28: 67.6349 | I28: 684.264 | J28: 141.255 | K28: 0 | L28: 0 | M28: 615.745 | N28: 1066.08 | O28: 2371.31 | P28: 151.515 | Q28: 5097.8 | R28: 78.7846 | S28: 0 | T28: 0 | U28: 0 | V28: 114.475 | W28: 0 | X28: 45.121 | Y28: 0 | Z28: 0 | AA28: 238.38 | AB28: 0 | AC28: 0 | AD28: 0 | AE28: 0 | AF28: 0 | AG28: 0 | AH28: 0 | AI28: 0 | AJ28: 0 | AK28: 0 | AL28: 5.94 | AM28: 18.55 | AN28: 1.1 | AO28: 0 | AP28: 7.1 | AQ28: 0 | AR28: 4.97 | AS28: 11.34 | AT28: 18.77 | AU28: 1.13 | AV28: 68.9 | AW28: 32.69 | AX28: 67.6351 | AY28: 684.264 | AZ28: 141.255 | BA28: 0 | BB28: 0 | BC28: 615.745 | BD28: 1066.08 | BE28: 2371.31 | BF28: 151.515 | BG28: 5097.8 | BH28: 78.7848 | BI28: 0 | BJ28: 0 | BK28: 0 | BL28: 114.475 | BM28: 0 | BN28: 45.121 | BO28: 0 | BP28: 0 | BQ28: 238.381 | BR28: 0 | BS28: 0 | BT28: 0 | BU28: 0 | BV28: 0 | BW28: 0 | BX28: 0 | BY28: 0 | BZ28: 0 | CA28: 0 | CB28: 5.94 | CC28: 18.55 | CD28: 1.1 | CE28: 0 | CF28: 7.1 | CG28: 4.97 | CH28: 11.34 | CI28: 18.77 | CJ28: 1.13 | CK28: 68.9 | CL28: 32.69 | CM28: CA Residential 2016, Vers. 1.0 | CN28: CSE 0.813 EXE | CP28: MPCBECC | CQ28: 0 | CR28: 1.631 | CS28: 0.0161297 | CT28: 0 | CU28: 0 | CV28: 0.0912442 | CW28: 0.150555 | CX28: 0.302188 | CY28: 0.0133383 | CZ28: 2.20446 | DA28: 1.64713 | DB28: 0 | DC28: 1.631 | DD28: 0.0161297 | DE28: 0 | DF28: 0 | DG28: 0.0912442 | DH28: 0.150555 | DI28: 0.302188 | DJ28: 0.0133383 | DK28: 2.20446 | DL28: 1.64713 | DM28: 0 | DN28: 0 | DO28: 0 | DP28: 0 | DZ28: 67.6349 | EA28: 684.264 | EB28: 141.255 | EC28: 0 | ED28: 0 | EE28: 0 | EF28: 615.745 | EG28: 1066.08 | EH28: 2371.31 | EI28: 151.515 | EJ28: 5097.8 | EK28: 78.7846 | EL28: 0 | EM28: 0 | EN28: 0 | EO28: 114.475 | EP28: 0 | EQ28: 45.121 | ER28: 0 | ES28: 0 | ET28: 238.38 | EU28: 0 | EV28: 0 | EW28: 0 | EX28: 0 | EY28: 0 | EZ28: 0 | FA28: 0 | FB28: 0 | FC28: 0 | FD28: 0 | FE28: 5.94 | FF28: 18.55 | FG28: 1.1 | FH28: 0 | FI28: 7.1 | FJ28: 0 | FK28: 4.97 | FL28: 11.34 | FM28: 18.77 | FN28: 1.13 | FO28: 68.9 | FP28: 0 | FQ28: 1.631 | FR28: 0.0161297 | FS28: 0 | FT28: 0 | FU28: 0 | FV28: 0.0912442 | FW28: 0.150555 | FX28: 0.302188 | FY28: 0.0133383 | FZ28: 2.20446 | GA28: 218.438 | GB28: 1765 | GC28: 141.255 | GD28: 0 | GE28: 0 | GF28: 2615 | GG28: 989.001 | GH28: 3267.2 | GI28: 327.5 | GJ28: 9323.39 | GK28: 181.846 | GL28: 0 | GM28: 0 | GN28: 0 | GO28: 169.404 | GP28: 0 | GQ28: 73.4 | GR28: 0 | GS28: 0 | GT28: 424.65 | GU28: 0 | GV28: 0 | GW28: 0 | GX28: 0 | GY28: 0 | GZ28: 0 | HA28: 0 | HB28: 0 | HC28: 0 | HD28: 0 | HE28: 14.06 | HF28: 48.69 | HG28: 1.1 | HH28: 0 | HI28: 10.5 | HJ28: 21.33 | HK28: 12.25 | HL28: 25.98 | HM28: 2.35 | HN28: 136.26 | HO28: 0 | HP28: 3.50705 | HQ28: 0.0161297 | HR28: 0 | HS28: 0 | HT28: 0.411296 | HU28: 0.118258 | HV28: 0.43522 | HW28: 0.00456421 | HX28: 4.49251 | HY28: 45.6332 | HZ28: 0 | IA28: 45.6332
A29: 2016-08-31T17:00:58 | B29: U02R10 | C29: v27 10 S27 G20 M01 | D29: Proposed and Standard | E29: PASS | F29: 0 | G29: 43.9983 | H29: 79.0142 | I29: 862.237 | J29: 141.255 | K29: 0 | L29: 0 | M29: 615.745 | N29: 1069.01 | O29: 2371.31 | P29: 151.515 | Q29: 5290.08 | R29: 92.044 | S29: 0 | T29: 0 | U29: 0 | V29: 113.613 | W29: 0 | X29: 45.121 | Y29: 0 | Z29: 0 | AA29: 250.778 | AB29: 0 | AC29: 0 | AD29: 0 | AE29: 0 | AF29: 0 | AG29: 0 | AH29: 0 | AI29: 0 | AJ29: 0 | AK29: 0 | AL29: 6.93 | AM29: 18.5 | AN29: 1.1 | AO29: 0 | AP29: 7.06 | AQ29: 0 | AR29: 4.91 | AS29: 11.34 | AT29: 18.7 | AU29: 1.12 | AV29: 69.66 | AW29: 33.59 | AX29: 79.0142 | AY29: 862.237 | AZ29: 141.255 | BA29: 0 | BB29: 0 | BC29: 615.745 | BD29: 1069.01 | BE29: 2371.31 | BF29: 151.515 | BG29: 5290.08 | BH29: 92.044 | BI29: 0 | BJ29: 0 | BK29: 0 | BL29: 113.613 | BM29: 0 | BN29: 45.121 | BO29: 0 | BP29: 0 | BQ29: 250.778 | BR29: 0 | BS29: 0 | BT29: 0 | BU29: 0 | BV29: 0 | BW29: 0 | BX29: 0 | BY29: 0 | BZ29: 0 | CA29: 0 | CB29: 6.93 | CC29: 18.5 | CD29: 1.1 | CE29: 0 | CF29: 7.06 | CG29: 4.91 | CH29: 11.34 | CI29: 18.7 | CJ29: 1.12 | CK29: 69.66 | CL29: 33.59 | CM29: CA Residential 2016, Vers. 1.0 | CN29: CSE 0.813 EXE | CP29: MPCBECC | CQ29: 0 | CR29: 1.65228 | CS29: 0.0161297 | CT29: 0 | CU29: 0 | CV29: 0.0912442 | CW29: 0.151278 | CX29: 0.302188 | CY29: 0.0133383 | CZ29: 2.22646 | DA29: 1.66841 | DB29: 0 | DC29: 1.65228 | DD29: 0.0161297 | DE29: 0 | DF29: 0 | DG29: 0.0912442 | DH29: 0.151278 | DI29: 0.302188 | DJ29: 0.0133383 | DK29: 2.22646 | DL29: 1.66841 | DM29: 1.19209e-06 | DN29: 1.07288e-06 | DO29: 0 | DP29: 0 | DZ29: 79.0142 | EA29: 862.237 | EB29: 141.255 | EC29: 0 | ED29: 0 | EE29: 0 | EF29: 615.745 | EG29: 1069.01 | EH29: 2371.31 | EI29: 151.515 | EJ29: 5290.08 | EK29: 92.044 | EL29: 0 | EM29: 0 | EN29: 0 | EO29: 113.613 | EP29: 0 | EQ29: 45.121 | ER29: 0 | ES29: 0 | ET29: 250.778 | EU29: 0 | EV29: 0 | EW29: 0 | EX29: 0 | EY29: 0 | EZ29: 0 | FA29: 0 | FB29: 0 | FC29: 0 | FD29: 0 | FE29: 6.93 | FF29: 18.5 | FG29: 1.1 | FH29: 0 | FI29: 7.06 | FJ29: 0 | FK29: 4.91 | FL29: 11.34 | FM29: 18.7 | FN29: 1.12 | FO29: 69.66 | FP29: 0 | FQ29: 1.65228 | FR29: 0.0161297 | FS29: 0 | FT29: 0 | FU29: 0 | FV29: 0.0912442 | FW29: 0.151278 | FX29: 0.302188 | FY29: 0.0133383 | FZ29: 2.22646 | GA29: 247.033 | GB29: 2424.92 | GC29: 141.255 | GD29: 0 | GE29: 0 | GF29: 2615 | GG29: 989.001 | GH29: 3267.2 | GI29: 327.5 | GJ29: 10011.9 | GK29: 205.66 | GL29: 0 | GM29: 0 | GN29: 0 | GO29: 168.496 | GP29: 0 | GQ29: 73.4 | GR29: 0 | GS29: 0 | GT29: 447.556 | GU29: 0 | GV29: 0 | GW29: 0 | GX29: 0 | GY29: 0 | GZ29: 0 | HA29: 0 | HB29: 0 | HC29: 0 | HD29: 0 | HE29: 15.88 | HF29: 54.76 | HG29: 1.1 | HH29: 0 | HI29: 10.46 | HJ29: 21.1 | HK29: 12.24 | HL29: 25.87 | HM29: 2.32 | HN29: 143.73 | HO29: 0 | HP29: 3.87674 | HQ29: 0.0161297 | HR29: 0 | HS29: 0 | HT29: 0.411296 | HU29: 0.118258 | HV29: 0.43522 | HW29: 0.00456421 | HX29: 4.86221 | HY29: 43.9983 | HZ29: 0 | IA29: 43.9983
A30: 2016-08-31T17:00:58 | B30: U02R11 | C30: v27 11 S27 G20 M01 | D30: Proposed and Standard | E30: PASS | F30: 0 | G30: 46.9036 | H30: 216.499 | I30: 1810.99 | J30: 141.255 | K30: 0 | L30: 0 | M30: 615.745 | N30: 1062 | O30: 2371.31 | P30: 151.515 | Q30: 6369.31 | R30: 252.142 | S30: 0 | T30: 0 | U30: 0 | V30: 115.963 | W30: 0 | X30: 45.121 | Y30: 0 | Z30: 0 | AA30: 413.226 | AB30: 0 | AC30: 0 | AD30: 0 | AE30: 0 | AF30: 0 | AG30: 0 | AH30: 0 | AI30: 0 | AJ30: 0 | AK30: 0 | AL30: 18.96 | AM30: 36.12 | AN30: 1.15 | AO30: 0 | AP30: 7.21 | AQ30: 0 | AR30: 5.23 | AS30: 11.78 | AT30: 19.6 | AU30: 1.19 | AV30: 101.24 | AW30: 63.44 | AX30: 216.499 | AY30: 1810.99 | AZ30: 141.255 | BA30: 0 | BB30: 0 | BC30: 615.745 | BD30: 1062 | BE30: 2371.31 | BF30: 151.515 | BG30: 6369.31 | BH30: 252.142 | BI30: 0 | BJ30: 0 | BK30: 0 | BL30: 115.963 | BM30: 0 | BN30: 45.121 | BO30: 0 | BP30: 0 | BQ30: 413.226 | BR30: 0 | BS30: 0 | BT30: 0 | BU30: 0 | BV30: 0 | BW30: 0 | BX30: 0 | BY30: 0 | BZ30: 0 | CA30: 0 | CB30: 18.96 | CC30: 36.12 | CD30: 1.15 | CE30: 0 | CF30: 7.21 | CG30: 5.23 | CH30: 11.78 | CI30: 19.6 | CJ30: 1.19 | CK30: 101.24 | CL30: 63.44 | CM30: CA Residential 2016, Vers. 1.0 | CN30: CSE 0.813 EXE | CP30: MPCBECC | CQ30: 0 | CR30: 2.06581 | CS30: 0.0161297 | CT30: 0 | CU30: 0 | CV30: 0.0912442 | CW30: 0.151751 | CX30: 0.302188 | CY30: 0.0133383 | CZ30: 2.64046 | DA30: 2.08194 | DB30: 0 | DC30: 2.06581 | DD30: 0.0161297 | DE30: 0 | DF30: 0 | DG30: 0.0912442 | DH30: 0.151751 | DI30: 0.302188 | DJ30: 0.0133383 | DK30: 2.64046 | DL30: 2.08194 | DM30: 0 | DN30: 0 | DO30: 0 | DP30: 0 | DZ30: 216.499 | EA30: 1810.99 | EB30: 141.255 | EC30: 0 | ED30: 0 | EE30: 0 | EF30: 615.745 | EG30: 1062 | EH30: 2371.31 | EI30: 151.515 | EJ30: 6369.31 | EK30: 252.142 | EL30: 0 | EM30: 0 | EN30: 0 | EO30: 115.963 | EP30: 0 | EQ30: 45.121 | ER30: 0 | ES30: 0 | ET30: 413.226 | EU30: 0 | EV30: 0 | EW30: 0 | EX30: 0 | EY30: 0 | EZ30: 0 | FA30: 0 | FB30: 0 | FC30: 0 | FD30: 0 | FE30: 18.96 | FF30: 36.12 | FG30: 1.15 | FH30: 0 | FI30: 7.21 | FJ30: 0 | FK30: 5.23 | FL30: 11.78 | FM30: 19.6 | FN30: 1.19 | FO30: 101.24 | FP30: 0 | FQ30: 2.06581 | FR30: 0.0161297 | FS30: 0 | FT30: 0 | FU30: 0 | FV30: 0.0912442 | FW30: 0.151751 | FX30: 0.302188 | FY30: 0.0133383 | FZ30: 2.64046 | GA30: 571.982 | GB30: 4348.13 | GC30: 141.255 | GD30: 0 | GE30: 0 | GF30: 2615 | GG30: 989.001 | GH30: 3267.2 | GI30: 327.5 | GJ30: 12260.1 | GK30: 476.076 | GL30: 0 | GM30: 0 | GN30: 0 | GO30: 170.536 | GP30: 0 | GQ30: 73.4 | GR30: 0 | GS30: 0 | GT30: 720.012 | GU30: 0 | GV30: 0 | GW30: 0 | GX30: 0 | GY30: 0 | GZ30: 0 | HA30: 0 | HB30: 0 | HC30: 0 | HD30: 0 | HE30: 36.8 | HF30: 81.51 | HG30: 1.15 | HH30: 0 | HI30: 10.6 | HJ30: 22.57 | HK30: 12.58 | HL30: 27.25 | HM30: 2.45 | HN30: 194.91 | HO30: 0 | HP30: 4.43135 | HQ30: 0.0161297 | HR30: 0 | HS30: 0 | HT30: 0.411296 | HU30: 0.118258 | HV30: 0.43522 | HW30: 0.00456421 | HX30: 5.41682 | HY30: 46.9036 | HZ30: 0 | IA30: 46.9036
A31: 2016-08-31T17:00:56 | B31: U02R12 | C31: v27 12 S27 G20 M01 | D31: Proposed and Standard | E31: PASS | F31: 0 | G31: 43.9991 | H31: 220.267 | I31: 492.259 | J31: 141.255 | K31: 0 | L31: 0 | M31: 615.745 | N31: 1041.87 | O31: 2371.31 | P31: 151.515 | Q31: 5034.22 | R31: 256.492 | S31: 0 | T31: 0 | U31: 0 | V31: 121.937 | W31: 0 | X31: 45.121 | Y31: 0 | Z31: 0 | AA31: 423.55 | AB31: 0 | AC31: 0 | AD31: 0 | AE31: 0 | AF31: 0 | AG31: 0 | AH31: 0 | AI31: 0 | AJ31: 0 | AK31: 0 | AL31: 19.36 | AM31: 14.47 | AN31: 1.15 | AO31: 0 | AP31: 7.54 | AQ31: 0 | AR31: 5.26 | AS31: 11.58 | AT31: 19.64 | AU31: 1.2 | AV31: 80.2 | AW31: 42.52 | AX31: 220.267 | AY31: 492.259 | AZ31: 141.255 | BA31: 0 | BB31: 0 | BC31: 615.745 | BD31: 1041.87 | BE31: 2371.31 | BF31: 151.515 | BG31: 5034.22 | BH31: 256.492 | BI31: 0 | BJ31: 0 | BK31: 0 | BL31: 121.937 | BM31: 0 | BN31: 45.121 | BO31: 0 | BP31: 0 | BQ31: 423.55 | BR31: 0 | BS31: 0 | BT31: 0 | BU31: 0 | BV31: 0 | BW31: 0 | BX31: 0 | BY31: 0 | BZ31: 0 | CA31: 0 | CB31: 19.36 | CC31: 14.47 | CD31: 1.15 | CE31: 0 | CF31: 7.54 | CG31: 5.26 | CH31: 11.58 | CI31: 19.64 | CJ31: 1.2 | CK31: 80.2 | CL31: 42.52 | CM31: CA Residential 2016, Vers. 1.0 | CN31: CSE 0.813 EXE | CP31: MPCBECC | CQ31: 0 | CR31: 0.982705 | CS31: 0.0161297 | CT31: 0 | CU31: 0 | CV31: 0.0912442 | CW31: 0.148562 | CX31: 0.302188 | CY31: 0.0133383 | CZ31: 1.55417 | DA31: 0.998835 | DB31: 0 | DC31: 0.982705 | DD31: 0.0161297 | DE31: 0 | DF31: 0 | DG31: 0.0912442 | DH31: 0.148562 | DI31: 0.302188 | DJ31: 0.0133383 | DK31: 1.55417 | DL31: 0.998835 | DM31: 0 | DN31: 0 | DO31: 0 | DP31: 0 | DZ31: 220.267 | EA31: 492.259 | EB31: 141.255 | EC31: 0 | ED31: 0 | EE31: 0 | EF31: 615.745 | EG31: 1041.87 | EH31: 2371.31 | EI31: 151.515 | EJ31: 5034.22 | EK31: 256.492 | EL31: 0 | EM31: 0 | EN31: 0 | EO31: 121.937 | EP31: 0 | EQ31: 45.121 | ER31: 0 | ES31: 0 | ET31: 423.55 | EU31: 0 | EV31: 0 | EW31: 0 | EX31: 0 | EY31: 0 | EZ31: 0 | FA31: 0 | FB31: 0 | FC31: 0 | FD31: 0 | FE31: 19.36 | FF31: 14.47 | FG31: 1.15 | FH31: 0 | FI31: 7.54 | FJ31: 0 | FK31: 5.26 | FL31: 11.58 | FM31: 19.64 | FN31: 1.2 | FO31: 80.2 | FP31: 0 | FQ31: 0.982705 | FR31: 0.0161297 | FS31: 0 | FT31: 0 | FU31: 0 | FV31: 0.0912442 | FW31: 0.148562 | FX31: 0.302188 | FY31: 0.0133383 | FZ31: 1.55417 | GA31: 567.599 | GB31: 1686.96 | GC31: 141.255 | GD31: 0 | GE31: 0 | GF31: 2615 | GG31: 989.001 | GH31: 3267.2 | GI31: 327.5 | GJ31: 9594.51 | GK31: 472.356 | GL31: 0 | GM31: 0 | GN31: 0 | GO31: 176.313 | GP31: 0 | GQ31: 73.4 | GR31: 0 | GS31: 0 | GT31: 722.069 | GU31: 0 | GV31: 0 | GW31: 0 | GX31: 0 | GY31: 0 | GZ31: 0 | HA31: 0 | HB31: 0 | HC31: 0 | HD31: 0 | HE31: 36.63 | HF31: 48.27 | HG31: 1.15 | HH31: 0 | HI31: 10.9 | HJ31: 22.7 | HK31: 12.58 | HL31: 27.31 | HM31: 2.44 | HN31: 161.98 | HO31: 0 | HP31: 3.35917 | HQ31: 0.0161297 | HR31: 0 | HS31: 0 | HT31: 0.411296 | HU31: 0.118258 | HV31: 0.43522 | HW31: 0.00456421 | HX31: 4.34463 | HY31: 43.9991 | HZ31: 0 | IA31: 43.9991
A32: 2016-08-31T17:00:56 | B32: U02R13 | C32: v27 13 S27 G20 M01 | D32: Proposed and Standard | E32: PASS | F32: 0 | G32: 48.561 | H32: 193.839 | I32: 2015.12 | J32: 141.255 | K32: 0 | L32: 0 | M32: 615.745 | N32: 1072.58 | O32: 2371.31 | P32: 151.515 | Q32: 6561.36 | R32: 225.75 | S32: 0 | T32: 0 | U32: 0 | V32: 113.694 | W32: 0 | X32: 45.121 | Y32: 0 | Z32: 0 | AA32: 384.565 | AB32: 0 | AC32: 0 | AD32: 0 | AE32: 0 | AF32: 0 | AG32: 0 | AH32: 0 | AI32: 0 | AJ32: 0 | AK32: 0 | AL32: 17.11 | AM32: 39.36 | AN32: 1.15 | AO32: 0 | AP32: 7.07 | AQ32: 0 | AR32: 5.21 | AS32: 11.84 | AT32: 19.59 | AU32: 1.19 | AV32: 102.52 | AW32: 64.69 | AX32: 193.839 | AY32: 2015.12 | AZ32: 141.255 | BA32: 0 | BB32: 0 | BC32: 615.745 | BD32: 1072.58 | BE32: 2371.31 | BF32: 151.515 | BG32: 6561.36 | BH32: 225.75 | BI32: 0 | BJ32: 0 | BK32: 0 | BL32: 113.694 | BM32: 0 | BN32: 45.121 | BO32: 0 | BP32: 0 | BQ32: 384.565 | BR32: 0 | BS32: 0 | BT32: 0 | BU32: 0 | BV32: 0 | BW32: 0 | BX32: 0 | BY32: 0 | BZ32: 0 | CA32: 0 | CB32: 17.11 | CC32: 39.36 | CD32: 1.15 | CE32: 0 | CF32: 7.07 | CG32: 5.21 | CH32: 11.84 | CI32: 19.59 | CJ32: 1.19 | CK32: 102.52 | CL32: 64.69 | CM32: CA Residential 2016, Vers. 1.0 | CN32: CSE 0.813 EXE | CP32: MPCBECC | CQ32: 0 | CR32: 2.56554 | CS32: 0.0161297 | CT32: 0 | CU32: 0 | CV32: 0.0912442 | CW32: 0.152911 | CX32: 0.302188 | CY32: 0.0133383 | CZ32: 3.14135 | DA32: 2.58167 | DB32: 0 | DC32: 2.56554 | DD32: 0.0161297 | DE32: 0 | DF32: 0 | DG32: 0.0912442 | DH32: 0.152911 | DI32: 0.302188 | DJ32: 0.0133383 | DK32: 3.14135 | DL32: 2.58167 | DM32: 0 | DN32: 0 | DO32: 0 | DP32: 0 | DZ32: 193.839 | EA32: 2015.12 | EB32: 141.255 | EC32: 0 | ED32: 0 | EE32: 0 | EF32: 615.745 | EG32: 1072.58 | EH32: 2371.31 | EI32: 151.515 | EJ32: 6561.36 | EK32: 225.75 | EL32: 0 | EM32: 0 | EN32: 0 | EO32: 113.694 | EP32: 0 | EQ32: 45.121 | ER32: 0 | ES32: 0 | ET32: 384.565 | EU32: 0 | EV32: 0 | EW32: 0 | EX32: 0 | EY32: 0 | EZ32: 0 | FA32: 0 | FB32: 0 | FC32: 0 | FD32: 0 | FE32: 17.11 | FF32: 39.36 | FG32: 1.15 | FH32: 0 | FI32: 7.07 | FJ32: 0 | FK32: 5.21 | FL32: 11.84 | FM32: 19.59 | FN32: 1.19 | FO32: 102.52 | FP32: 0 | FQ32: 2.56554 | FR32: 0.0161297 | FS32: 0 | FT32: 0 | FU32: 0 | FV32: 0.0912442 | FW32: 0.152911 | FX32: 0.302188 | FY32: 0.0133383 | FZ32: 3.14135 | GA32: 515.98 | GB32: 4729.34 | GC32: 141.255 | GD32: 0 | GE32: 0 | GF32: 2615 | GG32: 989.001 | GH32: 3267.2 | GI32: 327.5 | GJ32: 12585.3 | GK32: 429.462 | GL32: 0 | GM32: 0 | GN32: 0 | GO32: 168.283 | GP32: 0 | GQ32: 73.4 | GR32: 0 | GS32: 0 | GT32: 671.144 | GU32: 0 | GV32: 0 | GW32: 0 | GX32: 0 | GY32: 0 | GZ32: 0 | HA32: 0 | HB32: 0 | HC32: 0 | HD32: 0 | HE32: 33.45 | HF32: 81.68 | HG32: 1.15 | HH32: 0 | HI32: 10.47 | HJ32: 22.48 | HK32: 12.58 | HL32: 27.23 | HM32: 2.41 | HN32: 191.45 | HO32: 0 | HP32: 4.74717 | HQ32: 0.0161297 | HR32: 0 | HS32: 0 | HT32: 0.411296 | HU32: 0.118258 | HV32: 0.43522 | HW32: 0.00456421 | HX32: 5.73264 | HY32: 48.561 | HZ32: 0 | IA32: 48.561
A33: 2016-08-31T17:00:54 | B33: U02R14 | C33: v27 14 S27 G20 M01 | D33: Proposed and Standard | E33: PASS | F33: 0 | G33: 47.6445 | H33: 207.99 | I33: 1784.56 | J33: 141.255 | K33: 0 | L33: 0 | M33: 615.745 | N33: 1059.7 | O33: 2371.31 | P33: 151.515 | Q33: 6332.08 | R33: 242.489 | S33: 0 | T33: 0 | U33: 0 | V33: 117.294 | W33: 0 | X33: 45.121 | Y33: 0 | Z33: 0 | AA33: 404.904 | AB33: 0 | AC33: 0 | AD33: 0 | AE33: 0 | AF33: 0 | AG33: 0 | AH33: 0 | AI33: 0 | AJ33: 0 | AK33: 0 | AL33: 18.33 | AM33: 34.02 | AN33: 1.1 | AO33: 0 | AP33: 7.34 | AQ33: 0 | AR33: 4.98 | AS33: 11.39 | AT33: 18.75 | AU33: 1.13 | AV33: 97.04 | AW33: 60.79 | AX33: 207.99 | AY33: 1784.56 | AZ33: 141.255 | BA33: 0 | BB33: 0 | BC33: 615.745 | BD33: 1059.7 | BE33: 2371.31 | BF33: 151.515 | BG33: 6332.07 | BH33: 242.489 | BI33: 0 | BJ33: 0 | BK33: 0 | BL33: 117.294 | BM33: 0 | BN33: 45.121 | BO33: 0 | BP33: 0 | BQ33: 404.904 | BR33: 0 | BS33: 0 | BT33: 0 | BU33: 0 | BV33: 0 | BW33: 0 | BX33: 0 | BY33: 0 | BZ33: 0 | CA33: 0 | CB33: 18.33 | CC33: 34.02 | CD33: 1.1 | CE33: 0 | CF33: 7.34 | CG33: 4.98 | CH33: 11.39 | CI33: 18.75 | CJ33: 1.13 | CK33: 97.04 | CL33: 60.79 | CM33: CA Residential 2016, Vers. 1.0 | CN33: CSE 0.813 EXE | CP33: MPCBECC | CQ33: 0 | CR33: 2.37173 | CS33: 0.0161297 | CT33: 0 | CU33: 0 | CV33: 0.0912442 | CW33: 0.152872 | CX33: 0.302188 | CY33: 0.0133383 | CZ33: 2.9475 | DA33: 2.38786 | DB33: 0 | DC33: 2.37173 | DD33: 0.0161297 | DE33: 0 | DF33: 0 | DG33: 0.0912442 | DH33: 0.152872 | DI33: 0.302188 | DJ33: 0.0133383 | DK33: 2.94751 | DL33: 2.38786 | DM33: 7.15256e-07 | DN33: 7.15256e-07 | DO33: 0 | DP33: 0 | DZ33: 207.99 | EA33: 1784.56 | EB33: 141.255 | EC33: 0 | ED33: 0 | EE33: 0 | EF33: 615.745 | EG33: 1059.7 | EH33: 2371.31 | EI33: 151.515 | EJ33: 6332.08 | EK33: 242.489 | EL33: 0 | EM33: 0 | EN33: 0 | EO33: 117.294 | EP33: 0 | EQ33: 45.121 | ER33: 0 | ES33: 0 | ET33: 404.904 | EU33: 0 | EV33: 0 | EW33: 0 | EX33: 0 | EY33: 0 | EZ33: 0 | FA33: 0 | FB33: 0 | FC33: 0 | FD33: 0 | FE33: 18.33 | FF33: 34.02 | FG33: 1.1 | FH33: 0 | FI33: 7.34 | FJ33: 0 | FK33: 4.98 | FL33: 11.39 | FM33: 18.75 | FN33: 1.13 | FO33: 97.04 | FP33: 0 | FQ33: 2.37173 | FR33: 0.0161297 | FS33: 0 | FT33: 0 | FU33: 0 | FV33: 0.0912442 | FW33: 0.152872 | FX33: 0.302188 | FY33: 0.0133383 | FZ33: 2.9475 | GA33: 570.127 | GB33: 4179.53 | GC33: 141.255 | GD33: 0 | GE33: 0 | GF33: 2615 | GG33: 989.001 | GH33: 3267.2 | GI33: 327.5 | GJ33: 12089.6 | GK33: 475.042 | GL33: 0 | GM33: 0 | GN33: 0 | GO33: 171.691 | GP33: 0 | GQ33: 73.4 | GR33: 0 | GS33: 0 | GT33: 720.134 | GU33: 0 | GV33: 0 | GW33: 0 | GX33: 0 | GY33: 0 | GZ33: 0 | HA33: 0 | HB33: 0 | HC33: 0 | HD33: 0 | HE33: 36.85 | HF33: 72.92 | HG33: 1.1 | HH33: 0 | HI33: 10.75 | HJ33: 21.53 | HK33: 12.25 | HL33: 26.08 | HM33: 2.33 | HN33: 183.81 | HO33: 0 | HP33: 4.41805 | HQ33: 0.0161297 | HR33: 0 | HS33: 0 | HT33: 0.411296 | HU33: 0.118258 | HV33: 0.43522 | HW33: 0.00456421 | HX33: 5.40352 | HY33: 47.6445 | HZ33: 0 | IA33: 47.6445
A34: 2016-08-31T17:01:15 | B34: U02R15 | C34: v27 15 S27 G20 M01 | D34: Proposed and Standard | E34: PASS | F34: 0 | G34: 52.7196 | H34: 16.9865 | I34: 5899.64 | J34: 141.255 | K34: 0 | L34: 0 | M34: 615.745 | N34: 1151.43 | O34: 2371.31 | P34: 151.515 | Q34: 10347.9 | R34: 19.7843 | S34: 0 | T34: 0 | U34: 0 | V34: 84.6923 | W34: 0 | X34: 45.121 | Y34: 0 | Z34: 0 | AA34: 149.598 | AB34: 0 | AC34: 0 | AD34: 0 | AE34: 0 | AF34: 0 | AG34: 0 | AH34: 0 | AI34: 0 | AJ34: 0 | AK34: 0 | AL34: 1.51 | AM34: 82.41 | AN34: 1.1 | AO34: 0 | AP34: 5.34 | AQ34: 0 | AR34: 5.01 | AS34: 12.08 | AT34: 18.79 | AU34: 1.14 | AV34: 127.38 | AW34: 90.36 | AX34: 16.9865 | AY34: 5899.64 | AZ34: 141.255 | BA34: 0 | BB34: 0 | BC34: 615.745 | BD34: 1151.43 | BE34: 2371.31 | BF34: 151.515 | BG34: 10347.9 | BH34: 19.7843 | BI34: 0 | BJ34: 0 | BK34: 0 | BL34: 84.6923 | BM34: 0 | BN34: 45.121 | BO34: 0 | BP34: 0 | BQ34: 149.598 | BR34: 0 | BS34: 0 | BT34: 0 | BU34: 0 | BV34: 0 | BW34: 0 | BX34: 0 | BY34: 0 | BZ34: 0 | CA34: 0 | CB34: 1.51 | CC34: 82.41 | CD34: 1.1 | CE34: 0 | CF34: 5.34 | CG34: 5.01 | CH34: 12.08 | CI34: 18.79 | CJ34: 1.14 | CK34: 127.38 | CL34: 90.36 | CM34: CA Residential 2016, Vers. 1.0 | CN34: CSE 0.813 EXE | CP34: MPCBECC | CQ34: 0 | CR34: 4.43968 | CS34: 0.0161297 | CT34: 0 | CU34: 0 | CV34: 0.0912442 | CW34: 0.158339 | CX34: 0.302188 | CY34: 0.0133383 | CZ34: 5.02092 | DA34: 4.45581 | DB34: 0 | DC34: 4.43968 | DD34: 0.0161297 | DE34: 0 | DF34: 0 | DG34: 0.0912442 | DH34: 0.158339 | DI34: 0.302188 | DJ34: 0.0133383 | DK34: 5.02092 | DL34: 4.45581 | DM34: 0 | DN34: 0 | DO34: 0 | DP34: 0 | DZ34: 16.9865 | EA34: 5899.64 | EB34: 141.255 | EC34: 0 | ED34: 0 | EE34: 0 | EF34: 615.745 | EG34: 1151.43 | EH34: 2371.31 | EI34: 151.515 | EJ34: 10347.9 | EK34: 19.7843 | EL34: 0 | EM34: 0 | EN34: 0 | EO34: 84.6923 | EP34: 0 | EQ34: 45.121 | ER34: 0 | ES34: 0 | ET34: 149.598 | EU34: 0 | EV34: 0 | EW34: 0 | EX34: 0 | EY34: 0 | EZ34: 0 | FA34: 0 | FB34: 0 | FC34: 0 | FD34: 0 | FE34: 1.51 | FF34: 82.41 | FG34: 1.1 | FH34: 0 | FI34: 5.34 | FJ34: 0 | FK34: 5.01 | FL34: 12.08 | FM34: 18.79 | FN34: 1.14 | FO34: 127.38 | FP34: 0 | FQ34: 4.43968 | FR34: 0.0161297 | FS34: 0 | FT34: 0 | FU34: 0 | FV34: 0.0912442 | FW34: 0.158339 | FX34: 0.302188 | FY34: 0.0133383 | FZ34: 5.02092 | GA34: 76.3407 | GB34: 12428.6 | GC34: 141.255 | GD34: 0 | GE34: 0 | GF34: 2615 | GG34: 989.001 | GH34: 3267.2 | GI34: 327.5 | GJ34: 19844.9 | GK34: 63.5443 | GL34: 0 | GM34: 0 | GN34: 0 | GO34: 139.785 | GP34: 0 | GQ34: 73.4 | GR34: 0 | GS34: 0 | GT34: 276.729 | GU34: 0 | GV34: 0 | GW34: 0 | GX34: 0 | GY34: 0 | GZ34: 0 | HA34: 0 | HB34: 0 | HC34: 0 | HD34: 0 | HE34: 5 | HF34: 153.1 | HG34: 1.1 | HH34: 0 | HI34: 8.81 | HJ34: 21.65 | HK34: 12.26 | HL34: 26.12 | HM34: 2.36 | HN34: 230.4 | HO34: 0 | HP34: 6.78058 | HQ34: 0.0161297 | HR34: 0 | HS34: 0 | HT34: 0.411296 | HU34: 0.118258 | HV34: 0.43522 | HW34: 0.00456421 | HX34: 7.76604 | HY34: 52.7196 | HZ34: 0 | IA34: 52.7196
A35: 2016-08-31T17:00:55 | B35: U02R16 | C35: v27 16 S27 G20 M01 | D35: Proposed and Standard | E35: PASS | F35: 0 | G35: 50.4819 | H35: 482.023 | I35: 140.468 | J35: 141.255 | K35: 0 | L35: 0 | M35: 615.745 | N35: 991.839 | O35: 2371.31 | P35: 151.515 | Q35: 4894.15 | R35: 562.817 | S35: 0 | T35: 0 | U35: 0 | V35: 145.162 | W35: 0 | X35: 45.121 | Y35: 0 | Z35: 0 | AA35: 753.1 | AB35: 0 | AC35: 0 | AD35: 0 | AE35: 0 | AF35: 0 | AG35: 0 | AH35: 0 | AI35: 0 | AJ35: 0 | AK35: 0 | AL35: 41.18 | AM35: 3.98 | AN35: 1.09 | AO35: 0 | AP35: 9.03 | AQ35: 0 | AR35: 4.94 | AS35: 10.81 | AT35: 18.69 | AU35: 1.13 | AV35: 90.85 | AW35: 55.28 | AX35: 482.023 | AY35: 140.469 | AZ35: 141.255 | BA35: 0 | BB35: 0 | BC35: 615.745 | BD35: 991.84 | BE35: 2371.31 | BF35: 151.515 | BG35: 4894.15 | BH35: 562.817 | BI35: 0 | BJ35: 0 | BK35: 0 | BL35: 145.162 | BM35: 0 | BN35: 45.121 | BO35: 0 | BP35: 0 | BQ35: 753.1 | BR35: 0 | BS35: 0 | BT35: 0 | BU35: 0 | BV35: 0 | BW35: 0 | BX35: 0 | BY35: 0 | BZ35: 0 | CA35: 0 | CB35: 41.18 | CC35: 3.98 | CD35: 1.09 | CE35: 0 | CF35: 9.03 | CG35: 4.94 | CH35: 10.81 | CI35: 18.69 | CJ35: 1.13 | CK35: 90.85 | CL35: 55.28 | CM35: CA Residential 2016, Vers. 1.0 | CN35: CSE 0.813 EXE | CP35: MPCBECC | CQ35: 0 | CR35: 0.24964 | CS35: 0.0161297 | CT35: 0 | CU35: 0 | CV35: 0.0912442 | CW35: 0.143568 | CX35: 0.302188 | CY35: 0.0133383 | CZ35: 0.816109 | DA35: 0.26577 | DB35: 0 | DC35: 0.249644 | DD35: 0.0161297 | DE35: 0 | DF35: 0 | DG35: 0.0912442 | DH35: 0.143568 | DI35: 0.302188 | DJ35: 0.0133383 | DK35: 0.816113 | DL35: 0.265774 | DM35: 3.69549e-06 | DN35: 3.66569e-06 | DO35: 0 | DP35: 0 | DZ35: 482.023 | EA35: 140.468 | EB35: 141.255 | EC35: 0 | ED35: 0 | EE35: 0 | EF35: 615.745 | EG35: 991.839 | EH35: 2371.31 | EI35: 151.515 | EJ35: 4894.15 | EK35: 562.817 | EL35: 0 | EM35: 0 | EN35: 0 | EO35: 145.162 | EP35: 0 | EQ35: 45.121 | ER35: 0 | ES35: 0 | ET35: 753.1 | EU35: 0 | EV35: 0 | EW35: 0 | EX35: 0 | EY35: 0 | EZ35: 0 | FA35: 0 | FB35: 0 | FC35: 0 | FD35: 0 | FE35: 41.18 | FF35: 3.98 | FG35: 1.09 | FH35: 0 | FI35: 9.03 | FJ35: 0 | FK35: 4.94 | FL35: 10.81 | FM35: 18.69 | FN35: 1.13 | FO35: 90.85 | FP35: 0 | FQ35: 0.24964 | FR35: 0.0161297 | FS35: 0 | FT35: 0 | FU35: 0 | FV35: 0.0912442 | FW35: 0.143568 | FX35: 0.302188 | FY35: 0.0133383 | FZ35: 0.816109 | GA35: 696.222 | GB35: 563.976 | GC35: 141.255 | GD35: 0 | GE35: 0 | GF35: 2615 | GG35: 989.001 | GH35: 3267.2 | GI35: 327.5 | GJ35: 8600.15 | GK35: 580.989 | GL35: 0 | GM35: 0 | GN35: 0 | GO35: 197.989 | GP35: 0 | GQ35: 73.4 | GR35: 0 | GS35: 0 | GT35: 852.378 | GU35: 0 | GV35: 0 | GW35: 0 | GX35: 0 | GY35: 0 | GZ35: 0 | HA35: 0 | HB35: 0 | HC35: 0 | HD35: 0 | HE35: 43.9 | HF35: 16.04 | HG35: 1.09 | HH35: 0 | HI35: 12.31 | HJ35: 21.32 | HK35: 12.23 | HL35: 25.97 | HM35: 2.31 | HN35: 135.17 | HO35: 0 | HP35: 1.11136 | HQ35: 0.0161297 | HR35: 0 | HS35: 0 | HT35: 0.411296 | HU35: 0.118258 | HV35: 0.43522 | HW35: 0.00456421 | HX35: 2.09683 | HY35: 50.4819 | HZ35: 0 | IA35: 50.4819
A36: 2016-08-31T17:01:03 | B36: U03R01 | C36: v27 01 S69 G15 M01 | D36: Proposed and Standard | E36: PASS | F36: 0 | G36: 57.8434 | H36: 480.807 | I36: 4.64272 | J36: 785.772 | K36: 0 | L36: 0 | M36: 2033.7 | N36: 5307.43 | O36: 12062 | P36: 433.914 | Q36: 21108.2 | R36: 559.928 | S36: 0 | T36: 0 | U36: 0 | V36: 775.961 | W36: 0 | X36: 287.954 | Y36: 0 | Z36: 0 | AA36: 1623.84 | AB36: 0 | AC36: 0 | AD36: 0 | AE36: 0 | AF36: 0 | AG36: 0 | AH36: 0 | AI36: 0 | AJ36: 0 | AK36: 0 | AL36: 15.85 | AM36: 0.05 | AN36: 2.47 | AO36: 0 | AP36: 18.45 | AQ36: 0 | AR36: 6.6 | AS36: 23.91 | AT36: 38.54 | AU36: 1.31 | AV36: 107.18 | AW36: 36.82 | AX36: 480.807 | AY36: 4.64272 | AZ36: 785.772 | BA36: 0 | BB36: 0 | BC36: 2033.7 | BD36: 5307.43 | BE36: 12062 | BF36: 433.914 | BG36: 21108.2 | BH36: 559.928 | BI36: 0 | BJ36: 0 | BK36: 0 | BL36: 775.961 | BM36: 0 | BN36: 287.954 | BO36: 0 | BP36: 0 | BQ36: 1623.84 | BR36: 0 | BS36: 0 | BT36: 0 | BU36: 0 | BV36: 0 | BW36: 0 | BX36: 0 | BY36: 0 | BZ36: 0 | CA36: 0 | CB36: 15.85 | CC36: 0.05 | CD36: 2.47 | CE36: 0 | CF36: 18.45 | CG36: 6.6 | CH36: 23.91 | CI36: 38.54 | CJ36: 1.31 | CK36: 107.18 | CL36: 36.82 | CM36: CA Residential 2016, Vers. 1.0 | CN36: CSE 0.813 EXE | CP36: MPCBECC | CQ36: 0 | CR36: 0.00168871 | CS36: 0.0897263 | CT36: 0 | CU36: 0 | CV36: 0.301364 | CW36: 0.702078 | CX36: 1.54311 | CY36: 0.0381986 | CZ36: 2.67617 | DA36: 0.091415 | DB36: 0 | DC36: 0.00168871 | DD36: 0.0897263 | DE36: 0 | DF36: 0 | DG36: 0.301364 | DH36: 0.702078 | DI36: 1.54311 | DJ36: 0.0381986 | DK36: 2.67617 | DL36: 0.091415 | DM36: 0 | DN36: 0 | DO36: 0 | DP36: 0 | DZ36: 480.807 | EA36: 4.64272 | EB36: 785.772 | EC36: 0 | ED36: 0 | EE36: 0 | EF36: 2033.7 | EG36: 5307.43 | EH36: 12062 | EI36: 433.914 | EJ36: 21108.2 | EK36: 559.928 | EL36: 0 | EM36: 0 | EN36: 0 | EO36: 775.961 | EP36: 0 | EQ36: 287.954 | ER36: 0 | ES36: 0 | ET36: 1623.84 | EU36: 0 | EV36: 0 | EW36: 0 | EX36: 0 | EY36: 0 | EZ36: 0 | FA36: 0 | FB36: 0 | FC36: 0 | FD36: 0 | FE36: 15.85 | FF36: 0.05 | FG36: 2.47 | FH36: 0 | FI36: 18.45 | FJ36: 0 | FK36: 6.6 | FL36: 23.91 | FM36: 38.54 | FN36: 1.31 | FO36: 107.18 | FP36: 0 | FQ36: 0.00168871 | FR36: 0.0897263 | FS36: 0 | FT36: 0 | FU36: 0 | FV36: 0.301364 | FW36: 0.702078 | FX36: 1.54311 | FY36: 0.0381986 | FZ36: 2.67617 | GA36: 888.243 | GB36: 0.192091 | GC36: 785.772 | GD36: 0 | GE36: 0 | GF36: 5894.96 | GG36: 6547.68 | GH36: 10697.7 | GI36: 540.499 | GJ36: 25355.1 | GK36: 739.259 | GL36: 0 | GM36: 0 | GN36: 0 | GO36: 1220.78 | GP36: 0 | GQ36: 291.124 | GR36: 0 | GS36: 0 | GT36: 2251.16 | GU36: 0 | GV36: 0 | GW36: 0 | GX36: 0 | GY36: 0 | GZ36: 0 | HA36: 0 | HB36: 0 | HC36: 0 | HD36: 0 | HE36: 21.59 | HF36: 0 | HG36: 2.47 | HH36: 0 | HI36: 29.02 | HJ36: 19.34 | HK36: 27.59 | HL36: 34.31 | HM36: 1.54 | HN36: 135.86 | HO36: 0 | HP36: 0 | HQ36: 0.0897263 | HR36: 0 | HS36: 0 | HT36: 0.92718 | HU36: 0.771174 | HV36: 1.42503 | HW36: 0.00753268 | HX36: 3.22065 | HY36: 57.8434 | HZ36: 0 | IA36: 57.8434
A37: 2016-08-31T17:01:03 | B37: U03R02 | C37: v27 02 S69 G15 M01 | D37: Proposed and Standard | E37: PASS | F37: 0.0100021 | G37: 55.9424 | H37: 340.613 | I37: 583.701 | J37: 785.772 | K37: 0 | L37: 0 | M37: 2033.7 | N37: 5405.35 | O37: 12062 | P37: 433.914 | Q37: 21645 | R37: 396.65 | S37: 0 | T37: 0 | U37: 0 | V37: 696.606 | W37: 0 | X37: 287.954 | Y37: 0 | Z37: 0 | AA37: 1381.21 | AB37: 0 | AC37: 0 | AD37: 0 | AE37: 0 | AF37: 0 | AG37: 0 | AH37: 0 | AI37: 0 | AJ37: 0 | AK37: 0 | AL37: 11.56 | AM37: 7.36 | AN37: 2.47 | AO37: 0 | AP37: 16.64 | AQ37: 0 | AR37: 6.61 | AS37: 24.33 | AT37: 38.58 | AU37: 1.31 | AV37: 108.86 | AW37: 38.03 | AX37: 340.613 | AY37: 583.839 | AZ37: 785.772 | BA37: 0 | BB37: 0 | BC37: 2033.7 | BD37: 5405.36 | BE37: 12062 | BF37: 433.914 | BG37: 21645.2 | BH37: 396.65 | BI37: 0 | BJ37: 0 | BK37: 0 | BL37: 696.606 | BM37: 0 | BN37: 287.954 | BO37: 0 | BP37: 0 | BQ37: 1381.21 | BR37: 0 | BS37: 0 | BT37: 0 | BU37: 0 | BV37: 0 | BW37: 0 | BX37: 0 | BY37: 0 | BZ37: 0 | CA37: 0 | CB37: 11.56 | CC37: 7.37 | CD37: 2.47 | CE37: 0 | CF37: 16.64 | CG37: 6.61 | CH37: 24.33 | CI37: 38.58 | CJ37: 1.31 | CK37: 108.87 | CL37: 38.04 | CM37: CA Residential 2016, Vers. 1.0 | CN37: CSE 0.813 EXE | CP37: MPCBECC | CQ37: 0 | CR37: 1.16181 | CS37: 0.0897263 | CT37: 0 | CU37: 0 | CV37: 0.301364 | CW37: 0.72809 | CX37: 1.54311 | CY37: 0.0381986 | CZ37: 3.8623 | DA37: 1.25153 | DB37: 0 | DC37: 1.16197 | DD37: 0.0897263 | DE37: 0 | DF37: 0 | DG37: 0.301364 | DH37: 0.728092 | DI37: 1.54311 | DJ37: 0.0381986 | DK37: 3.86246 | DL37: 1.2517 | DM37: 0.000164509 | DN37: 0.000162244 | DO37: 0.00918723 | DP37: 0.0262937 | DZ37: 340.613 | EA37: 583.701 | EB37: 785.772 | EC37: 0 | ED37: 0 | EE37: 0 | EF37: 2033.7 | EG37: 5405.35 | EH37: 12062 | EI37: 433.914 | EJ37: 21645 | EK37: 396.65 | EL37: 0 | EM37: 0 | EN37: 0 | EO37: 696.606 | EP37: 0 | EQ37: 287.954 | ER37: 0 | ES37: 0 | ET37: 1381.21 | EU37: 0 | EV37: 0 | EW37: 0 | EX37: 0 | EY37: 0 | EZ37: 0 | FA37: 0 | FB37: 0 | FC37: 0 | FD37: 0 | FE37: 11.56 | FF37: 7.36 | FG37: 2.47 | FH37: 0 | FI37: 16.64 | FJ37: 0 | FK37: 6.61 | FL37: 24.33 | FM37: 38.58 | FN37: 1.31 | FO37: 108.86 | FP37: 0 | FQ37: 1.16181 | FR37: 0.0897263 | FS37: 0 | FT37: 0 | FU37: 0 | FV37: 0.301364 | FW37: 0.72809 | FX37: 1.54311 | FY37: 0.0381986 | FZ37: 3.8623 | GA37: 1065.97 | GB37: 1159.26 | GC37: 785.772 | GD37: 0 | GE37: 0 | GF37: 5894.96 | GG37: 6547.68 | GH37: 10697.7 | GI37: 540.499 | GJ37: 26691.9 | GK37: 887.147 | GL37: 0 | GM37: 0 | GN37: 0 | GO37: 1141.4 | GP37: 0 | GQ37: 291.124 | GR37: 0 | GS37: 0 | GT37: 2319.67 | GU37: 0 | GV37: 0 | GW37: 0 | GX37: 0 | GY37: 0 | GZ37: 0 | HA37: 0 | HB37: 0 | HC37: 0 | HD37: 0 | HE37: 26.52 | HF37: 15.31 | HG37: 2.47 | HH37: 0 | HI37: 27.27 | HJ37: 19.4 | HK37: 27.6 | HL37: 34.42 | HM37: 1.54 | HN37: 154.53 | HO37: 0 | HP37: 2.3364 | HQ37: 0.0897263 | HR37: 0 | HS37: 0 | HT37: 0.92718 | HU37: 0.771174 | HV37: 1.42503 | HW37: 0.00753268 | HX37: 5.55705 | HY37: 55.9424 | HZ37: 0 | IA37: 55.9476
A38: 2016-08-31T17:00:56 | B38: U03R03 | C38: v27 03 S69 G15 M01 | D38: Proposed and Standard | E38: PASS | F38: 0 | G38: 55.4386 | H38: 154.197 | I38: 148.771 | J38: 785.772 | K38: 0 | L38: 0 | M38: 2033.7 | N38: 5391.14 | O38: 12062 | P38: 433.914 | Q38: 21009.4 | R38: 179.555 | S38: 0 | T38: 0 | U38: 0 | V38: 699.798 | W38: 0 | X38: 287.954 | Y38: 0 | Z38: 0 | AA38: 1167.31 | AB38: 0 | AC38: 0 | AD38: 0 | AE38: 0 | AF38: 0 | AG38: 0 | AH38: 0 | AI38: 0 | AJ38: 0 | AK38: 0 | AL38: 5.3 | AM38: 1.75 | AN38: 2.47 | AO38: 0 | AP38: 16.67 | AQ38: 0 | AR38: 6.57 | AS38: 24.13 | AT38: 38.51 | AU38: 1.3 | AV38: 96.7 | AW38: 26.19 | AX38: 154.197 | AY38: 148.781 | AZ38: 785.772 | BA38: 0 | BB38: 0 | BC38: 2033.7 | BD38: 5391.15 | BE38: 12062 | BF38: 433.914 | BG38: 21009.5 | BH38: 179.555 | BI38: 0 | BJ38: 0 | BK38: 0 | BL38: 699.798 | BM38: 0 | BN38: 287.954 | BO38: 0 | BP38: 0 | BQ38: 1167.31 | BR38: 0 | BS38: 0 | BT38: 0 | BU38: 0 | BV38: 0 | BW38: 0 | BX38: 0 | BY38: 0 | BZ38: 0 | CA38: 0 | CB38: 5.3 | CC38: 1.75 | CD38: 2.47 | CE38: 0 | CF38: 16.67 | CG38: 6.57 | CH38: 24.13 | CI38: 38.51 | CJ38: 1.3 | CK38: 96.7 | CL38: 26.19 | CM38: CA Residential 2016, Vers. 1.0 | CN38: CSE 0.813 EXE | CP38: MPCBECC | CQ38: 0 | CR38: 0.313184 | CS38: 0.0897263 | CT38: 0 | CU38: 0 | CV38: 0.301364 | CW38: 0.715333 | CX38: 1.54311 | CY38: 0.0381986 | CZ38: 3.00092 | DA38: 0.402911 | DB38: 0 | DC38: 0.313224 | DD38: 0.0897263 | DE38: 0 | DF38: 0 | DG38: 0.301364 | DH38: 0.715336 | DI38: 1.54311 | DJ38: 0.0381986 | DK38: 3.00096 | DL38: 0.402951 | DM38: 4.36306e-05 | DN38: 3.99947e-05 | DO38: 0 | DP38: 0 | DZ38: 154.197 | EA38: 148.771 | EB38: 785.772 | EC38: 0 | ED38: 0 | EE38: 0 | EF38: 2033.7 | EG38: 5391.14 | EH38: 12062 | EI38: 433.914 | EJ38: 21009.4 | EK38: 179.555 | EL38: 0 | EM38: 0 | EN38: 0 | EO38: 699.798 | EP38: 0 | EQ38: 287.954 | ER38: 0 | ES38: 0 | ET38: 1167.31 | EU38: 0 | EV38: 0 | EW38: 0 | EX38: 0 | EY38: 0 | EZ38: 0 | FA38: 0 | FB38: 0 | FC38: 0 | FD38: 0 | FE38: 5.3 | FF38: 1.75 | FG38: 2.47 | FH38: 0 | FI38: 16.67 | FJ38: 0 | FK38: 6.57 | FL38: 24.13 | FM38: 38.51 | FN38: 1.3 | FO38: 96.7 | FP38: 0 | FQ38: 0.313184 | FR38: 0.0897263 | FS38: 0 | FT38: 0 | FU38: 0 | FV38: 0.301364 | FW38: 0.715333 | FX38: 1.54311 | FY38: 0.0381986 | FZ38: 3.00092 | GA38: 842.375 | GB38: 75.386 | GC38: 785.772 | GD38: 0 | GE38: 0 | GF38: 5894.96 | GG38: 6547.68 | GH38: 10697.7 | GI38: 540.499 | GJ38: 25384.4 | GK38: 701.021 | GL38: 0 | GM38: 0 | GN38: 0 | GO38: 1145.35 | GP38: 0 | GQ38: 291.124 | GR38: 0 | GS38: 0 | GT38: 2137.49 | GU38: 0 | GV38: 0 | GW38: 0 | GX38: 0 | GY38: 0 | GZ38: 0 | HA38: 0 | HB38: 0 | HC38: 0 | HD38: 0 | HE38: 20.97 | HF38: 1.26 | HG38: 2.47 | HH38: 0 | HI38: 27.29 | HJ38: 19.24 | HK38: 27.59 | HL38: 34.29 | HM38: 1.53 | HN38: 134.64 | HO38: 0 | HP38: 0.243526 | HQ38: 0.0897263 | HR38: 0 | HS38: 0 | HT38: 0.92718 | HU38: 0.771174 | HV38: 1.42503 | HW38: 0.00753268 | HX38: 3.46417 | HY38: 55.4386 | HZ38: 0 | IA38: 55.4386
A39: 2016-08-31T17:00:56 | B39: U03R04 | C39: v27 04 S69 G15 M01 | D39: Proposed and Standard | E39: PASS | F39: 0 | G39: 54.7557 | H39: 221.587 | I39: 795.633 | J39: 785.772 | K39: 0 | L39: 0 | M39: 2033.7 | N39: 5449.84 | O39: 12062 | P39: 433.914 | Q39: 21782.4 | R39: 258.043 | S39: 0 | T39: 0 | U39: 0 | V39: 666.517 | W39: 0 | X39: 287.954 | Y39: 0 | Z39: 0 | AA39: 1212.51 | AB39: 0 | AC39: 0 | AD39: 0 | AE39: 0 | AF39: 0 | AG39: 0 | AH39: 0 | AI39: 0 | AJ39: 0 | AK39: 0 | AL39: 7.54 | AM39: 9.01 | AN39: 2.47 | AO39: 0 | AP39: 15.94 | AQ39: 0 | AR39: 6.62 | AS39: 24.44 | AT39: 38.6 | AU39: 1.31 | AV39: 105.93 | AW39: 34.96 | AX39: 221.587 | AY39: 795.721 | AZ39: 785.772 | BA39: 0 | BB39: 0 | BC39: 2033.7 | BD39: 5449.85 | BE39: 12062 | BF39: 433.914 | BG39: 21782.5 | BH39: 258.042 | BI39: 0 | BJ39: 0 | BK39: 0 | BL39: 666.517 | BM39: 0 | BN39: 287.954 | BO39: 0 | BP39: 0 | BQ39: 1212.51 | BR39: 0 | BS39: 0 | BT39: 0 | BU39: 0 | BV39: 0 | BW39: 0 | BX39: 0 | BY39: 0 | BZ39: 0 | CA39: 0 | CB39: 7.54 | CC39: 9.01 | CD39: 2.47 | CE39: 0 | CF39: 15.94 | CG39: 6.62 | CH39: 24.44 | CI39: 38.6 | CJ39: 1.31 | CK39: 105.93 | CL39: 34.96 | CM39: CA Residential 2016, Vers. 1.0 | CN39: CSE 0.813 EXE | CP39: MPCBECC | CQ39: 0 | CR39: 2.21607 | CS39: 0.0897263 | CT39: 0 | CU39: 0 | CV39: 0.301364 | CW39: 0.74305 | CX39: 1.54311 | CY39: 0.0381986 | CZ39: 4.93152 | DA39: 2.3058 | DB39: 0 | DC39: 2.21625 | DD39: 0.0897263 | DE39: 0 | DF39: 0 | DG39: 0.301364 | DH39: 0.743051 | DI39: 1.54311 | DJ39: 0.0381986 | DK39: 4.9317 | DL39: 2.30597 | DM39: 0.000176907 | DN39: 0.000175953 | DO39: 0 | DP39: 0 | DZ39: 221.587 | EA39: 795.633 | EB39: 785.772 | EC39: 0 | ED39: 0 | EE39: 0 | EF39: 2033.7 | EG39: 5449.84 | EH39: 12062 | EI39: 433.914 | EJ39: 21782.4 | EK39: 258.043 | EL39: 0 | EM39: 0 | EN39: 0 | EO39: 666.517 | EP39: 0 | EQ39: 287.954 | ER39: 0 | ES39: 0 | ET39: 1212.51 | EU39: 0 | EV39: 0 | EW39: 0 | EX39: 0 | EY39: 0 | EZ39: 0 | FA39: 0 | FB39: 0 | FC39: 0 | FD39: 0 | FE39: 7.54 | FF39: 9.01 | FG39: 2.47 | FH39: 0 | FI39: 15.94 | FJ39: 0 | FK39: 6.62 | FL39: 24.44 | FM39: 38.6 | FN39: 1.31 | FO39: 105.93 | FP39: 0 | FQ39: 2.21607 | FR39: 0.0897263 | FS39: 0 | FT39: 0 | FU39: 0 | FV39: 0.301364 | FW39: 0.74305 | FX39: 1.54311 | FY39: 0.0381986 | FZ39: 4.93152 | GA39: 803.593 | GB39: 1807.28 | GC39: 785.772 | GD39: 0 | GE39: 0 | GF39: 5894.96 | GG39: 6547.68 | GH39: 10697.7 | GI39: 540.499 | GJ39: 27077.5 | GK39: 668.786 | GL39: 0 | GM39: 0 | GN39: 0 | GO39: 1111.18 | GP39: 0 | GQ39: 291.124 | GR39: 0 | GS39: 0 | GT39: 2071.09 | GU39: 0 | GV39: 0 | GW39: 0 | GX39: 0 | GY39: 0 | GZ39: 0 | HA39: 0 | HB39: 0 | HC39: 0 | HD39: 0 | HE39: 20.08 | HF39: 21.65 | HG39: 2.47 | HH39: 0 | HI39: 26.57 | HJ39: 19.44 | HK39: 27.6 | HL39: 34.45 | HM39: 1.53 | HN39: 153.79 | HO39: 0 | HP39: 4.9297 | HQ39: 0.0897263 | HR39: 0 | HS39: 0 | HT39: 0.92718 | HU39: 0.771174 | HV39: 1.42503 | HW39: 0.00753268 | HX39: 8.15035 | HY39: 54.7557 | HZ39: 0 | IA39: 54.7557
A40: 2016-08-31T17:00:55 | B40: U03R05 | C40: v27 05 S69 G15 M01 | D40: Proposed and Standard | E40: PASS | F40: 0 | G40: 53.8971 | H40: 114.408 | I40: 121.469 | J40: 785.772 | K40: 0 | L40: 0 | M40: 2033.7 | N40: 5427.77 | O40: 12062 | P40: 433.914 | Q40: 20979 | R40: 133.238 | S40: 0 | T40: 0 | U40: 0 | V40: 716.421 | W40: 0 | X40: 287.954 | Y40: 0 | Z40: 0 | AA40: 1137.61 | AB40: 0 | AC40: 0 | AD40: 0 | AE40: 0 | AF40: 0 | AG40: 0 | AH40: 0 | AI40: 0 | AJ40: 0 | AK40: 0 | AL40: 3.85 | AM40: 1.52 | AN40: 2.47 | AO40: 0 | AP40: 17.05 | AQ40: 0 | AR40: 6.51 | AS40: 24.18 | AT40: 38.39 | AU40: 1.3 | AV40: 95.27 | AW40: 24.89 | AX40: 114.408 | AY40: 121.475 | AZ40: 785.772 | BA40: 0 | BB40: 0 | BC40: 2033.7 | BD40: 5427.78 | BE40: 12062 | BF40: 433.914 | BG40: 20979 | BH40: 133.238 | BI40: 0 | BJ40: 0 | BK40: 0 | BL40: 716.421 | BM40: 0 | BN40: 287.954 | BO40: 0 | BP40: 0 | BQ40: 1137.61 | BR40: 0 | BS40: 0 | BT40: 0 | BU40: 0 | BV40: 0 | BW40: 0 | BX40: 0 | BY40: 0 | BZ40: 0 | CA40: 0 | CB40: 3.85 | CC40: 1.52 | CD40: 2.47 | CE40: 0 | CF40: 17.05 | CG40: 6.51 | CH40: 24.18 | CI40: 38.39 | CJ40: 1.3 | CK40: 95.27 | CL40: 24.89 | CM40: CA Residential 2016, Vers. 1.0 | CN40: CSE 0.813 EXE | CP40: MPCBECC | CQ40: 0 | CR40: 0.325616 | CS40: 0.0897263 | CT40: 0 | CU40: 0 | CV40: 0.301364 | CW40: 0.721272 | CX40: 1.54311 | CY40: 0.0381986 | CZ40: 3.01929 | DA40: 0.415342 | DB40: 0 | DC40: 0.325643 | DD40: 0.0897263 | DE40: 0 | DF40: 0 | DG40: 0.301364 | DH40: 0.721274 | DI40: 1.54311 | DJ40: 0.0381986 | DK40: 3.01932 | DL40: 0.41537 | DM40: 2.93255e-05 | DN40: 2.77162e-05 | DO40: 0 | DP40: 0 | DZ40: 114.408 | EA40: 121.469 | EB40: 785.772 | EC40: 0 | ED40: 0 | EE40: 0 | EF40: 2033.7 | EG40: 5427.77 | EH40: 12062 | EI40: 433.914 | EJ40: 20979 | EK40: 133.238 | EL40: 0 | EM40: 0 | EN40: 0 | EO40: 716.421 | EP40: 0 | EQ40: 287.954 | ER40: 0 | ES40: 0 | ET40: 1137.61 | EU40: 0 | EV40: 0 | EW40: 0 | EX40: 0 | EY40: 0 | EZ40: 0 | FA40: 0 | FB40: 0 | FC40: 0 | FD40: 0 | FE40: 3.85 | FF40: 1.52 | FG40: 2.47 | FH40: 0 | FI40: 17.05 | FJ40: 0 | FK40: 6.51 | FL40: 24.18 | FM40: 38.39 | FN40: 1.3 | FO40: 95.27 | FP40: 0 | FQ40: 0.325616 | FR40: 0.0897263 | FS40: 0 | FT40: 0 | FU40: 0 | FV40: 0.301364 | FW40: 0.721272 | FX40: 1.54311 | FY40: 0.0381986 | FZ40: 3.01929 | GA40: 838.242 | GB40: 6.26714 | GC40: 785.772 | GD40: 0 | GE40: 0 | GF40: 5894.96 | GG40: 6547.68 | GH40: 10697.7 | GI40: 540.499 | GJ40: 25311.2 | GK40: 697.661 | GL40: 0 | GM40: 0 | GN40: 0 | GO40: 1162.01 | GP40: 0 | GQ40: 291.124 | GR40: 0 | GS40: 0 | GT40: 2150.8 | GU40: 0 | GV40: 0 | GW40: 0 | GX40: 0 | GY40: 0 | GZ40: 0 | HA40: 0 | HB40: 0 | HC40: 0 | HD40: 0 | HE40: 20.52 | HF40: 0.04 | HG40: 2.47 | HH40: 0 | HI40: 27.65 | HJ40: 19.03 | HK40: 27.56 | HL40: 34.09 | HM40: 1.52 | HN40: 132.88 | HO40: 0 | HP40: 0.00282621 | HQ40: 0.0897263 | HR40: 0 | HS40: 0 | HT40: 0.92718 | HU40: 0.771174 | HV40: 1.42503 | HW40: 0.00753268 | HX40: 3.22347 | HY40: 53.8971 | HZ40: 0 | IA40: 53.8971
A41: 2016-08-31T17:00:56 | B41: U03R06 | C41: v27 06 S69 G15 M01 | D41: Proposed and Standard | E41: PASS | F41: 0 | G41: 59.491 | H41: 54.7243 | I41: 707.213 | J41: 785.772 | K41: 0 | L41: 0 | M41: 2033.7 | N41: 5517.32 | O41: 12062 | P41: 433.914 | Q41: 21594.6 | R41: 63.7262 | S41: 0 | T41: 0 | U41: 0 | V41: 636.718 | W41: 0 | X41: 287.954 | Y41: 0 | Z41: 0 | AA41: 988.398 | AB41: 0 | AC41: 0 | AD41: 0 | AE41: 0 | AF41: 0 | AG41: 0 | AH41: 0 | AI41: 0 | AJ41: 0 | AK41: 0 | AL41: 1.88 | AM41: 7.24 | AN41: 2.39 | AO41: 0 | AP41: 15.28 | AQ41: 0 | AR41: 6.39 | AS41: 23.97 | AT41: 37.35 | AU41: 1.26 | AV41: 95.76 | AW41: 26.79 | AX41: 54.724 | AY41: 707.282 | AZ41: 785.772 | BA41: 0 | BB41: 0 | BC41: 2033.7 | BD41: 5517.33 | BE41: 12062 | BF41: 433.914 | BG41: 21594.7 | BH41: 63.7259 | BI41: 0 | BJ41: 0 | BK41: 0 | BL41: 636.718 | BM41: 0 | BN41: 287.954 | BO41: 0 | BP41: 0 | BQ41: 988.398 | BR41: 0 | BS41: 0 | BT41: 0 | BU41: 0 | BV41: 0 | BW41: 0 | BX41: 0 | BY41: 0 | BZ41: 0 | CA41: 0 | CB41: 1.88 | CC41: 7.24 | CD41: 2.39 | CE41: 0 | CF41: 15.28 | CG41: 6.39 | CH41: 23.97 | CI41: 37.35 | CJ41: 1.26 | CK41: 95.76 | CL41: 26.79 | CM41: CA Residential 2016, Vers. 1.0 | CN41: CSE 0.813 EXE | CP41: MPCBECC | CQ41: 0 | CR41: 1.57819 | CS41: 0.0897263 | CT41: 0 | CU41: 0 | CV41: 0.301364 | CW41: 0.738566 | CX41: 1.54311 | CY41: 0.0381986 | CZ41: 4.28916 | DA41: 1.66792 | DB41: 0 | DC41: 1.5783 | DD41: 0.0897263 | DE41: 0 | DF41: 0 | DG41: 0.301364 | DH41: 0.738568 | DI41: 1.54311 | DJ41: 0.0381986 | DK41: 4.28927 | DL41: 1.66803 | DM41: 0.000110626 | DN41: 0.000108957 | DO41: 0 | DP41: 0 | DZ41: 54.7243 | EA41: 707.213 | EB41: 785.772 | EC41: 0 | ED41: 0 | EE41: 0 | EF41: 2033.7 | EG41: 5517.32 | EH41: 12062 | EI41: 433.914 | EJ41: 21594.6 | EK41: 63.7262 | EL41: 0 | EM41: 0 | EN41: 0 | EO41: 636.718 | EP41: 0 | EQ41: 287.954 | ER41: 0 | ES41: 0 | ET41: 988.398 | EU41: 0 | EV41: 0 | EW41: 0 | EX41: 0 | EY41: 0 | EZ41: 0 | FA41: 0 | FB41: 0 | FC41: 0 | FD41: 0 | FE41: 1.88 | FF41: 7.24 | FG41: 2.39 | FH41: 0 | FI41: 15.28 | FJ41: 0 | FK41: 6.39 | FL41: 23.97 | FM41: 37.35 | FN41: 1.26 | FO41: 95.76 | FP41: 0 | FQ41: 1.57819 | FR41: 0.0897263 | FS41: 0 | FT41: 0 | FU41: 0 | FV41: 0.301364 | FW41: 0.738566 | FX41: 1.54311 | FY41: 0.0381986 | FZ41: 4.28916 | GA41: 277.28 | GB41: 1263.29 | GC41: 785.772 | GD41: 0 | GE41: 0 | GF41: 5894.96 | GG41: 6547.68 | GH41: 10697.7 | GI41: 540.499 | GJ41: 26007.2 | GK41: 230.76 | GL41: 0 | GM41: 0 | GN41: 0 | GO41: 1082.05 | GP41: 0 | GQ41: 291.124 | GR41: 0 | GS41: 0 | GT41: 1603.93 | GU41: 0 | GV41: 0 | GW41: 0 | GX41: 0 | GY41: 0 | GZ41: 0 | HA41: 0 | HB41: 0 | HC41: 0 | HD41: 0 | HE41: 6.99 | HF41: 14.17 | HG41: 2.39 | HH41: 0 | HI41: 25.97 | HJ41: 18.68 | HK41: 26.93 | HL41: 33.13 | HM41: 1.5 | HN41: 129.76 | HO41: 0 | HP41: 2.40483 | HQ41: 0.0897263 | HR41: 0 | HS41: 0 | HT41: 0.92718 | HU41: 0.771174 | HV41: 1.42503 | HW41: 0.00753268 | HX41: 5.62547 | HY41: 59.491 | HZ41: 0 | IA41: 59.491
A42: 2016-08-31T17:00:56 | B42: U03R07 | C42: v27 07 S69 G15 M01 | D42: Proposed and Standard | E42: PASS | F42: 0 | G42: 60.4501 | H42: 5.50012 | I42: 408.359 | J42: 785.772 | K42: 0 | L42: 0 | M42: 2033.7 | N42: 5527.39 | O42: 12062 | P42: 433.914 | Q42: 21256.6 | R42: 6.40465 | S42: 0 | T42: 0 | U42: 0 | V42: 626.695 | W42: 0 | X42: 287.954 | Y42: 0 | Z42: 0 | AA42: 921.054 | AB42: 0 | AC42: 0 | AD42: 0 | AE42: 0 | AF42: 0 | AG42: 0 | AH42: 0 | AI42: 0 | AJ42: 0 | AK42: 0 | AL42: 0.19 | AM42: 6.21 | AN42: 2.48 | AO42: 0 | AP42: 14.76 | AQ42: 0 | AR42: 6.72 | AS42: 24.67 | AT42: 38.92 | AU42: 1.33 | AV42: 95.28 | AW42: 23.64 | AX42: 5.49969 | AY42: 408.411 | AZ42: 785.772 | BA42: 0 | BB42: 0 | BC42: 2033.7 | BD42: 5527.41 | BE42: 12062 | BF42: 433.914 | BG42: 21256.7 | BH42: 6.40414 | BI42: 0 | BJ42: 0 | BK42: 0 | BL42: 626.695 | BM42: 0 | BN42: 287.954 | BO42: 0 | BP42: 0 | BQ42: 921.053 | BR42: 0 | BS42: 0 | BT42: 0 | BU42: 0 | BV42: 0 | BW42: 0 | BX42: 0 | BY42: 0 | BZ42: 0 | CA42: 0 | CB42: 0.19 | CC42: 6.21 | CD42: 2.48 | CE42: 0 | CF42: 14.76 | CG42: 6.72 | CH42: 24.67 | CI42: 38.92 | CJ42: 1.33 | CK42: 95.28 | CL42: 23.64 | CM42: CA Residential 2016, Vers. 1.0 | CN42: CSE 0.813 EXE | CP42: MPCBECC | CQ42: 0 | CR42: 1.38813 | CS42: 0.0897263 | CT42: 0 | CU42: 0 | CV42: 0.301364 | CW42: 0.737285 | CX42: 1.54311 | CY42: 0.0381986 | CZ42: 4.09782 | DA42: 1.47786 | DB42: 0 | DC42: 1.38828 | DD42: 0.0897263 | DE42: 0 | DF42: 0 | DG42: 0.301364 | DH42: 0.737287 | DI42: 1.54311 | DJ42: 0.0381986 | DK42: 4.09797 | DL42: 1.47801 | DM42: 0.000151634 | DN42: 0.000149608 | DO42: 0 | DP42: 0 | DZ42: 5.50012 | EA42: 408.359 | EB42: 785.772 | EC42: 0 | ED42: 0 | EE42: 0 | EF42: 2033.7 | EG42: 5527.39 | EH42: 12062 | EI42: 433.914 | EJ42: 21256.6 | EK42: 6.40465 | EL42: 0 | EM42: 0 | EN42: 0 | EO42: 626.695 | EP42: 0 | EQ42: 287.954 | ER42: 0 | ES42: 0 | ET42: 921.054 | EU42: 0 | EV42: 0 | EW42: 0 | EX42: 0 | EY42: 0 | EZ42: 0 | FA42: 0 | FB42: 0 | FC42: 0 | FD42: 0 | FE42: 0.19 | FF42: 6.21 | FG42: 2.48 | FH42: 0 | FI42: 14.76 | FJ42: 0 | FK42: 6.72 | FL42: 24.67 | FM42: 38.92 | FN42: 1.33 | FO42: 95.28 | FP42: 0 | FQ42: 1.38813 | FR42: 0.0897263 | FS42: 0 | FT42: 0 | FU42: 0 | FV42: 0.301364 | FW42: 0.737285 | FX42: 1.54311 | FY42: 0.0381986 | FZ42: 4.09782 | GA42: 74.5533 | GB42: 764.651 | GC42: 785.772 | GD42: 0 | GE42: 0 | GF42: 5894.96 | GG42: 6547.68 | GH42: 10697.7 | GI42: 540.499 | GJ42: 25305.9 | GK42: 62.0431 | GL42: 0 | GM42: 0 | GN42: 0 | GO42: 1072.78 | GP42: 0 | GQ42: 291.124 | GR42: 0 | GS42: 0 | GT42: 1425.95 | GU42: 0 | GV42: 0 | GW42: 0 | GX42: 0 | GY42: 0 | GZ42: 0 | HA42: 0 | HB42: 0 | HC42: 0 | HD42: 0 | HE42: 1.83 | HF42: 12.15 | HG42: 2.48 | HH42: 0 | HI42: 25.26 | HJ42: 19.65 | HK42: 27.62 | HL42: 34.58 | HM42: 1.61 | HN42: 125.18 | HO42: 0 | HP42: 2.50596 | HQ42: 0.0897263 | HR42: 0 | HS42: 0 | HT42: 0.92718 | HU42: 0.771174 | HV42: 1.42503 | HW42: 0.00753268 | HX42: 5.7266 | HY42: 60.4501 | HZ42: 0 | IA42: 60.4501
A43: 2016-08-31T17:00:56 | B43: U03R08 | C43: v27 08 S69 G15 M01 | D43: Proposed and Standard | E43: PASS | F43: 0.0100021 | G43: 59.0135 | H43: 25.5425 | I43: 2167.27 | J43: 785.772 | K43: 0 | L43: 0 | M43: 2033.7 | N43: 5600.87 | O43: 12062 | P43: 433.914 | Q43: 23109 | R43: 29.7442 | S43: 0 | T43: 0 | U43: 0 | V43: 610.308 | W43: 0 | X43: 287.954 | Y43: 0 | Z43: 0 | AA43: 928.006 | AB43: 0 | AC43: 0 | AD43: 0 | AE43: 0 | AF43: 0 | AG43: 0 | AH43: 0 | AI43: 0 | AJ43: 0 | AK43: 0 | AL43: 0.89 | AM43: 17.13 | AN43: 2.4 | AO43: 0 | AP43: 14.66 | AQ43: 0 | AR43: 6.45 | AS43: 24.36 | AT43: 37.51 | AU43: 1.28 | AV43: 104.68 | AW43: 35.08 | AX43: 25.542 | AY43: 2167.45 | AZ43: 785.772 | BA43: 0 | BB43: 0 | BC43: 2033.7 | BD43: 5600.89 | BE43: 12062 | BF43: 433.914 | BG43: 23109.2 | BH43: 29.7437 | BI43: 0 | BJ43: 0 | BK43: 0 | BL43: 610.308 | BM43: 0 | BN43: 287.954 | BO43: 0 | BP43: 0 | BQ43: 928.006 | BR43: 0 | BS43: 0 | BT43: 0 | BU43: 0 | BV43: 0 | BW43: 0 | BX43: 0 | BY43: 0 | BZ43: 0 | CA43: 0 | CB43: 0.89 | CC43: 17.14 | CD43: 2.4 | CE43: 0 | CF43: 14.66 | CG43: 6.45 | CH43: 24.36 | CI43: 37.51 | CJ43: 1.28 | CK43: 104.69 | CL43: 35.09 | CM43: CA Residential 2016, Vers. 1.0 | CN43: CSE 0.813 EXE | CP43: MPCBECC | CQ43: 0 | CR43: 3.68184 | CS43: 0.0897263 | CT43: 0 | CU43: 0 | CV43: 0.301364 | CW43: 0.751441 | CX43: 1.54311 | CY43: 0.0381986 | CZ43: 6.40568 | DA43: 3.77157 | DB43: 0 | DC43: 3.6819 | DD43: 0.0897263 | DE43: 0 | DF43: 0 | DG43: 0.301364 | DH43: 0.751441 | DI43: 1.54311 | DJ43: 0.0381986 | DK43: 6.40574 | DL43: 3.77162 | DM43: 5.19753e-05 | DN43: 5.19753e-05 | DO43: 0.00955405 | DP43: 0.0285042 | DZ43: 25.5425 | EA43: 2167.27 | EB43: 785.772 | EC43: 0 | ED43: 0 | EE43: 0 | EF43: 2033.7 | EG43: 5600.87 | EH43: 12062 | EI43: 433.914 | EJ43: 23109 | EK43: 29.7442 | EL43: 0 | EM43: 0 | EN43: 0 | EO43: 610.308 | EP43: 0 | EQ43: 287.954 | ER43: 0 | ES43: 0 | ET43: 928.006 | EU43: 0 | EV43: 0 | EW43: 0 | EX43: 0 | EY43: 0 | EZ43: 0 | FA43: 0 | FB43: 0 | FC43: 0 | FD43: 0 | FE43: 0.89 | FF43: 17.13 | FG43: 2.4 | FH43: 0 | FI43: 14.66 | FJ43: 0 | FK43: 6.45 | FL43: 24.36 | FM43: 37.51 | FN43: 1.28 | FO43: 104.68 | FP43: 0 | FQ43: 3.68184 | FR43: 0.0897263 | FS43: 0 | FT43: 0 | FU43: 0 | FV43: 0.301364 | FW43: 0.751441 | FX43: 1.54311 | FY43: 0.0381986 | FZ43: 6.40568 | GA43: 200.437 | GB43: 4238.05 | GC43: 785.772 | GD43: 0 | GE43: 0 | GF43: 5894.96 | GG43: 6547.68 | GH43: 10697.7 | GI43: 540.499 | GJ43: 28905.1 | GK43: 166.81 | GL43: 0 | GM43: 0 | GN43: 0 | GO43: 1055.28 | GP43: 0 | GQ43: 291.124 | GR43: 0 | GS43: 0 | GT43: 1513.21 | GU43: 0 | GV43: 0 | GW43: 0 | GX43: 0 | GY43: 0 | GZ43: 0 | HA43: 0 | HB43: 0 | HC43: 0 | HD43: 0 | HE43: 5.07 | HF43: 34.58 | HG43: 2.4 | HH43: 0 | HI43: 25.35 | HJ43: 18.86 | HK43: 26.98 | HL43: 33.32 | HM43: 1.53 | HN43: 148.09 | HO43: 0 | HP43: 6.4692 | HQ43: 0.0897263 | HR43: 0 | HS43: 0 | HT43: 0.92718 | HU43: 0.771174 | HV43: 1.42503 | HW43: 0.00753268 | HX43: 9.68984 | HY43: 59.0135 | HZ43: 0 | IA43: 59.0192
A44: 2016-08-31T17:00:56 | B44: U03R09 | C44: v27 09 S69 G15 M01 | D44: Proposed and Standard | E44: PASS | F44: 0 | G44: 57.5805 | H44: 53.6745 | I44: 3175.06 | J44: 785.772 | K44: 0 | L44: 0 | M44: 2033.7 | N44: 5579.89 | O44: 12062 | P44: 433.914 | Q44: 24124 | R44: 62.5228 | S44: 0 | T44: 0 | U44: 0 | V44: 609.063 | W44: 0 | X44: 287.954 | Y44: 0 | Z44: 0 | AA44: 959.54 | AB44: 0 | AC44: 0 | AD44: 0 | AE44: 0 | AF44: 0 | AG44: 0 | AH44: 0 | AI44: 0 | AJ44: 0 | AK44: 0 | AL44: 1.84 | AM44: 27.22 | AN44: 2.37 | AO44: 0 | AP44: 14.66 | AQ44: 0 | AR44: 6.37 | AS44: 24.16 | AT44: 37.08 | AU44: 1.26 | AV44: 114.96 | AW44: 46.09 | AX44: 53.674 | AY44: 3175.19 | AZ44: 785.772 | BA44: 0 | BB44: 0 | BC44: 2033.7 | BD44: 5579.9 | BE44: 12062 | BF44: 433.914 | BG44: 24124.1 | BH44: 62.5221 | BI44: 0 | BJ44: 0 | BK44: 0 | BL44: 609.063 | BM44: 0 | BN44: 287.954 | BO44: 0 | BP44: 0 | BQ44: 959.54 | BR44: 0 | BS44: 0 | BT44: 0 | BU44: 0 | BV44: 0 | BW44: 0 | BX44: 0 | BY44: 0 | BZ44: 0 | CA44: 0 | CB44: 1.84 | CC44: 27.22 | CD44: 2.37 | CE44: 0 | CF44: 14.66 | CG44: 6.37 | CH44: 24.16 | CI44: 37.08 | CJ44: 1.26 | CK44: 114.96 | CL44: 46.09 | CM44: CA Residential 2016, Vers. 1.0 | CN44: CSE 0.813 EXE | CP44: MPCBECC | CQ44: 0 | CR44: 5.5484 | CS44: 0.0897263 | CT44: 0 | CU44: 0 | CV44: 0.301364 | CW44: 0.755095 | CX44: 1.54311 | CY44: 0.0381986 | CZ44: 8.27589 | DA44: 5.63812 | DB44: 0 | DC44: 5.54844 | DD44: 0.0897263 | DE44: 0 | DF44: 0 | DG44: 0.301364 | DH44: 0.755095 | DI44: 1.54311 | DJ44: 0.0381986 | DK44: 8.27593 | DL44: 5.63816 | DM44: 4.00543e-05 | DN44: 4.05312e-05 | DO44: 0 | DP44: 0 | DZ44: 53.6745 | EA44: 3175.06 | EB44: 785.772 | EC44: 0 | ED44: 0 | EE44: 0 | EF44: 2033.7 | EG44: 5579.89 | EH44: 12062 | EI44: 433.914 | EJ44: 24124 | EK44: 62.5228 | EL44: 0 | EM44: 0 | EN44: 0 | EO44: 609.063 | EP44: 0 | EQ44: 287.954 | ER44: 0 | ES44: 0 | ET44: 959.54 | EU44: 0 | EV44: 0 | EW44: 0 | EX44: 0 | EY44: 0 | EZ44: 0 | FA44: 0 | FB44: 0 | FC44: 0 | FD44: 0 | FE44: 1.84 | FF44: 27.22 | FG44: 2.37 | FH44: 0 | FI44: 14.66 | FJ44: 0 | FK44: 6.37 | FL44: 24.16 | FM44: 37.08 | FN44: 1.26 | FO44: 114.96 | FP44: 0 | FQ44: 5.5484 | FR44: 0.0897263 | FS44: 0 | FT44: 0 | FU44: 0 | FV44: 0.301364 | FW44: 0.755095 | FX44: 1.54311 | FY44: 0.0381986 | FZ44: 8.27589 | GA44: 325.184 | GB44: 6261.79 | GC44: 785.772 | GD44: 0 | GE44: 0 | GF44: 5894.96 | GG44: 6547.68 | GH44: 10697.7 | GI44: 540.499 | GJ44: 31053.6 | GK44: 270.71 | GL44: 0 | GM44: 0 | GN44: 0 | GO44: 1053.72 | GP44: 0 | GQ44: 291.124 | GR44: 0 | GS44: 0 | GT44: 1615.55 | GU44: 0 | GV44: 0 | GW44: 0 | GX44: 0 | GY44: 0 | GZ44: 0 | HA44: 0 | HB44: 0 | HC44: 0 | HD44: 0 | HE44: 8.14 | HF44: 55.34 | HG44: 2.37 | HH44: 0 | HI44: 25.36 | HJ44: 18.65 | HK44: 26.78 | HL44: 33 | HM44: 1.51 | HN44: 171.15 | HO44: 0 | HP44: 9.48449 | HQ44: 0.0897263 | HR44: 0 | HS44: 0 | HT44: 0.92718 | HU44: 0.771174 | HV44: 1.42503 | HW44: 0.00753268 | HX44: 12.7051 | HY44: 57.5805 | HZ44: 0 | IA44: 57.5805
A45: 2016-08-31T17:00:57 | B45: U03R10 | C45: v27 10 S69 G15 M01 | D45: Proposed and Standard | E45: PASS | F45: 0 | G45: 56.0297 | H45: 68.1686 | I45: 3834.01 | J45: 785.772 | K45: 0 | L45: 0 | M45: 2033.7 | N45: 5585.71 | O45: 12062 | P45: 433.914 | Q45: 24803.2 | R45: 79.4099 | S45: 0 | T45: 0 | U45: 0 | V45: 604.343 | W45: 0 | X45: 287.954 | Y45: 0 | Z45: 0 | AA45: 971.707 | AB45: 0 | AC45: 0 | AD45: 0 | AE45: 0 | AF45: 0 | AG45: 0 | AH45: 0 | AI45: 0 | AJ45: 0 | AK45: 0 | AL45: 2.32 | AM45: 27.73 | AN45: 2.37 | AO45: 0 | AP45: 14.57 | AQ45: 0 | AR45: 6.29 | AS45: 24.11 | AT45: 36.92 | AU45: 1.25 | AV45: 115.56 | AW45: 46.99 | AX45: 68.1681 | AY45: 3834.13 | AZ45: 785.772 | BA45: 0 | BB45: 0 | BC45: 2033.7 | BD45: 5585.71 | BE45: 12062 | BF45: 433.914 | BG45: 24803.4 | BH45: 79.4094 | BI45: 0 | BJ45: 0 | BK45: 0 | BL45: 604.343 | BM45: 0 | BN45: 287.954 | BO45: 0 | BP45: 0 | BQ45: 971.706 | BR45: 0 | BS45: 0 | BT45: 0 | BU45: 0 | BV45: 0 | BW45: 0 | BX45: 0 | BY45: 0 | BZ45: 0 | CA45: 0 | CB45: 2.32 | CC45: 27.73 | CD45: 2.37 | CE45: 0 | CF45: 14.57 | CG45: 6.29 | CH45: 24.11 | CI45: 36.92 | CJ45: 1.25 | CK45: 115.56 | CL45: 46.99 | CM45: CA Residential 2016, Vers. 1.0 | CN45: CSE 0.813 EXE | CP45: MPCBECC | CQ45: 0 | CR45: 5.5297 | CS45: 0.0897263 | CT45: 0 | CU45: 0 | CV45: 0.301364 | CW45: 0.755697 | CX45: 1.54311 | CY45: 0.0381986 | CZ45: 8.2578 | DA45: 5.61943 | DB45: 0 | DC45: 5.52973 | DD45: 0.0897263 | DE45: 0 | DF45: 0 | DG45: 0.301364 | DH45: 0.755697 | DI45: 1.54311 | DJ45: 0.0381986 | DK45: 8.25783 | DL45: 5.61946 | DM45: 2.95639e-05 | DN45: 2.90871e-05 | DO45: 0 | DP45: 0 | DZ45: 68.1686 | EA45: 3834.01 | EB45: 785.772 | EC45: 0 | ED45: 0 | EE45: 0 | EF45: 2033.7 | EG45: 5585.71 | EH45: 12062 | EI45: 433.914 | EJ45: 24803.2 | EK45: 79.4099 | EL45: 0 | EM45: 0 | EN45: 0 | EO45: 604.343 | EP45: 0 | EQ45: 287.954 | ER45: 0 | ES45: 0 | ET45: 971.707 | EU45: 0 | EV45: 0 | EW45: 0 | EX45: 0 | EY45: 0 | EZ45: 0 | FA45: 0 | FB45: 0 | FC45: 0 | FD45: 0 | FE45: 2.32 | FF45: 27.73 | FG45: 2.37 | FH45: 0 | FI45: 14.57 | FJ45: 0 | FK45: 6.29 | FL45: 24.11 | FM45: 36.92 | FN45: 1.25 | FO45: 115.56 | FP45: 0 | FQ45: 5.5297 | FR45: 0.0897263 | FS45: 0 | FT45: 0 | FU45: 0 | FV45: 0.301364 | FW45: 0.755697 | FX45: 1.54311 | FY45: 0.0381986 | FZ45: 8.2578 | GA45: 370.08 | GB45: 7899.94 | GC45: 785.772 | GD45: 0 | GE45: 0 | GF45: 5894.96 | GG45: 6547.68 | GH45: 10697.7 | GI45: 540.499 | GJ45: 32736.7 | GK45: 308.1 | GL45: 0 | GM45: 0 | GN45: 0 | GO45: 1048.34 | GP45: 0 | GQ45: 291.124 | GR45: 0 | GS45: 0 | GT45: 1647.57 | GU45: 0 | GV45: 0 | GW45: 0 | GX45: 0 | GY45: 0 | GZ45: 0 | HA45: 0 | HB45: 0 | HC45: 0 | HD45: 0 | HE45: 9.26 | HF45: 60.87 | HG45: 2.37 | HH45: 0 | HI45: 25.28 | HJ45: 18.45 | HK45: 26.75 | HL45: 32.86 | HM45: 1.49 | HN45: 177.33 | HO45: 0 | HP45: 10.2505 | HQ45: 0.0897263 | HR45: 0 | HS45: 0 | HT45: 0.92718 | HU45: 0.771174 | HV45: 1.42503 | HW45: 0.00753268 | HX45: 13.4712 | HY45: 56.0297 | HZ45: 0 | IA45: 56.0297
A46: 2016-08-31T17:00:43 | B46: U03R11 | C46: v27 11 S69 G15 M01 | D46: Proposed and Standard | E46: PASS | F46: 0 | G46: 56.1618 | H46: 332.489 | I46: 6190.11 | J46: 785.772 | K46: 0 | L46: 0 | M46: 2033.7 | N46: 5543.01 | O46: 12062 | P46: 433.914 | Q46: 27381 | R46: 387.229 | S46: 0 | T46: 0 | U46: 0 | V46: 615.9 | W46: 0 | X46: 287.954 | Y46: 0 | Z46: 0 | AA46: 1291.08 | AB46: 0 | AC46: 0 | AD46: 0 | AE46: 0 | AF46: 0 | AG46: 0 | AH46: 0 | AI46: 0 | AJ46: 0 | AK46: 0 | AL46: 11.34 | AM46: 44.66 | AN46: 2.47 | AO46: 0 | AP46: 14.87 | AQ46: 0 | AR46: 6.7 | AS46: 24.95 | AT46: 38.71 | AU46: 1.32 | AV46: 145.02 | AW46: 73.34 | AX46: 332.489 | AY46: 6190.24 | AZ46: 785.772 | BA46: 0 | BB46: 0 | BC46: 2033.7 | BD46: 5543.01 | BE46: 12062 | BF46: 433.914 | BG46: 27381.1 | BH46: 387.228 | BI46: 0 | BJ46: 0 | BK46: 0 | BL46: 615.9 | BM46: 0 | BN46: 287.954 | BO46: 0 | BP46: 0 | BQ46: 1291.08 | BR46: 0 | BS46: 0 | BT46: 0 | BU46: 0 | BV46: 0 | BW46: 0 | BX46: 0 | BY46: 0 | BZ46: 0 | CA46: 0 | CB46: 11.34 | CC46: 44.66 | CD46: 2.47 | CE46: 0 | CF46: 14.87 | CG46: 6.7 | CH46: 24.95 | CI46: 38.71 | CJ46: 1.32 | CK46: 145.02 | CL46: 73.34 | CM46: CA Residential 2016, Vers. 1.0 | CN46: CSE 0.813 EXE | CP46: MPCBECC | CQ46: 0 | CR46: 6.68065 | CS46: 0.0897263 | CT46: 0 | CU46: 0 | CV46: 0.301364 | CW46: 0.753595 | CX46: 1.54311 | CY46: 0.0381986 | CZ46: 9.40665 | DA46: 6.77038 | DB46: 0 | DC46: 6.68073 | DD46: 0.0897263 | DE46: 0 | DF46: 0 | DG46: 0.301364 | DH46: 0.753595 | DI46: 1.54311 | DJ46: 0.0381986 | DK46: 9.40673 | DL46: 6.77046 | DM46: 8.01086e-05 | DN46: 8.01086e-05 | DO46: 0 | DP46: 0 | DZ46: 332.489 | EA46: 6190.11 | EB46: 785.772 | EC46: 0 | ED46: 0 | EE46: 0 | EF46: 2033.7 | EG46: 5543.01 | EH46: 12062 | EI46: 433.914 | EJ46: 27381 | EK46: 387.229 | EL46: 0 | EM46: 0 | EN46: 0 | EO46: 615.9 | EP46: 0 | EQ46: 287.954 | ER46: 0 | ES46: 0 | ET46: 1291.08 | EU46: 0 | EV46: 0 | EW46: 0 | EX46: 0 | EY46: 0 | EZ46: 0 | FA46: 0 | FB46: 0 | FC46: 0 | FD46: 0 | FE46: 11.34 | FF46: 44.66 | FG46: 2.47 | FH46: 0 | FI46: 14.87 | FJ46: 0 | FK46: 6.7 | FL46: 24.95 | FM46: 38.71 | FN46: 1.32 | FO46: 145.02 | FP46: 0 | FQ46: 6.68065 | FR46: 0.0897263 | FS46: 0 | FT46: 0 | FU46: 0 | FV46: 0.301364 | FW46: 0.753595 | FX46: 1.54311 | FY46: 0.0381986 | FZ46: 9.40665 | GA46: 1038.65 | GB46: 12457.1 | GC46: 785.772 | GD46: 0 | GE46: 0 | GF46: 5894.96 | GG46: 6547.68 | GH46: 10697.7 | GI46: 540.499 | GJ46: 37962.4 | GK46: 864.495 | GL46: 0 | GM46: 0 | GN46: 0 | GO46: 1058.55 | GP46: 0 | GQ46: 291.124 | GR46: 0 | GS46: 0 | GT46: 2214.17 | GU46: 0 | GV46: 0 | GW46: 0 | GX46: 0 | GY46: 0 | GZ46: 0 | HA46: 0 | HB46: 0 | HC46: 0 | HD46: 0 | HE46: 26.02 | HF46: 84.37 | HG46: 2.47 | HH46: 0 | HI46: 25.55 | HJ46: 19.74 | HK46: 27.62 | HL46: 34.61 | HM46: 1.57 | HN46: 221.95 | HO46: 0 | HP46: 11.4471 | HQ46: 0.0897263 | HR46: 0 | HS46: 0 | HT46: 0.92718 | HU46: 0.771174 | HV46: 1.42503 | HW46: 0.00753268 | HX46: 14.6678 | HY46: 56.1618 | HZ46: 0 | IA46: 56.1618
